Workbook

Sheet Cover
B2: Company: | F2: Balfour Beatty Capital
B4: Project: | F4: North West Fire & Rescue PFI Project
B6: Model: | F6: =MID(TI!E10,TI!E12+1,(TI!E11-5)-TI!E12) -> BBFR_NWFRS_Financial Model_230211_DRY RUN_09.49.
B8: Version: | F8: CFT Financial Model
B10: Contact: | C10: Danny Leitch (0161 333 2573) or Sarah Hancock (0161 333 2625)
B12: Print date: | C12: =TODAY() -> 2011-02-23
B14: Notes | C14: Critical checks | E14: =Outputs!F5 -> ü | G14: Shortcut keys
C15: Other checks | E15: =Outputs!J5 -> ü | G15: (Press Escape key | H15: Ctrl + Shift + R | J15: Print Reports
G16: to cancel any process | H16: Ctrl + Shift + P | J16: All sheet protection
G17: or exit from any dialog box) | H17: Ctrl + K | J17: Funding calculation
H18: Ctrl + Alt + F9 | J18: Calculate model
B20: ="This Financial Model (the ""Model"") has been built under the terms of Ernst & Young LLP's engagement dated "& TEXT(TI!E8,"dd mmmm yyyy") &" with "&TI!E9&". The Model has been constructed for a specific purpose and is not intended for distribution to third parties. Third parties who obtain copies of the model should be aware of the following:" -> This Financial Model (the "Model") has been built under the terms of Ernst & Young LLP's engagement dated 17 February 2009 with Balfour Beatty Capital Limited. The Model has been constructed for a specific purpose and is not intended for distribution to third parties. Third parties who obtain copies of the model should be aware of the following:
B21: - the Model may not be suitable for purposes other than the specific purposes for which it was designed, and the interests of third parties may not have been anticipated;
B22: - the Model was not intended for use by third parties and may not be designed so that it can be readily operated in a correct manner by such parties;
B23: - the Model may be a development version and may not be complete or, in the event that development of the Model has concluded, material events may have occurred since completion, which are not reflected in the Model;
B24: - the Model may not have been subject to independent testing and where it has been tested, this may not provide an appropriate degree of assurance for all possible uses of the Model.
B25: Accordingly, third party recipients of this Model use it entirely at their own risk and, in the absence of express written consent, no responsibility is taken or accepted for any losses which may result there from, including direct or indirect consequences of computer viruses.
B26: The financial projections do not constitute a profit forecast, but illustrate the possible results of the project company if the assumptions set out in the Data Book were to be made correct. The project company has no previous trading history. The illustrative financial projections may be materially affected by changes in economic or other circumstances, or when the assumptions upon which they are based prove in event to have been incorrect.
B27: ="In the event any liability attaches to Ernst & Young LLP arising out of or in connection with the Model our liability "& "in respect of breach of contract or breach of duty or fault or negligence " & "or otherwise shall be limited in accordance with the terms of our engagement with "&TI!E9&"." -> In the event any liability attaches to Ernst & Young LLP arising out of or in connection with the Model our liability in respect of breach of contract or breach of duty or fault or negligence or otherwise shall be limited in accordance with the terms of our engagement with Balfour Beatty Capital Limited.

Sheet Contents
A1: =Cover!$F$4 -> North West Fire & Rescue PFI Project
A2: ="Filename: "&Cover!$F$6 -> Filename: BBFR_NWFRS_Financial Model_230211_DRY RUN_09.49.
A3: =UPPER(MID(CELL("filename",A3),FIND("]",CELL("filename",A3))+1,LEN(CELL("filename",A3)))) -> CONTENTS
A5: Scenario_Control
A7: TI
B9: =TI!A4 -> 1 | C9: =TI!B4 -> Model information
B10: =TI!A14 -> 2 | C10: =TI!B14 -> Model Timing and periodicity
B11: =TI!A39 -> 3 | C11: =TI!B39 -> Financing assumptions
C13: =TI!B41 -> 3.1 | D13: =TI!C41 -> Interest during construction
C14: =TI!B44 -> 3.2 | D14: =TI!C44 -> Debt Structure Inputs
C15: =TI!B55 -> 3.3 | D15: =TI!C55 -> Bond inputs - NOT USED
C16: =TI!B78 -> 3.4 | D16: =TI!C78 -> Senior debt tranche 1 inputs
C17: =TI!B95 -> 3.5 | D17: =TI!C95 -> Senior debt tranche 2 inputs - NOT USED
C18: =TI!B103 -> 3.6 | D18: =TI!C103 -> Mezzanine Debt inputs - NOT USED
C19: =TI!B111 -> 3.7 | D19: =TI!C111 -> Equity bridge inputs
C20: =TI!B121 -> 3.8 | D20: =TI!C121 -> Subordinated debt inputs
C21: =TI!B130 -> 3.9 | D21: =TI!C130 -> Equity inputs
C22: =TI!B136 -> 3.10 | D22: =TI!C136 -> Margins on debt (excluding Bond)
C23: =TI!B158 -> 3.11 | D23: =TI!C158 -> Other General Debt Inputs
B25: =TI!A186 -> 4 | C25: =TI!B186 -> Inflation assumptions
B26: =TI!A206 -> 5 | C26: =TI!B206 -> Working capital days
B27: =TI!A221 -> 6 | C27: =TI!B221 -> Accounting Inputs
C29: =TI!B231 -> 6.1 | D29: =TI!C231 -> Contract debtor / IFRIC 12 inputs
C30: =TI!B257 -> 6.2 | D30: =TI!C257 -> Fixed asset inputs
B32: =TI!A289 -> 7 | C32: =TI!B289 -> Revenue
C34: =TI!B291 -> 7.1 | D34: =TI!C291 -> Availability payment
C35: =TI!B318 -> 7.2 | D35: =TI!C318 -> Capital contribution
C36: =TI!B324 -> 7.3 | D36: =TI!C324 -> RPI Swap
B38: =TI!A332 -> 8 | C38: =TI!B332 -> Taxation
B39: =TI!A347 -> 9 | C39: =TI!B347 -> Reserve accounts
C41: =TI!B355 -> 0 | D41: =TI!D355 -> Method 1: Fixed Schedule
C42: =TI!B383 -> 9.2 | D42: =TI!C383 -> Debt Service Reserve Account
B44: =TI!A401 -> 10 | C44: =TI!B401 -> Constants
B45: =TI!A413 -> 11 | C45: =TI!B413 -> Input Validation (DO NOT ALTER)
A47: TD_Con
C49: =TD_Con!B8 -> Timing & flags
C50: =TD_Con!B15 -> Construction costs
D52: =TD_Con!C21 -> Option 1: Spend curve
D53: =TD_Con!C32 -> Option 2: Input costs
D54: =TD_Con!C65 -> Construction assumptions: option 2
D55: =TD_Con!C94 -> Option selected: total cost
C57: =TD_Con!B96 -> Development costs
C58: =TD_Con!B171 -> Operating costs during construction
D60: =TD_Con!C175 -> Hard O&M costs
D61: =TD_Con!C188 -> Soft O&M costs
D62: =TD_Con!C201 -> SPV costs
D63: =TD_Con!C214 -> Insurance costs
C65: =TD_Con!B238 -> Interest on GIC Account during construction
A67: TD_Ops
B69: =TD_Ops!A8 -> 1 | C69: =TD_Ops!B8 -> Timing flags
B70: =TD_Ops!A20 -> 2 | C70: =TD_Ops!B20 -> Revenue and costs assumptions
C72: =TD_Ops!B24 -> 2.1 | D72: =TD_Ops!C24 -> Assumed unitary charge base units
C73: =TD_Ops!B49 -> 2.2 | D73: =TD_Ops!C49 -> Third Party Income
C74: =TD_Ops!B51 -> 2.3 | D74: =TD_Ops!C51 -> Operating costs
C75: =TD_Ops!B106 -> 2.4 | D75: =TD_Ops!C106 -> Lifecycle Maintenance costs
B77: =TD_Ops!A132 -> 3 | C77: =TD_Ops!B132 -> Funding Margins
B78: =TD_Ops!A139 -> 4 | C78: =TD_Ops!B139 -> Funding - Manually Sculpted Repayments
B79: =TD_Ops!A150 -> 5 | C79: =TD_Ops!B150 -> Dividends
B80: =TD_Ops!A155 -> 6 | C80: =TD_Ops!B155 -> Change of law facility
B81: =TD_Ops!A161 -> 7 | C81: =TD_Ops!B161 -> Cover ratio Lock ups
A83: Const
B85: =Const!A30 -> 1 | C85: =Const!B30 -> Monthly statement of cash flows
B86: =Const!A118 -> 2 | C86: =Const!B118 -> Monthly statement of comprehensive income
B87: =Const!A122 -> 3 | C87: =Const!B122 -> Monthly statement of financial position
B88: =Const!A126 -> 4 | C88: =Const!B126 -> Inflation, Libor and margin calculations
C90: =Const!B128 -> 4.1 | D90: =Const!C128 -> Inflation assumptions
C91: =Const!B138 -> 4.2 | D91: =Const!C138 -> Months post base date
C92: =Const!B148 -> 4.3 | D92: =Const!C148 -> Months post first step up date
C93: =Const!B158 -> 4.4 | D93: =Const!C158 -> Number of months (initial period)
C94: =Const!B168 -> 4.5 | D94: =Const!C168 -> Number of months (whole periods)
C95: =Const!B178 -> 4.6 | D95: =Const!C178 -> Number of months (combined)
C96: =Const!B188 -> 4.7 | D96: =Const!C188 -> Monthly escalation factors
C97: =Const!B198 -> 4.8 | D97: =Const!C198 -> Interest rates
B99: =Const!A203 -> 5 | C99: =Const!B203 -> Revenue Calculations
C101: =Const!B208 -> 5.1 | D101: =Const!C208 -> Availability payment calculation
C102: =Const!#REF! ->  | D102: =Const!#REF! -> 
C103: =Const!B233 -> 5.2 | D103: =Const!C233 -> Usage Payment - NOT USED
C104: =Const!B239 -> 5.3 | D104: =Const!C239 -> Revenue debtor control account
B106: =Const!A261 -> 6 | C106: =Const!B261 -> Capital contribution
C108: =Const!B263 -> 6.1 | D108: =Const!C263 -> Capital contributions
B110: =Const!A274 -> 7 | C110: =Const!B274 -> Third party revenues
C112: =Const!B276 -> 7.1 | D112: =Const!C276 -> Third party revenue calculation
C113: =Const!B283 -> 7.2 | D113: =Const!C283 -> TPI debtor control account
B115: =Const!A297 -> 8 | C115: =Const!B297 -> Operating expenditure: Hard O&M
C117: =Const!B299 -> 8.1 | D117: =Const!C299 -> Hard O&M calculation
C118: =Const!B331 -> 8.2 | D118: =Const!C331 -> Hard O&M creditor control account
B120: =Const!A345 -> 9 | C120: =Const!B345 -> Operating expenditure: Soft O&M
C122: =Const!B347 -> 9.1 | D122: =Const!C347 -> Soft O&M calculation
C123: =Const!B379 -> 9.2 | D123: =Const!C379 -> Soft FM creditor account
B125: =Const!A393 -> 10 | C125: =Const!B393 -> SPV Costs
C127: =Const!B395 -> 10.1 | D127: =Const!C395 -> SPV Costs calculation
C128: =Const!B441 -> 10.2 | D128: =Const!C441 -> SPV & insurance creditor account
B130: =Const!A458 -> 11 | C130: =Const!B458 -> Construction Costs
C132: =Const!B460 -> 11.1 | D132: =Const!C460 -> Invoiced Amounts (net of VAT)
C133: =Const!B489 -> 11.2 | D133: =Const!C489 -> Invoiced Amounts (gross of VAT)
C134: =Const!B522 -> 11.3 | D134: =Const!C522 -> Payment Amounts (net of VAT)
C135: =Const!B551 -> 11.4 | D135: =Const!C551 -> Payment Amounts (gross of VAT)
C136: =Const!B580 -> 11.5 | D136: =Const!C580 -> Construction Costs Control Account
B138: =Const!A588 -> 12 | C138: =Const!B588 -> Development Costs
C140: =Const!B597 -> 12.1 | D140: =Const!C597 -> Nominal development Costs (net of VAT)
C141: =Const!B604 -> 12.2 | D141: =Const!C604 -> VAT on development costs
C142: =Const!B611 -> 12.3 | D142: =Const!C611 -> Nominal development costs (gross of VAT)
C143: =Const!B618 -> 12.4 | D143: =Const!C618 -> VAT recoverable on development costs
C144: =Const!B625 -> 12.5 | D144: =Const!C625 -> Nominal gross development costs (net of VAT recoverable)
C145: =Const!B632 -> 12.6 | D145: =Const!C632 -> Development Costs Summary
C146: =Const!B637 -> 12.7 | D146: =Const!C637 -> Development costs creditor control account
C147: =Const!B652 -> 12.8 | D147: =Const!C652 -> Capitalised development costs control account
B149: =Const!A659 -> 13 | C149: =Const!B659 -> VAT
C151: =Const!B661 -> 13.1 | D151: =Const!C661 -> VAT Amounts
C152: =Const!B676 -> 13.2 | D152: =Const!C676 -> VAT Inland Revenue control account
C153: =Const!B686 -> 13.3 | D153: =Const!C686 -> Calculation of VAT paid to creditors / received from debtors
B155: =Const!A700 -> 14 | C155: =Const!B700 -> Current account interest receivable/(payable)
B156: =Const!A715 -> 15 | C156: =Const!B715 -> Lifecycle/Maintenance Reserve Pre-Funding
B157: =Const!A728 -> 16 | C157: =Const!B728 -> Debt Service Reserve
C159: =Const!B744 -> 16.1 | D159: =Const!C744 -> Forecast debt service obligations
C160: =Const!B772 -> 16.2 | D160: =Const!C772 -> DSRA balances
C161: =Const!B790 -> 16.3 | D161: =Const!C790 -> DSRF fees
C162: =Const!B795 -> 16.4 | D162: =Const!C795 -> DSRF control account
B164: =Const!A804 -> 17 | C164: =Const!B804 -> Change of law facility
C166: =Const!B806 -> 17.1 | D166: =Const!C806 -> Arrangement fee
C167: =Const!B809 -> 17.2 | D167: =Const!C809 -> Commitment fee
B169: =Const!A813 -> 18 | C169: =Const!B813 -> Change of law reserve account
B170: =Const!A822 -> 19 | C170: =Const!B822 -> GIC
B171: =Const!A855 -> 20 | C171: =Const!B855 -> Tax paid during construction
B172: =Const!A862 -> 21 | C172: =Const!B862 -> Funding requirement
C174: =Const!B864 -> 21.1 | D174: =Const!C864 -> Funding requirement
C175: =Const!B923 -> 21.2 | D175: =Const!C923 -> Drawdown method
C176: =Const!B978 -> 21.3 | D176: =Const!C978 -> Bond
C177: =Const!B1016 -> 21.4 | D177: =Const!C1016 -> Monoline Premium During Const
C178: =Const!B1033 -> 21.5 | D178: =Const!C1033 -> Senior Debt Commercial Banks
C179: =Const!B1057 -> 21.6 | D179: =Const!C1057 -> Senior Debt EIB
C180: =Const!B1107 -> 21.7 | D180: =Const!C1107 -> Mezzanine Debt
C181: =Const!B1129 -> 21.8 | D181: =Const!C1129 -> Equity Bridge
C182: =Const!B1157 -> 21.9 | D182: =Const!C1157 -> Subordinated Debt
C183: =Const!B1182 -> 21.10 | D183: =Const!C1182 -> Equity
B185: =Const!A1190 -> 22 | C185: =Const!B1190 -> Bank Agency Fees (FRS4)
B186: =Const!A1200 -> 23 | C186: =Const!B1200 -> Rating Agency Fees
C188: =Const!B1202 -> 23.1 | D188: =Const!C1202 -> Additions during construction
C189: =Const!B1212 -> 23.2 | D189: =Const!C1212 -> Control Account
C190: =Const!B1221 -> 23.3 | D190: =Const!C1221 -> Rating agency arrangement fee
B192: =Const!A1231 -> 24 | C192: =Const!B1231 -> Sources & Uses (Construction)
B193: =Const!A1264 -> 25 | C193: =Const!B1264 -> Workings for increase in capex sensitivity
B194: =Const!A1273 -> 26 | C194: =Const!B1273 -> Copy & Paste Section (DO NOT INSERT ROWS BELOW THIS LINE)
A196: Ops
B198: =Ops!A53 -> 1 | C198: =Ops!B53 -> Semi annual statement of cash flows
B199: =Ops!A137 -> 2 | C199: =Ops!B137 -> Semi annual statement of comprehensive income
B200: =Ops!A198 -> 3 | C200: =Ops!B198 -> Semi annual statement of financial position
B201: =Ops!A249 -> 4 | C201: =Ops!B249 -> Inflation, Libor and margin calculations
C203: =Ops!B251 -> 4.1 | D203: =Ops!C251 -> Inflation
B205: =Ops!A315 -> 5 | C205: =Ops!B315 -> Revenue
C207: =Ops!B317 -> 5.1 | D207: =Ops!C317 -> Availability payment calculation (operations period)
C208: =Ops!B360 -> 5.2 | D208: =Ops!C360 -> Toll payment calculation - NOT USED
C209: =Ops!B378 -> 5.3 | D209: =Ops!C378 -> Unitary charge availability debtor control account
C210: =Ops!B396 -> 5.4 | D210: =Ops!C396 -> Unitary charge usage debtor control account
C211: =Ops!B412 -> 5.5 | D211: =Ops!C412 -> RPI Swap
C212: =Ops!B420 -> 5.6 | D212: =Ops!C420 -> Bullet payment
B214: =Ops!A441 -> 6 | C214: =Ops!B441 -> Capital contribution
C216: =Ops!B443 -> 6.1 | D216: =Ops!C443 -> Capital contribution (Deferred Revenue) control account
B218: =Ops!A455 -> 7 | C218: =Ops!B455 -> Third Party Income
C220: =Ops!B457 -> 7.1 | D220: =Ops!C457 -> Thrid party income calculation (operations period)
C221: =Ops!B476 -> 7.2 | D221: =Ops!C476 -> TPI debtors control account
B223: =Ops!A492 -> 8 | C223: =Ops!B492 -> Operating expenditure: Hard FM
C225: =Ops!B494 -> 8.1 | D225: =Ops!C494 -> Hard FM calculation (during operations)
C226: =Ops!B531 -> 8.2 | D226: =Ops!C531 -> Hard FM creditor control account
B228: =Ops!A547 -> 9 | C228: =Ops!B547 -> Operating expenditure: Soft O&M
C230: =Ops!B549 -> 9.1 | D230: =Ops!C549 -> Soft O&M calculation (during operations)
C231: =Ops!B592 -> 9.2 | D231: =Ops!C592 -> Soft O&M creditor control account
B233: =Ops!A620 -> 10 | C233: =Ops!B620 -> Operating expenditure: SPV costs
C235: =Ops!B622 -> 10.1 | D235: =Ops!C622 -> SPV costs calculation (during operations)
C236: =Ops!B667 -> 10.2 | D236: =Ops!C667 -> SPV creditor control account
C237: =Ops!B683 -> 10.3 | D237: =Ops!C683 -> Construction period costs to capitalise
B239: =Ops!A687 -> 11 | C239: =Ops!B687 -> Life Cycle Expenditure
C241: =Ops!B689 -> 11.1 | D241: =Ops!C689 -> Lifecycle calculation
C242: =Ops!B722 -> 11.2 | D242: =Ops!C722 -> Lifecycle creditor control account
B244: =Ops!A738 -> 12 | C244: =Ops!B738 -> Construction & development costs
C246: =Ops!B740 -> 12.1 | D246: =Ops!C740 -> Construction costs
C247: =Ops!B753 -> 12.2 | D247: =Ops!C753 -> Development costs
B249: =Ops!A783 -> 13 | C249: =Ops!B783 -> Change of law control account
C251: =Ops!B785 -> 13.1 | D251: =Ops!C785 -> Calculation of change of law costs
C252: =Ops!B791 -> 13.2 | D252: =Ops!C791 -> Change of law costs creditor control acocunt
C253: =Ops!B807 -> 13.3 | D253: =Ops!C807 -> Change of law facility commitment fees
B255: =Ops!A835 -> 14 | C255: =Ops!B835 -> VAT
C257: =Ops!B837 -> 14.1 | D257: =Ops!C837 -> Calculation of VAT due/receivable from Inland Revenue
C258: =Ops!B867 -> 14.2 | D258: =Ops!C867 -> VAT Inland Revenue control account
C259: =Ops!B874 -> 14.3 | D259: =Ops!C874 -> Calculation of VAT paid to creditors / received from debtors
B261: =Ops!A894 -> 15 | C261: =Ops!B894 -> Current account interest receivable/(payable)
B262: =Ops!A917 -> 16 | C262: =Ops!B917 -> Taxation
C264: =Ops!B923 -> 16.1 | D264: =Ops!C923 -> Corporation tax charge
C265: =Ops!B956 -> 16.2 | D265: =Ops!C956 -> Tax losses account
C266: =Ops!B965 -> 16.3 | D266: =Ops!C965 -> Tax payment account
C267: =Ops!B971 -> 16.4 | D267: =Ops!C971 -> Calculation of interest deductible from trading income
C268: =Ops!B993 -> 16.5 | D268: =Ops!C993 -> Deferred tax
B270: =Ops!A1023 -> 17 | C270: =Ops!B1023 -> Tax reconciliation
B271: =Ops!A1058 -> 18 | C271: =Ops!B1058 -> Accounting Calculations
C273: =Ops!B1062 -> 18.1 | D273: =Ops!C1062 -> Calculation of Asset Related Revenues
C274: =Ops!B1075 -> 18.2 | D274: =Ops!C1075 -> P&L Allocations
B276: =Ops!A1121 -> 19 | C276: =Ops!B1121 -> Fixed assets and depreciation
C278: =Ops!B1129 -> 19.1 | D278: =Ops!C1129 -> Fixed asset additions by category
C279: =Ops!B1138 -> 19.2 | D279: =Ops!C1138 -> Fixed asset deferral until operations period
C280: =Ops!B1164 -> 19.3 | D280: =Ops!C1164 -> Fixed asset depreciation
... 80 more rows

Sheet Gaps list
B2: Paymech
B4: Definitions
B5: Annual Unitary Charge | D5: =Scenario_Control!G13*1000 -> 6033000
B6: Availability Period (a) | D6: =TI!E90 -> 2013-06-30
B7: Availability Period (b) | D7: =TI!E117 -> 2013-06-30
B8: Cash Flow before Financing
B9: Base Annual Fixed Element (a) | D9: =Scenario_Control!G13*(1-Scenario_Control!G14)*1000 -> 4042110
B10: Base Annual Variable Element (a) | D10: =D5-D9 -> 1990890
B12: Cl 2.3.1
B13: Station | C13: Revenue Phasing
B14: Carlisle West | C14: ='UC split by Authority'!N79 -> 0.03920060017
B15: Formby | C15: ='UC split by Authority'!N80 -> 0.04246420792
B16: Formby Post Completion Works | C16: ='UC split by Authority'!O80 -> 0.002234958312
B17: Blackburn | C17: ='UC split by Authority'!N81 -> 0.06529723336
B18: Carlisle East | C18: ='UC split by Authority'!N82 -> 0.07772031263
B19: Kirkdale | C19: ='UC split by Authority'!N83 -> 0.06839921389
B20: Kirkdale Post Completion Works | C20: ='UC split by Authority'!O83 -> 0.003599958626
B21: Bootle & Netherton | C21: ='UC split by Authority'!N84 -> 0.0651524837
B22: Bootle & Netherton Post Completion Works | C22: ='UC split by Authority'!O84 -> 0.003429078089
B23: Fleetwood | C23: ='UC split by Authority'!N85 -> 0.05146927614
B24: Fleetwood Post Completion Works | C24: ='UC split by Authority'!O85 -> 0.00270890927
B25: Patterdale | C25: ='UC split by Authority'!N86 -> 0.01491433776
B26: Patterdate Post Completion Works | C26: ='UC split by Authority'!O86 -> 0.0007849651454
B27: Newton le Willows | C27: ='UC split by Authority'!N87 -> 0.0442241246
B28: Newton le Willows Post Completion Works | C28: ='UC split by Authority'!O87 -> 0.002327585506
B29: Penrith | C29: ='UC split by Authority'!N88 -> 0.1259608897
B30: Workington | C30: ='UC split by Authority'!N89 -> 0.0721322633
B31: Birkenhead | C31: ='UC split by Authority'!N90 -> 0.0637757385
B32: Birkenhead Post Completion Works | C32: ='UC split by Authority'!O90 -> 0.003356617816
B33: Burnley | C33: ='UC split by Authority'!N91 -> 0.06870488776
B34: Burnley Post Completion Works | C34: ='UC split by Authority'!O91 -> 0.003616046724
B35: Chorley | C35: ='UC split by Authority'!N92 -> 0.05834112589
B36: Southport | C36: ='UC split by Authority'!N93 -> 0.06314117102
B37: Southport Post Completion Works | C37: ='UC split by Authority'!O93 -> 0.003323219527
B38: Belle Vale | C38: ='UC split by Authority'!N94 -> 0.05103475492
B39: Belle Vale Post Completion Works | C39: ='UC split by Authority'!O94 -> 0.002686039732
B40: Total | C40: =SUM(C14:C39) -> 1
B42: 6.2 Cap on performance deductions (a) | E42: ='Cap on Performance Deductions'!B21 -> 0.211176111
B44: LFA
B46: Initial Financial Model definition | E46: =NOW() -> 2011-02-23T12:00:19.660
B48: Tax reserve account | E48: =SUM(Ops!H954:M954)*1000 -> 251649.3344
B50: Schedule 1
C51: Dexia | D51: Nord | E51: Total
B52: Base Facility Commitment | C52: =E52*0.5 -> 25218347.8 | D52: =E52*0.5 -> 25218347.8 | E52: =E150 -> 50436695.59
B53: Equity Facility Commitment | C53: =E53*0.5 -> 2642367.715 | D53: =E53*0.5 -> 2642367.715 | E53: =Outputs!B65*1000 -> 5284735.43
B54: CILF Commitment | C54: =E54*0.5 -> 718288.065 | D54: =E54*0.5 -> 718288.065 | E54: =TD_Ops!E158*1000 -> 1436576.13
B55: DSRF Commitment | C55: =E55*0.5 -> 1237500 | D55: =E55*0.5 -> 1237500 | E55: =TI!E390*1000 -> 2475000
B57: Schedule 2, Part 2, para 10b - Minimum LLCR (actual) | E57: =Outputs!J39 -> 1.19062
C59: SCHEDULE 4
C61: REPAYMENT AND DRAWDOWN
C63: PART 1 - REPAYMENT SCHEDULE
C65: Repayment Dates | D65: Percentage of Base Facility Loan
C66: ='Swap Schedule'!C82 -> 2013-09-30 | D66: =-'Swap Schedule'!E82/'Swap Schedule'!$G$37 -> 0.003838208045
C67: ='Swap Schedule'!C83 -> 2014-03-31 | D67: =-'Swap Schedule'!E83/'Swap Schedule'!$G$37 -> 0.01065108151
C68: ='Swap Schedule'!C84 -> 2014-09-30 | D68: =-'Swap Schedule'!E84/'Swap Schedule'!$G$37 -> 0.01013484676
C69: ='Swap Schedule'!C85 -> 2015-03-31 | D69: =-'Swap Schedule'!E85/'Swap Schedule'!$G$37 -> 0.01073857984
C70: ='Swap Schedule'!C86 -> 2015-09-30 | D70: =-'Swap Schedule'!E86/'Swap Schedule'!$G$37 -> 0.01021337364
C71: ='Swap Schedule'!C87 -> 2016-03-31 | D71: =-'Swap Schedule'!E87/'Swap Schedule'!$G$37 -> 0.01072388387
C72: ='Swap Schedule'!C88 -> 2016-09-30 | D72: =-'Swap Schedule'!E88/'Swap Schedule'!$G$37 -> 0.01022212954
C73: ='Swap Schedule'!C89 -> 2017-03-31 | D73: =-'Swap Schedule'!E89/'Swap Schedule'!$G$37 -> 0.01178308211
C74: ='Swap Schedule'!C90 -> 2017-09-30 | D74: =-'Swap Schedule'!E90/'Swap Schedule'!$G$37 -> 0.01100405829
C75: ='Swap Schedule'!C91 -> 2018-03-31 | D75: =-'Swap Schedule'!E91/'Swap Schedule'!$G$37 -> 0.01252064633
C76: ='Swap Schedule'!C92 -> 2018-09-30 | D76: =-'Swap Schedule'!E92/'Swap Schedule'!$G$37 -> 0.01184536278
C77: ='Swap Schedule'!C93 -> 2019-03-31 | D77: =-'Swap Schedule'!E93/'Swap Schedule'!$G$37 -> 0.01338514343
C78: ='Swap Schedule'!C94 -> 2019-09-30 | D78: =-'Swap Schedule'!E94/'Swap Schedule'!$G$37 -> 0.01270419121
C79: ='Swap Schedule'!C95 -> 2020-03-31 | D79: =-'Swap Schedule'!E95/'Swap Schedule'!$G$37 -> 0.01403373137
C80: ='Swap Schedule'!C96 -> 2020-09-30 | D80: =-'Swap Schedule'!E96/'Swap Schedule'!$G$37 -> 0.01331388327
C81: ='Swap Schedule'!C97 -> 2021-03-31 | D81: =-'Swap Schedule'!E97/'Swap Schedule'!$G$37 -> 0.01452200568
C82: ='Swap Schedule'!C98 -> 2021-09-30 | D82: =-'Swap Schedule'!E98/'Swap Schedule'!$G$37 -> 0.01344254037
C83: ='Swap Schedule'!C99 -> 2022-03-31 | D83: =-'Swap Schedule'!E99/'Swap Schedule'!$G$37 -> 0.01473668122
C84: ='Swap Schedule'!C100 -> 2022-09-30 | D84: =-'Swap Schedule'!E100/'Swap Schedule'!$G$37 -> 0.01394172421
C85: ='Swap Schedule'!C101 -> 2023-03-31 | D85: =-'Swap Schedule'!E101/'Swap Schedule'!$G$37 -> 0.01553030031
C86: ='Swap Schedule'!C102 -> 2023-09-30 | D86: =-'Swap Schedule'!E102/'Swap Schedule'!$G$37 -> 0.01464975738
C87: ='Swap Schedule'!C103 -> 2024-03-31 | D87: =-'Swap Schedule'!E103/'Swap Schedule'!$G$37 -> 0.01607534432
C88: ='Swap Schedule'!C104 -> 2024-09-30 | D88: =-'Swap Schedule'!E104/'Swap Schedule'!$G$37 -> 0.01526525607
C89: ='Swap Schedule'!C105 -> 2025-03-31 | D89: =-'Swap Schedule'!E105/'Swap Schedule'!$G$37 -> 0.0168888774
C90: ='Swap Schedule'!C106 -> 2025-09-30 | D90: =-'Swap Schedule'!E106/'Swap Schedule'!$G$37 -> 0.01598841664
C91: ='Swap Schedule'!C107 -> 2026-03-31 | D91: =-'Swap Schedule'!E107/'Swap Schedule'!$G$37 -> 0.01761034549
C92: ='Swap Schedule'!C108 -> 2026-09-30 | D92: =-'Swap Schedule'!E108/'Swap Schedule'!$G$37 -> 0.01691231995
C93: ='Swap Schedule'!C109 -> 2027-03-31 | D93: =-'Swap Schedule'!E109/'Swap Schedule'!$G$37 -> 0.01880228385
C94: ='Swap Schedule'!C110 -> 2027-09-30 | D94: =-'Swap Schedule'!E110/'Swap Schedule'!$G$37 -> 0.01818709439
C95: ='Swap Schedule'!C111 -> 2028-03-31 | D95: =-'Swap Schedule'!E111/'Swap Schedule'!$G$37 -> 0.01993532288
C96: ='Swap Schedule'!C112 -> 2028-09-30 | D96: =-'Swap Schedule'!E112/'Swap Schedule'!$G$37 -> 0.01907589149
C97: ='Swap Schedule'!C113 -> 2029-03-31 | D97: =-'Swap Schedule'!E113/'Swap Schedule'!$G$37 -> 0.02093515997
C98: ='Swap Schedule'!C114 -> 2029-09-30 | D98: =-'Swap Schedule'!E114/'Swap Schedule'!$G$37 -> 0.02029468296
C99: ='Swap Schedule'!C115 -> 2030-03-31 | D99: =-'Swap Schedule'!E115/'Swap Schedule'!$G$37 -> 0.02226023303
C100: ='Swap Schedule'!C116 -> 2030-09-30 | D100: =-'Swap Schedule'!E116/'Swap Schedule'!$G$37 -> 0.02146223229
C101: ='Swap Schedule'!C117 -> 2031-03-31 | D101: =-'Swap Schedule'!E117/'Swap Schedule'!$G$37 -> 0.02350370986
C102: ='Swap Schedule'!C118 -> 2031-09-30 | D102: =-'Swap Schedule'!E118/'Swap Schedule'!$G$37 -> 0.02251639398
C103: ='Swap Schedule'!C119 -> 2032-03-31 | D103: =-'Swap Schedule'!E119/'Swap Schedule'!$G$37 -> 0.0247627674
C104: ='Swap Schedule'!C120 -> 2032-09-30 | D104: =-'Swap Schedule'!E120/'Swap Schedule'!$G$37 -> 0.02517932926
C105: ='Swap Schedule'!C121 -> 2033-03-31 | D105: =-'Swap Schedule'!E121/'Swap Schedule'!$G$37 -> 0.02969486139
C106: ='Swap Schedule'!C122 -> 2033-09-30 | D106: =-'Swap Schedule'!E122/'Swap Schedule'!$G$37 -> 0.03021384271
C107: ='Swap Schedule'!C123 -> 2034-03-31 | D107: =-'Swap Schedule'!E123/'Swap Schedule'!$G$37 -> 0.03436561505
C108: ='Swap Schedule'!C124 -> 2034-09-30 | D108: =-'Swap Schedule'!E124/'Swap Schedule'!$G$37 -> 0.03377983247
C109: ='Swap Schedule'!C125 -> 2035-03-31 | D109: =-'Swap Schedule'!E125/'Swap Schedule'!$G$37 -> 0.0346189792
C110: ='Swap Schedule'!C126 -> 2035-09-30 | D110: =-'Swap Schedule'!E126/'Swap Schedule'!$G$37 -> 0.03531698606
C111: ='Swap Schedule'!C127 -> 2036-03-31 | D111: =-'Swap Schedule'!E127/'Swap Schedule'!$G$37 -> 0.03871690665
C112: ='Swap Schedule'!C128 -> 2036-09-30 | D112: =-'Swap Schedule'!E128/'Swap Schedule'!$G$37 -> 0.04075971155
C113: ='Swap Schedule'!C129 -> 2037-03-31 | D113: =-'Swap Schedule'!E129/'Swap Schedule'!$G$37 -> 0.04415465444
C114: ='Swap Schedule'!C130 -> 2037-09-30 | D114: =-'Swap Schedule'!E130/'Swap Schedule'!$G$37 -> 0.0459401058
C115: ='Swap Schedule'!C131 -> 2037-12-31 | D115: =-'Swap Schedule'!E131/'Swap Schedule'!$G$37 -> 0.02284763228
C116: Total | D116: =SUM(D66:E115) -> 1
B118: PART 2 - MAXIMUM DRAWDOWN SCHEDULE
B120: Column 1 | C120: Column 2 | D120: Column 3 | E120: Column 4
B121: Dates | C121: Maximum Principle Amount | D121: Additional Headroom | E121: Maximum Principle Amount (including Headroom)
B122: ='Swap Schedule'!B9 -> 2011-02-23 | C122: =('Swap Schedule'!E9+'Swap Schedule'!F9)*1000 -> 2958177.479 | D122: =TI!$E$93*1000 -> 200000 | E122: =SUM(C122:D122) -> 3158177.479
B123: ='Swap Schedule'!C10 -> 2011-03-31 | C123: =('Swap Schedule'!E10+'Swap Schedule'!F10)*1000+C122 -> 3119358.214 | D123: =TI!$E$93*1000 -> 200000 | E123: 3319358.214
B124: ='Swap Schedule'!C11 -> 2011-04-30 | C124: =('Swap Schedule'!E11+'Swap Schedule'!F11)*1000+C123 -> 4256753.849 | D124: =TI!$E$93*1000 -> 200000 | E124: 4456753.849
B125: ='Swap Schedule'!C12 -> 2011-05-31 | C125: =('Swap Schedule'!E12+'Swap Schedule'!F12)*1000+C124 -> 4345380.167 | D125: =TI!$E$93*1000 -> 200000 | E125: 4545380.167
B126: ='Swap Schedule'!C13 -> 2011-06-30 | C126: =('Swap Schedule'!E13+'Swap Schedule'!F13)*1000+C125 -> 6141816.942 | D126: =TI!$E$93*1000 -> 200000 | E126: 6341816.942
B127: ='Swap Schedule'!C14 -> 2011-07-31 | C127: =('Swap Schedule'!E14+'Swap Schedule'!F14)*1000+C126 -> 7213458.584 | D127: =TI!$E$93*1000 -> 200000 | E127: 7413458.584
B128: ='Swap Schedule'!C15 -> 2011-08-31 | C128: =('Swap Schedule'!E15+'Swap Schedule'!F15)*1000+C127 -> 9102763.986 | D128: =TI!$E$93*1000 -> 200000 | E128: 9302763.986
B129: ='Swap Schedule'!C16 -> 2011-09-30 | C129: =('Swap Schedule'!E16+'Swap Schedule'!F16)*1000+C128 -> 11259610.88 | D129: =TI!$E$93*1000 -> 200000 | E129: 11459610.88
B130: ='Swap Schedule'!C17 -> 2011-10-31 | C130: =('Swap Schedule'!E17+'Swap Schedule'!F17)*1000+C129 -> 13655799.43 | D130: =TI!$E$93*1000 -> 200000 | E130: 13855799.43
B131: ='Swap Schedule'!C18 -> 2011-11-30 | C131: =('Swap Schedule'!E18+'Swap Schedule'!F18)*1000+C130 -> 16574750.34 | D131: =TI!$E$93*1000 -> 200000 | E131: 16774750.34
B132: ='Swap Schedule'!C19 -> 2011-12-31 | C132: =('Swap Schedule'!E19+'Swap Schedule'!F19)*1000+C131 -> 20240391.61 | D132: =TI!$E$93*1000 -> 200000 | E132: 20440391.61
B133: ='Swap Schedule'!C20 -> 2012-01-31 | C133: =('Swap Schedule'!E20+'Swap Schedule'!F20)*1000+C132 -> 23934805.07 | D133: =TI!$E$93*1000 -> 200000 | E133: 24134805.07
B134: ='Swap Schedule'!C21 -> 2012-02-29 | C134: =('Swap Schedule'!E21+'Swap Schedule'!F21)*1000+C133 -> 27280746.06 | D134: =TI!$E$93*1000 -> 200000 | E134: 27480746.06
B135: ='Swap Schedule'!C22 -> 2012-03-31 | C135: =('Swap Schedule'!E22+'Swap Schedule'!F22)*1000+C134 -> 29265661.6 | D135: =TI!$E$93*1000 -> 200000 | E135: 29465661.6
B136: ='Swap Schedule'!C23 -> 2012-04-30 | C136: =('Swap Schedule'!E23+'Swap Schedule'!F23)*1000+C135 -> 30809971.8 | D136: =TI!$E$93*1000 -> 200000 | E136: 31009971.8
B137: ='Swap Schedule'!C24 -> 2012-05-31 | C137: =('Swap Schedule'!E24+'Swap Schedule'!F24)*1000+C136 -> 31991075.51 | D137: =TI!$E$93*1000 -> 200000 | E137: 32191075.51
B138: ='Swap Schedule'!C25 -> 2012-06-30 | C138: =('Swap Schedule'!E25+'Swap Schedule'!F25)*1000+C137 -> 33211612.81 | D138: =TI!$E$93*1000 -> 200000 | E138: 33411612.81
B139: ='Swap Schedule'!C26 -> 2012-07-31 | C139: =('Swap Schedule'!E26+'Swap Schedule'!F26)*1000+C138 -> 34130872.76 | D139: =TI!$E$93*1000 -> 200000 | E139: 34330872.76
B140: ='Swap Schedule'!C27 -> 2012-08-31 | C140: =('Swap Schedule'!E27+'Swap Schedule'!F27)*1000+C139 -> 34688949.32 | D140: =TI!$E$93*1000 -> 200000 | E140: 34888949.32
B141: ='Swap Schedule'!C28 -> 2012-09-30 | C141: =('Swap Schedule'!E28+'Swap Schedule'!F28)*1000+C140 -> 35595162.13 | D141: =TI!$E$93*1000 -> 200000 | E141: 35795162.13
B142: ='Swap Schedule'!C29 -> 2012-10-31 | C142: =('Swap Schedule'!E29+'Swap Schedule'!F29)*1000+C141 -> 36821551.91 | D142: =TI!$E$93*1000 -> 200000 | E142: 37021551.91
B143: ='Swap Schedule'!C30 -> 2012-11-30 | C143: =('Swap Schedule'!E30+'Swap Schedule'!F30)*1000+C142 -> 38454018.68 | D143: =TI!$E$93*1000 -> 200000 | E143: 38654018.68
B144: ='Swap Schedule'!C31 -> 2012-12-31 | C144: =('Swap Schedule'!E31+'Swap Schedule'!F31)*1000+C143 -> 39986640.49 | D144: =TI!$E$93*1000 -> 200000 | E144: 40186640.49
B145: ='Swap Schedule'!C32 -> 2013-01-31 | C145: =('Swap Schedule'!E32+'Swap Schedule'!F32)*1000+C144 -> 42213035.02 | D145: =TI!$E$93*1000 -> 200000 | E145: 42413035.02
B146: ='Swap Schedule'!C33 -> 2013-02-28 | C146: =('Swap Schedule'!E33+'Swap Schedule'!F33)*1000+C145 -> 44874427.9 | D146: =TI!$E$93*1000 -> 200000 | E146: 45074427.9
B147: ='Swap Schedule'!C34 -> 2013-03-31 | C147: =('Swap Schedule'!E34+'Swap Schedule'!F34)*1000+C146 -> 47132588.54 | D147: =TI!$E$93*1000 -> 200000 | E147: 47332588.54
B148: ='Swap Schedule'!C35 -> 2013-04-30 | C148: =('Swap Schedule'!E35+'Swap Schedule'!F35)*1000+C147 -> 48882582.72 | D148: =TI!$E$93*1000 -> 200000 | E148: 49082582.72
B149: ='Swap Schedule'!C36 -> 2013-05-31 | C149: =('Swap Schedule'!E36+'Swap Schedule'!F36)*1000+C148 -> 49889245.22 | D149: =TI!$E$93*1000 -> 200000 | E149: 50089245.22
B150: ='Swap Schedule'!C37 -> 2013-06-30 | C150: =('Swap Schedule'!E37+'Swap Schedule'!F37)*1000+C149 -> 50236695.59 | D150: =TI!$E$93*1000 -> 200000 | E150: 50436695.59
B152: Borrower Loan Note Instrument
B154: Front page | C154: Amount of loan stock and maturity date | E154: =Ops!M132*1000 -> 5284735.43 | F154: =TI!E26 -> 2038-07-04
B155: Recital | C155: Amount of loan stock and maturity date | E155: =E154 -> 5284735.43 | F155: =F154 -> 2038-07-04
B156: 1 – “Notes” | C156: Amount of loan stock and maturity date | E156: =E155 -> 5284735.43 | F156: =F155 -> 2038-07-04
B157: 2.1 | C157: Amount of loan stock | E157: =E156 -> 5284735.43
B158: 3.3 | C158: Amount of loan stock and maturity date | E158: =E157 -> 5284735.43 | F158: =F156 -> 2038-07-04
B159: Schedule 2, paragraph 2.1 | C159: Interest rate | E159: =Scenario_Control!E130/10000 -> 0.0855
C162: Appendix to Schedule 2
C164: Date of Payment | D164: Amount of instalment to be paid on each Note (as a percentage of original par value)
B165: 0 | C165: =OFFSET(Ops!$M$4,0,B165) -> 2013-09-30 | D165: =-((OFFSET(Ops!$M$117,0,'Gaps list'!B165)*1000)/'Gaps list'!$E$154) -> 0.00296408775
B166: 1 | C166: =OFFSET(Ops!$M$4,0,B166) -> 2014-03-31 | D166: =-((OFFSET(Ops!$M$117,0,'Gaps list'!B166)*1000)/'Gaps list'!$E$154) -> 0.006530619958
B167: 2 | C167: =OFFSET(Ops!$M$4,0,B167) -> 2014-09-30 | D167: =-((OFFSET(Ops!$M$117,0,'Gaps list'!B167)*1000)/'Gaps list'!$E$154) -> 0.007884175282
B168: 3 | C168: =OFFSET(Ops!$M$4,0,B168) -> 2015-03-31 | D168: =-((OFFSET(Ops!$M$117,0,'Gaps list'!B168)*1000)/'Gaps list'!$E$154) -> 0.005073743563
B169: 4 | C169: =OFFSET(Ops!$M$4,0,B169) -> 2015-09-30 | D169: =-((OFFSET(Ops!$M$117,0,'Gaps list'!B169)*1000)/'Gaps list'!$E$154) -> 0.004678845251
B170: 5 | C170: =OFFSET(Ops!$M$4,0,B170) -> 2016-03-31 | D170: =-((OFFSET(Ops!$M$117,0,'Gaps list'!B170)*1000)/'Gaps list'!$E$154) -> 0.00494294188
B171: 6 | C171: =OFFSET(Ops!$M$4,0,B171) -> 2016-09-30 | D171: =-((OFFSET(Ops!$M$117,0,'Gaps list'!B171)*1000)/'Gaps list'!$E$154) -> 0.004423518044
B172: 7 | C172: =OFFSET(Ops!$M$4,0,B172) -> 2017-03-31 | D172: =-((OFFSET(Ops!$M$117,0,'Gaps list'!B172)*1000)/'Gaps list'!$E$154) -> 0.005354092412
B173: 8 | C173: =OFFSET(Ops!$M$4,0,B173) -> 2017-09-30 | D173: =-((OFFSET(Ops!$M$117,0,'Gaps list'!B173)*1000)/'Gaps list'!$E$154) -> 0.004739337947
B174: 9 | C174: =OFFSET(Ops!$M$4,0,B174) -> 2018-03-31 | D174: =-((OFFSET(Ops!$M$117,0,'Gaps list'!B174)*1000)/'Gaps list'!$E$154) -> 0.005627984732
B175: 10 | C175: =OFFSET(Ops!$M$4,0,B175) -> 2018-09-30 | D175: =-((OFFSET(Ops!$M$117,0,'Gaps list'!B175)*1000)/'Gaps list'!$E$154) -> 0.005078623888
B176: 11 | C176: =OFFSET(Ops!$M$4,0,B176) -> 2019-03-31 | D176: =-((OFFSET(Ops!$M$117,0,'Gaps list'!B176)*1000)/'Gaps list'!$E$154) -> 0.005976633827
B177: 12 | C177: =OFFSET(Ops!$M$4,0,B177) -> 2019-09-30 | D177: =-((OFFSET(Ops!$M$117,0,'Gaps list'!B177)*1000)/'Gaps list'!$E$154) -> 0.005407243948
B178: 13 | C178: =OFFSET(Ops!$M$4,0,B178) -> 2020-03-31 | D178: =-((OFFSET(Ops!$M$117,0,'Gaps list'!B178)*1000)/'Gaps list'!$E$154) -> 0.006257564251
B179: 14 | C179: =OFFSET(Ops!$M$4,0,B179) -> 2020-09-30 | D179: =-((OFFSET(Ops!$M$117,0,'Gaps list'!B179)*1000)/'Gaps list'!$E$154) -> 0.005523107518
B180: 15 | C180: =OFFSET(Ops!$M$4,0,B180) -> 2021-03-31 | D180: =-((OFFSET(Ops!$M$117,0,'Gaps list'!B180)*1000)/'Gaps list'!$E$154) -> 0.006148702522
B181: 16 | C181: =OFFSET(Ops!$M$4,0,B181) -> 2021-09-30 | D181: =-((OFFSET(Ops!$M$117,0,'Gaps list'!B181)*1000)/'Gaps list'!$E$154) -> 0.005241091648
B182: 17 | C182: =OFFSET(Ops!$M$4,0,B182) -> 2022-03-31 | D182: =-((OFFSET(Ops!$M$117,0,'Gaps list'!B182)*1000)/'Gaps list'!$E$154) -> 0.005925241074
B183: 18 | C183: =OFFSET(Ops!$M$4,0,B183) -> 2022-09-30 | D183: =-((OFFSET(Ops!$M$117,0,'Gaps list'!B183)*1000)/'Gaps list'!$E$154) -> 0.005220311999
B184: 19 | C184: =OFFSET(Ops!$M$4,0,B184) -> 2023-03-31 | D184: =-((OFFSET(Ops!$M$117,0,'Gaps list'!B184)*1000)/'Gaps list'!$E$154) -> 0.006121298292
B185: 20 | C185: =OFFSET(Ops!$M$4,0,B185) -> 2023-09-30 | D185: =-((OFFSET(Ops!$M$117,0,'Gaps list'!B185)*1000)/'Gaps list'!$E$154) -> 0.005331715715
B186: 21 | C186: =OFFSET(Ops!$M$4,0,B186) -> 2024-03-31 | D186: =-((OFFSET(Ops!$M$117,0,'Gaps list'!B186)*1000)/'Gaps list'!$E$154) -> 0.006203377447
B187: 22 | C187: =OFFSET(Ops!$M$4,0,B187) -> 2024-09-30 | D187: =-((OFFSET(Ops!$M$117,0,'Gaps list'!B187)*1000)/'Gaps list'!$E$154) -> 0.007636037203
B188: 23 | C188: =OFFSET(Ops!$M$4,0,B188) -> 2025-03-31 | D188: =-((OFFSET(Ops!$M$117,0,'Gaps list'!B188)*1000)/'Gaps list'!$E$154) -> 0.009025283564
B189: 24 | C189: =OFFSET(Ops!$M$4,0,B189) -> 2025-09-30 | D189: =-((OFFSET(Ops!$M$117,0,'Gaps list'!B189)*1000)/'Gaps list'!$E$154) -> 0.007933197996
B190: 25 | C190: =OFFSET(Ops!$M$4,0,B190) -> 2026-03-31 | D190: =-((OFFSET(Ops!$M$117,0,'Gaps list'!B190)*1000)/'Gaps list'!$E$154) -> 0.00931283185
B191: 26 | C191: =OFFSET(Ops!$M$4,0,B191) -> 2026-09-30 | D191: =-((OFFSET(Ops!$M$117,0,'Gaps list'!B191)*1000)/'Gaps list'!$E$154) -> 0.008421651518
B192: 27 | C192: =OFFSET(Ops!$M$4,0,B192) -> 2027-03-31 | D192: =-((OFFSET(Ops!$M$117,0,'Gaps list'!B192)*1000)/'Gaps list'!$E$154) -> 0.01008866495
B193: 28 | C193: =OFFSET(Ops!$M$4,0,B193) -> 2027-09-30 | D193: =-((OFFSET(Ops!$M$117,0,'Gaps list'!B193)*1000)/'Gaps list'!$E$154) -> 0.009269606886
B194: 29 | C194: =OFFSET(Ops!$M$4,0,B194) -> 2028-03-31 | D194: =-((OFFSET(Ops!$M$117,0,'Gaps list'!B194)*1000)/'Gaps list'!$E$154) -> 0.01090164672
B195: 30 | C195: =OFFSET(Ops!$M$4,0,B195) -> 2028-09-30 | D195: =-((OFFSET(Ops!$M$117,0,'Gaps list'!B195)*1000)/'Gaps list'!$E$154) -> 0.01012672058
B196: 31 | C196: =OFFSET(Ops!$M$4,0,B196) -> 2029-03-31 | D196: =-((OFFSET(Ops!$M$117,0,'Gaps list'!B196)*1000)/'Gaps list'!$E$154) -> 0.01193290466
B197: 32 | C197: =OFFSET(Ops!$M$4,0,B197) -> 2029-09-30 | D197: =-((OFFSET(Ops!$M$117,0,'Gaps list'!B197)*1000)/'Gaps list'!$E$154) -> 0.01104981666
B198: 33 | C198: =OFFSET(Ops!$M$4,0,B198) -> 2030-03-31 | D198: =-((OFFSET(Ops!$M$117,0,'Gaps list'!B198)*1000)/'Gaps list'!$E$154) -> 0.01280298638
B199: 34 | C199: =OFFSET(Ops!$M$4,0,B199) -> 2030-09-30 | D199: =-((OFFSET(Ops!$M$117,0,'Gaps list'!B199)*1000)/'Gaps list'!$E$154) -> 0.0117234019
B200: 35 | C200: =OFFSET(Ops!$M$4,0,B200) -> 2031-03-31 | D200: =-((OFFSET(Ops!$M$117,0,'Gaps list'!B200)*1000)/'Gaps list'!$E$154) -> 0.01355336365
B201: 36 | C201: =OFFSET(Ops!$M$4,0,B201) -> 2031-09-30 | D201: =-((OFFSET(Ops!$M$117,0,'Gaps list'!B201)*1000)/'Gaps list'!$E$154) -> 0.01223975446
B202: 37 | C202: =OFFSET(Ops!$M$4,0,B202) -> 2032-03-31 | D202: =-((OFFSET(Ops!$M$117,0,'Gaps list'!B202)*1000)/'Gaps list'!$E$154) -> 0.01438009494
B203: 38 | C203: =OFFSET(Ops!$M$4,0,B203) -> 2032-09-30 | D203: =-((OFFSET(Ops!$M$117,0,'Gaps list'!B203)*1000)/'Gaps list'!$E$154) -> 0.01450232494
B204: 39 | C204: =OFFSET(Ops!$M$4,0,B204) -> 2033-03-31 | D204: =-((OFFSET(Ops!$M$117,0,'Gaps list'!B204)*1000)/'Gaps list'!$E$154) -> 0.01906102856
B205: 40 | C205: =OFFSET(Ops!$M$4,0,B205) -> 2033-09-30 | D205: =-((OFFSET(Ops!$M$117,0,'Gaps list'!B205)*1000)/'Gaps list'!$E$154) -> 0.0194960694
B206: 41 | C206: =OFFSET(Ops!$M$4,0,B206) -> 2034-03-31 | D206: =-((OFFSET(Ops!$M$117,0,'Gaps list'!B206)*1000)/'Gaps list'!$E$154) -> 0.02377230802
B207: 42 | C207: =OFFSET(Ops!$M$4,0,B207) -> 2034-09-30 | D207: =-((OFFSET(Ops!$M$117,0,'Gaps list'!B207)*1000)/'Gaps list'!$E$154) -> 0.02286612083
B208: 43 | C208: =OFFSET(Ops!$M$4,0,B208) -> 2035-03-31 | D208: =-((OFFSET(Ops!$M$117,0,'Gaps list'!B208)*1000)/'Gaps list'!$E$154) -> 0.03437366129
B209: 44 | C209: =OFFSET(Ops!$M$4,0,B209) -> 2035-09-30 | D209: =-((OFFSET(Ops!$M$117,0,'Gaps list'!B209)*1000)/'Gaps list'!$E$154) -> 0.04222725954
B210: 45 | C210: =OFFSET(Ops!$M$4,0,B210) -> 2036-03-31 | D210: =-((OFFSET(Ops!$M$117,0,'Gaps list'!B210)*1000)/'Gaps list'!$E$154) -> 0.04786548497
B211: 46 | C211: =OFFSET(Ops!$M$4,0,B211) -> 2036-09-30 | D211: =-((OFFSET(Ops!$M$117,0,'Gaps list'!B211)*1000)/'Gaps list'!$E$154) -> 0.05138664437
B212: 47 | C212: =OFFSET(Ops!$M$4,0,B212) -> 2037-03-31 | D212: =-((OFFSET(Ops!$M$117,0,'Gaps list'!B212)*1000)/'Gaps list'!$E$154) -> 0.05874403773
B213: 48 | C213: =OFFSET(Ops!$M$4,0,B213) -> 2037-09-30 | D213: =-((OFFSET(Ops!$M$117,0,'Gaps list'!B213)*1000)/'Gaps list'!$E$154) -> 0.06164736745
B214: 49 | C214: =OFFSET(Ops!$M$4,0,B214) -> 2038-03-31 | D214: =-((OFFSET(Ops!$M$117,0,'Gaps list'!B214)*1000)/'Gaps list'!$E$154) -> 0.2952725901
B215: 50 | C215: =OFFSET(Ops!$M$4,0,B215) -> 2038-09-30 | D215: =-((OFFSET(Ops!$M$117,0,'Gaps list'!B215)*1000)/'Gaps list'!$E$154) -> 0.01773287991
C216: Total | D216: =SUM(D165:D215) -> 1
B218: Intermediate Loan Note Instrument
B220: Front page | C220: Amount of loan stock and maturity date | E220: =E154 -> 5284735.43 | F220: 2038-07-04
B221: Recital | C221: Amount of loan stock and maturity date | E221: 5284735.43 | F221: 2038-07-04
B222: 1 – “Notes” | C222: Amount of loan stock and maturity date | E222: 5284735.43 | F222: 2038-07-04
... 12 more rows

Sheet Outputs
A1: =Cover!$F$4 -> North West Fire & Rescue PFI Project | F1: =Cover!B12 -> Print date: | G1: =Cover!C12 -> 2011-02-23
A2: ="Filename: "&Cover!$F$6 -> Filename: BBFR_NWFRS_Financial Model_230211_DRY RUN_09.49. | B2: Case in use | C2: =Scenario_Control!$I$1 -> Base Bid | F2: =Scenario_Control!D4 -> Sensitivity Run? | G2: =Scenario_Control!F4 -> FALSE
A4: Key Project Dates | E4: Checks and controls
A5: Financial Close | C5: =TI!E16 -> 2011-02-23 | E5: Critical checks | F5: =IF(AND(F6,F7,F8,F9,F10,F12,F13,F14,F15,F11),CHAR(252),CHAR(251)) -> ü | H5: Other checks | J5: =IF(AND(J6,J7,J8,J9,J10,J11,J12,J13,J15,J16,J17),CHAR(252),CHAR(251)) -> ü
A6: Construction Start Date | C6: =TI!E18 -> 2011-02-24 | E6: Source & Aps Balances | F6: =ABS(B74-H74)<1 -> TRUE | H6: Arrangement fee ammortisation OK? | J6: =AND((H105-H99)<MAX(Ops!H18:CE18),(H105-H99)>=-200) -> TRUE
A7: First full operational month | C7: =TI!E23 -> 2013-07-01 | E7: Balance Sheet Balances? | F7: =(Ops!E247=0) -> TRUE | H7: Gearing OK? | J7: =H43<=TI!E45 -> TRUE
A8: Concession Length (years) | C8: =TI!E25 -> 25.00833333 | E8: Tax Reconciliation | F8: =(Ops!E1054=0) -> TRUE | H8: Sub debt repaid in concession? | J8: =INDEX(Ops!H2275:CE2275,,MATCH(1,Ops!H27:CE27,0)+1)=0 -> TRUE
A9: Concession End | C9: =TI!E26 -> 2038-07-04 | E9: Debt amortisation period valid? | F9: =(TI!I80+TI!I97=0) -> TRUE | H9: MRA fully funded | J9: =(Ops!E1501=1) -> TRUE
E10: Funding calculation finished? | F10: =(Const!E1314=CHAR(252)) -> TRUE | H10: Lifecycle reserved for life of debt? | J10: =MAX(Ops!G2611:G2613)<=TI!F373 -> TRUE
A11: Cost to Public Sector | E11: Sub Debt Calc finished? | F11: =sub_check<Error_Tolerance -> TRUE | H11: DSRA fully funded? | J11: =OR(Ops!E1581=1,TI!E385=1) -> TRUE
A12: Year 1 Availability Payment p.a. - real £'000s | C12: =TI!E294+TI!E298 -> 6033 | E12: Balance Sheet unwinds? | F12: =(COUNT(D87:D99)=SUM(D87:D99)) -> TRUE | H12: Debt term OK? | J12: =(Ops!J2610=0) -> TRUE
A13: Add VAT £'000s | C13: =C12*VAT -> 1206.6 | E13: Consistency of outputs | F13: =(B110=0) -> TRUE | H13: DSRF facility sufficient? | J13: =IF(TI!E385=2,"n/a",AND(TI!E390>=TI!E389,TI!E390<+TI!E389+50)) -> TRUE
A14: Gross Year 1 Availability Payment £'000s | C14: =SUM(C12:C13) -> 7239.6 | E14: Wrapped bond macro finished? | F14: =Const!F1031 -> TRUE | H14: Sub Debt rolled up interest (£000s) | J14: =-Ops!$E$115 -> 0
E15: IFRS asset split completed? | F15: =CHOOSE(Acc_Method,"N/A","N/A","N/A",IFRS_Output) -> TRUE | H15: DSRF availability period ok? | J15: =IF(TI!E385=1,AND(TI!E391<=(EOMONTH(C9,-(MIN(J29,J28)*12)+6)),TI!E391>=(EOMONTH(C9,-(MIN(J29,J28)*12)-3))),"n/a") -> TRUE
A16: Authorities' Contribution | E16: Other key model info | H16: COLF availability period ok? | J16: =IF(TI!E163=1,AND(TI!E165<=(EOMONTH(C9,-(MIN(J30,J29,J28)*12)+6)),TI!E165>=(EOMONTH(C9,-(MIN(J29,J28,J30)*12)-6))),"n/a") -> TRUE
A17: Required contribution (2010/11 terms) | C17: =Scenario_Control!E234 -> 1115.610023 | E17: Overdraft Check - ops | F17: =ROUND(MIN(Ops!H122:CE122),4) -> 0 | G17: =Ops!$G$122 -> 0 | H17: SPV generates trading profit? | J17: =(Ops!E183-Ops!E180)>0 -> TRUE
A18: OBC base case affordability | C18: =Scenario_Control!E235 -> 1503 | E18: Overdraft Check - const | F18: =ROUND(MIN(Const!G107:BX107),4) -> 0 | H18: DSRA prefund OK? | J18: =IF(Scenario_Control!E158=1,"n/a",ABS(SUM(Ops!N94:N104)+Scenario_Control!G160)<(ABS(Scenario_Control!G160)*0.1)) -> n/a | L18: =(Ops!BI103/2) -> -1153.939555
H19: Final repayment period ok | J19: =(Ops!BI103/2)<Ops!BJ103 -> TRUE | L19: =Ops!BJ103 -> -1147.789548
A20: Affordability gap/(surplus) against OBC base case | C20: =C17-C18 -> -387.3899771 | L20: Unitary charge allocation | N20: Percentage | O20: Authority contribution | P20: Unitary charge
E22: Sculpting of closing dividends? | F22: =IF(ABS(Ops!CE122)>Funds_Req_Max,"Required","Acceptable") -> Acceptable | L22: ='UC split by Authority'!A165 -> Cumbria | N22: ='UC split by Authority'!C165 -> 0.3307133687 | O22: ='UC split by Authority'!D165/1000 -> 368.9471488 | P22: =$C$12*N22 -> 1995.193753
A23: NPV of Total Payments (net of VAT): | E23: Accounting Option Selected? | F23: =Ops!F1060 -> IFRIC 12 | H23: Distributions restrained below lock up? | J23: =Ops!E2539 -> TRUE | L23: ='UC split by Authority'!A166 -> Lancashire | N23: ='UC split by Authority'!C166 -> 0.2501374791 | O23: ='UC split by Authority'!D166/1000 -> 279.0558788 | P23: =$C$12*N23 -> 1509.079412
A24: NPV Base date | C24: =TI!E316 -> 2010-10-31 | E24: Tax Option Selected? | F24: =Ops!G919 -> 2. Follow accounting | L24: ='UC split by Authority'!A167 -> Merseyside | N24: ='UC split by Authority'!C167 -> 0.4191491522 | O24: ='UC split by Authority'!D167/1000 -> 467.6069952 | P24: =$C$12*N24 -> 2528.726835
A25: ="NPV of total UC at Real Discount rate " &ROUNDDOWN(TI!$E$314*100,2) & "%" -> NPV of total UC at Real Discount rate 3.5% | C25: =Ops!G2835 -> 108022.2941 | L25: ='UC split by Authority'!A168 -> Total | N25: =SUM(N22:N24) -> 1 | O25: =SUM(O22:O24) -> 1115.610023 | P25: =SUM(P22:Q24) -> 6033
A26: ="NPV of Availabilty Payment at Real Discount rate " &ROUNDDOWN(TI!$E$314*100,2) & "% + inflation" -> NPV of Availabilty Payment at Real Discount rate 3.5% + inflation | C26: =Ops!G2839 -> 78327.3738
A27: ="NPV of Usage Payment at Real Discount rate " &ROUNDDOWN(TI!$E$314*100,2) & "% + inflation" -> NPV of Usage Payment at Real Discount rate 3.5% + inflation | C27: =Ops!G2847 -> 0 | F27: Arr Fee (bps) | G27: Com Fee (bps) | H27: Average Margin (bps) | I27: Term (yrs) | J27: Tail (yrs)
A28: ="NPV of AP + UP at Real Discount rate " &ROUNDDOWN(TI!$E$314*100,2) & "% + inflation" -> NPV of AP + UP at Real Discount rate 3.5% + inflation | C28: =Ops!G2833 -> 78327.3738 | E28: Bond | F28: =IF(TI!E48=0,"n/a",TI!E62*10000) -> n/a | G28: n/a | H28: =IF(TI!E48=0,"n/a",TI!E67) -> n/a | I28: =IF(TI!E48=0,"n/a",TI!E60) -> n/a | J28: =Ops!K2611 -> n/a
E29: Senior debt Commercial Banks | F29: =IF(Ops!F2583=0,"n/a",TI!E154) -> 200 | G29: =IF(Ops!F2583=0,"n/a",TI!E155*F29) -> 80 | H29: =AVERAGE(Ops!G297:BK297)*10000 -> 217.0185025 | I29: =Ops!H2612 -> 24.51 | J29: =Ops!K2612 -> 0.5
E30: Senior debt EIB | F30: =IF(Ops!F2584=0,"n/a",TI!F154) -> n/a | G30: =IF(Ops!F2584=0,"n/a",TI!F155*F30) -> n/a | H30: =IF(Ops!F2584=0,"n/a",Ops!F2593*10000) -> n/a | I30: =Ops!H2613 -> n/a | J30: =Ops!K2613 -> n/a
A31: Key Macroeconomic Assumptions | E31: Mezzanine | F31: =IF(Ops!F2585=0,"n/a",TI!I154) -> n/a | G31: =IF(Ops!F2585=0,"n/a",TI!G155*F31) -> n/a | H31: =IF(Ops!F2585=0,"n/a",Ops!F2594*10000) -> n/a | I31: =Ops!H2614 -> n/a | J31: =Ops!K2614 -> n/a
A32: =TI!E188 -> UC & TPI inflation | C32: =TI!E198 -> 0.025 | E32: Equity Bridge | F32: =IF(Ops!F2586=0,"n/a",TI!H154) -> 200 | G32: =IF(Ops!F2586=0,"n/a",TI!H155*F32) -> 80 | H32: =IF(Ops!F2586=0,"n/a",Ops!F2595*10000) -> 175.2901816 | I32: =Ops!H2615 -> n/a | J32: =Ops!K2615 -> n/a
A33: =TI!D66 -> Reference Gilt | C33: =TI!E66 -> 0 | E33: Sub debt | F33: =IF(Ops!F2587=0,"n/a",CONCATENATE("£ ",TI!I154," k")) -> £ 0 k | G33: =IF(Ops!F2587=0,"n/a",TI!I155) -> 0 | H33: =SUM(Scenario_Control!E130:E134)/5 -> 855 | I33: =Ops!H2616 -> 24.31579663 | J33: =Ops!K2616 -> 0.7088609071
A34: LIBOR | C34: =AVERAGE(TD_Ops!G134:CE134) -> 0.042875
A35: Corporation Tax | C35: =TI!E340 -> 0.28 | E35: Debt Coverage Ratios (during full operations)
G36: Lock up | H36: Target | I36: Average | J36: Min
A37: Rates of Return | E37: Debt service cover (DSCR) | G37: =Lock_up -> 1.1 | H37: =Scenario_Control!E187 -> 1.154 | I37: =Ops!$H$2465 -> 1.159961887 | J37: =ROUND(Ops!$H$2464,5) -> 1.154
B38: Nominal | C38: Real | E38: Forward looking DSCR | G38: =G37 -> 1.1 | H38: =Scenario_Control!E188 -> 1.15 | I38: =Ops!$H$2476 -> 1.159794575 | J38: =ROUND(Ops!$H$2475,5) -> 1.154
A39: Project IRR, pre-tax | B39: =Ops!E2872 -> 0.08279921114 | C39: =Ops!E2873 -> 0.05640896261 | E39: Loan life cover (LLCR) | G39: =TI!E161 -> 1.15 | H39: =Scenario_Control!E200 -> 1.18 | I39: =Ops!$H$2510 -> 1.214278152 | J39: =ROUND(Ops!$H$2509,5) -> 1.19062
A40: Project IRR, post-tax | B40: =Ops!E2875 -> 0.08151566088 | C40: =Ops!E2876 -> 0.05515668094 | E40: Project life cover (PLCR) | G40: n/a | H40: n/a | I40: =Ops!H2529 -> 1.32830485 | J40: =ROUND(Ops!H2528,5) -> 1.18991
A41: Equity return - dividends | B41: =Ops!F2773 -> 2.311850238
A42: Blended pre-tax shareholders IRR (Equity and sub-debt) | B42: ='IRR Calculation'!E80 -> 0.1254490554 | C42: ='IRR Calculation'!E81 -> 0.09801612496 | E42: Gearing ratio and weighted average cost of capital | H42: During concession | J42: At end of const
A43: Required | C43: =TI!E134 -> 0.098 | E43: Actual Gearing (including rolled up interest) | H43: =MAX(Ops!H2534:CE2534) -> 0.9047243737 | J43: =C59 -> 0.9048000001
A44: Blended pre tax shareholder committed IRR (Eq & Sub-Debt) | B44: ='IRR Calculation'!E89 -> 0.1024364293 | C44: ='IRR Calculation'!E90 -> 0.07555565536 | E44: Pre tax WACC | J44: =Ops!G2815 -> 0.07757531312
A45: Blended post-tax shareholders IRR (Equity and sub-debt) | B45: ='IRR Calculation'!E96 -> 0.09443020523 | C45: ='IRR Calculation'!E97 -> 0.06775361001
E46: Loan life
A47: Cost of senior funds | G47: Average life | J47: Average life
A48: Case in use: | E48: Bond | G48: =Ops!G2572 -> 0 | H48: Mezzanine | J48: =Ops!G2575 -> 0
A49: =Scenario_Control!E8 -> Base Bid | C49: =SUMPRODUCT(Ops!F2808:F2810,Ops!H2808:H2810)/SUM(Ops!F2808:F2810) -> 0.0700004369 | E49: Senior debt Commercial Banks | G49: =Ops!G2573 -> 18.01113708 | H49: Sub debt | J49: =Ops!G2576 -> 22.29574891
E50: Senior debt EIB | G50: =Ops!G2574 -> 0 | H50: Equity bridge | J50: =Ops!G2577 -> 2.598220397
A52: Sources and uses of funds until construction completion
A54: Sources (inc. rolled up interest) | B54: £'000 | C54: % of total | E54: Uses | H54: £'000 | I54: %
A55: Bond | B55: =Const!E90 -> 0 | C55: =B55/B$74 -> 0
A56: =Const!D1235 -> Senior Debt Commercial Banks | B56: =Const!E91 -> 50236.69559 | C56: =B56/B$74 -> 0.9048000001
A57: =Const!D1236 -> Senior Debt EIB | B57: =Const!E92 -> 0 | C57: =B57/B$74 -> 0 | E57: =Const!D1248 -> Capital costs paid | H57: =Const!E1248 -> 47772.16134 | I57: =H57/H$74 -> 0.8604119175
A58: =Const!D1237 -> Mezzanine Debt | B58: =Const!E93 -> 0 | C58: =B58/B$74 -> 0 | E58: =Const!D1249 -> Development costs | H58: =Const!E1249 -> 2793.303036 | I58: 0.05030945123
A59: Debt sub-total | B59: =SUM(B55:B58) -> 50236.69559 | C59: =B59/B$74 -> 0.9048000001 | E59: =Const!D1250 -> Hard FM | H59: =Const!E1250 -> 475.8628851 | I59: 0.008570642105
E60: =Const!D1251 -> Soft FM | H60: =Const!E1251 -> 603.9276038 | I60: 0.0108771823
A61: =Const!D1238 -> Sub Debt | B61: =Const!E95 -> 7.947162458e-13 | C61: =B61/B$74 -> 1.431342668e-17 | E61: =Const!D1252 -> Life-cycle Maintenance | H61: =Const!E1252 -> 0 | I61: 0
A62: =Const!D1239 -> Equity | B62: =Const!E96 -> 1 | C62: 1.801073875e-05 | E62: =Const!D1253 -> SPV Costs | H62: =Const!E1253 -> 1587.937958 | I62: 0.02859993571
A63: =Const!D1240 -> Equity Bridge | C63: 0 | E63: =Const!D1254 -> VAT | H63: =Const!E1254 -> -93.86522228 | I63: -0.001690581996
A64: - Funding Equity | B64: =TI!E112*TI!E131 -> 0 | C64: 0 | E64: =Const!D1255 -> Tax paid | H64: =Const!E1255 -> 211.9839837 | I64: 0.00381798815
A65: - Funding Sub Debt | B65: =Const!E1240-B64 -> 5284.73543 | C65: 0.0951819892 | E65: =Const!D1256 -> Working Capital (unpaid Capex, development costs & VAT) | H65: =Const!E1256 -> 136.4515918 | I65: =H65/H$74 -> 0.002457593972
A66: Equity sub-total | B66: =SUM(B61:B65) -> 5285.73543 | C66: 0.09519999994 | E66: =Const!D1257 -> Reserve accounts | H66: =Const!E1257 -> 67.88469387 | I66: 0.001222653487
E67: =Const!D1258 -> Interest paid/rolled up | H67: =Const!E1258-Const!E73 -> 4951.099473 | I67: 0.08917295914
E68: =Const!D1259 -> Arrangement, commitment and LoC fees | H68: =Const!E1259 -> 1843.451224 | I68: 0.0332019184
E69: =Const!D1260 -> Closing cash at end of construction | H69: =Const!E1260 -> 0 | I69: 0
E70: Interest on cash balances | H70: =-Const!E1245 -> -0.6287301289 | I70: -1.13238941e-05
E71: Revenue during construction | H71: =-SUM(Const!E1241:E1243) -> -4827.138813 | I71: -0.08694033607
A74: Grand total | B74: =B59+B66+B71+B72+B73 -> 55522.43102 | C74: =B74/B$74 -> 1 | E74: Total | H74: =SUM(H57:H71) -> 55522.43102 | I74: =SUM(I57:I71) -> 1
A77: Check Calculations
A80: Debt Hierarchy Validity | F80: Effective Tax Rate
A81: Debt Hierarchy Validity Calculations | C81: =MAX(C82:C83)=1 -> TRUE | F81: Input Tax Rate | H81: =TI!E340 -> 0.28
A82: Senior debt: Commercial Banks | B82: =TI!F49 -> 2 | C82: =IF(B82=0,0,COUNTIF($B$82:$B$83,B82)) -> 1 | F82: PBT | H82: =SUM(Ops!G183:CE183) -> 3544.285656
A83: Senior debt: EIB | B83: =TI!F50 -> 3 | C83: =IF(B83=0,0,COUNTIF($B$82:$B$83,B83)) -> 1 | F83: Total Tax Charge | H83: =SUM(Ops!H954:CE954) -> 1031.506226
F84: Effective Tax Rate | H84: =H83/H82 -> 0.2910336035
A86: Balance Sheet Unwind Check | F86: Covenants
A87: Fixed assets | B87: =ABS(Ops!CE203) -> 0 | D87: =IF(B87<Error_Tolerance,1,0) -> 1 | F87: Condition Precedent DSCR | H87: =Scenario_Control!E187 -> 1.154
A88: Debtor balances | B88: =ABS(MAX(Ops!CE205:CE209))+ABS(MIN(Ops!CE205:CE209)) -> 5.270534955e-10 | D88: 1 | F88: Condition Precedent Average DSCR | H88: =Scenario_Control!E188 -> 1.15
A89: Cash balances | B89: =ABS(Ops!CE210+Ops!CE224) -> 0 | D89: 1 | F89: Lock Up DSCR | H89: =Scenario_Control!E189 -> 1.1
A90: Reserve accounts | B90: =ABS(MAX(Ops!CE213:CE214))+ABS(MIN(Ops!CE213:CE214)) -> 0 | D90: 1 | F90: Condition Precedent LLCR | H90: =Scenario_Control!E200 -> 1.18
A91: VAT | B91: =ABS(Ops!CE229+Ops!CE216) -> 0 | D91: 1 | F91: Lock Up LLCR | H91: =Scenario_Control!E201 -> 1.15
A92: Deferred tax | B92: =ABS(Ops!CE228+Ops!CE217) -> 0 | D92: 1
A93: Creditors | B93: =ABS(MAX(Ops!CE221:CE223,Ops!CE227))+ABS(MIN(Ops!CE221:CE223,Ops!CE227)) -> 7.875351466e-11 | D93: 1
A94: Senior Debt | B94: =ABS(MAX(Ops!CE235:CE236))+ABS(MIN(Ops!CE235:CE236)) -> 0 | D94: 1
A95: Equity Bridge | B95: =ABS(Ops!CE238) -> 0 | D95: 1 | F95: Amortisation of arrangement fee until
A96: Subordinated debt | B96: =ABS(Ops!CE239) -> 0 | D96: 1 | F96: Bond | H96: =IF(Scenario_Control!E37>0,EOMONTH($C$9,-(J28)*12-1),"n/a") -> n/a
A97: Arrangement fees and wrapped bond | B97: =ABS(MAX(Ops!CE240:CE240))+ABS(MIN(Ops!CE240:CE240)) -> 1.548983164e-12 | D97: 1 | F97: Senior Debt A | H97: =IF(Scenario_Control!E38>0,EOMONTH($C$9,-(J29)*12+1),"n/a") -> 2038-02-28
A98: Equity | B98: =ABS(Ops!CE243) -> 0 | D98: 1 | F98: Senior Debt B | H98: =IF(Scenario_Control!E39>0,EOMONTH($C$9,-(J30)*12-1),"n/a") -> n/a
B99: =ABS(Ops!CE244) -> 4.683088643e-10 | D99: 1 | H99: =MAX(H96:H98) -> 2038-02-28
A101: Consistency Checks | F101: Final amortisation period flag
A102: Closing cash at end of construction? | B102: =Ops!E135 -> 0 | D102: =IF(B102<Error_Tolerance,1,0) -> 1 | F102: Bond | H102: =Ops!F2010 -> N/A
A103: Annual sheet consistent with Ops sheet? | F103: Senior Debt A | H103: =Ops!E2095 -> 2037-09-30
F104: Senior Debt B | H104: =Ops!E2159 -> N/A
A105: Cash | B105: =Annual!E330 -> 0 | D105: =IF(B105<Error_Tolerance,1,0) -> 1 | H105: =MAX(H102:H104) -> 2037-09-30
A106: P&L | B106: =Annual!E324 -> 0 | D106: =IF(B106<Error_Tolerance,1,0) -> 1
A107: Balance sheet | B107: =Annual!E336 -> 0 | D107: =IF(B107<Error_Tolerance,1,0) -> 1
A108: Input check on capex | B108: =(TD_Con!E19=1)*TD_Con!E26 -> 0 | D108: =IF(B108<Error_Tolerance,1,0) -> 1 | F108: DSRA pre-funding reqirment | H108: =Ops!N1566 -> 0
F109: DSRA prefunding amount | H109: =Scenario_Control!E160 -> 0
A110: Total consistency checks | B110: =IF(SUM(B102:B108)<0.001,0,1) -> 0 | D110: =IF(B110<Error_Tolerance,1,0) -> 1 | H110: =H109-H108 -> 0
F113: Total Equity Bridge | H113: =-Ops!E113 -> 5284.73543
F114: Total Sub Debt | H114: =SUM(Ops!E114,Const!E95) -> 5284.73543

Sheet Scenario_Control
A1: =Cover!$F$4 -> North West Fire & Rescue PFI Project | E1: Sensitivity Run? | F1: =F4 -> FALSE | H1: Case in use | I1: =E8 -> Base Bid
A2: ="Filename: "&Cover!$F$6 -> Filename: BBFR_NWFRS_Financial Model_230211_DRY RUN_09.49. | E2: Critical checks | F2: =Outputs!F5 -> ü
D4: Sensitivity Run? | F4: FALSE | G4: This option fixes drawdowns and repayment schedule of senior debt, so that sensitivities can be run.
G6: Scenarios
D7: Case in Use | E7: 1 | G7: Case 1 | H7: Case 2 | I7: Case 3 | J7: Case 4 | K7: Case 5 | L7: Case 6 | M7: Case 7 | N7: Case 8 | O7: Case 9 | P7: Case 10 | Q7: Case 11 | R7: Case 12 | S7: Case 13 | T7: Case 14 | U7: Case 15 | V7: Case 16 | W7: Case 17 | X7: Case 18 | Y7: Case 19 | Z7: Case 20 | AA7: Case 21 | AB7: Case 22 | AC7: Case 23 | AD7: Case 24 | AE7: Case 25 | AF7: Case 26 | AG7: Case 27 | AH7: Case 28 | AI7: Case 29 | AJ7: Case 30 | AK7: Case 31 | AL7: Case 32 | AM7: Case 33 | AN7: Case 34 | AO7: Case 35 | AP7: Case 36 | AQ7: Case 37 | AR7: Case 38 | AS7: Case 39 | AT7: Case 40 | AU7: Case 41 | AV7: Case 42 | AW7: Case 43 | AX7: Case 44 | AY7: Case 45 | AZ7: Case 46 | BA7: Case 47 | BB7: Case 48
D8: Case description | E8: Base Bid | G8: Base Bid
B10: Key Project Inputs (time independent)
C12: Availability Payment | G12: =Outputs!C42 -> 0.09801612496
D13: Year 1 Availability Payment (real £ net of VAT) | E13: =INDEX($G13:$AZ13,,MATCH($E$8,$G$8:$AZ$8,0)) -> 6033 | G13: 6033 | H13: =6098.4-2-2.5-1.2-64.5 -> 6028.2
D14: % of Unitary Charge to be indexed | E14: =INDEX($G14:$AZ14,,MATCH($E$8,$G$8:$AZ$8,0)) -> 0.33 | G14: 0.33
D15: Forecast level of deductions (%) | E15: =INDEX($G15:$AZ15,,MATCH($E$8,$G$8:$AZ$8,0)) -> 0 | G15: 0
C17: Usage Revenue - NOT USED
D18: Is there Usage Revenue in the Project? (1 = yes, 0 = no) | E18: =INDEX($G18:$AZ18,,MATCH($E$8,$G$8:$AZ$8,0)) -> 0 | G18: 0
D19: Price per unit (pence) - unit type 1 | E19: =INDEX($G19:$AZ19,,MATCH($E$8,$G$8:$AZ$8,0))*E18 -> 0 | G19: 0
D20: Unit Type 1 volume forecast - case in use | E20: =INDEX($G20:$AZ20,,MATCH($E$8,$G$8:$AZ$8,0)) -> Base | G20: Base
D21: Price per unit (pence) - unit type 2 | E21: =INDEX($G21:$AZ21,,MATCH($E$8,$G$8:$AZ$8,0))*E18 -> 0 | G21: 0
D22: Unit Type 2 volume forecast - case in use | E22: =INDEX($G22:$AZ22,,MATCH($E$8,$G$8:$AZ$8,0)) -> Base | G22: Base
C24: Shareholder requirements
D25: Target real blended IRR | E25: =INDEX($G25:$AZ25,,MATCH($E$8,$G$8:$AZ$8,0)) -> 0.098 | G25: 0.098
D26: IRR Base date | E26: =INDEX($G26:$AZ26,,MATCH($E$8,$G$8:$AZ$8,0)) -> 2010-10-01 | G26: 2010-10-01
D27: IRR first inflation date | E27: =INDEX($G27:$AZ27,,MATCH($E$8,$G$8:$AZ$8,0)) -> 2011-04-01 | G27: 2011-04-01
D28: Committed IRR interest rate | E28: =INDEX($G28:$AZ28,,MATCH($E$8,$G$8:$AZ$8,0)) -> 0.0275 | G28: 0.0275
D29: Size of equity injection (£'000) | E29: =INDEX($G29:$AZ29,,MATCH($E$8,$G$8:$AZ$8,0)) -> 1 | G29: 1
C31: Gearing
D32: Input gearing (for optimisation) | E32: =INDEX($G32:$AZ32,,MATCH($E$8,$G$8:$AZ$8,0)) -> 0.9048 | G32: 0.9048
D33: Maximum gearing permitted by term sheet (output gearing incl rolled up interest) | E33: =INDEX($G33:$AZ33,,MATCH($E$8,$G$8:$AZ$8,0)) -> 0.91 | G33: 0.91
D34: LIBOR rate | E34: =INDEX($G34:$AZ34,,MATCH($E$8,$G$8:$AZ$8,0)) -> 0.042875 | G34: 0.042875
C36: Debt spread
D37: Bond | E37: =INDEX($G37:$AZ37,,MATCH($E$8,$G$8:$AZ$8,0)) -> 0 | G37: 0
D38: Senior debt: Tranche 1 | E38: =INDEX($G38:$AZ38,,MATCH($E$8,$G$8:$AZ$8,0)) -> 1 | G38: 1
D39: Senior debt: Tranche 2 | E39: =INDEX($G39:$AZ39,,MATCH($E$8,$G$8:$AZ$8,0)) -> 0 | G39: 0
D40: Mezzanine debt | E40: =INDEX($G40:$AZ40,,MATCH($E$8,$G$8:$AZ$8,0)) -> 0 | G40: =1-SUM(G37:G39) -> 0
C42: Bond inputs - NOT USED
D43: Repayment method (1 = mortgage style; 2 = target cover ratio; 3 = scheduled repayments; 4 = pari pasu) | E43: =INDEX($G43:$AZ43,,MATCH($E$8,$G$8:$AZ$8,0)) -> 1 | G43: 1
D44: Bond amortisation period (years) | E44: 0 | G44: 0
D45: Required tail (years) | E45: 0 | G45: 0
D46: Arrangement fee | E46: 0 | G46: 0
D47: Floor on Bond Arrangement fee (£'000) | E47: 0 | G47: 0
D48: Index linked? (1 = yes 0 = no) | E48: 0 | G48: 0
D49: Additional bond payments (up front - £'000) | E49: 0 | G49: 0
D50: Reference Gilt | E50: 0 | G50: 0
D51: Spread on Bond | E51: 0 | G51: 0
D52: First bond repayment in the first operating period | E52: 1 | G52: 1
C54: Rating Agency fees - NOT USED
D55: S&P Agency fee (Bps) | E55: =INDEX($G55:$AZ55,,MATCH($E$8,$G$8:$AZ$8,0)) -> 0 | G55: 0
D56: S&P Floor (£'000) | E56: 0 | G56: 0
D57: S&P Maintainance fee (£'000) | E57: 0 | G57: 0
D58: Moody's Agency Fee (Bps) | E58: 0 | G58: 0
D59: Moody's Floor (£'000) | E59: 0 | G59: 0
D60: Moody's Maintainance fee (£'000) | E60: 0 | G60: 0
C62: Monoline inputs - NOT USED
D63: Premium | E63: =INDEX($G63:$AZ63,,MATCH($E$8,$G$8:$AZ$8,0)) -> 0 | G63: 0
D64: Payment in up-front | E64: =INDEX($G64:$AZ64,,MATCH($E$8,$G$8:$AZ$8,0)) -> 0 | G64: 0
D65: Wrapping Bond? (1 = yes, 0 = No) | E65: =INDEX($G65:$AZ65,,MATCH($E$8,$G$8:$AZ$8,0)) -> 0 | G65: 0
D66: Wrapping Commercial Banks? (1 = yes, 0 = No) | E66: =INDEX($G66:$AZ66,,MATCH($E$8,$G$8:$AZ$8,0)) -> 0 | G66: 0
D67: Wrapping EIB? (1 = yes, 0 = No) | E67: =INDEX($G67:$AZ67,,MATCH($E$8,$G$8:$AZ$8,0)) -> 0 | G67: 0
C69: Senior Debt Tranche 1 inputs
D70: Repayment method (1 = mortgage style; 2 = target cover ratio; 3 = scheduled repayments 4 = Pari Passu) | E70: =INDEX($G70:$AZ70,,MATCH($E$8,$G$8:$AZ$8,0)) -> 2 | G70: 2
D71: Required tail (years) | E71: 0.5 | G71: 0.5
D72: Senior debt Commercial Banks tenor | E72: 24 | G72: 24
D73: Margin over LIBOR - construction | E73: 225 | G73: 225
D74: Margin over LIBOR - operations | E74: 210 | G74: 210
D75: Margin over LIBOR - operations | E75: 220 | G75: 220
D76: Margin over LIBOR - operations | E76: 230 | G76: 230
D77: Margin over LIBOR - operations | E77: =INDEX($G77:$AZ77,,MATCH($E$8,$G$8:$AZ$8,0)) -> 230 | G77: 230
D78: Arrangement fee | E78: 200 | G78: 200
D79: Commitment fee (% of margin in use) | E79: 0.4 | G79: 0.4
D80: Interest rate swap credit spread | E80: 30 | G80: 30
D81: Roll up interest until (date) | E81: 2013-06-30 | G81: =TI!$E$22 -> 2013-06-30
D82: Grace period for Senior Facilities (months post construction completion) | E82: =INDEX($G82:$AZ82,,MATCH($E$8,$G$8:$AZ$8,0)) -> 0 | G82: 0
D83: Fund construction working capital creditor (1 = yes, 0 = no) | E83: =INDEX($G83:$AZ83,,MATCH($E$8,$G$8:$AZ$8,0)) -> 1 | G83: 1
D84: Restrict capital repayment in partial period | E84: =INDEX($G84:$AZ84,,MATCH($E$8,$G$8:$AZ$8,0)) -> 3000 | G84: 3000
D85: Final repayment date | E85: =INDEX($G85:$AZ85,,MATCH($E$8,$G$8:$AZ$8,0)) -> 2037-12-31 | G85: 2037-12-31
C87: Senior Debt Margins
D88: First Step change in margin over LIBOR - operations duration (years) | E88: =INDEX($G88:$AZ88,,MATCH($E$8,$G$8:$AZ$8,0)) -> 15 | G88: 15
D89: Second Step change in margin over LIBOR - operations duration (years) | E89: =INDEX($G89:$AZ89,,MATCH($E$8,$G$8:$AZ$8,0)) -> 5 | G89: 5
D90: Third Step Change in margin over LIBOR - operations duration (years) | E90: =INDEX($G90:$AZ90,,MATCH($E$8,$G$8:$AZ$8,0)) -> 10 | G90: 10
C92: Senior Debt Tranche 2 inputs - NOT USED
D93: Drawdown Method | E93: =INDEX($G93:$AZ93,,MATCH($E$8,$G$8:$AZ$8,0)) -> 1 | G93: 1
D94: Repayment type (1 = mortgage style; 2 = target cover ratio; 3 = scheduled repayments; 4 = Pari Passu) | E94: =INDEX($G94:$AZ94,,MATCH($E$8,$G$8:$AZ$8,0)) -> 1 | G94: 1
D95: Senior debt EIB amortisation period (years) [for repayment types 1 and 3 only] | E95: 29 | G95: 29
D96: Required tail (years) | E96: 1 | G96: 1
D97: Phase 1 - margin above reference rate | E97: 0 | G97: 0
D98: Phase 2 - margin above reference rate | E98: 0 | G98: 0
D99: Phase 3 - margin above reference rate | E99: 0 | G99: 0
D100: Phase 4 - margin above reference rate | E100: 0 | G100: 0
D101: Phase 5 - margin above reference rate | E101: 0 | G101: 0
D102: Mandatory Liquid Assets (MLAs) | E102: 2 | G102: 2
D103: EIB reference rate (margin over LIBOR swap rate) | E103: 0 | G103: 0
D104: Arrangement fee | E104: 0 | G104: 0
D105: Commitment fee (% of applicable margin) | E105: 0 | G105: 0
D106: Roll up interest until (date) | E106: 2013-12-31 | G106: 2013-12-31
D107: Index linked? (1 = yes 0 = no) | E107: =INDEX($G107:$AZ107,,MATCH($E$8,$G$8:$AZ$8,0)) -> 0 | G107: 0
D108: Senior Debt EIB underlying interest rate (1= LIBOR, 2 = Gilt) | E108: 1 | G108: 1
C110: Senior Debt Tranche 2 Margins
D111: First Step change in margin over LIBOR - operations duration (years) | E111: =INDEX($G111:$AZ111,,MATCH($E$8,$G$8:$AZ$8,0)) -> 10 | G111: 10
D112: Second Step change in margin over LIBOR - operations duration (years) | E112: =INDEX($G112:$AZ112,,MATCH($E$8,$G$8:$AZ$8,0)) -> 10 | G112: 10
D113: Third Step Change in margin over LIBOR - operations duration (years) | E113: =INDEX($G113:$AZ113,,MATCH($E$8,$G$8:$AZ$8,0)) -> 10 | G113: 10
C115: Equity Bridge
D116: Equity bridge required to fund equity? (1 = yes, 0 = no) | E116: =INDEX($G116:$AZ116,,MATCH($E$8,$G$8:$AZ$8,0)) -> 0 | G116: 0
D117: Equity bridge required to fund sub-debt? (1 = yes, 0 = no) | E117: 1 | G117: 1
D118: Equity bridge margin over LIBOR - phase 1 | E118: 175 | G118: 175
D119: Equity bridge margin over LIBOR - phase 2 | E119: 175 | G119: 175
D120: Equity bridge margin over LIBOR - phase 3 | E120: 175 | G120: 175
D121: Equity bridge margin over LIBOR - phase 4 | E121: 175 | G121: 175
D122: Equity bridge margin over LIBOR - phase 5 | E122: 175 | G122: 175
D123: Equity bridge arrangement fee | E123: 200 | G123: 200
D124: Equity bridge commitment fee (% of margin in use) | E124: 0.4 | G124: 0.4
D125: Delay in repayment of equity bridge (months) | E125: 0 | G125: 0
D126: Interest rate swap credit spread | E126: 30 | G126: 30
D127: Roll up interest on Equity Bridge until (date) | E127: 2011-02-22 | G127: =TI!$E$16-1 -> 2011-02-22
C129: Subordinated Debt
D130: Subordinated debt coupon (bps) - phase 1 | E130: =INDEX($G130:$AZ130,,MATCH($E$8,$G$8:$AZ$8,0)) -> 855 | G130: 855
D131: Subordinated debt coupon (bps) - phase 2 | E131: 855 | G131: =G130 -> 855
D132: Subordinated debt coupon (bps) - phase 3 | E132: 855 | G132: =G131 -> 855
D133: Subordinated debt coupon (bps) - phase 4 | E133: 855 | G133: 855
D134: Subordinated debt coupon (bps) - phase 5 | E134: 855 | G134: 855
D135: Subordinated debt arrangement fee (£'000) | E135: 0 | G135: 0
D136: Subordinated debt commitment fee (% of coupon - payable during construction) | E136: 0 | G136: 0
D137: Repayment method (1 = mortgage style; 2 = Cash available; 3 = scheduled repayments) | E137: 2 | G137: 2
D138: Sub debt amortisation period (years) (for 1. Mortgage style) | E138: 25 | G138: 25
D139: Roll-up Sub debt interest during construction? (1 = yes, 0 = no) | E139: 1 | G139: 1
D140: A. Percentage cash available to use to settle capital balance | E140: 0.525 | G140: 0.525
D141: Date to reduce cash available to settle capital balance from (A) | E141: 2013-04-01 | G141: 2013-04-01
D142: B. Percentage cash available to use to settle capital balance | E142: 0.75 | G142: 0.75
D143: Date to reduce cash available to settle capital balance from (B) | E143: 2024-04-01 | G143: 2024-04-01
D144: C. Percentage cash available to use to settle capital balance | E144: 0.9 | G144: 0.9
D145: Date to reduce cash available to settle capital balance from (C) | E145: 2035-04-01 | G145: 2035-04-01
D146: Commence interest payments from (1 = senior interest paid 2 = senior capital paid) | E146: 2 | G146: 2
D147: Number of 6m periods delay from operations start until 1st capital repayment | E147: 0 | G147: 0
D148: Letter of credit costs | E148: 0 | G148: 0
D149: Cross over period | E149: 260 | G149: 260
C150: General
D151: Mandatory Liquid Assets | E151: =INDEX($G151:$AZ151,,MATCH($E$8,$G$8:$AZ$8,0)) -> 2 | G151: 2
D152: Agency fee - First payment | E152: =INDEX($G152:$AZ152,,MATCH($E$8,$G$8:$AZ$8,0)) -> 2011-02-23 | G152: =TI!E16 -> 2011-02-23
D153: Agency fee - Second date (and annually thereafter) | E153: 2011-03-31 | G153: 2011-03-31
D154: Agency fee - construction (£'000 real) | E154: =INDEX($G154:$AZ154,,MATCH($E$8,$G$8:$AZ$8,0)) -> 15 | G154: 15
D155: Agency fee - operations (£'000 real) | E155: =INDEX($G155:$AZ155,,MATCH($E$8,$G$8:$AZ$8,0)) -> 10 | G155: 10
C157: DSRF and CiLF
D158: DSRF or DSRA (1 = DSRF 2 = DSRA) | E158: =INDEX($G158:$AZ158,,MATCH($E$8,$G$8:$AZ$8,0)) -> 1 | G158: 1
D159: Months debt service to reserve | E159: 6 | G159: 6
D160: Pre funding for DSRA | E160: 0 | G160: 0
D161: Max size of facility (£'000) | E161: 2475 | G161: 2475
D162: DSRF available until | E162: 2037-12-31 | G162: =TI!$E$81 -> 2037-12-31
D163: Change of Law (1 = Facility 2 = Account) | E163: 1 | G163: 1
D164: Facility size as % of capital expenditure | E164: 0.03 | G164: 0.03
D165: Facility available until | E165: 2037-09-30 | G165: 2037-09-30
D166: Account size as a % of risk assumed | E166: 0.03 | G166: 0.03
D167: Date to reserve until (must be preiod end) | E167: 2037-09-30 | G167: =$G$165 -> 2037-09-30
C169: MRA
D170: Year 0.5 | E170: =INDEX($G170:$AZ170,,MATCH($E$8,$G$8:$AZ$8,0)) -> 1 | G170: 1
D171: Year 1 | E171: 1 | G171: 1
D172: Year 1.5 | E172: 0.5 | G172: 0.5
D173: Year 2 | E173: 0.5 | G173: 0.5
D174: Year 2.5 | E174: 0 | G174: 0
D175: Year 3 | E175: 0 | G175: 0
D176: Year 3.5 | E176: 0 | G176: 0
D177: Year 4 | E177: 0 | G177: 0
D178: Year 4.5 | E178: 0 | G178: 0
D179: Year 5 | E179: 0 | G179: 0
D180: Year 5.5 | E180: 0 | G180: 0
D181: Year 6 | E181: 0 | G181: 0
D182: Year 6.5 | E182: 0 | G182: 0
D183: Year 7 | E183: 0 | G183: 0
D184: Reserve Lifecyle Until (date) | E184: 2038-03-31 | G184: 2038-03-31
C186: Covenants & debt sculpting
D187: Condition Precedent minimum DSCR | E187: =INDEX($G187:$AZ187,,MATCH($E$8,$G$8:$AZ$8,0)) -> 1.154 | G187: 1.154
D188: Condition Precedent Average DSCR | E188: 1.15 | G188: 1.15
D189: Lock Up DSCR | E189: 1.1 | G189: 1.1
D190: Default ADSCR | E190: 1.05 | G190: 1.05
D191: Opening DSCR | E191: 1.154 | G191: 1.154
D192: First step up in DSCR | E192: 2014-09-01 | G192: 2014-09-01
D193: Step up DSCR to | E193: 1.154 | G193: 1.154
D194: Second step up in DSCR | E194: 2015-09-01 | G194: 2015-09-01
D195: Step up DSCR to | E195: 1.154 | G195: 1.154
D196: Third step up in DSCR | E196: 2028-09-01 | G196: 2028-09-01
D197: Step up DSCR to | E197: 1.155 | G197: 1.155
D198: Fourth step up in DSCR | E198: 2035-03-01 | G198: 2035-03-01
D199: Step up DSCR to | E199: 1.19 | G199: 1.19
D200: Condition Precedent LLCR | E200: 1.18 | G200: 1.18
D201: Lock Up LLCR | E201: 1.15 | G201: 1.15
D202: Default LLCR | E202: 1.1 | G202: 1.1
D203: Date to commence ratio calcultions | E203: 2013-09-30 | G203: 2013-09-30
C205: Sensitivities
D206: Change in Unitary Charge | E206: =INDEX($G206:$AZ206,,MATCH($E$8,$G$8:$AZ$8,0)) -> 1 | G206: 1
D207: AP sensitivity frequency (years, if =0 applies AP inflation in every period) | E207: 0 | G207: 0
D208: Change in construction cost | E208: 1 | G208: 1
D209: Fund construction costs by additional funding (1- yes, 0 - use overdraft) | E209: 0 | G209: 0
D210: Change in development costs | E210: 1 | G210: 1
D211: Change in lifecycle cost | E211: 1 | G211: 1
D212: Change in lifecycle differential inflation | E212: 0
D213: lifecycle benchmark date | E213: 2008-07-01 | G213: 2008-07-01
D214: Change in Hard O&M (Construction) | E214: 1 | G214: 1
D215: Change in Hard O&M (Operations) | E215: 1 | G215: 1
D216: Change in Hard O&M differential inflation | E216: 0 | G216: 0
D217: Pulsed sensitivity period (years, 0 applies in every period) | E217: 0 | G217: 0
D218: Hard O&M benchmark date | E218: 2018-09-30 | G218: 2018-09-30
D219: Change in Soft FM (Construction) | E219: 1 | G219: 1
D220: Change in Soft FM (Operations) | E220: 1 | G220: 1
D221: Change in Insurance cost (Construction]) | E221: 1 | G221: 1
... 14 more rows

Sheet TI
A1: =Cover!$F$4 -> North West Fire & Rescue PFI Project | E1: Sensitivity Run? | F1: =Scenario_Control!F4 -> FALSE | I1: COMMENTS
A2: ="Filename: "&Cover!$F$6 -> Filename: BBFR_NWFRS_Financial Model_230211_DRY RUN_09.49. | E2: Critical checks | F2: =Outputs!F5 -> ü
A4: =Header1 -> 1 | B4: Model information
D6: Bidder | E6: Balfour Beatty Fire & Rescue
D7: Project | E7: North West Fire & Rescue
D8: Engagement letter date | E8: 2009-02-17
D9: Project Sponsor | E9: Balfour Beatty Capital Limited
D10: Model filename and path | E10: =CELL("filename",A1) -> C:\Work\Chargeable\NWFRS\32. 23 February 2011\[BBFR_NWFRS_Financial Model_230211_DRY RUN_09.49.xlsm]TI
D11: Filename information | E11: =FIND("]",E10) -> 100
D12: Filename information | E12: =FIND("[",E10) -> 47
A14: =Header1 -> 2 | B14: Model Timing and periodicity
D16: Financial close | E16: 2011-02-23 | I16: The financial close date is only reported in the Outputs and is not used in the Model
D18: Construction phase starts (date) | E18: =E16+1 -> 2011-02-24
D19: Construction length (complete months - limited to a max of 60 months) | E19: 29
D20: Concession length (years - limited to a max of 39 years) | E20: =(E26-E18)/365.25 -> 27.35660507
D22: Final construction month (month end) | E22: 2013-06-30 | I22: Model assumes month end
D23: First full operational month (date) | E23: =IF(ISBLANK(E18),"",E22+1) -> 2013-07-01 | I23: Model assumes start of month
D25: Operation phase length (years) | E25: =YEARFRAC(E23,E26) -> 25.00833333
D26: Operation phase ends (date) | E26: 2038-07-04 | I26: Based on Final Services Availability plus 25 years
D28: 1st period end (date) | E28: =DATE(IF(MONTH(E18)>9,YEAR(E18)+1,YEAR(E18)),IF(OR(MONTH(E18)<=3,MONTH(E18)>9),3,9),IF(OR(MONTH(E18)<=3,MONTH(E18)>9),31,30)) -> 2011-03-31 | I28: ="Change in Scenario Control sheet - must be after "&TEXT(E18-1,"dd-mm-yy") -> Change in Scenario Control sheet - must be after 23-02-11
D29: 1st period start (date) | E29: =EOMONTH(E28,-E31) -> 2010-09-30
D30: 1st year end (date) | E30: =DATE(IF(MONTH(E28)=9,YEAR(E28)+1,YEAR(E28)),3,31) -> 2011-03-31 | I30: ="Change in Scenario Control sheet - must be after "&TEXT(E28-1,"dd-mm-yy") -> Change in Scenario Control sheet - must be after 30-03-11
D31: Number of months in period (months) | E31: 6
D32: Number of months in year (months) | E32: 12
D33: Number of periods in a year | E33: =E32/E31 -> 2
D35: First semi-annual period end: month number | E35: =DAYS360(EOMONTH(E18,-1),E28)/30 -> 2
A39: =Header1 -> 3 | B39: Financing assumptions
B41: =Header2 -> 3.1 | C41: Interest during construction
D42: Earn interest during the construction period? | E42: TRUE
B44: =Header2 -> 3.2 | C44: Debt Structure Inputs
D45: Maximum gearing per bank term sheet | E45: =Scenario_Control!E33 -> 0.91 | I45: Used as a benchmark in Model - not used in any calculations
D46: Input gearing (for optimisation) | E46: =Scenario_Control!E32 -> 0.9048 | I46: Drives draw downs - change in Scenario control sheet
E47: Debt Spread | F47: Repayment Hierarchy
D48: Bond | E48: =Scenario_Control!E37 -> 0 | F48: 1
D49: Senior debt: Commercial Banks | E49: =Scenario_Control!E38 -> 1 | F49: 2
D50: Senior debt: EIB | E50: =Scenario_Control!E39 -> 0 | F50: 3
D51: Mezzanine debt | E51: =Scenario_Control!E40 -> 0
D53: Drawdown option | E53: =Scenario_Control!E93 -> 1 | I53: 1. Equity bridge (if applicable) then bond + senior debt, mezz-debt, sub-debt and equity
I54: 2. As above but EIB facility drawn at close
B55: =Header2 -> 3.3 | C55: Bond inputs - NOT USED
D56: Total bond amount round up to | E56: No Rounding | I56: Please run "No Rounding" case first and then run the desired rounding case
E57: =IF(E56="£1k",1,IF(E56="£10k", 2,IF(E56="£100k",3,0))) -> 0
D59: Repayment method | E59: =Scenario_Control!E43 -> 1 | I59: 1 = mortgage style; 2 = target cover ratio; 3 = scheduled repayments; 4 = Bullet payment on maturity date
D60: Bond amortisation period (years) | E60: =Scenario_Control!E44 -> 0 | I60: =IF(MOD(E60*10,5)=0,0,1) -> 0
D61: Bond maturity date | E61: =EOMONTH(E23,E60*E32-1) -> 2013-06-30
D62: Arrangement fee | E62: =Scenario_Control!E46 -> 0 | I62: % of total amount of bond
D63: Index linked? | E63: =Scenario_Control!E48 -> 0 | I63: 1 = yes, 0 = no
D64: Roll-up interest during construction? | E64: 0 | I64: 1 = yes, 0 = no
D66: Reference Gilt | E66: =Scenario_Control!E50 -> 0 | I66: % p.a.
D67: Margin on Bond | E67: =Scenario_Control!E51 -> 0 | I67: in bps
D69: Wrapped Bond? | E69: =Scenario_Control!E65 -> 0 | I69: 1 = Wrapped bond, 0 = Normal bond
D70: Wrapped bond premium | E70: =Scenario_Control!E63 -> 0 | I70: in bps
D71: Payment in up-front | E71: =Scenario_Control!E64 -> 0 | I71: % of premium to be paid up-front
D73: First bond repayment in the first operating period
D74: if a partial period? | E74: =Scenario_Control!E52 -> 1 | I74: 1 = yes - pay the first repayment in the first operating period even if it is a partial period;
I75: 0 = pay the first repayment in the first full operating period.
B78: =Header2 -> 3.4 | C78: Senior debt tranche 1 inputs
D79: Repayment method | E79: =Scenario_Control!E70 -> 2 | I79: 1 = mortgage style; 2 = target cover ratio; 3 = scheduled repayments
D80: Senior debt Commercial Banks amortisation period (years) | E80: =Scenario_Control!E72 -> 24
D81: Ammortise arrangement fees until date | E81: 2037-12-31
D82: Debt repayment period | E82: =MAX(Ops!G2611:G2613) -> 2038-03-31
D83: Senior debt tail required (years) | E83: =Scenario_Control!E71 -> 0.5 | F83: =E83*12 -> 6 | G83: months
D84: Roll up interest until (date) | E84: =Scenario_Control!E81 -> 2013-06-30
D85: Grace period (months) | E85: =Scenario_Control!E82 -> 0
D86: Capital repayments commence | E86: =EOMONTH(E22,E85) -> 2013-06-30
D88: Target DSCR | E88: =Scenario_Control!E191 -> 1.154 | F88: =Scenario_Control!E193 -> 1.154 | G88: =Scenario_Control!E195 -> 1.154 | H88: =Scenario_Control!E197 -> 1.155 | I88: =Scenario_Control!E199 -> 1.19
D89: Start date | E89: =E23 -> 2013-07-01 | F89: =Scenario_Control!E192 -> 2014-09-01 | G89: =Scenario_Control!E194 -> 2015-09-01 | H89: =Scenario_Control!E196 -> 2028-09-01 | I89: =Scenario_Control!E198 -> 2035-03-01
D90: End of drawdown period | E90: =E22 -> 2013-06-30 | F90: Should be month end
D91: % of remaining Construction cost to draw in final period | E91: 1
D92: Interest only repayments until | E92: 2012-10-31
D93: Additional headroom in facility (£'000s) | E93: 200
B95: =Header2 -> 3.5 | C95: Senior debt tranche 2 inputs - NOT USED
D96: Repayment type | E96: =Scenario_Control!E94 -> 1 | I96: 1 = mortgage style; 2 = target cover ratio; 3 = scheduled repayments; 4 = Pari Passu
D97: Senior debt EIB amortisation period (years) | E97: =Scenario_Control!E95 -> 29 | I97: =IF(MOD(E97*10,5)=0,0,1) -> 0
D98: Ammortise arrangement fees until date | E98: =EOMONTH($E$26,-($E$99)*12-1) -> 2037-06-30
D99: Required tail (years) | E99: =Scenario_Control!E96 -> 1
D100: Roll-up interest until during construction? | E100: =Scenario_Control!E106 -> 2013-12-31
D101: Restrict repayment in partial peroid | E101: =Scenario_Control!G84 -> 3000
B103: =Header2 -> 3.6 | C103: Mezzanine Debt inputs - NOT USED
D104: Repayment type | E104: 2 | F104: Enter - 1, 2 or 3 | I104: 1 = mortgage style; 2 =cash available; 3 = scheduled repayments
D105: Mezzanine Debt amortisation period (years) | E105: 0 | I105: =IF(MOD(E105*10,5)=0,0,1) -> 0
D106: Required tail (years) | E106: 0
D107: Number of periods delay from operations start (6 month periods) | E107: 0 | I107: This will restrict repayments until after the specified number of periods after operations commences.
D108: Percentage cash available to use to settle capital balance | E108: 0 | I108: This option is only used when repayment type 2 - cash available is selected
D109: Roll-up interest during construction? | E109: 0 | I109: 1 = yes, 0 = no
B111: =Header2 -> 3.7 | C111: Equity bridge inputs
D112: Equity bridge required to fund equity? | E112: =Scenario_Control!E116 -> 0 | I112: 1 = yes, 0 = no
D113: Equity bridge required to fund sub-debt? | E113: =Scenario_Control!E117 -> 1 | I113: 1 = yes, 0 = no
D114: Proportion of equity bridge refinanced by sub-debt | E114: 1
D115: Proportion of equity bridge refinanced by equity | E115: =100%-E114 -> 0
D116: Delay in repayment of equity bridge? (months) | E116: =Scenario_Control!E125 -> 0
D117: Date Equity Bridge Repaid | E117: =Ops!L2216 -> 2013-06-30
D118: Roll up interest until date | E118: =Scenario_Control!E127 -> 2011-02-22
D119: Maximum facility size (calculated - check) | E119: =-MIN(Const!G1140:BO1140) -> 5284.73543
B121: =Header2 -> 3.8 | C121: Subordinated debt inputs
D122: Repayment type | E122: =Scenario_Control!E137 -> 2 | I122: 1 = mortgage style; 2 =cash available; 3 = scheduled repayments
D123: Sub debt amortisation period (years) | E123: =Scenario_Control!E138 -> 25 | I123: =IF(Ops!E1942<=$E$26, "OK","Warning: Amortisation extends beyond end of concession") -> OK
D124: Number of periods delay from operations start (6 month periods) | E124: =Scenario_Control!E147 -> 0 | I124: This will restrict repayments until after the specified number of periods after operations commences.
D125: Roll-up interest during construction? | E125: =Scenario_Control!E139 -> 1 | I125: 1 = yes, 0 = no
D126: Thin capitalisation percentage disallowed for tax purposes | E126: 0
D128: Arrangement fee included in blended return calc | E128: 0 | I128: 1 = yes, 0 = no
E129: =Scenario_Control!G149 -> 260
B130: =Header2 -> 3.9 | C130: Equity inputs
D131: Equity | E131: =Scenario_Control!E29 -> 1 | I131: Must NOT be greater than: | K131: =-Const!G901 -> 5285.73543
D132: Dividends paid after sub debt principal | E132: 1 | I132: 1 = yes, 0 = no
D133: Enable dividend payments from | E133: 2014-04-01
D134: Required blended pre-tax shareholders IRR (real) | E134: =Scenario_Control!E25 -> 0.098 | I134: Input used as benchmark for outputs (does not drive any calculations)
B136: =Header2 -> 3.10 | C136: Margins on debt (excluding Bond)
E137: Senior debt tranche 1 | F137: Senior debt tranche 2 | G137: Mezzanine debt | H137: Equity bridge | I137: Subordinated debt | J137: Change of Law | K137: Debt Service Reserve Facility
D138: Phase 1 - margin above LIBOR | E138: =Scenario_Control!$E73 -> 225 | F138: =Scenario_Control!E97 -> 0 | G138: 0 | H138: =Scenario_Control!$E118 -> 175 | I138: =Scenario_Control!$E130 -> 855 | J138: Refers to Senior Debt Margins | K138: Refers to Senior Debt Margins
D139: Phase 2 - margin above LIBOR | E139: =Scenario_Control!$E74 -> 210 | F139: =Scenario_Control!E98 -> 0 | G139: 0 | H139: =Scenario_Control!$E119 -> 175 | I139: =Scenario_Control!$E131 -> 855
D140: Phase 3 - margin above LIBOR | E140: =Scenario_Control!$E75 -> 220 | F140: =Scenario_Control!E99 -> 0 | G140: 0 | H140: =Scenario_Control!$E120 -> 175 | I140: =Scenario_Control!$E132 -> 855
D141: Phase 4 - margin above LIBOR | E141: =Scenario_Control!$E76 -> 230 | F141: =Scenario_Control!E100 -> 0 | G141: 0 | H141: =Scenario_Control!$E121 -> 175 | I141: =Scenario_Control!$E133 -> 855
D142: Phase 5 - margin above LIBOR | E142: =Scenario_Control!$E77 -> 230 | F142: =Scenario_Control!E101 -> 0 | G142: 0 | H142: =Scenario_Control!$E122 -> 175 | I142: =Scenario_Control!$E134 -> 855
D144: Start date of phases (will take effect from first period end thereafter)
D145: Date Phase 1 starts | E145: =$E$18 -> 2011-02-24 | F145: =$E$18 -> 2011-02-24 | G145: =$E$18 -> 2011-02-24 | H145: =$E$18 -> 2011-02-24 | I145: =$E$18 -> 2011-02-24
D146: Date Phase 2 starts | E146: =$E$90 -> 2013-06-30 | F146: =$E$22 -> 2013-06-30 | G146: =$E$22 -> 2013-06-30 | H146: =$E$22 -> 2013-06-30 | I146: =$E$22 -> 2013-06-30
D147: Date Phase 3 starts | E147: =EOMONTH(E146,Scenario_Control!$E$88*$E$32) -> 2028-06-30 | F147: =EOMONTH(F146,Scenario_Control!$E$111*$E$32) -> 2023-06-30 | G147: =EOMONTH(G146,Scenario_Control!$E$88*$E$32) -> 2028-06-30 | H147: 2036-08-31 | I147: 2036-08-31
D148: Date Phase 4 starts | E148: =EOMONTH(E147,Scenario_Control!$E$89*$E$32) -> 2033-06-30 | F148: =EOMONTH(F147,Scenario_Control!$E$112*$E$32) -> 2033-06-30 | G148: =EOMONTH(G147,Scenario_Control!$E$89*$E$32) -> 2033-06-30 | H148: 2036-08-31 | I148: 2036-08-31
D149: Date Phase 5 starts | E149: =EOMONTH(E148,Scenario_Control!$E$90*$E$32) -> 2043-06-30 | F149: =EOMONTH(F148,Scenario_Control!$E$113*$E$32) -> 2043-06-30 | G149: =EOMONTH(G148,Scenario_Control!$E$90*$E$32) -> 2043-06-30 | H149: 2036-08-31 | I149: 2036-08-31
D151: Other fees (in bps)
D152: Mandatory Liquid Assets (MLAs) | E152: =Scenario_Control!E151 -> 2 | F152: =Scenario_Control!E102 -> 2 | G152: 0 | H152: =Scenario_Control!E151 -> 2
D153: Interest rate Swap Credit Spread | E153: =Scenario_Control!E80 -> 30 | F153: =Scenario_Control!E103 -> 0 | G153: 0 | H153: =Scenario_Control!E126 -> 30
D154: Arrangement fee | E154: =Scenario_Control!$E$78 -> 200 | F154: =Scenario_Control!E104 -> 0 | G154: 0 | H154: =Scenario_Control!E123 -> 200 | I154: =Scenario_Control!$E$135 -> 0 | J154: =E154 -> 200 | K154: =E154 -> 200
D155: Commitment fee (% of applicable margin) | E155: =Scenario_Control!E79 -> 0.4 | F155: =Scenario_Control!E105 -> 0 | G155: 0 | H155: =Scenario_Control!E124 -> 0.4 | I155: =Scenario_Control!E136 -> 0 | J155: =E155 -> 0.4 | K155: =E155 -> 0.4
D156: Cost of providing LoC/PCG (bps p.a) | G156: 0 | I156: =Scenario_Control!E148 -> 0
B158: =Header2 -> 3.11 | C158: Other General Debt Inputs
D160: Lock-up DSCR level | E160: =Scenario_Control!E189 -> 1.1 | I160: For repayment of sub debt & equity
D161: Lock-up LLCR level | E161: =Scenario_Control!E201 -> 1.15
D163: Change of Law Facility in Use? | E163: =Scenario_Control!E163 -> 1 | I163: 1 = yes, 0 = no
D164: Facility size as % of capital expenditure | E164: =Scenario_Control!E164 -> 0.03 | I164: Facility size as percentage of capex
D165: Facility available until | E165: =Scenario_Control!E165 -> 2037-09-30
D166: Working Capital days | E166: =E219 -> 30
B168: =Header2 -> 3.12 | C168: Cash flow application for ratio calculations
D170: Cash flows deducted from CFADS for ADSCR:
D171: Monoline premium payment | E171: 0 | I171: 1 = include in debt sevice, 2 = deduct from CFADS as operating cost
D172: Include transfers to/from MRA | E172: 1 | I172: 1 = yes, 0 = no
D173: Include transfers to/from CiLRA | E173: 0 | I173: 1 = yes, 0 = no
D174: Include transfers to/from DSRA | E174: 0 | I174: 1 = yes, 0 = no
D175: Include commitment fees | E175: 0 | I175: 1 = deduct from CFADS as operating cost, 0 = include in debt service
D176: Include interest on cash balances | E176: 1 | I176: 1 - include, 0 - exclude
D178: Treatment of cash balances and reserve account transfers for LLCR calculation:
D179: DSRA | E179: 1 | I179: 1 = include cash balance in numerator, 0 = include tranders to/from account in CFADS
D180: MRA | E180: 1 | I180: 1 = include cash balance in numerator, 0 = include tranders to/from account in CFADS
D181: Unreserved cash balances | E181: 1 | I181: 1 = include cash balance in numerator, 0 = exclude cash balance from numerator
D182: CILRA | E182: 1 | I182: 1 = include cash balance in numerator, 0 = include tranders to/from account in CFADS
D183: CiLF | E183: 1 | I183: 1 = include cash balance in denominator, 0 = include tranders to/from account in CFADS
D184: Commitment Fees | E184: 1 | I184: 1= Deduct from numerator, 0=exclude from numerator
A186: =Header1 -> 4 | B186: Inflation assumptions
E188: UC & TPI inflation | F188: Labour inflation | G188: No inflation | H188: RPI | I188: Development Costs | J188: Benchmark Inflation | K188: RPI Swap | L188: IRR Calc
D190: Inflation base date (must be month start) | E190: 2010-10-01 | F190: 2010-10-01 | G190: 2010-10-01 | H190: 2010-10-01 | I190: 2010-10-01 | J190: 2010-10-01 | K190: 2010-10-01 | L190: 2010-10-01
D191: Date of first step-up (must be month start) | E191: 2011-04-01 | F191: 2011-04-01 | G191: 2011-04-01 | H191: 2011-04-01 | I191: 2011-04-01 | J191: 2011-04-01 | K191: 2011-04-01 | L191: 2011-04-01 | M191: May wish to link in with project dates
D192: Date of second step-up (must be month start) | E192: 2012-04-01 | F192: 2012-04-01 | G192: 2012-04-01 | H192: 2012-04-01 | I192: 2012-04-01 | J192: 2012-04-01 | K192: 2012-04-01 | L192: 2012-04-01
D194: Annual inflation forecast | E194: 0.025 | F194: 0.035 | G194: 0 | H194: 0.025 | I194: 0.025 | J194: 0.025 | K194: =$E$327 -> 0.025 | L194: 0.025 | M194: Enter ANNUAL inflation
D195: Sensitivity target (Construction) | E195: =Scenario_Control!E227 -> 0.025
D196: Sensitivity target (Operations) | E196: =Scenario_Control!E228 -> 0.025
D198: Annual inflation forecast (Construction) | E198: =($E$195-$E$194)+E194 -> 0.025 | F198: =($E$195-$E$194)+F194 -> 0.035 | G198: =G194 -> 0 | H198: =($E$195-$E$194)+H194 -> 0.025 | I198: =($E$195-$E$194)+I194 -> 0.025 | J198: =($E$195-$E$194)+J194 -> 0.025 | K198: =K194 -> 0.025 | L198: =($E$195-$E$194)+L194 -> 0.025 | M198: Enter ANNUAL inflation
D199: Annual inflation forecast (Operations) | E199: =($E$195-$E$194)+E194 -> 0.025 | F199: =($E$195-$E$194)+F194 -> 0.035 | G199: 0 | H199: 0.025 | I199: 0.025 | J199: 0.025 | K199: 0.025 | L199: 0.025 | M199: Enter ANNUAL inflation
D200: Annual/semi-annual uplift? | E200: 1 | F200: 1 | G200: 1 | H200: 1 | I200: 1 | J200: 1 | K200: 1 | L200: 1 | M200: NOTE: 1 = anually on 1 Apr, 2 = semi-annually (1 Apr/1 Oct) , 12 = monthly etc.
D202: Bond indexation | E202: 0
D203: Senior debt EIB Indexation | E203: 0
D204: Sub-debt indexation | E204: 0.025
D205: Sub-debt indexation (including sensitivity) | E205: =($E$195-$E$204)+E204 -> 0.025
A206: =Header1 -> 5 | B206: Working capital days
D208: Assumed days in a month | E208: 30
D209: Calculated days in a semi-annual period | E209: =E32/2*E208 -> 180
D211: Development costs creditor | E211: 0 | I211: Select 0 or 30 days
D212: Hard FM costs creditor | E212: 30 | I212: Select 0 or 30 days
D213: Soft FM costs creditor | E213: 30 | I213: Select 0 or 30 days
D214: SPV costs creditor | E214: 30 | I214: Select 0 or 30 days
D215: SPV costs creditor (excluding insurance) | E215: 30 | I215: Select 0 or 30 days
D216: Life cycle expenditure creditor | E216: 30 | I216: Select 0 or 30 days
D217: Revenue debtor | E217: 0 | I217: Select 0 or 30 or 60 days
D218: Third party income debtor | E218: 30 | I218: Select 0 or 30 days
D219: Change of law facility | E219: 30
A221: =Header1 -> 6 | B221: Accounting Inputs
D223: Accounting Method selected | E223: 4 | I223: 1. UKGAAP Fixed Asset, 2. UKGAAP Contract debtor, 3. SSAP 9, 4. IFRS - IFRIC 12
D225: Capitalise interest? | E225: 2 | I225: 1 = no, 2 = yes, during construction
D226: Capitalise bond indexation? | E226: 2 | I226: 1 = no, 2 = yes, during construction
D227: Capitalise EIB indexation? | E227: 2
D228: Capitalise commitment fees? | E228: 1 | I228: 1 = no, 2 = yes, during construction
D229: Capitalise until date | E229: 2011-08-31
B231: =Header2 -> 6.1 | C231: Contract debtor / IFRIC 12 inputs
D233: UK GAAP
D234: Finance debtor interest rate | E234: =Ops!E1272*2 -> 0.06700808915
D235: Soft FM services margin | E235: 0.15
D236: Hard FM & Lifecycle margin | E236: 0.1
D238: Start date for contract debtor ammortisation | E238: =E23 -> 2013-07-01
D239: Duration of contract debtor amortisation (years) | E239: =YEARFRAC(E26,E238) -> 25.00833333
D241: IFRS
D242: Finance Debtor Interest Rate | E242: =(1+Ops!E1386)^2-1 -> 0.07680221168
D243: Margin on construction costs | E243: 0.01
D244: Margin on operating costs | E244: 0.05
D245: Margin on capitalised lifecycle expenditure | E245: 0.01
D247: Intangible asset ammortisation tax deductable? | E247: 1 | F247: 1 = yes, 0 = no
D249: Allocation of Asset-Related Costs | E249: Fixed Asset Accounting | F249: Contract Debtor | G249: SSAP 9 | I249: Include in alloc?
D250: Development Costs - expensed | E250: 1 | F250: 1 | G250: 0 | H250: 0 | I250: =INDEX(E250:H250,E$223) -> 0 | J250: 1 = yes, 0 = no
D251: Life-cycle costs - expensed | E251: 1 | F251: 1 | G251: 0 | H251: 0 | I251: =INDEX(E251:H251,E$223) -> 0 | J251: 1 = yes, 0 = no
D252: Hard FM Costs | E252: 0 | F252: 0 | G252: 0 | H252: 0 | I252: =INDEX(E252:H252,E$223) -> 0 | J252: 1 = yes, 0 = no
D253: Soft FM Costs | E253: 0 | F253: 0 | G253: 0 | H253: 0 | I253: =INDEX(E253:H253,E$223) -> 0 | J253: 1 = yes, 0 = no
... 128 more rows

Sheet TD_Con
A1: North West Fire & Rescue PFI Project | E1: Sensitivity Run? | F1: FALSE
A2: Filename: BBFR_NWFRS_Financial Model_110211_TO BE USED v2. | E2: Critical checks | F2: ü
E3: Case in use | F3: Base Bid
D4: Construction dates | F4: =TI!E18 -> 2011-02-24 | G4: 2011-02-28 | H4: 2011-03-31 | I4: 2011-04-30 | J4: 2011-05-31 | K4: 2011-06-30 | L4: 2011-07-31 | M4: 2011-08-31 | N4: 2011-09-30 | O4: 2011-10-31 | P4: 2011-11-30 | Q4: 2011-12-31 | R4: 2012-01-31 | S4: 2012-02-29 | T4: 2012-03-31 | U4: 2012-04-30 | V4: 2012-05-31 | W4: 2012-06-30 | X4: 2012-07-31 | Y4: 2012-08-31 | Z4: 2012-09-30 | AA4: 2012-10-31 | AB4: 2012-11-30 | AC4: 2012-12-31 | AD4: 2013-01-31 | AE4: 2013-02-28 | AF4: 2013-03-31 | AG4: 2013-04-30 | AH4: 2013-05-31 | AI4: 2013-06-30 | AJ4: 2013-07-31 | AK4: 2013-08-31 | AL4: 2013-09-30 | AM4: 2013-10-31 | AN4: 2013-11-30 | AO4: 2013-12-31 | AP4: 2014-01-31 | AQ4: 2014-02-28 | AR4: 2014-03-31 | AS4: 2014-04-30 | AT4: 2014-05-31 | AU4: 2014-06-30 | AV4: 2014-07-31 | AW4: 2014-08-31 | AX4: 2014-09-30 | AY4: 2014-10-31 | AZ4: 2014-11-30 | BA4: 2014-12-31 | BB4: 2015-01-31 | BC4: 2015-02-28 | BD4: 2015-03-31 | BE4: 2015-04-30 | BF4: 2015-05-31 | BG4: 2015-06-30 | BH4: 2015-07-31 | BI4: 2015-08-31 | BJ4: 2015-09-30 | BK4: 2015-10-31 | BL4: 2015-11-30 | BM4: 2015-12-31 | BN4: 2016-01-31 | BO4: 2016-02-29 | BP4: 2016-03-31 | BQ4: 2016-04-30 | BR4: 2016-05-31 | BS4: 2016-06-30 | BT4: 2016-07-31 | BU4: 2016-08-31 | BV4: 2016-09-30 | BW4: 2016-10-31 | BX4: 2016-11-30
D5: Phase | F5: 1 | G5: 1 | H5: 1 | I5: 1 | J5: 1 | K5: 1 | L5: 1 | M5: 1 | N5: 1 | O5: 1 | P5: 1 | Q5: 1 | R5: 1 | S5: 1 | T5: 1 | U5: 1 | V5: 1 | W5: 1 | X5: 1 | Y5: 1 | Z5: 1 | AA5: 1 | AB5: 1 | AC5: 1 | AD5: 1 | AE5: 1 | AF5: 1 | AG5: 1 | AH5: 1 | AI5: 1 | AJ5: 0 | AK5: 0 | AL5: 0 | AM5: 0 | AN5: 0 | AO5: 0 | AP5: 0 | AQ5: 0 | AR5: 0 | AS5: 0 | AT5: 0 | AU5: 0 | AV5: 0 | AW5: 0 | AX5: 0 | AY5: 0 | AZ5: 0 | BA5: 0 | BB5: 0 | BC5: 0 | BD5: 0 | BE5: 0 | BF5: 0 | BG5: 0 | BH5: 0 | BI5: 0 | BJ5: 0 | BK5: 0 | BL5: 0 | BM5: 0 | BN5: 0 | BO5: 0 | BP5: 0 | BQ5: 0 | BR5: 0 | BS5: 0 | BT5: 0 | BU5: 0 | BV5: 0 | BW5: 0 | BX5: 0
B8: Timing & flags
D10: Month count | F10: 0 | G10: 1 | H10: 2 | I10: 3 | J10: 4 | K10: 5 | L10: 6 | M10: 7 | N10: 8 | O10: 9 | P10: 10 | Q10: 11 | R10: 12 | S10: 13 | T10: 14 | U10: 15 | V10: 16 | W10: 17 | X10: 18 | Y10: 19 | Z10: 20 | AA10: 21 | AB10: 22 | AC10: 23 | AD10: 24 | AE10: 25 | AF10: 26 | AG10: 27 | AH10: 28 | AI10: 29 | AJ10: 30 | AK10: 31 | AL10: 32 | AM10: 33 | AN10: 34 | AO10: 35 | AP10: 36 | AQ10: 37 | AR10: 38 | AS10: 39 | AT10: 40 | AU10: 41 | AV10: 42 | AW10: 43 | AX10: 44 | AY10: 45 | AZ10: 46 | BA10: 47 | BB10: 48 | BC10: 49 | BD10: 50 | BE10: 51 | BF10: 52 | BG10: 53 | BH10: 54 | BI10: 55 | BJ10: 56 | BK10: 57 | BL10: 58 | BM10: 59 | BN10: 60 | BO10: 61 | BP10: 62 | BQ10: 63 | BR10: 64 | BS10: 65 | BT10: 66 | BU10: 67 | BV10: 68 | BW10: 69 | BX10: 70
D11: Construction period flag | F11: 1 | G11: 1 | H11: 1 | I11: 1 | J11: 1 | K11: 1 | L11: 1 | M11: 1 | N11: 1 | O11: 1 | P11: 1 | Q11: 1 | R11: 1 | S11: 1 | T11: 1 | U11: 1 | V11: 1 | W11: 1 | X11: 1 | Y11: 1 | Z11: 1 | AA11: 1 | AB11: 1 | AC11: 1 | AD11: 1 | AE11: 1 | AF11: 1 | AG11: 1 | AH11: 1 | AI11: 1 | AJ11: 0 | AK11: 0 | AL11: 0 | AM11: 0 | AN11: 0 | AO11: 0 | AP11: 0 | AQ11: 0 | AR11: 0 | AS11: 0 | AT11: 0 | AU11: 0 | AV11: 0 | AW11: 0 | AX11: 0 | AY11: 0 | AZ11: 0 | BA11: 0 | BB11: 0 | BC11: 0 | BD11: 0 | BE11: 0 | BF11: 0 | BG11: 0 | BH11: 0 | BI11: 0 | BJ11: 0 | BK11: 0 | BL11: 0 | BM11: 0 | BN11: 0 | BO11: 0 | BP11: 0 | BQ11: 0 | BR11: 0 | BS11: 0 | BT11: 0 | BU11: 0 | BV11: 0 | BW11: 0 | BX11: 0
D12: Year flag | G12: 1 | H12: 0 | I12: 0 | J12: 0 | K12: 0 | L12: 0 | M12: 0 | N12: 0 | O12: 0 | P12: 0 | Q12: 0 | R12: 0 | S12: 1 | T12: 0 | U12: 0 | V12: 0 | W12: 0 | X12: 0 | Y12: 0 | Z12: 0 | AA12: 0 | AB12: 0 | AC12: 0 | AD12: 0 | AE12: 1 | AF12: 0 | AG12: 0 | AH12: 0 | AI12: 0 | AJ12: 0 | AK12: 0 | AL12: 0 | AM12: 0 | AN12: 0 | AO12: 0 | AP12: 0 | AQ12: 1 | AR12: 0 | AS12: 0 | AT12: 0 | AU12: 0 | AV12: 0 | AW12: 0 | AX12: 0 | AY12: 0 | AZ12: 0 | BA12: 0 | BB12: 0 | BC12: 1 | BD12: 0 | BE12: 0 | BF12: 0 | BG12: 0 | BH12: 0 | BI12: 0 | BJ12: 0 | BK12: 0 | BL12: 0 | BM12: 0 | BN12: 0 | BO12: 1 | BP12: 0 | BQ12: 0 | BR12: 0 | BS12: 0 | BT12: 0 | BU12: 0 | BV12: 0 | BW12: 0 | BX12: 0
D13: Semi annual period flag | F13: 1 | G13: 1 | H13: 1 | I13: 1 | J13: 1 | K13: 1 | L13: 1 | M13: 2 | N13: 2 | O13: 2 | P13: 2 | Q13: 2 | R13: 2 | S13: 3 | T13: 3 | U13: 3 | V13: 3 | W13: 3 | X13: 3 | Y13: 4 | Z13: 4 | AA13: 4 | AB13: 4 | AC13: 4 | AD13: 4 | AE13: 5 | AF13: 5 | AG13: 5 | AH13: 5 | AI13: 5 | AJ13: 5 | AK13: 6 | AL13: 6 | AM13: 6 | AN13: 6 | AO13: 6 | AP13: 6
B15: Construction costs | F15: (£'000 - Nominal net of VAT)
D17: Note: Input values for operations phase only (yellow shaded fields).
D19: Construction Cost Input option | E19: 2 | G19: Enter 1 for "spend curve" and 2 for "itemised" inputs (see TD Con)
C21: Option 1: Spend curve
D23: Total construction cost
D25: Spend curve (% in period) | E25: 1 | G25: 0 | H25: 0.04166666667 | I25: 0.04166666667 | J25: 0.04166666667 | K25: 0.04166666667 | L25: 0.04166666667 | M25: 0.04166666667 | N25: 0.04166666667 | O25: 0.04166666667 | P25: 0.04166666667 | Q25: 0.04166666667 | R25: 0.04166666667 | S25: 0.04166666667 | T25: 0.04166666667 | U25: 0.04166666667 | V25: 0.04166666667 | W25: 0.04166666667 | X25: 0.04166666667 | Y25: 0.04166666667 | Z25: 0.04166666667 | AA25: 0.04166666667 | AB25: 0.04166666667 | AC25: 0.04166666667 | AD25: 0.04166666667 | AE25: 0.04166666667 | AF25: 0 | AG25: 0 | AH25: 0 | AI25: 0 | AJ25: 0 | AK25: 0 | AL25: 0 | AM25: 0 | AN25: 0 | AO25: 0 | AP25: 0
D26: Spend curve (% cumulative) | E26: 0 | G26: 0 | H26: 0.04166666667 | I26: 0.08333333333 | J26: 0.125 | K26: 0.1666666667 | L26: 0.2083333333 | M26: 0.25 | N26: 0.2916666667 | O26: 0.3333333333 | P26: 0.375 | Q26: 0.4166666667 | R26: 0.4583333333 | S26: 0.5 | T26: 0.5416666667 | U26: 0.5833333333 | V26: 0.625 | W26: 0.6666666667 | X26: 0.7083333333 | Y26: 0.75 | Z26: 0.7916666667 | AA26: 0.8333333333 | AB26: 0.875 | AC26: 0.9166666667 | AD26: 0.9583333333 | AE26: 1 | AF26: 1 | AG26: 1 | AH26: 1 | AI26: 1 | AJ26: 1 | AK26: 1 | AL26: 1 | AM26: 1 | AN26: 1 | AO26: 1 | AP26: 1
D27: Spend curve (value) | E27: 0 | G27: 0 | H27: 0 | I27: 0 | J27: 0 | K27: 0 | L27: 0 | M27: 0 | N27: 0 | O27: 0 | P27: 0 | Q27: 0 | R27: 0 | S27: 0 | T27: 0 | U27: 0 | V27: 0 | W27: 0 | X27: 0 | Y27: 0 | Z27: 0 | AA27: 0 | AB27: 0 | AC27: 0 | AD27: 0 | AE27: 0 | AF27: 0 | AG27: 0 | AH27: 0 | AI27: 0 | AJ27: 0 | AK27: 0 | AL27: 0 | AM27: 0 | AN27: 0 | AO27: 0 | AP27: 0
D29: % VATable | E29: 1
D30: Working capital lag (months) | E30: 0
C32: Option 2: Input costs
D34: Itemised inputs, spend in each period
D36: Birkenhead | E36: 2962.81568 | G36: 155.2554453 | H36: 0 | I36: 0 | J36: 0 | K36: 0 | L36: 0 | M36: 0 | N36: 0 | O36: 0 | P36: 0 | Q36: 0 | R36: 0 | S36: 0 | T36: 0 | U36: 0 | V36: 178.6983609 | W36: 182.2216522 | X36: 35.56070881 | Y36: 111.7520831 | Z36: 74.61522299 | AA36: 402.9403453 | AB36: 81.52593111 | AC36: 197.9238971 | AD36: 297.8506086 | AE36: 390.6620591 | AF36: 477.9197386 | AG36: 245.9429834 | AH36: 108.4642664 | AI36: 21.48237668
D37: Kirkdale | E37: 3406.923321 | G37: 200.22119 | H37: 136.7217077 | I37: 40.23752699 | J37: 13.95399972 | K37: 26.5792218 | L37: 83.81343371 | M37: 439.9152098 | N37: 82.47995639 | O37: 238.8028968 | P37: 467.8082435 | Q37: 556.422822 | R37: 637.6596248 | S37: 265.5505599 | T37: 119.721486 | U37: 55.93544176 | V37: 41.1 | W37: 0 | X37: 0 | Y37: 0 | Z37: 0 | AA37: 0 | AB37: 0 | AC37: 0 | AD37: 0 | AE37: 0 | AF37: 0 | AG37: 0 | AH37: 0 | AI37: 0
D38: Burnley | E38: 3668.17943 | G38: 202.22119 | H38: 0 | I38: 0 | J38: 0 | K38: 0 | L38: 0 | M38: 0 | N38: 0 | O38: 0 | P38: 0 | Q38: 0 | R38: 0 | S38: 66.12346617 | T38: 35.51020367 | U38: 31.76574634 | V38: 48.51152507 | W38: 58.73679661 | X38: 88.69791281 | Y38: 141.1245488 | Z38: 362.4894165 | AA38: 134.1645521 | AB38: 299.0143629 | AC38: 409.329321 | AD38: 550.6377727 | AE38: 538.1342619 | AF38: 412.2614417 | AG38: 237.2661656 | AH38: 31.69074634 | AI38: 20.5
D39: Penrith | E39: 5923.26925 | G39: 288.22119 | H39: 0 | I39: 0 | J39: 738.4181799 | K39: 98.51250569 | L39: 803.4479002 | M39: 238.8925672 | N39: 204.5112033 | O39: 315.8962144 | P39: 404.1439021 | Q39: 584.5305797 | R39: 688.1370492 | S39: 451.6799109 | T39: 387.6997811 | U39: 395.7638155 | V39: 175.5 | W39: 147.9144508 | X39: 0 | Y39: 0 | Z39: 0 | AA39: 0 | AB39: 0 | AC39: 0 | AD39: 0 | AE39: 0 | AF39: 0 | AG39: 0 | AH39: 0 | AI39: 0
D40: Patterdale | E40: 733.2941816 | G40: 50.22119 | H40: 64.21281441 | I40: 14.98924672 | J40: 36.89679048 | K40: 49.05499494 | L40: 95.84838023 | M40: 96.31921124 | N40: 262.5621256 | O40: 47.58942792 | P40: 15.6 | Q40: 0 | R40: 0 | S40: 0 | T40: 0 | U40: 0 | V40: 0 | W40: 0 | X40: 0 | Y40: 0 | Z40: 0 | AA40: 0 | AB40: 0 | AC40: 0 | AD40: 0 | AE40: 0 | AF40: 0 | AG40: 0 | AH40: 0 | AI40: 0
D41: Carlisle East | E41: 3647.98725 | G41: 196.22119 | H41: 195.2732681 | I41: 84.63403378 | J41: 626.018847 | K41: 149.3103072 | L41: 193.9136797 | M41: 223.3145749 | N41: 307.6173692 | O41: 444.6946882 | P41: 457.9316174 | Q41: 333.7254098 | R41: 285.332265 | S41: 98.3 | T41: 51.7 | U41: 0 | V41: 0 | W41: 0 | X41: 0 | Y41: 0 | Z41: 0 | AA41: 0 | AB41: 0 | AC41: 0 | AD41: 0 | AE41: 0 | AF41: 0 | AG41: 0 | AH41: 0 | AI41: 0
D42: Blackburn | E42: 3049.863207 | G42: 180.22119 | H42: 42.34007743 | I42: 118.4766297 | J42: 164.6540663 | K42: 290.659039 | L42: 72.98298353 | M42: 169.1955791 | N42: 409.3130765 | O42: 428.2339406 | P42: 617.550686 | Q42: 320.7954303 | R42: 205.1986123 | S42: 30.24189634 | T42: 0 | U42: 0 | V42: 0 | W42: 0 | X42: 0 | Y42: 0 | Z42: 0 | AA42: 0 | AB42: 0 | AC42: 0 | AD42: 0 | AE42: 0 | AF42: 0 | AG42: 0 | AH42: 0 | AI42: 0
D43: Belle Vale | E43: 2708.681491 | G43: 173.22119 | H43: 0 | I43: 0 | J43: 0 | K43: 0 | L43: 0 | M43: 0 | N43: 0 | O43: 0 | P43: 0 | Q43: 0 | R43: 0 | S43: 0 | T43: 0 | U43: 0 | V43: 105.3326622 | W43: 57.99995453 | X43: 38.04347765 | Y43: 74.54456312 | Z43: 68.8893565 | AA43: 311.6468079 | AB43: 91.07828058 | AC43: 368.1883415 | AD43: 430.4783892 | AE43: 419.0427282 | AF43: 315.8861803 | AG43: 160.2178204 | AH43: 63.64603718 | AI43: 30.46570156
D44: Southport | E44: 3263.37442 | G44: 180.22119 | H44: 0 | I44: 0 | J44: 0 | K44: 0 | L44: 0 | M44: 0 | N44: 0 | O44: 0 | P44: 0 | Q44: 0 | R44: 0 | S44: 0 | T44: 0 | U44: 254.1838413 | V44: 22.84498052 | W44: 54.52879822 | X44: 64.67211849 | Y44: 80.49805895 | Z44: 339.3548617 | AA44: 126.3934053 | AB44: 97.02774206 | AC44: 371.3673664 | AD44: 518.2904996 | AE44: 539.8295036 | AF44: 306.2075694 | AG44: 245.9103457 | AH44: 20.78255713 | AI44: 41.26158157
D45: Fleetwood | E45: 2592.29755 | G45: 156.22119 | H45: 74.96149188 | I45: 119.4137603 | J45: 20.870088 | K45: 37.74422476 | L45: 37.00160718 | M45: 72.01756244 | N45: 288.577932 | O45: 120.5970703 | P45: 170.4971149 | Q45: 319.5965612 | R45: 320.1473358 | S45: 399.4965973 | T45: 251.3752604 | U45: 103.7797536 | V45: 78.2 | W45: 21.8 | X45: 0 | Y45: 0 | Z45: 0 | AA45: 0 | AB45: 0 | AC45: 0 | AD45: 0 | AE45: 0 | AF45: 0 | AG45: 0 | AH45: 0 | AI45: 0
D46: Bootle & Netherton | E46: 3199.256252 | G46: 185.22119 | H46: 0 | I46: 150 | J46: 149.9568138 | K46: 143.7174847 | L46: 237.4489261 | M46: 95.66764598 | N46: 147.9841504 | O46: 350.3817947 | P46: 474.2305471 | Q46: 530.2063623 | R46: 400.9077418 | S46: 64.3762548 | T46: 180.4743076 | U46: 9.888132706 | V46: 70.91541043 | W46: 7.879490047 | X46: 0 | Y46: 0 | Z46: 0 | AA46: 0 | AB46: 0 | AC46: 0 | AD46: 0 | AE46: 0 | AF46: 0 | AG46: 0 | AH46: 0 | AI46: 0
D47: Chorley | E47: 2850.856255 | G47: 166.22119 | H47: 0 | I47: 0 | J47: 0 | K47: 0 | L47: 0 | M47: 0 | N47: 0 | O47: 0 | P47: 0 | Q47: 0 | R47: 0 | S47: 0 | T47: 0 | U47: 0 | V47: 0 | W47: 105.7524789 | X47: 120.6536132 | Y47: 333.9290767 | Z47: 61.25902891 | AA47: 214.7475875 | AB47: 294.0482512 | AC47: 492.7418895 | AD47: 543.3790144 | AE47: 239.5359388 | AF47: 180.088186 | AG47: 98.5 | AH47: 0 | AI47: 0
D48: Formby | E48: 2071.573922 | G48: 135.22119 | H48: 116.4952504 | I48: 93.41030266 | J48: 9.805710341 | K48: 31.81272154 | L48: 46.92069107 | M48: 170.9428882 | N48: 110.0299001 | O48: 190.4063629 | P48: 160.9407406 | Q48: 309.968639 | R48: 382.0745819 | S48: 156.7851955 | T48: 110.505676 | U48: 26.25407218 | V48: 20 | W48: 0 | X48: 0 | Y48: 0 | Z48: 0 | AA48: 0 | AB48: 0 | AC48: 0 | AD48: 0 | AE48: 0 | AF48: 0 | AG48: 0 | AH48: 0 | AI48: 0
D49: Newton Le Willows | E49: 2173.986288 | G49: 138.22119 | H49: 97.60144202 | I49: 80.88825415 | J49: 20.4145365 | K49: 41.79212599 | L49: 52.38209843 | M49: 243.1823072 | N49: 60.35718951 | O49: 263.8032565 | P49: 331.2147366 | Q49: 417.7638193 | R49: 214.2211571 | S49: 116.4443379 | T49: 52.48770739 | U49: 40 | V49: 3.212129315 | W49: 0 | X49: 0 | Y49: 0 | Z49: 0 | AA49: 0 | AB49: 0 | AC49: 0 | AD49: 0 | AE49: 0 | AF49: 0 | AG49: 0 | AH49: 0 | AI49: 0
D50: Carlisle West | E50: 1944.556252 | G50: 125.22119 | H50: 99.88324572 | I50: 49.52202884 | J50: 359.926389 | K50: 32.63967317 | L50: 54.30407142 | M50: 232.3445502 | N50: 329.0433121 | O50: 321.3249701 | P50: 216.5597759 | Q50: 98.78704546 | R50: 25 | S50: 0 | T50: 0 | U50: 0 | V50: 0 | W50: 0 | X50: 0 | Y50: 0 | Z50: 0 | AA50: 0 | AB50: 0 | AC50: 0 | AD50: 0 | AE50: 0 | AF50: 0 | AG50: 0 | AH50: 0 | AI50: 0
D51: Workington | E51: 3688.95625 | G51: 193.22119 | H51: 0 | I51: 0 | J51: 0 | K51: 0 | L51: 0 | M51: 0 | N51: 0 | O51: 0 | P51: 0 | Q51: 0 | R51: 0 | S51: 0 | T51: 198.2402147 | U51: 200.3349209 | V51: 459.76554 | W51: 270.8909913 | X51: 189.2951473 | Y51: 148.309632 | Z51: 284.0748254 | AA51: 415.2313678 | AB51: 626.0540245 | AC51: 335.215741 | AD51: 285.3152051 | AE51: 57.50745016 | AF51: 25.5 | AG51: 0 | AH51: 0 | AI51: 0
E52: 0 | G52: 0 | H52: 0 | I52: 0 | J52: 0 | K52: 0 | L52: 0 | M52: 0 | N52: 0 | O52: 0 | P52: 0 | Q52: 0 | R52: 0 | S52: 0 | T52: 0 | U52: 0 | V52: 0 | W52: 0 | X52: 0 | Y52: 0 | Z52: 0 | AA52: 0 | AB52: 0 | AC52: 0 | AD52: 0 | AE52: 0 | AF52: 0 | AG52: 0 | AH52: 0 | AI52: 0
E53: 0 | G53: 0 | H53: 0 | I53: 0 | J53: 0 | K53: 0 | L53: 0 | M53: 0 | N53: 0 | O53: 0 | P53: 0 | Q53: 0 | R53: 0 | S53: 0 | T53: 0 | U53: 0 | V53: 0 | W53: 0 | X53: 0 | Y53: 0 | Z53: 0 | AA53: 0 | AB53: 0 | AC53: 0 | AD53: 0 | AE53: 0 | AF53: 0 | AG53: 0 | AH53: 0 | AI53: 0
E54: 0 | G54: 0 | H54: 0 | I54: 0 | J54: 0 | K54: 0 | L54: 0 | M54: 0 | N54: 0 | O54: 0 | P54: 0 | Q54: 0 | R54: 0 | S54: 0 | T54: 0 | U54: 0 | V54: 0 | W54: 0 | X54: 0 | Y54: 0 | Z54: 0 | AA54: 0 | AB54: 0 | AC54: 0 | AD54: 0 | AE54: 0 | AF54: 0 | AG54: 0 | AH54: 0 | AI54: 0
E55: 0 | G55: 0 | H55: 0 | I55: 0 | J55: 0 | K55: 0 | L55: 0 | M55: 0 | N55: 0 | O55: 0 | P55: 0 | Q55: 0 | R55: 0 | S55: 0 | T55: 0 | U55: 0 | V55: 0 | W55: 0 | X55: 0 | Y55: 0 | Z55: 0 | AA55: 0 | AB55: 0 | AC55: 0 | AD55: 0 | AE55: 0 | AF55: 0 | AG55: 0 | AH55: 0 | AI55: 0
E56: 0 | G56: 0 | H56: 0 | I56: 0 | J56: 0 | K56: 0 | L56: 0 | M56: 0 | N56: 0 | O56: 0 | P56: 0 | Q56: 0 | R56: 0 | S56: 0 | T56: 0 | U56: 0 | V56: 0 | W56: 0 | X56: 0 | Y56: 0 | Z56: 0 | AA56: 0 | AB56: 0 | AC56: 0 | AD56: 0 | AE56: 0 | AF56: 0 | AG56: 0 | AH56: 0 | AI56: 0
E57: 0 | G57: 0 | H57: 0 | I57: 0 | J57: 0 | K57: 0 | L57: 0 | M57: 0 | N57: 0 | O57: 0 | P57: 0 | Q57: 0 | R57: 0 | S57: 0 | T57: 0 | U57: 0 | V57: 0 | W57: 0 | X57: 0 | Y57: 0 | Z57: 0 | AA57: 0 | AB57: 0 | AC57: 0 | AD57: 0 | AE57: 0 | AF57: 0 | AG57: 0 | AH57: 0 | AI57: 0
E58: 0 | G58: 0 | H58: 0 | I58: 0 | J58: 0 | K58: 0 | L58: 0 | M58: 0 | N58: 0 | O58: 0 | P58: 0 | Q58: 0 | R58: 0 | S58: 0 | T58: 0 | U58: 0 | V58: 0 | W58: 0 | X58: 0 | Y58: 0 | Z58: 0 | AA58: 0 | AB58: 0 | AC58: 0 | AD58: 0 | AE58: 0 | AF58: 0 | AG58: 0 | AH58: 0 | AI58: 0
E59: 0 | G59: 0 | H59: 0 | I59: 0 | J59: 0 | K59: 0 | L59: 0 | M59: 0 | N59: 0 | O59: 0 | P59: 0 | Q59: 0 | R59: 0 | S59: 0 | T59: 0 | U59: 0 | V59: 0 | W59: 0 | X59: 0 | Y59: 0 | Z59: 0 | AA59: 0 | AB59: 0 | AC59: 0 | AD59: 0 | AE59: 0 | AF59: 0 | AG59: 0 | AH59: 0 | AI59: 0
E60: 0 | G60: 0 | H60: 0 | I60: 0 | J60: 0 | K60: 0 | L60: 0 | M60: 0 | N60: 0 | O60: 0 | P60: 0 | Q60: 0 | R60: 0 | S60: 0 | T60: 0 | U60: 0 | V60: 0 | W60: 0 | X60: 0 | Y60: 0 | Z60: 0 | AA60: 0 | AB60: 0 | AC60: 0 | AD60: 0 | AE60: 0 | AF60: 0 | AG60: 0 | AH60: 0 | AI60: 0
D61: Total construction cost | E61: 47885.871
G62: 2725.573295 | H62: 827.4892976 | I62: 751.5717831 | J62: 2140.915421 | K62: 901.8222987 | L62: 1678.063772 | M62: 1981.792096 | N62: 2202.476215 | O62: 2721.730622 | P62: 3316.477364 | Q62: 3471.796669 | R62: 3158.678368 | S62: 1648.998219 | T62: 1387.714637 | U62: 1117.905724 | V62: 1204.080608 | W62: 907.7246126 | X62: 536.9229782 | Y62: 890.1579626 | Z62: 1190.682712 | AA62: 1605.124066 | AB62: 1488.748592 | AC62: 2174.766557 | AD62: 2625.95149 | AE62: 2184.711942 | AF62: 1717.863116 | AG62: 987.8373151 | AH62: 224.583607 | AI62: 113.7096598 | AJ62: 0
C65: Construction assumptions: option 2
G66: W.Cap lag | H66: VAT?
D67: Birkenhead | G67: 1 | H67: 1
D68: Kirkdale | G68: 1 | H68: 1
D69: Burnley | G69: 1 | H69: 1
D70: Penrith | G70: 1 | H70: 1
D71: Patterdale | G71: 1 | H71: 1
D72: Carlisle East | G72: 1 | H72: 1
D73: Blackburn | G73: 1 | H73: 1
D74: Belle Vale | G74: 1 | H74: 1
D75: Southport | G75: 1 | H75: 1
D76: Fleetwood | G76: 1 | H76: 1
D77: Bootle & Netherton | G77: 1 | H77: 1
D78: Chorley | G78: 1 | H78: 1
D79: Formby | G79: 1 | H79: 1
D80: Newton Le Willows | G80: 1 | H80: 1
D81: Carlisle West | G81: 1 | H81: 1
D82: Workington | G82: 1 | H82: 1
D83: 0 | G83: 1 | H83: 1
D84: 0 | G84: 0 | H84: 1
D85: 0 | G85: 0 | H85: 1
D86: 0 | G86: 0 | H86: 1
D87: 0 | G87: 0 | H87: 1
D88: 0 | G88: 0 | H88: 1
D89: 0 | G89: 0 | H89: 1
D90: 0 | G90: 0 | H90: 1
D91: 0 | G91: 0 | H91: 1
G92: months | H92: ['1' = yes, '0' = no]
C94: Option selected: total cost | E94: 47885.871 | G94: 2725.573295 | H94: 827.4892976 | I94: 751.5717831 | J94: 2140.915421 | K94: 901.8222987 | L94: 1678.063772 | M94: 1981.792096 | N94: 2202.476215 | O94: 2721.730622 | P94: 3316.477364 | Q94: 3471.796669 | R94: 3158.678368 | S94: 1648.998219 | T94: 1387.714637 | U94: 1117.905724 | V94: 1204.080608 | W94: 907.7246126 | X94: 536.9229782 | Y94: 890.1579626 | Z94: 1190.682712 | AA94: 1605.124066 | AB94: 1488.748592 | AC94: 2174.766557 | AD94: 2625.95149 | AE94: 2184.711942 | AF94: 1717.863116 | AG94: 987.8373151 | AH94: 224.583607 | AI94: 113.7096598 | AJ94: 0 | AK94: 0 | AL94: 0 | AM94: 0 | AN94: 0 | AO94: 0 | AP94: 0
G95: 0.05691811047 | H95: 0.01728044787 | I95: 0.01569506344 | J95: 0.04470870794 | K95: 0.01883274293 | L95: 0.03504298317 | M95: 0.04138573769 | N95: 0.04599428118 | O95: 0.05683786398 | P95: 0.06925795219 | Q95: 0.07250148314 | R95: 0.06596263787 | S95: 0.03443600762 | T95: 0.0289796261 | U95: 0.0233452102 | V95: 0.02514479915 | W95: 0.01895600087 | X95: 0.01121255533 | Y95: 0.01858915676 | Z95: 0.02486501106 | AA95: 0.03351978428 | AB95: 0.03108951683 | AC95: 0.04541562075 | AD95: 0.05483770964 | AE95: 0.04562331009 | AF95: 0.03587411235 | AG95: 0.02062899336 | AH95: 0.004689976445 | AI95: 0.002374597296 | AJ95: 0 | AK95: 0 | AL95: 0 | AM95: 0 | AN95: 0 | AO95: 0 | AP95: 0
B96: Development costs | F96: (£'000 - Nominal net of VAT)
D99: Bid budget (excluding funder due diligence costs) | E99: 1735.170611 | G99: 1735.170611 | H99: 0 | I99: 0 | J99: 0 | K99: 0 | L99: 0 | M99: 0 | N99: 0 | O99: 0 | P99: 0 | Q99: 0 | R99: 0 | S99: 0 | T99: 0 | U99: 0 | V99: 0 | W99: 0 | X99: 0 | Y99: 0 | Z99: 0 | AA99: 0 | AB99: 0 | AC99: 0 | AD99: 0 | AE99: 0 | AF99: 0 | AG99: 0 | AH99: 0 | AI99: 0
E100: 0 | G100: 0 | H100: 0 | I100: 0 | J100: 0 | K100: 0 | L100: 0 | M100: 0 | N100: 0 | O100: 0 | P100: 0 | Q100: 0 | R100: 0 | S100: 0 | T100: 0 | U100: 0 | V100: 0 | W100: 0 | X100: 0 | Y100: 0 | Z100: 0 | AA100: 0 | AB100: 0 | AC100: 0 | AD100: 0 | AE100: 0 | AF100: 0 | AG100: 0 | AH100: 0 | AI100: 0
D101: Financial advisor budget | E101: 505 | G101: 505 | H101: 0 | I101: 0 | J101: 0 | K101: 0 | L101: 0 | M101: 0 | N101: 0 | O101: 0 | P101: 0 | Q101: 0 | R101: 0 | S101: 0 | T101: 0 | U101: 0 | V101: 0 | W101: 0 | X101: 0 | Y101: 0 | Z101: 0 | AA101: 0 | AB101: 0 | AC101: 0 | AD101: 0 | AE101: 0 | AF101: 0 | AG101: 0 | AH101: 0 | AI101: 0
D102: Funder due dilligence budget | E102: 440.632425 | G102: 440.632425 | H102: 0 | I102: 0 | J102: 0 | K102: 0 | L102: 0 | M102: 0 | N102: 0 | O102: 0 | P102: 0 | Q102: 0 | R102: 0 | S102: 0 | T102: 0 | U102: 0 | V102: 0 | W102: 0 | X102: 0 | Y102: 0 | Z102: 0 | AA102: 0 | AB102: 0 | AC102: 0 | AD102: 0 | AE102: 0 | AF102: 0 | AG102: 0 | AH102: 0 | AI102: 0
D103: Model audit | E103: 53 | G103: 53 | H103: 0 | I103: 0 | J103: 0 | K103: 0 | L103: 0 | M103: 0 | N103: 0 | O103: 0 | P103: 0 | Q103: 0 | R103: 0 | S103: 0 | T103: 0 | U103: 0 | V103: 0 | W103: 0 | X103: 0 | Y103: 0 | Z103: 0 | AA103: 0 | AB103: 0 | AC103: 0 | AD103: 0 | AE103: 0 | AF103: 0 | AG103: 0 | AH103: 0 | AI103: 0
E104: 0 | H104: 0 | I104: 0 | J104: 0 | K104: 0 | L104: 0 | M104: 0 | N104: 0 | O104: 0 | P104: 0 | Q104: 0 | R104: 0 | S104: 0 | T104: 0 | U104: 0 | V104: 0 | W104: 0 | X104: 0 | Y104: 0 | Z104: 0 | AA104: 0 | AB104: 0 | AC104: 0 | AD104: 0 | AE104: 0 | AF104: 0 | AG104: 0 | AH104: 0 | AI104: 0
D105: Irrecoverable VAT | E105: 19.5 | G105: 19.5 | H105: 0 | I105: 0 | J105: 0 | K105: 0 | L105: 0 | M105: 0 | N105: 0 | O105: 0 | P105: 0 | Q105: 0 | R105: 0 | S105: 0 | T105: 0 | U105: 0 | V105: 0 | W105: 0 | X105: 0 | Y105: 0 | Z105: 0 | AA105: 0 | AB105: 0 | AC105: 0 | AD105: 0 | AE105: 0 | AF105: 0 | AG105: 0 | AH105: 0 | AI105: 0
D106: Energy Working Capital | E106: 30 | G106: 0 | H106: 0 | I106: 0 | J106: 0 | K106: 0 | L106: 0 | M106: 30 | N106: 0 | O106: 0 | P106: 0 | Q106: 0 | R106: 0 | S106: 0 | T106: 0 | U106: 0 | V106: 0 | W106: 0 | X106: 0 | Y106: 0 | Z106: 0 | AA106: 0 | AB106: 0 | AC106: 0 | AD106: 0 | AE106: 0 | AF106: 0 | AG106: 0 | AH106: 0 | AI106: 0
D107: Indemnity period amendment | E107: =SUM(F107:AI107) -> 10 | G107: =30-20 -> 10 | H107: 0 | I107: 0 | J107: 0 | K107: 0 | L107: 0 | M107: 0 | N107: 0 | O107: 0 | P107: 0 | Q107: 0 | R107: 0 | S107: 0 | T107: 0 | U107: 0 | V107: 0 | W107: 0 | X107: 0 | Y107: 0 | Z107: 0 | AA107: 0 | AB107: 0 | AC107: 0 | AD107: 0 | AE107: 0 | AF107: 0 | AG107: 0 | AH107: 0 | AI107: 0
E108: 0 | G108: 0 | H108: 0 | I108: 0 | J108: 0 | K108: 0 | L108: 0 | M108: 0 | N108: 0 | O108: 0 | P108: 0 | Q108: 0 | R108: 0 | S108: 0 | T108: 0 | U108: 0 | V108: 0 | W108: 0 | X108: 0 | Y108: 0 | Z108: 0 | AA108: 0 | AB108: 0 | AC108: 0 | AD108: 0 | AE108: 0 | AF108: 0 | AG108: 0 | AH108: 0 | AI108: 0
E109: 0 | G109: 0 | H109: 0 | I109: 0 | J109: 0 | K109: 0 | L109: 0 | M109: 0 | N109: 0 | O109: 0 | P109: 0 | Q109: 0 | R109: 0 | S109: 0 | T109: 0 | U109: 0 | V109: 0 | W109: 0 | X109: 0 | Y109: 0 | Z109: 0 | AA109: 0 | AB109: 0 | AC109: 0 | AD109: 0 | AE109: 0 | AF109: 0 | AG109: 0 | AH109: 0 | AI109: 0
E110: 0 | G110: 0 | H110: 0 | I110: 0 | J110: 0 | K110: 0 | L110: 0 | M110: 0 | N110: 0 | O110: 0 | P110: 0 | Q110: 0 | R110: 0 | S110: 0 | T110: 0 | U110: 0 | V110: 0 | W110: 0 | X110: 0 | Y110: 0 | Z110: 0 | AA110: 0 | AB110: 0 | AC110: 0 | AD110: 0 | AE110: 0 | AF110: 0 | AG110: 0 | AH110: 0 | AI110: 0
E111: 0 | G111: 0 | H111: 0 | I111: 0 | J111: 0 | K111: 0 | L111: 0 | M111: 0 | N111: 0 | O111: 0 | P111: 0 | Q111: 0 | R111: 0 | S111: 0 | T111: 0 | U111: 0 | V111: 0 | W111: 0 | X111: 0 | Y111: 0 | Z111: 0 | AA111: 0 | AB111: 0 | AC111: 0 | AD111: 0 | AE111: 0 | AF111: 0 | AG111: 0 | AH111: 0 | AI111: 0
E112: 0 | G112: 0 | H112: 0 | I112: 0 | J112: 0 | K112: 0 | L112: 0 | M112: 0 | N112: 0 | O112: 0 | P112: 0 | Q112: 0 | R112: 0 | S112: 0 | T112: 0 | U112: 0 | V112: 0 | W112: 0 | X112: 0 | Y112: 0 | Z112: 0 | AA112: 0 | AB112: 0 | AC112: 0 | AD112: 0 | AE112: 0 | AF112: 0 | AG112: 0 | AH112: 0 | AI112: 0
E113: 0 | G113: 0 | H113: 0 | I113: 0 | J113: 0 | K113: 0 | L113: 0 | M113: 0 | N113: 0 | O113: 0 | P113: 0 | Q113: 0 | R113: 0 | S113: 0 | T113: 0 | U113: 0 | V113: 0 | W113: 0 | X113: 0 | Y113: 0 | Z113: 0 | AA113: 0 | AB113: 0 | AC113: 0 | AD113: 0 | AE113: 0 | AF113: 0 | AG113: 0 | AH113: 0 | AI113: 0
E114: 0 | G114: 0 | H114: 0 | I114: 0 | J114: 0 | K114: 0 | L114: 0 | M114: 0 | N114: 0 | O114: 0 | P114: 0 | Q114: 0 | R114: 0 | S114: 0 | T114: 0 | U114: 0 | V114: 0 | W114: 0 | X114: 0 | Y114: 0 | Z114: 0 | AA114: 0 | AB114: 0 | AC114: 0 | AD114: 0 | AE114: 0 | AF114: 0 | AG114: 0 | AH114: 0 | AI114: 0
E115: 0 | G115: 0 | H115: 0 | I115: 0 | J115: 0 | K115: 0 | L115: 0 | M115: 0 | N115: 0 | O115: 0 | P115: 0 | Q115: 0 | R115: 0 | S115: 0 | T115: 0 | U115: 0 | V115: 0 | W115: 0 | X115: 0 | Y115: 0 | Z115: 0 | AA115: 0 | AB115: 0 | AC115: 0 | AD115: 0 | AE115: 0 | AF115: 0 | AG115: 0 | AH115: 0 | AI115: 0
E116: 0 | G116: 0 | H116: 0 | I116: 0 | J116: 0 | K116: 0 | L116: 0 | M116: 0 | N116: 0 | O116: 0 | P116: 0 | Q116: 0 | R116: 0 | S116: 0 | T116: 0 | U116: 0 | V116: 0 | W116: 0 | X116: 0 | Y116: 0 | Z116: 0 | AA116: 0 | AB116: 0 | AC116: 0 | AD116: 0 | AE116: 0 | AF116: 0 | AG116: 0 | AH116: 0 | AI116: 0
E117: 0 | G117: 0 | H117: 0 | I117: 0 | J117: 0 | K117: 0 | L117: 0 | M117: 0 | N117: 0 | O117: 0 | P117: 0 | Q117: 0 | R117: 0 | S117: 0 | T117: 0 | U117: 0 | V117: 0 | W117: 0 | X117: 0 | Y117: 0 | Z117: 0 | AA117: 0 | AB117: 0 | AC117: 0 | AD117: 0 | AE117: 0 | AF117: 0 | AG117: 0 | AH117: 0 | AI117: 0
E118: 0 | G118: 0 | H118: 0 | I118: 0 | J118: 0 | K118: 0 | L118: 0 | M118: 0 | N118: 0 | O118: 0 | P118: 0 | Q118: 0 | R118: 0 | S118: 0 | T118: 0 | U118: 0 | V118: 0 | W118: 0 | X118: 0 | Y118: 0 | Z118: 0 | AA118: 0 | AB118: 0 | AC118: 0 | AD118: 0 | AE118: 0 | AF118: 0 | AG118: 0 | AH118: 0 | AI118: 0
E119: 0 | G119: 0 | H119: 0 | I119: 0 | J119: 0 | K119: 0 | L119: 0 | M119: 0 | N119: 0 | O119: 0 | P119: 0 | Q119: 0 | R119: 0 | S119: 0 | T119: 0 | U119: 0 | V119: 0 | W119: 0 | X119: 0 | Y119: 0 | Z119: 0 | AA119: 0 | AB119: 0 | AC119: 0 | AD119: 0 | AE119: 0 | AF119: 0 | AG119: 0 | AH119: 0 | AI119: 0
E120: 0 | G120: 0 | H120: 0 | I120: 0 | J120: 0 | K120: 0 | L120: 0 | M120: 0 | N120: 0 | O120: 0 | P120: 0 | Q120: 0 | R120: 0 | S120: 0 | T120: 0 | U120: 0 | V120: 0 | W120: 0 | X120: 0 | Y120: 0 | Z120: 0 | AA120: 0 | AB120: 0 | AC120: 0 | AD120: 0 | AE120: 0 | AF120: 0 | AG120: 0 | AH120: 0 | AI120: 0
E121: 0 | G121: 0 | H121: 0 | I121: 0 | J121: 0 | K121: 0 | L121: 0 | M121: 0 | N121: 0 | O121: 0 | P121: 0 | Q121: 0 | R121: 0 | S121: 0 | T121: 0 | U121: 0 | V121: 0 | W121: 0 | X121: 0 | Y121: 0 | Z121: 0 | AA121: 0 | AB121: 0 | AC121: 0 | AD121: 0 | AE121: 0 | AF121: 0 | AG121: 0 | AH121: 0 | AI121: 0
E122: 0 | G122: 0 | H122: 0 | I122: 0 | J122: 0 | K122: 0 | L122: 0 | M122: 0 | N122: 0 | O122: 0 | P122: 0 | Q122: 0 | R122: 0 | S122: 0 | T122: 0 | U122: 0 | V122: 0 | W122: 0 | X122: 0 | Y122: 0 | Z122: 0 | AA122: 0 | AB122: 0 | AC122: 0 | AD122: 0 | AE122: 0 | AF122: 0 | AG122: 0 | AH122: 0 | AI122: 0
E123: 0 | G123: 0 | H123: 0 | I123: 0 | J123: 0 | K123: 0 | L123: 0 | M123: 0 | N123: 0 | O123: 0 | P123: 0 | Q123: 0 | R123: 0 | S123: 0 | T123: 0 | U123: 0 | V123: 0 | W123: 0 | X123: 0 | Y123: 0 | Z123: 0 | AA123: 0 | AB123: 0 | AC123: 0 | AD123: 0 | AE123: 0 | AF123: 0 | AG123: 0 | AH123: 0 | AI123: 0
D124: Total | E124: 2813.303036 | G124: =SUM(G99:G123) -> 2763.303036 | H124: 0 | I124: 0 | J124: 0 | K124: 0 | L124: 0 | M124: 30 | N124: 0 | O124: 0 | P124: 0 | Q124: 0 | R124: 0 | S124: 0 | T124: 0 | U124: 0 | V124: 0 | W124: 0 | X124: 0 | Y124: 0 | Z124: 0 | AA124: 0 | AB124: 0 | AC124: 0 | AD124: 0 | AE124: 0 | AF124: 0 | AG124: 0 | AH124: 0 | AI124: 0
D127: Apply indexation to development costs? | E127: FALSE
D128: Percentage Development Costs Tax Deductible | E128: 0.95
D129: Cost treatment | G129: Vatable? | H129: VAT recoverable | I129: Treatment? | L129: Vatable? | M129: VAT rec? | N129: Treatment not Vatable? | O129: Treatment Vatable? | P129: Treatment Vat rec? | Q129: Acc. Treatment?
D130: Bid budget (excluding funder due diligence costs) | G130: Yes | H130: Yes | I130: Capitalise with fixed assets | L130: 1 | M130: 1 | N130: 0 | O130: 1 | P130: 1 | Q130: 1
D131: 0 | G131: Yes | H131: Yes | I131: Capitalise with fixed assets | L131: 1 | M131: 1 | N131: 0 | O131: 1 | P131: 1 | Q131: 1
D132: Financial advisor budget | G132: Yes | H132: Yes | I132: Capitalise with fixed assets | L132: 1 | M132: 1 | N132: 0 | O132: 1 | P132: 1 | Q132: 1
D133: Funder due dilligence budget | G133: Yes | H133: Yes | I133: Capitalise with fixed assets | L133: 1 | M133: 1 | N133: 0 | O133: 1 | P133: 1 | Q133: 1
D134: Model audit | G134: Yes | H134: Yes | I134: Capitalise with fixed assets | L134: 1 | M134: 1 | N134: 0 | O134: 1 | P134: 1 | Q134: 1
D135: 0 | G135: Yes | H135: Yes | I135: Capitalise with fixed assets | L135: 1 | M135: 1 | N135: 0 | O135: 1 | P135: 1 | Q135: 1
D136: Irrecoverable VAT | G136: No | H136: No | I136: Capitalise with fixed assets | L136: 0 | M136: 0 | N136: 1 | O136: 0 | P136: 0 | Q136: 1
D137: Energy Working Capital | G137: Yes | H137: Yes | I137: Capitalise with fixed assets | L137: 1 | M137: 1 | N137: 0 | O137: 1 | P137: 1 | Q137: 1
D138: Indemnity period amendment | G138: Yes | H138: Yes | I138: Capitalise with fixed assets | L138: 1 | M138: 1 | N138: 0 | O138: 1 | P138: 1 | Q138: 1
D139: 0 | G139: Yes | H139: Yes | I139: Capitalise with fixed assets | L139: 1 | M139: 1 | N139: 0 | O139: 1 | P139: 1 | Q139: 1
D140: 0 | G140: Yes | H140: Yes | I140: Capitalise with fixed assets | L140: 1 | M140: 1 | N140: 0 | O140: 1 | P140: 1 | Q140: 1
D141: 0 | G141: Yes | H141: Yes | I141: Capitalise with fixed assets | L141: 1 | M141: 1 | N141: 0 | O141: 1 | P141: 1 | Q141: 1
D142: 0 | G142: Yes | H142: Yes | I142: Capitalise with fixed assets | L142: 1 | M142: 1 | N142: 0 | O142: 1 | P142: 1 | Q142: 1
D143: 0 | G143: Yes | H143: Yes | I143: Capitalise with fixed assets | L143: 1 | M143: 1 | N143: 0 | O143: 1 | P143: 1 | Q143: 1
D144: 0 | G144: Yes | H144: Yes | I144: Capitalise with fixed assets | L144: 1 | M144: 1 | N144: 0 | O144: 1 | P144: 1 | Q144: 1
D145: 0 | G145: Yes | H145: Yes | I145: Capitalise with fixed assets | L145: 1 | M145: 1 | N145: 0 | O145: 1 | P145: 1 | Q145: 1
D146: 0 | G146: Yes | H146: Yes | I146: Capitalise with fixed assets | L146: 1 | M146: 1 | N146: 0 | O146: 1 | P146: 1 | Q146: 1
D147: 0 | G147: Yes | H147: Yes | I147: Capitalise with fixed assets | L147: 1 | M147: 1 | N147: 0 | O147: 1 | P147: 1 | Q147: 1
D148: 0 | G148: Yes | H148: Yes | I148: Capitalise with fixed assets | L148: 1 | M148: 1 | N148: 0 | O148: 1 | P148: 1 | Q148: 1
D149: 0 | G149: Yes | H149: Yes | I149: Capitalise with fixed assets | L149: 1 | M149: 1 | N149: 0 | O149: 1 | P149: 1 | Q149: 1
D150: 0 | G150: No | H150: No | I150: Capitalise with fixed assets | L150: 0 | M150: 0 | N150: 1 | O150: 0 | P150: 0 | Q150: 1
D151: 0 | G151: Yes | H151: Yes | I151: Capitalise with fixed assets | L151: 1 | M151: 1 | N151: 0 | O151: 1 | P151: 1 | Q151: 1
D152: 0 | G152: Yes | H152: Yes | I152: Capitalise with fixed assets | L152: 1 | M152: 1 | N152: 0 | O152: 1 | P152: 1 | Q152: 1
D153: 0 | G153: Yes | H153: Yes | I153: Expense | L153: 1 | M153: 1 | N153: 0 | O153: 2 | P153: 2 | Q153: 2
D154: 0 | G154: Yes | H154: Yes | I154: Expense | L154: 1 | M154: 1 | N154: 0 | O154: 2 | P154: 2 | Q154: 2
F156: Data validation, DO NOT DELETE
F157: Yes | G157: 1 | H157: Capitalise with fixed assets | J157: 1
F158: No | G158: 0 | H158: Expense | J158: 2
H159: Write-off to share premium | J159: 3
H160: Capitalise / amortise straight line | J160: 4
D163: UC & TPI inflation
D164: Labour inflation
D165: No inflation
D166: RPI
D167: Development Costs
D168: Benchmark Inflation
D169: RPI Swap
B171: Operating costs during construction | F171: (£'000 - Real net of VAT)
C175: Hard O&M costs
D176: Hard Labour | E176: RPI | F176: 4 | G176: 0 | H176: 0 | I176: 0 | J176: 0 | K176: 0 | L176: 0 | M176: 0 | N176: 0 | O176: 2.976348023 | P176: 2.976348023 | Q176: 2.976348023 | R176: 2.976348023 | S176: 2.976348023 | T176: 2.976348023 | U176: 11.1100987 | V176: 11.1100987 | W176: 11.1100987 | X176: 11.1100987 | Y176: 11.1100987 | Z176: 11.1100987 | AA176: 12.05280014 | AB176: 12.05280014 | AC176: 12.05280014 | AD176: 12.05280014 | AE176: 12.05280014 | AF176: 12.05280014 | AG176: 17.88194596 | AH176: 17.88194596 | AI176: 17.88194596
D177: Hard Labour DI | E177: RPI | F177: 4 | G177: 0 | H177: 0 | I177: 0 | J177: 0 | K177: 0 | L177: 0 | M177: 0 | N177: 0 | O177: 0.04236059173 | P177: 0.04236059173 | Q177: 0.04236059173 | R177: 0.04236059173 | S177: 0.04236059173 | T177: 0.04236059173 | U177: 0.3182844619 | V177: 0.3182844619 | W177: 0.3182844619 | X177: 0.3182844619 | Y177: 0.3182844619 | Z177: 0.3182844619 | AA177: 0.3452782662 | AB177: 0.3452782662 | AC177: 0.3452782662 | AD177: 0.3452782662 | AE177: 0.3452782662 | AF177: 0.3452782662 | AG177: 0.7743519364 | AH177: 0.7743519364 | AI177: 0.7743519364
D178: Hard Subcontracts | E178: RPI | F178: 4 | G178: 0 | H178: 0 | I178: 0 | J178: 0 | K178: 0 | L178: 0 | M178: 0 | N178: 0 | O178: 1.133901949 | P178: 1.133901949 | Q178: 1.133901949 | R178: 1.133901949 | S178: 1.133901949 | T178: 1.133901949 | U178: 4.235749404 | V178: 4.235749404 | W178: 4.235749404 | X178: 4.235749404 | Y178: 4.235749404 | Z178: 4.235749404 | AA178: 4.583003327 | AB178: 4.583003327 | AC178: 4.583003327 | AD178: 4.583003327 | AE178: 4.583003327 | AF178: 4.583003327 | AG178: 6.888541439 | AH178: 6.888541439 | AI178: 6.888541439
D179: Hard Subcontracts DI | E179: RPI | F179: 4 | G179: 0 | H179: 0 | I179: 0 | J179: 0 | K179: 0 | L179: 0 | M179: 0 | N179: 0 | O179: 0.01076531146 | P179: 0.01076531146 | Q179: 0.01076531146 | R179: 0.01076531146 | S179: 0.01076531146 | T179: 0.01076531146 | U179: 0.08057307177 | V179: 0.08057307177 | W179: 0.08057307177 | X179: 0.08057307177 | Y179: 0.08057307177 | Z179: 0.08057307177 | AA179: 0.08713343831 | AB179: 0.08713343831 | AC179: 0.08713343831 | AD179: 0.08713343831 | AE179: 0.08713343831 | AF179: 0.08713343831 | AG179: 0.1976788172 | AH179: 0.1976788172 | AI179: 0.1976788172
D180: Hard Consumables | E180: RPI | F180: 4 | G180: 0 | H180: 0 | I180: 0 | J180: 0 | K180: 0 | L180: 0 | M180: 0 | N180: 0 | O180: 0.2593026424 | P180: 0.2593026424 | Q180: 0.2593026424 | R180: 0.2593026424 | S180: 0.2593026424 | T180: 0.2593026424 | U180: 0.9314698126 | V180: 0.9314698126 | W180: 0.9314698126 | X180: 0.9314698126 | Y180: 0.9314698126 | Z180: 0.9314698126 | AA180: 1.011992332 | AB180: 1.011992332 | AC180: 1.011992332 | AD180: 1.011992332 | AE180: 1.011992332 | AF180: 1.011992332 | AG180: 1.498607219 | AH180: 1.498607219 | AI180: 1.498607219
D181: Hard Equipment | E181: RPI | F181: 4 | G181: 0 | H181: 0 | I181: 0 | J181: 0 | K181: 0 | L181: 0 | M181: 0 | N181: 0 | O181: 0.106620114 | P181: 0.106620114 | Q181: 0.106620114 | R181: 0.106620114 | S181: 0.106620114 | T181: 0.106620114 | U181: 0.3647938685 | V181: 0.3647938685 | W181: 0.3647938685 | X181: 0.3647938685 | Y181: 0.3647938685 | Z181: 0.3647938685 | AA181: 0.3932022001 | AB181: 0.3932022001 | AC181: 0.3932022001 | AD181: 0.3932022001 | AE181: 0.3932022001 | AF181: 0.3932022001 | AG181: 0.5968707809 | AH181: 0.5968707809 | AI181: 0.5968707809
D182: Hard Other | E182: RPI | F182: 4 | G182: 0 | H182: 0 | I182: 0 | J182: 0 | K182: 0 | L182: 0 | M182: 0 | N182: 0 | O182: 1.663661047 | P182: 1.663661047 | Q182: 1.663661047 | R182: 1.663661047 | S182: 1.663661047 | T182: 1.663661047 | U182: 6.174355734 | V182: 6.174355734 | W182: 6.174355734 | X182: 6.174355734 | Y182: 6.174355734 | Z182: 6.174355734 | AA182: 6.672655598 | AB182: 6.672655598 | AC182: 6.672655598 | AD182: 6.672655598 | AE182: 6.672655598 | AF182: 6.672655598 | AG182: 9.838256496 | AH182: 9.838256496 | AI182: 9.838256496
D183: Hard Risk | E183: RPI | F183: 4 | G183: 0 | H183: 0 | I183: 0 | J183: 0 | K183: 0 | L183: 0 | M183: 0 | N183: 0 | O183: 0.07037539154 | P183: 0.07037539154 | Q183: 0.07037539154 | R183: 0.07037539154 | S183: 0.07037539154 | T183: 0.07037539154 | U183: 0.264628474 | V183: 0.264628474 | W183: 0.264628474 | X183: 0.264628474 | Y183: 0.264628474 | Z183: 0.264628474 | AA183: 0.2866471331 | AB183: 0.2866471331 | AC183: 0.2866471331 | AD183: 0.2866471331 | AE183: 0.2866471331 | AF183: 0.2866471331 | AG183: 0.429333088 | AH183: 0.429333088 | AI183: 0.429333088
D184: Hard Overhead | E184: RPI | F184: 4 | G184: 0 | H184: 0 | I184: 0 | J184: 0 | K184: 0 | L184: 0 | M184: 0 | N184: 0 | O184: 0.420912838 | P184: 0.420912838 | Q184: 0.420912838 | R184: 0.420912838 | S184: 0.420912838 | T184: 0.420912838 | U184: 1.578015515 | V184: 1.578015515 | W184: 1.578015515 | X184: 1.578015515 | Y184: 1.578015515 | Z184: 1.578015515 | AA184: 1.70922198 | AB184: 1.70922198 | AC184: 1.70922198 | AD184: 1.70922198 | AE184: 1.70922198 | AF184: 1.70922198 | AG184: 2.56157745 | AH184: 2.56157745 | AI184: 2.56157745
D185: Hard Margin/Profit | E185: RPI | F185: 4 | G185: 0 | H185: 0 | I185: 0 | J185: 0 | K185: 0 | L185: 0 | M185: 0 | N185: 0 | O185: 0.3507606983 | P185: 0.3507606983 | Q185: 0.3507606983 | R185: 0.3507606983 | S185: 0.3507606983 | T185: 0.3507606983 | U185: 1.31501293 | V185: 1.31501293 | W185: 1.31501293 | X185: 1.31501293 | Y185: 1.31501293 | Z185: 1.31501293 | AA185: 1.42435165 | AB185: 1.42435165 | AC185: 1.42435165 | AD185: 1.42435165 | AE185: 1.42435165 | AF185: 1.42435165 | AG185: 2.134647875 | AH185: 2.134647875 | AI185: 2.134647875
D186: Total hard O&M | E186: 500.2510931 | G186: 0 | H186: 0 | I186: 0 | J186: 0 | K186: 0 | L186: 0 | M186: 0 | N186: 0 | O186: 7.035008606 | P186: 7.035008606 | Q186: 7.035008606 | R186: 7.035008606 | S186: 7.035008606 | T186: 7.035008606 | U186: 26.37298198 | V186: 26.37298198 | W186: 26.37298198 | X186: 26.37298198 | Y186: 26.37298198 | Z186: 26.37298198 | AA186: 28.56628606 | AB186: 28.56628606 | AC186: 28.56628606 | AD186: 28.56628606 | AE186: 28.56628606 | AF186: 28.56628606 | AG186: 42.80181106 | AH186: 42.80181106 | AI186: 42.80181106
C188: Soft O&M costs
D189: Mobilisation | E189: RPI | F189: 4 | G189: 244.4383349 | H189: 9.733701978 | I189: 22.3022459 | J189: 22.3022459 | K189: 22.3022459 | L189: 22.3022459 | M189: 22.3022459 | N189: 22.3022459 | O189: 13.02457045 | P189: 13.02457045 | Q189: 13.02457045 | R189: 13.02457045 | S189: 13.02457045 | T189: 13.02457045 | U189: 0 | V189: 0 | W189: 0 | X189: 0 | Y189: 0 | Z189: 0 | AA189: 0 | AB189: 0 | AC189: 0 | AD189: 0 | AE189: 0 | AF189: 0 | AG189: 0 | AH189: 0 | AI189: 0
D190: Cleaning Waste and PC | E190: RPI | F190: 4 | G190: 0 | H190: 0 | I190: 0 | J190: 0 | K190: 0 | L190: 0 | M190: 0 | N190: 0 | O190: 1.920648902 | P190: 1.920648902 | Q190: 1.920648902 | R190: 1.920648902 | S190: 1.920648902 | T190: 1.920648902 | U190: 7.479570368 | V190: 7.479570368 | W190: 7.479570368 | X190: 7.479570368 | Y190: 7.479570368 | Z190: 7.479570368 | AA190: 8.147577555 | AB190: 8.147577555 | AC190: 8.147577555 | AD190: 8.147577555 | AE190: 8.147577555 | AF190: 8.147577555 | AG190: 12.31275374 | AH190: 12.31275374 | AI190: 12.31275374
D191: Security | E191: RPI | F191: 4 | G191: 0 | H191: 0 | I191: 0 | J191: 0 | K191: 0 | L191: 0 | M191: 0 | N191: 0 | O191: 0 | P191: 0 | Q191: 0 | R191: 0 | S191: 0 | T191: 0 | U191: 0 | V191: 0 | W191: 0 | X191: 0 | Y191: 0 | Z191: 0 | AA191: 0 | AB191: 0 | AC191: 0 | AD191: 0 | AE191: 0 | AF191: 0 | AG191: 0 | AH191: 0 | AI191: 0
D192: Mobilisation | E192: RPI | F192: 4
D193: pension risk | E193: RPI | F193: 4 | G193: 0 | H193: 0 | I193: 0 | J193: 0 | K193: 0 | L193: 0 | M193: 0 | N193: 0 | O193: 0 | P193: 0 | Q193: 0 | R193: 0 | S193: 0 | T193: 0 | U193: 0 | V193: 0 | W193: 0 | X193: 0 | Y193: 0 | Z193: 0 | AA193: 0 | AB193: 0 | AC193: 0 | AD193: 0 | AE193: 0 | AF193: 0 | AG193: 0 | AH193: 0 | AI193: 0
D194: SPC costs | E194: RPI | F194: 4 | G194: 0 | H194: 0 | I194: 0 | J194: 0 | K194: 0 | L194: 0 | M194: 0 | N194: 0 | O194: 0 | P194: 0 | Q194: 0 | R194: 0 | S194: 0 | T194: 0 | U194: 0 | V194: 0 | W194: 0 | X194: 0 | Y194: 0 | Z194: 0 | AA194: 0 | AB194: 0 | AC194: 0 | AD194: 0 | AE194: 0 | AF194: 0 | AG194: 0 | AH194: 0 | AI194: 0
D195: Cost title | E195: RPI | F195: 4 | G195: 0 | H195: 0 | I195: 0 | J195: 0 | K195: 0 | L195: 0 | M195: 0 | N195: 0 | O195: 0 | P195: 0 | Q195: 0 | R195: 0 | S195: 0 | T195: 0 | U195: 0 | V195: 0 | W195: 0 | X195: 0 | Y195: 0 | Z195: 0 | AA195: 0 | AB195: 0 | AC195: 0 | AD195: 0 | AE195: 0 | AF195: 0 | AG195: 0 | AH195: 0 | AI195: 0
D196: Cost title | E196: RPI | F196: 4 | G196: 0 | H196: 0 | I196: 0 | J196: 0 | K196: 0 | L196: 0 | M196: 0 | N196: 0 | O196: 0 | P196: 0 | Q196: 0 | R196: 0 | S196: 0 | T196: 0 | U196: 0 | V196: 0 | W196: 0 | X196: 0 | Y196: 0 | Z196: 0 | AA196: 0 | AB196: 0 | AC196: 0 | AD196: 0 | AE196: 0 | AF196: 0 | AG196: 0 | AH196: 0 | AI196: 0
D197: Cost title | E197: RPI | F197: 4 | G197: 0 | H197: 0 | I197: 0 | J197: 0 | K197: 0 | L197: 0 | M197: 0 | N197: 0 | O197: 0 | P197: 0 | Q197: 0 | R197: 0 | S197: 0 | T197: 0 | U197: 0 | V197: 0 | W197: 0 | X197: 0 | Y197: 0 | Z197: 0 | AA197: 0 | AB197: 0 | AC197: 0 | AD197: 0 | AE197: 0 | AF197: 0 | AG197: 0 | AH197: 0 | AI197: 0
D198: Cost title | E198: RPI | F198: 4 | G198: 0 | H198: 0 | I198: 0 | J198: 0 | K198: 0 | L198: 0 | M198: 0 | N198: 0 | O198: 0 | P198: 0 | Q198: 0 | R198: 0 | S198: 0 | T198: 0 | U198: 0 | V198: 0 | W198: 0 | X198: 0 | Y198: 0 | Z198: 0 | AA198: 0 | AB198: 0 | AC198: 0 | AD198: 0 | AE198: 0 | AF198: 0 | AG198: 0 | AH198: 0 | AI198: 0
D199: Total soft O&M | E199: 608.3579772 | G199: 244.4383349 | H199: 9.733701978 | I199: 22.3022459 | J199: 22.3022459 | K199: 22.3022459 | L199: 22.3022459 | M199: 22.3022459 | N199: 22.3022459 | O199: 14.94521935 | P199: 14.94521935 | Q199: 14.94521935 | R199: 14.94521935 | S199: 14.94521935 | T199: 14.94521935 | U199: 7.479570368 | V199: 7.479570368 | W199: 7.479570368 | X199: 7.479570368 | Y199: 7.479570368 | Z199: 7.479570368 | AA199: 8.147577555 | AB199: 8.147577555 | AC199: 8.147577555 | AD199: 8.147577555 | AE199: 8.147577555 | AF199: 8.147577555 | AG199: 12.31275374 | AH199: 12.31275374 | AI199: 12.31275374
C201: SPV costs
D202: SPC Staff | E202: RPI | F202: 4 | G202: 18.38266388 | H202: 18.38266388 | I202: 20.67653688 | J202: 20.67653688 | K202: 20.67653688 | L202: 20.67653688 | M202: 20.67653688 | N202: 20.67653688 | O202: 23.48065258 | P202: 23.48065258 | Q202: 23.48065258 | R202: 23.48065258 | S202: 23.48065258 | T202: 23.48065258 | U202: 21.0122619 | V202: 21.0122619 | W202: 21.0122619 | X202: 21.0122619 | Y202: 21.0122619 | Z202: 21.0122619 | AA202: 18.75885693 | AB202: 18.75885693 | AC202: 18.75885693 | AD202: 18.75885693 | AE202: 18.75885693 | AF202: 18.75885693 | AG202: 10.54541667 | AH202: 10.54541667 | AI202: 10.54541667
D203: Concession Company Running Costs | E203: RPI | F203: 4 | G203: 18.19001832 | H203: 18.19001832 | I203: 19.16500305 | J203: 19.16500305 | K203: 19.16500305 | L203: 19.16500305 | M203: 19.16500305 | N203: 19.16500305 | O203: 19.16500305 | P203: 19.16500305 | Q203: 19.16500305 | R203: 19.16500305 | S203: 19.16500305 | T203: 19.16500305 | U203: 26.63304932 | V203: 26.63304932 | W203: 26.63304932 | X203: 26.63304932 | Y203: 26.63304932 | Z203: 26.63304932 | AA203: 19.74917582 | AB203: 19.74917582 | AC203: 19.74917582 | AD203: 19.74917582 | AE203: 19.74917582 | AF203: 19.74917582 | AG203: 10.30531086 | AH203: 10.30531086 | AI203: 10.30531086
D204: Cost title | E204: RPI | F204: 4
D205: Lifecycle | E205: RPI | F205: 4 | G205: 0 | H205: 0 | I205: 0 | J205: 0 | K205: 0 | L205: 0 | M205: 0 | N205: 0 | O205: 0.3616430996 | P205: 0.3616430996 | Q205: 0.3616430996 | R205: 0.3616430996 | S205: 0.3616430996 | T205: 0.3616430996 | U205: 0.4812529869 | V205: 0.4812529869 | W205: 0.4812529869 | X205: 0.4812529869 | Y205: 0.4812529869 | Z205: 0.4812529869 | AA205: 0.6871855698 | AB205: 0.6871855698 | AC205: 0.6871855698 | AD205: 0.6871855698 | AE205: 0.6871855698 | AF205: 0.6871855698 | AG205: 0.9457297778 | AH205: 0.9457297778 | AI205: 0.9457297778
D206: Cost title | E206: RPI | F206: 4
D207: Cost title | E207: RPI | F207: 4
D208: Cost title | E208: RPI | F208: 4
D209: Cost title | E209: RPI | F209: 4
D210: Cost title | E210: RPI | F210: 4
D211: Cost title | E211: RPI | F211: 4
D212: Total SPV costs | E212: 1159.558463 | G212: 36.57268219 | H212: 36.57268219 | I212: 39.84153993 | J212: 39.84153993 | K212: 39.84153993 | L212: 39.84153993 | M212: 39.84153993 | N212: 39.84153993 | O212: 43.00729873 | P212: 43.00729873 | Q212: 43.00729873 | R212: 43.00729873 | S212: 43.00729873 | T212: 43.00729873 | U212: 48.12656422 | V212: 48.12656422 | W212: 48.12656422 | X212: 48.12656422 | Y212: 48.12656422 | Z212: 48.12656422 | AA212: 39.19521832 | AB212: 39.19521832 | AC212: 39.19521832 | AD212: 39.19521832 | AE212: 39.19521832 | AF212: 39.19521832 | AG212: 21.7964573 | AH212: 21.7964573 | AI212: 21.7964573
C214: Insurance costs
D215: Operations Insurance | E215: RPI | F215: 4 | G215: 0 | H215: 0 | I215: 0 | J215: 0 | K215: 0 | L215: 0 | M215: 0 | N215: 0 | O215: 0 | P215: 0 | Q215: 0 | R215: 0 | S215: 0 | T215: 0 | U215: 0 | V215: 0 | W215: 0 | X215: 0 | Y215: 0 | Z215: 0 | AA215: 0 | AB215: 0 | AC215: 0 | AD215: 0 | AE215: 0 | AF215: 0 | AG215: 0 | AH215: 0 | AI215: 60.50637506
D216: Interim services insurance | E216: RPI | F216: 4 | G216: 0 | H216: 0 | I216: 0 | J216: 0 | K216: 0 | L216: 0 | M216: 0 | N216: 0 | O216: 0 | P216: 132.3770643 | Q216: 0 | R216: 0 | S216: 0 | T216: 0 | U216: 0 | V216: 0 | W216: 0 | X216: 0 | Y216: 0 | Z216: 0 | AA216: 0 | AB216: 0 | AC216: 0 | AD216: 0 | AE216: 0 | AF216: 0 | AG216: 0 | AH216: 0 | AI216: 0
D217: Construction Insurance | E217: RPI | F217: 4 | G217: 142.8295947 | H217: 0 | I217: 0 | J217: 0 | K217: 0 | L217: 0 | M217: 0 | N217: 0 | O217: 0 | P217: 0 | Q217: 0 | R217: 0 | S217: 142.8295947 | T217: 0 | U217: 0 | V217: 0 | W217: 0 | X217: 0 | Y217: 0 | Z217: 0 | AA217: 0 | AB217: 0 | AC217: 0 | AD217: 0 | AE217: 0 | AF217: 0 | AG217: 0 | AH217: 0 | AI217: 0
D218: Total SPV costs | E218: 478.5426288 | G218: 142.8295947 | H218: 0 | I218: 0 | J218: 0 | K218: 0 | L218: 0 | M218: 0 | N218: 0 | O218: 0 | P218: 132.3770643 | Q218: 0 | R218: 0 | S218: 142.8295947 | T218: 0 | U218: 0 | V218: 0 | W218: 0 | X218: 0 | Y218: 0 | Z218: 0 | AA218: 0 | AB218: 0 | AC218: 0 | AD218: 0 | AE218: 0 | AF218: 0 | AG218: 0 | AH218: 0 | AI218: 60.50637506
C220: Pass through costs
D221: Rates
D222: Utilities
E223: 0 | G223: 0 | H223: 0 | I223: 0 | J223: 0 | K223: 0 | L223: 0 | M223: 0 | N223: 0 | O223: 0 | P223: 0 | Q223: 0 | R223: 0 | S223: 0 | T223: 0 | U223: 0 | V223: 0 | W223: 0 | X223: 0 | Y223: 0 | Z223: 0 | AA223: 0 | AB223: 0 | AC223: 0 | AD223: 0 | AE223: 0 | AF223: 0 | AG223: 0 | AH223: 0 | AI223: 0
C225: Accounting treatment - % of cost to capitalise
D226: SPV Costs | G226: 0.5 | H226: 0.5 | I226: 0.5 | J226: 0.5 | K226: 0.5 | L226: 0.5 | M226: 0.5 | N226: 0.5 | O226: 0.5 | P226: 0.5 | Q226: 0.5 | R226: 0.5 | S226: 0.5 | T226: 0.5 | U226: 0.5 | V226: 0.5 | W226: 0.5 | X226: 0.5 | Y226: 0.5 | Z226: 0.5 | AA226: 0.5 | AB226: 0.5 | AC226: 0.5 | AD226: 0.5 | AE226: 0.5 | AF226: 0.5 | AG226: 0.5 | AH226: 0.5 | AI226: 0.5 | AJ226: 0.5 | AK226: 0.5 | AL226: 0.5 | AM226: 0.5 | AN226: 0.5 | AO226: 0.5 | AP226: 0.5 | AQ226: 0.5
D227: Insurance | G227: 1 | H227: 1 | I227: 1 | J227: 1 | K227: 1 | L227: 1 | M227: 1 | N227: 1 | O227: 1 | P227: 1 | Q227: 1 | R227: 1 | S227: 1 | T227: 1 | U227: 1 | V227: 1 | W227: 1 | X227: 1 | Y227: 1 | Z227: 1 | AA227: 1 | AB227: 1 | AC227: 1 | AD227: 1 | AE227: 1 | AF227: 1 | AG227: 1 | AH227: 1 | AI227: 1 | AJ227: 1 | AK227: 1 | AL227: 1 | AM227: 1 | AN227: 1 | AO227: 1 | AP227: 1 | AQ227: 1
B232: Availability payment during construction
D234: Split A - % of Availability payment received | G234: 0 | H234: 0 | I234: 0 | J234: 0 | K234: 0 | L234: 0 | M234: 0 | N234: 0 | O234: 0 | P234: 0.01156515314 | Q234: 0.01569930291 | R234: 0.03466733525 | S234: 0.106687364 | T234: 0.1853819148 | U234: 0.2337576201 | V234: 0.4508567186 | W234: 0.561097521 | X234: 0.6098881348 | Y234: 0.6098881348 | Z234: 0.6098881348 | AA234: 0.6098881348 | AB234: 0.6098881348 | AC234: 0.6098881348 | AD234: 0.6098881348 | AE234: 0.6098881348 | AF234: 0.6401371485 | AG234: 0.6839651023 | AH234: 0.7492266708 | AI234: 0.9143052804 | AJ234: 0.99945861 | AK234: 1 | AL234: 1 | AM234: 0 | AN234: 0 | AO234: 0 | AP234: 0
D235: Split B - % of Availability payment received | G235: 0 | H235: 0 | I235: 0 | J235: 0 | K235: 0 | L235: 0 | M235: 0 | N235: 0 | O235: 0 | P235: 0 | Q235: 0 | R235: 0 | S235: 0 | T235: 0 | U235: 0 | V235: 0 | W235: 0 | X235: 0 | Y235: 0 | Z235: 0 | AA235: 0 | AB235: 0 | AC235: 0 | AD235: 0 | AE235: 0 | AF235: 0 | AG235: 0 | AH235: 0 | AI235: 0 | AJ235: 0 | AK235: 0 | AL235: 0 | AM235: 0 | AN235: 0 | AO235: 0 | AP235: 0
B238: Interest on GIC Account during construction
D241: %
... 2 more rows

Sheet TD_Ops
A1: North West Fire & Rescue PFI Project | E1: Sensitivity Run? | F1: FALSE
A2: Filename: BBFR_NWFRS_Financial Model_110211_TO BE USED v2. | E2: Critical checks | F2: ü
E3: Case in use | F3: Base Bid
D4: Concession dates | G4: =TI!E18 -> 2011-02-24 | H4: 2011-03-31 | I4: 2011-09-30 | J4: 2012-03-31 | K4: 2012-09-30 | L4: 2013-03-31 | M4: 2013-09-30 | N4: 2014-03-31 | O4: 2014-09-30 | P4: 2015-03-31 | Q4: 2015-09-30 | R4: 2016-03-31 | S4: 2016-09-30 | T4: 2017-03-31 | U4: 2017-09-30 | V4: 2018-03-31 | W4: 2018-09-30 | X4: 2019-03-31 | Y4: 2019-09-30 | Z4: 2020-03-31 | AA4: 2020-09-30 | AB4: 2021-03-31 | AC4: 2021-09-30 | AD4: 2022-03-31 | AE4: 2022-09-30 | AF4: 2023-03-31 | AG4: 2023-09-30 | AH4: 2024-03-31 | AI4: 2024-09-30 | AJ4: 2025-03-31 | AK4: 2025-09-30 | AL4: 2026-03-31 | AM4: 2026-09-30 | AN4: 2027-03-31 | AO4: 2027-09-30 | AP4: 2028-03-31 | AQ4: 2028-09-30 | AR4: 2029-03-31 | AS4: 2029-09-30 | AT4: 2030-03-31 | AU4: 2030-09-30 | AV4: 2031-03-31 | AW4: 2031-09-30 | AX4: 2032-03-31 | AY4: 2032-09-30 | AZ4: 2033-03-31 | BA4: 2033-09-30 | BB4: 2034-03-31 | BC4: 2034-09-30 | BD4: 2035-03-31 | BE4: 2035-09-30 | BF4: 2036-03-31 | BG4: 2036-09-30 | BH4: 2037-03-31 | BI4: 2037-09-30 | BJ4: 2038-03-31 | BK4: 2038-09-30 | BL4: 2039-03-31 | BM4: 2039-09-30 | BN4: 2040-03-31 | BO4: 2040-09-30 | BP4: 2041-03-31 | BQ4: 2041-09-30 | BR4: 2042-03-31 | BS4: 2042-09-30 | BT4: 2043-03-31 | BU4: 2043-09-30 | BV4: 2044-03-31 | BW4: 2044-09-30 | BX4: 2045-03-31 | BY4: 2045-09-30 | BZ4: 2046-03-31 | CA4: 2046-09-30 | CB4: 2047-03-31 | CC4: 2047-09-30 | CD4: 2048-03-31 | CE4: 2048-09-30
D5: Semi-annual period number | H5: 1 | I5: 2 | J5: 3 | K5: 4 | L5: 5 | M5: 6 | N5: 7 | O5: 8 | P5: 9 | Q5: 10 | R5: 11 | S5: 12 | T5: 13 | U5: 14 | V5: 15 | W5: 16 | X5: 17 | Y5: 18 | Z5: 19 | AA5: 20 | AB5: 21 | AC5: 22 | AD5: 23 | AE5: 24 | AF5: 25 | AG5: 26 | AH5: 27 | AI5: 28 | AJ5: 29 | AK5: 30 | AL5: 31 | AM5: 32 | AN5: 33 | AO5: 34 | AP5: 35 | AQ5: 36 | AR5: 37 | AS5: 38 | AT5: 39 | AU5: 40 | AV5: 41 | AW5: 42 | AX5: 43 | AY5: 44 | AZ5: 45 | BA5: 46 | BB5: 47 | BC5: 48 | BD5: 49 | BE5: 50 | BF5: 51 | BG5: 52 | BH5: 53 | BI5: 54 | BJ5: 55 | BK5: 56 | BL5: 57 | BM5: 58 | BN5: 59 | BO5: 60 | BP5: 61 | BQ5: 62 | BR5: 63 | BS5: 64 | BT5: 65 | BU5: 66 | BV5: 67 | BW5: 68 | BX5: 69 | BY5: 70 | BZ5: 71 | CA5: 72 | CB5: 73 | CC5: 74 | CD5: 75 | CE5: 76
D6: Phase | H6: Construction | I6: Construction | J6: Construction | K6: Construction | L6: Construction | M6: Const / Ops | N6: Operations | O6: Operations | P6: Operations | Q6: Operations | R6: Operations | S6: Operations | T6: Operations | U6: Operations | V6: Operations | W6: Operations | X6: Operations | Y6: Operations | Z6: Operations | AA6: Operations | AB6: Operations | AC6: Operations | AD6: Operations | AE6: Operations | AF6: Operations | AG6: Operations | AH6: Operations | AI6: Operations | AJ6: Operations | AK6: Operations | AL6: Operations | AM6: Operations | AN6: Operations | AO6: Operations | AP6: Operations | AQ6: Operations | AR6: Operations | AS6: Operations | AT6: Operations | AU6: Operations | AV6: Operations | AW6: Operations | AX6: Operations | AY6: Operations | AZ6: Operations | BA6: Operations | BB6: Operations | BC6: Operations | BD6: Operations | BE6: Operations | BF6: Operations | BG6: Operations | BH6: Operations | BI6: Operations | BJ6: Operations | BK6: Final period
A8: 1 | B8: Timing flags
D10: First year end flag | G10: 0 | H10: 1 | I10: 0 | J10: 0 | K10: 0 | L10: 0 | M10: 0 | N10: 0 | O10: 0 | P10: 0 | Q10: 0 | R10: 0 | S10: 0 | T10: 0 | U10: 0 | V10: 0 | W10: 0 | X10: 0 | Y10: 0 | Z10: 0 | AA10: 0 | AB10: 0 | AC10: 0 | AD10: 0 | AE10: 0 | AF10: 0 | AG10: 0 | AH10: 0 | AI10: 0 | AJ10: 0 | AK10: 0 | AL10: 0 | AM10: 0 | AN10: 0 | AO10: 0 | AP10: 0 | AQ10: 0 | AR10: 0 | AS10: 0 | AT10: 0 | AU10: 0 | AV10: 0 | AW10: 0 | AX10: 0 | AY10: 0 | AZ10: 0 | BA10: 0 | BB10: 0 | BC10: 0 | BD10: 0 | BE10: 0 | BF10: 0 | BG10: 0 | BH10: 0 | BI10: 0 | BJ10: 0 | BK10: 0 | BL10: 0 | BM10: 0 | BN10: 0 | BO10: 0 | BP10: 0 | BQ10: 0 | BR10: 0 | BS10: 0 | BT10: 0 | BU10: 0 | BV10: 0 | BW10: 0 | BX10: 0 | BY10: 0 | BZ10: 0 | CA10: 0 | CB10: 0 | CC10: 0 | CD10: 0 | CE10: 0
D11: Period in year | H11: 2 | I11: 1 | J11: 2 | K11: 1 | L11: 2 | M11: 1 | N11: 2 | O11: 1 | P11: 2 | Q11: 1 | R11: 2 | S11: 1 | T11: 2 | U11: 1 | V11: 2 | W11: 1 | X11: 2 | Y11: 1 | Z11: 2 | AA11: 1 | AB11: 2 | AC11: 1 | AD11: 2 | AE11: 1 | AF11: 2 | AG11: 1 | AH11: 2 | AI11: 1 | AJ11: 2 | AK11: 1 | AL11: 2 | AM11: 1 | AN11: 2 | AO11: 1 | AP11: 2 | AQ11: 1 | AR11: 2 | AS11: 1 | AT11: 2 | AU11: 1 | AV11: 2 | AW11: 1 | AX11: 2 | AY11: 1 | AZ11: 2 | BA11: 1 | BB11: 2 | BC11: 1 | BD11: 2 | BE11: 1 | BF11: 2 | BG11: 1 | BH11: 2 | BI11: 1 | BJ11: 2 | BK11: 1 | BL11: 2 | BM11: 1 | BN11: 2 | BO11: 1 | BP11: 2 | BQ11: 1 | BR11: 2 | BS11: 1 | BT11: 2 | BU11: 1 | BV11: 2 | BW11: 1 | BX11: 2 | BY11: 1 | BZ11: 2 | CA11: 1 | CB11: 2 | CC11: 1 | CD11: 2 | CE11: 1
D12: Actual days in period | H12: 43 | I12: 183 | J12: 183 | K12: 183 | L12: 182 | M12: 183 | N12: 182 | O12: 183 | P12: 182 | Q12: 183 | R12: 183 | S12: 183 | T12: 182 | U12: 183 | V12: 182 | W12: 183 | X12: 182 | Y12: 183 | Z12: 183 | AA12: 183 | AB12: 182 | AC12: 183 | AD12: 182 | AE12: 183 | AF12: 182 | AG12: 183 | AH12: 183 | AI12: 183 | AJ12: 182 | AK12: 183 | AL12: 182 | AM12: 183 | AN12: 182 | AO12: 183 | AP12: 183 | AQ12: 183 | AR12: 182 | AS12: 183 | AT12: 182 | AU12: 183 | AV12: 182 | AW12: 183 | AX12: 183 | AY12: 183 | AZ12: 182 | BA12: 183 | BB12: 182 | BC12: 183 | BD12: 182 | BE12: 183 | BF12: 183 | BG12: 183 | BH12: 182 | BI12: 183 | BJ12: 182 | BK12: 183 | BL12: 182 | BM12: 183 | BN12: 183 | BO12: 183 | BP12: 182 | BQ12: 183 | BR12: 182 | BS12: 183 | BT12: 182 | BU12: 183 | BV12: 183 | BW12: 183 | BX12: 182 | BY12: 183 | BZ12: 182 | CA12: 183 | CB12: 182 | CC12: 183 | CD12: 183 | CE12: 183
D13: Construction period | G13: 1 | H13: 1 | I13: 1 | J13: 1 | K13: 1 | L13: 1 | M13: 0 | N13: 0 | O13: 0 | P13: 0 | Q13: 0 | R13: 0 | S13: 0 | T13: 0 | U13: 0 | V13: 0 | W13: 0 | X13: 0 | Y13: 0 | Z13: 0 | AA13: 0 | AB13: 0 | AC13: 0 | AD13: 0 | AE13: 0 | AF13: 0 | AG13: 0 | AH13: 0 | AI13: 0 | AJ13: 0 | AK13: 0 | AL13: 0 | AM13: 0 | AN13: 0 | AO13: 0 | AP13: 0 | AQ13: 0 | AR13: 0 | AS13: 0 | AT13: 0 | AU13: 0 | AV13: 0 | AW13: 0 | AX13: 0 | AY13: 0 | AZ13: 0 | BA13: 0 | BB13: 0 | BC13: 0 | BD13: 0 | BE13: 0 | BF13: 0 | BG13: 0 | BH13: 0 | BI13: 0 | BJ13: 0 | BK13: 0 | BL13: 0 | BM13: 0 | BN13: 0 | BO13: 0 | BP13: 0 | BQ13: 0 | BR13: 0 | BS13: 0 | BT13: 0 | BU13: 0 | BV13: 0 | BW13: 0 | BX13: 0 | BY13: 0 | BZ13: 0 | CA13: 0 | CB13: 0 | CC13: 0 | CD13: 0 | CE13: 0
D14: Operations period | E14: 2013-07-01 | G14: 0 | H14: 0 | I14: 0 | J14: 0 | K14: 0 | L14: 0 | M14: 1 | N14: 1 | O14: 1 | P14: 1 | Q14: 1 | R14: 1 | S14: 1 | T14: 1 | U14: 1 | V14: 1 | W14: 1 | X14: 1 | Y14: 1 | Z14: 1 | AA14: 1 | AB14: 1 | AC14: 1 | AD14: 1 | AE14: 1 | AF14: 1 | AG14: 1 | AH14: 1 | AI14: 1 | AJ14: 1 | AK14: 1 | AL14: 1 | AM14: 1 | AN14: 1 | AO14: 1 | AP14: 1 | AQ14: 1 | AR14: 1 | AS14: 1 | AT14: 1 | AU14: 1 | AV14: 1 | AW14: 1 | AX14: 1 | AY14: 1 | AZ14: 1 | BA14: 1 | BB14: 1 | BC14: 1 | BD14: 1 | BE14: 1 | BF14: 1 | BG14: 1 | BH14: 1 | BI14: 1 | BJ14: 1 | BK14: 0 | BL14: 0 | BM14: 0 | BN14: 0 | BO14: 0 | BP14: 0 | BQ14: 0 | BR14: 0 | BS14: 0 | BT14: 0 | BU14: 0 | BV14: 0 | BW14: 0 | BX14: 0 | BY14: 0 | BZ14: 0 | CA14: 0 | CB14: 0 | CC14: 0 | CD14: 0 | CE14: 0
D15: Operations completion | E15: 2038-07-04 | H15: 0 | I15: 0 | J15: 0 | K15: 0 | L15: 0 | M15: 0 | N15: 0 | O15: 0 | P15: 0 | Q15: 0 | R15: 0 | S15: 0 | T15: 0 | U15: 0 | V15: 0 | W15: 0 | X15: 0 | Y15: 0 | Z15: 0 | AA15: 0 | AB15: 0 | AC15: 0 | AD15: 0 | AE15: 0 | AF15: 0 | AG15: 0 | AH15: 0 | AI15: 0 | AJ15: 0 | AK15: 0 | AL15: 0 | AM15: 0 | AN15: 0 | AO15: 0 | AP15: 0 | AQ15: 0 | AR15: 0 | AS15: 0 | AT15: 0 | AU15: 0 | AV15: 0 | AW15: 0 | AX15: 0 | AY15: 0 | AZ15: 0 | BA15: 0 | BB15: 0 | BC15: 0 | BD15: 0 | BE15: 0 | BF15: 0 | BG15: 0 | BH15: 0 | BI15: 0 | BJ15: 0 | BK15: 1 | BL15: 0 | BM15: 0 | BN15: 0 | BO15: 0 | BP15: 0 | BQ15: 0 | BR15: 0 | BS15: 0 | BT15: 0 | BU15: 0 | BV15: 0 | BW15: 0 | BX15: 0 | BY15: 0 | BZ15: 0 | CA15: 0 | CB15: 0 | CC15: 0 | CD15: 0 | CE15: 0
D16: Semi-Annual period count | H16: 1 | I16: 2 | J16: 3 | K16: 4 | L16: 5 | M16: 6 | N16: 7 | O16: 8 | P16: 9 | Q16: 10 | R16: 11 | S16: 12 | T16: 13 | U16: 14 | V16: 15 | W16: 16 | X16: 17 | Y16: 18 | Z16: 19 | AA16: 20 | AB16: 21 | AC16: 22 | AD16: 23 | AE16: 24 | AF16: 25 | AG16: 26 | AH16: 27 | AI16: 28 | AJ16: 29 | AK16: 30 | AL16: 31 | AM16: 32 | AN16: 33 | AO16: 34 | AP16: 35 | AQ16: 36 | AR16: 37 | AS16: 38 | AT16: 39 | AU16: 40 | AV16: 41 | AW16: 42 | AX16: 43 | AY16: 44 | AZ16: 45 | BA16: 46 | BB16: 47 | BC16: 48 | BD16: 49 | BE16: 50 | BF16: 51 | BG16: 52 | BH16: 53 | BI16: 54 | BJ16: 55 | BK16: 56 | BL16: 57 | BM16: 58 | BN16: 59 | BO16: 60 | BP16: 61 | BQ16: 62 | BR16: 63 | BS16: 64 | BT16: 65 | BU16: 66 | BV16: 67 | BW16: 68 | BX16: 69 | BY16: 70 | BZ16: 71 | CA16: 72 | CB16: 73 | CC16: 74 | CD16: 75 | CE16: 76
D17: Semi-Annual period count during operations | G17: 0 | H17: 0 | I17: 0 | J17: 0 | K17: 0 | L17: 0 | M17: 1 | N17: 2 | O17: 3 | P17: 4 | Q17: 5 | R17: 6 | S17: 7 | T17: 8 | U17: 9 | V17: 10 | W17: 11 | X17: 12 | Y17: 13 | Z17: 14 | AA17: 15 | AB17: 16 | AC17: 17 | AD17: 18 | AE17: 19 | AF17: 20 | AG17: 21 | AH17: 22 | AI17: 23 | AJ17: 24 | AK17: 25 | AL17: 26 | AM17: 27 | AN17: 28 | AO17: 29 | AP17: 30 | AQ17: 31 | AR17: 32 | AS17: 33 | AT17: 34 | AU17: 35 | AV17: 36 | AW17: 37 | AX17: 38 | AY17: 39 | AZ17: 40 | BA17: 41 | BB17: 42 | BC17: 43 | BD17: 44 | BE17: 45 | BF17: 46 | BG17: 47 | BH17: 48 | BI17: 49 | BJ17: 50 | BK17: 51 | BL17: 52 | BM17: 53 | BN17: 54 | BO17: 55 | BP17: 56 | BQ17: 57 | BR17: 58 | BS17: 59 | BT17: 60 | BU17: 61 | BV17: 62 | BW17: 63 | BX17: 64 | BY17: 65 | BZ17: 66 | CA17: 67 | CB17: 68 | CC17: 69 | CD17: 70 | CE17: 71
D18: Phase flag | G18: 0 | H18: 1 | I18: 1 | J18: 1 | K18: 1 | L18: 1 | M18: 2 | N18: 3 | O18: 3 | P18: 3 | Q18: 3 | R18: 3 | S18: 3 | T18: 3 | U18: 3 | V18: 3 | W18: 3 | X18: 3 | Y18: 3 | Z18: 3 | AA18: 3 | AB18: 3 | AC18: 3 | AD18: 3 | AE18: 3 | AF18: 3 | AG18: 3 | AH18: 3 | AI18: 3 | AJ18: 3 | AK18: 3 | AL18: 3 | AM18: 3 | AN18: 3 | AO18: 3 | AP18: 3 | AQ18: 3 | AR18: 3 | AS18: 3 | AT18: 3 | AU18: 3 | AV18: 3 | AW18: 3 | AX18: 3 | AY18: 3 | AZ18: 3 | BA18: 3 | BB18: 3 | BC18: 3 | BD18: 3 | BE18: 3 | BF18: 3 | BG18: 3 | BH18: 3 | BI18: 3 | BJ18: 3 | BK18: 4 | BL18: 5 | BM18: 5 | BN18: 5 | BO18: 5 | BP18: 5 | BQ18: 5 | BR18: 5 | BS18: 5 | BT18: 5 | BU18: 5 | BV18: 5 | BW18: 5 | BX18: 5 | BY18: 5 | BZ18: 5 | CA18: 5 | CB18: 5 | CC18: 5 | CD18: 5 | CE18: 5
D19: Year count | G19: 0 | H19: 1 | I19: 1 | J19: 2 | K19: 2 | L19: 3 | M19: 3 | N19: 4 | O19: 4 | P19: 5 | Q19: 5 | R19: 6 | S19: 6 | T19: 7 | U19: 7 | V19: 8 | W19: 8 | X19: 9 | Y19: 9 | Z19: 10 | AA19: 10 | AB19: 11 | AC19: 11 | AD19: 12 | AE19: 12 | AF19: 13 | AG19: 13 | AH19: 14 | AI19: 14 | AJ19: 15 | AK19: 15 | AL19: 16 | AM19: 16 | AN19: 17 | AO19: 17 | AP19: 18 | AQ19: 18 | AR19: 19 | AS19: 19 | AT19: 20 | AU19: 20 | AV19: 21 | AW19: 21 | AX19: 22 | AY19: 22 | AZ19: 23 | BA19: 23 | BB19: 24 | BC19: 24 | BD19: 25 | BE19: 25 | BF19: 26 | BG19: 26 | BH19: 27 | BI19: 27 | BJ19: 28 | BK19: 28 | BL19: 29 | BM19: 29 | BN19: 30 | BO19: 30 | BP19: 31 | BQ19: 31 | BR19: 32 | BS19: 32 | BT19: 33 | BU19: 33 | BV19: 34 | BW19: 34 | BX19: 35 | BY19: 35 | BZ19: 36 | CA19: 36 | CB19: 37 | CC19: 37 | CD19: 38 | CE19: 38
A20: 2 | B20: Revenue and costs assumptions | F20: (£'000 - Real)
D22: Note: Input values for operations phase only (yellow shaded fields), inputs for phasing operating revenue / costs during construction are on the TI sheet.
B24: 2.1 | C24: Assumed unitary charge base units
D25: Note: Refers to projected no. of unitary charge units applicable in any operating period. If less than 1, the amount is retained until end of operations.
D27: Availability payment - Split A | H27: 0 | I27: 0 | J27: 0 | K27: 0 | L27: 0 | M27: 1 | N27: 1 | O27: 1 | P27: 1 | Q27: 1 | R27: 1 | S27: 1 | T27: 1 | U27: 1 | V27: 1 | W27: 1 | X27: 1 | Y27: 1 | Z27: 1 | AA27: 1 | AB27: 1 | AC27: 1 | AD27: 1 | AE27: 1 | AF27: 1 | AG27: 1 | AH27: 1 | AI27: 1 | AJ27: 1 | AK27: 1 | AL27: 1 | AM27: 1 | AN27: 1 | AO27: 1 | AP27: 1 | AQ27: 1 | AR27: 1 | AS27: 1 | AT27: 1 | AU27: 1 | AV27: 1 | AW27: 1 | AX27: 1 | AY27: 1 | AZ27: 1 | BA27: 1 | BB27: 1 | BC27: 1 | BD27: 1 | BE27: 1 | BF27: 1 | BG27: 1 | BH27: 1 | BI27: 1 | BJ27: 1 | BK27: 1 | BL27: 1 | BM27: 1 | BN27: 1 | BO27: 1 | BP27: 1 | BQ27: 1 | BR27: 1 | BS27: 1 | BT27: 1 | BU27: 1 | BV27: 1 | BW27: 1 | BX27: 1 | BY27: 1 | BZ27: 1 | CA27: 1 | CB27: 1 | CC27: 1 | CD27: 1 | CE27: 1
D28: Availability payment - Split B | H28: 0 | I28: 0 | J28: 0 | K28: 0 | L28: 0 | M28: 1 | N28: 1 | O28: 1 | P28: 1 | Q28: 1 | R28: 1 | S28: 1 | T28: 1 | U28: 1 | V28: 1 | W28: 1 | X28: 1 | Y28: 1 | Z28: 1 | AA28: 1 | AB28: 1 | AC28: 1 | AD28: 1 | AE28: 1 | AF28: 1 | AG28: 1 | AH28: 1 | AI28: 1 | AJ28: 1 | AK28: 1 | AL28: 1 | AM28: 1 | AN28: 1 | AO28: 1 | AP28: 1 | AQ28: 1 | AR28: 1 | AS28: 1 | AT28: 1 | AU28: 1 | AV28: 1 | AW28: 1 | AX28: 1 | AY28: 1 | AZ28: 1 | BA28: 1 | BB28: 1 | BC28: 1 | BD28: 1 | BE28: 1 | BF28: 1 | BG28: 1 | BH28: 1 | BI28: 1 | BJ28: 1 | BK28: 1 | BL28: 1 | BM28: 1 | BN28: 1 | BO28: 1 | BP28: 1 | BQ28: 1 | BR28: 1 | BS28: 1 | BT28: 1 | BU28: 1 | BV28: 1 | BW28: 1 | BX28: 1 | BY28: 1 | BZ28: 1 | CA28: 1 | CB28: 1 | CC28: 1 | CD28: 1 | CE28: 1
D29: Condition criteria payment | H29: 0 | I29: 0 | J29: 0 | K29: 0 | L29: 0 | M29: 1 | N29: 1 | O29: 1 | P29: 1 | Q29: 1 | R29: 1 | S29: 1 | T29: 1 | U29: 1 | V29: 1 | W29: 1 | X29: 1 | Y29: 1 | Z29: 1 | AA29: 1 | AB29: 1 | AC29: 1 | AD29: 1 | AE29: 1 | AF29: 1 | AG29: 1 | AH29: 1 | AI29: 1 | AJ29: 1 | AK29: 1 | AL29: 1 | AM29: 1 | AN29: 1 | AO29: 1 | AP29: 1 | AQ29: 1 | AR29: 1 | AS29: 1 | AT29: 1 | AU29: 1 | AV29: 1 | AW29: 1 | AX29: 1 | AY29: 1 | AZ29: 1 | BA29: 1 | BB29: 1 | BC29: 1 | BD29: 1 | BE29: 1 | BF29: 1 | BG29: 1 | BH29: 1 | BI29: 1 | BJ29: 1 | BK29: 1 | BL29: 1 | BM29: 1 | BN29: 1 | BO29: 1 | BP29: 1 | BQ29: 1 | BR29: 1 | BS29: 1 | BT29: 1 | BU29: 1 | BV29: 1 | BW29: 1 | BX29: 1 | BY29: 1 | BZ29: 1 | CA29: 1 | CB29: 1 | CC29: 1 | CD29: 1 | CE29: 1
D30: Safety performance payment | H30: 0 | I30: 0 | J30: 0 | K30: 0 | L30: 0 | M30: 1 | N30: 1 | O30: 1 | P30: 1 | Q30: 1 | R30: 1 | S30: 1 | T30: 1 | U30: 1 | V30: 1 | W30: 1 | X30: 1 | Y30: 1 | Z30: 1 | AA30: 1 | AB30: 1 | AC30: 1 | AD30: 1 | AE30: 1 | AF30: 1 | AG30: 1 | AH30: 1 | AI30: 1 | AJ30: 1 | AK30: 1 | AL30: 1 | AM30: 1 | AN30: 1 | AO30: 1 | AP30: 1 | AQ30: 1 | AR30: 1 | AS30: 1 | AT30: 1 | AU30: 1 | AV30: 1 | AW30: 1 | AX30: 1 | AY30: 1 | AZ30: 1 | BA30: 1 | BB30: 1 | BC30: 1 | BD30: 1 | BE30: 1 | BF30: 1 | BG30: 1 | BH30: 1 | BI30: 1 | BJ30: 1 | BK30: 1 | BL30: 1 | BM30: 1 | BN30: 1 | BO30: 1 | BP30: 1 | BQ30: 1 | BR30: 1 | BS30: 1 | BT30: 1 | BU30: 1 | BV30: 1 | BW30: 1 | BX30: 1 | BY30: 1 | BZ30: 1 | CA30: 1 | CB30: 1 | CC30: 1 | CD30: 1 | CE30: 1
D31: Phasing 100% thoughout | E31: 1 | G31: 0 | H31: 0 | I31: 0 | J31: 0 | K31: 0 | L31: 0 | M31: 1 | N31: 1 | O31: 1 | P31: 1 | Q31: 1 | R31: 1 | S31: 1 | T31: 1 | U31: 1 | V31: 1 | W31: 1 | X31: 1 | Y31: 1 | Z31: 1 | AA31: 1 | AB31: 1 | AC31: 1 | AD31: 1 | AE31: 1 | AF31: 1 | AG31: 1 | AH31: 1 | AI31: 1 | AJ31: 1 | AK31: 1 | AL31: 1 | AM31: 1 | AN31: 1 | AO31: 1 | AP31: 1 | AQ31: 1 | AR31: 1 | AS31: 1 | AT31: 1 | AU31: 1 | AV31: 1 | AW31: 1 | AX31: 1 | AY31: 1 | AZ31: 1 | BA31: 1 | BB31: 1 | BC31: 1 | BD31: 1 | BE31: 1 | BF31: 1 | BG31: 1 | BH31: 1 | BI31: 1 | BJ31: 1 | BK31: 1 | BL31: 0 | BM31: 0 | BN31: 0 | BO31: 0 | BP31: 0 | BQ31: 0 | BR31: 0 | BS31: 0 | BT31: 0 | BU31: 0 | BV31: 0 | BW31: 0 | BX31: 0 | BY31: 0 | BZ31: 0 | CA31: 0 | CB31: 0 | CC31: 0 | CD31: 0 | CE31: 0
D33: % Retention recovered in last period
D34: Split A | E34: 0
D35: Split B | E35: 0
D38: Indexation type
D40: UC & TPI inflation | E40: 1 | F40: Do not change
D41: Labour inflation | E41: 2
D42: No inflation | E42: 3
D43: RPI | E43: 4
D44: Development Costs | E44: 5
D45: Benchmark Inflation | E45: 6
D46: RPI Swap | E46: 7
B49: 2.2 | C49: Third Party Income | E49: No inflation | F49: 3 | G49: 0 | H49: 0 | M49: 0 | N49: 0 | O49: 0 | P49: 0 | Q49: 0 | R49: 0 | S49: 0 | T49: 0 | U49: 0 | V49: 0 | W49: 0 | X49: 0 | Y49: 0 | Z49: 0 | AA49: 0 | AB49: 0 | AC49: 0 | AD49: 0 | AE49: 0 | AF49: 0 | AG49: 0 | AH49: 0 | AI49: 0 | AJ49: 0 | AK49: 0 | AL49: 0 | AM49: 0 | AN49: 0 | AO49: 0 | AP49: 0 | AQ49: 0 | AR49: 0 | AS49: 0 | AT49: 0 | AU49: 0 | AV49: 0 | AW49: 0 | AX49: 0 | AY49: 0 | AZ49: 0 | BA49: 0 | BB49: 0 | BC49: 0 | BD49: 0 | BE49: 0 | BF49: 0 | BG49: 0 | BH49: 0 | BI49: 0 | BJ49: 0 | BK49: 0 | BL49: 0 | BM49: 0 | BN49: 0 | BO49: 0 | BP49: 0 | BQ49: 0 | BR49: 0 | BS49: 0 | BT49: 0 | BU49: 0
B51: 2.3 | C51: Operating costs
D54: Hard O&M costs
D55: Hard Labour | E55: RPI | F55: 4 | G55: 0 | H55: 0 | I55: 0 | J55: 0 | K55: 0 | L55: 0 | M55: 55.96889369 | N55: 125.851852 | O55: 128.3458631 | P55: 127.6445196 | Q55: 130.1747588 | R55: 130.1747588 | S55: 132.0304188 | T55: 131.3089411 | U55: 133.9132348 | V55: 133.1814685 | W55: 135.8236042 | X55: 135.0813987 | Y55: 137.7619302 | Z55: 137.7619302 | AA55: 139.728622 | AB55: 138.9650776 | AC55: 141.7240946 | AD55: 140.949646 | AE55: 143.7487693 | AF55: 142.9632569 | AG55: 145.8030734 | AH55: 145.8030734 | AI55: 147.8874404 | AJ55: 147.0793123 | AK55: 150.0023104 | AL55: 149.1826256 | AM55: 152.1481297 | AN55: 151.3167192 | AO55: 154.3253512 | AP55: 154.3253512 | AQ55: 156.5344345 | AR55: 155.6790551 | AS55: 158.7758459 | AT55: 157.9082183 | AU55: 161.0500584 | AV55: 160.1700034 | AW55: 163.3575521 | AX55: 163.3575521 | AY55: 165.6988139 | AZ55: 164.7933559 | BA55: 168.0743381 | BB55: 167.1558991 | BC55: 170.4846261 | BD55: 169.5530162 | BE55: 172.9301866 | BF55: 172.9301866 | BG55: 175.4115358 | BH55: 174.4530028 | BI55: 177.9291974 | BJ55: 176.9569068 | BK55: 95.66622503
D56: Hard Subcontracts | E56: RPI | F56: 4 | G56: 0 | H56: 0 | I56: 0 | J56: 0 | K56: 0 | L56: 0 | M56: 21.25866077 | N56: 47.71205209 | O56: 48.4291976 | P56: 48.16455718 | Q56: 48.88862792 | R56: 48.88862792 | S56: 49.35254049 | T56: 49.08285448 | U56: 49.82097903 | V56: 49.54873325 | W56: 50.29398771 | X56: 50.01915718 | Y56: 50.77161111 | Z56: 50.77161111 | AA56: 51.25389424 | AB56: 50.97381832 | AC56: 51.74088258 | AD56: 51.45814552 | AE56: 52.23262202 | AF56: 51.94719786 | AG56: 52.72915893 | AH56: 52.72915893 | AI56: 53.23054009 | AJ56: 52.93966282 | AK56: 53.73681278 | AL56: 53.44316899 | AM56: 54.24802471 | AN56: 53.95158742 | AO56: 54.76422408 | AP56: 54.76422408 | AQ56: 55.28545953 | AR56: 54.9833532 | AS56: 55.81178022 | AT56: 55.50679781 | AU56: 56.34323573 | AV56: 56.0353492 | AW56: 56.87987618 | AX56: 56.87987618 | AY56: 57.42175215 | AZ56: 57.10797208 | BA56: 57.96891471 | BB56: 57.65214468 | BC56: 58.52141544 | BD56: 58.20162629 | BE56: 59.07930643 | BF56: 59.07930643 | BG56: 59.64264025 | BH56: 59.31672418 | BI56: 60.21147001 | BJ56: 59.88244558 | BK56: 32.21982178
D57: Hard Consumables and Equipment | E57: RPI | F57: 4 | G57: 0 | H57: 0 | I57: 0 | J57: 0 | K57: 0 | L57: 0 | M57: 6.286434 | N57: 14.05641769 | O57: 14.13365076 | P57: 14.05641769 | Q57: 14.13365076 | R57: 14.13365076 | S57: 14.13365076 | T57: 14.05641769 | U57: 14.13365076 | V57: 14.05641769 | W57: 14.13365076 | X57: 14.05641769 | Y57: 14.13365076 | Z57: 14.13365076 | AA57: 14.13365076 | AB57: 14.05641769 | AC57: 14.13365076 | AD57: 14.05641769 | AE57: 14.13365076 | AF57: 14.05641769 | AG57: 14.13365076 | AH57: 14.13365076 | AI57: 14.13365076 | AJ57: 14.05641769 | AK57: 14.13365076 | AL57: 14.05641769 | AM57: 14.13365076 | AN57: 14.05641769 | AO57: 14.13365076 | AP57: 14.13365076 | AQ57: 14.13365076 | AR57: 14.05641769 | AS57: 14.13365076 | AT57: 14.05641769 | AU57: 14.13365076 | AV57: 14.05641769 | AW57: 14.13365076 | AX57: 14.13365076 | AY57: 14.13365076 | AZ57: 14.05641769 | BA57: 14.13365076 | BB57: 14.05641769 | BC57: 14.13365076 | BD57: 14.05641769 | BE57: 14.13365076 | BF57: 14.13365076 | BG57: 14.13365076 | BH57: 14.05641769 | BI57: 14.13365076 | BJ57: 14.05641769 | BK57: 7.491607232
D58: Hard Other | E58: RPI | F58: 4 | G58: 0 | H58: 0 | I58: 0 | J58: 0 | K58: 0 | L58: 0 | M58: 29.51476949 | N58: 65.83028327 | O58: 66.19198813 | P58: 65.83028327 | Q58: 66.19198813 | R58: 66.19198813 | S58: 66.19198813 | T58: 65.83028327 | U58: 64.57863626 | V58: 64.08297929 | W58: 63.77094393 | X58: 63.20390082 | Y58: 63.551175 | Z58: 63.551175 | AA58: 63.551175 | AB58: 63.20390082 | AC58: 63.551175 | AD58: 63.20390082 | AE58: 63.551175 | AF58: 63.20390082 | AG58: 63.551175 | AH58: 63.551175 | AI58: 63.551175 | AJ58: 63.20390082 | AK58: 63.551175 | AL58: 63.20390082 | AM58: 63.551175 | AN58: 63.20390082 | AO58: 63.551175 | AP58: 63.551175 | AQ58: 63.551175 | AR58: 63.20390082 | AS58: 63.551175 | AT58: 63.20390082 | AU58: 63.551175 | AV58: 63.20390082 | AW58: 63.551175 | AX58: 63.551175 | AY58: 63.551175 | AZ58: 63.20390082 | BA58: 63.551175 | BB58: 63.20390082 | BC58: 63.551175 | BD58: 63.20390082 | BE58: 63.551175 | BF58: 63.551175 | BG58: 63.551175 | BH58: 63.20390082 | BI58: 63.551175 | BJ58: 63.20390082 | BK58: 33.68559549
D59: Hard Risk | E59: RPI | F59: 4 | G59: 0 | H59: 0 | I59: 0 | J59: 0 | K59: 0 | L59: 0 | M59: 1.287999264 | N59: 2.88756145 | O59: 2.931186751 | P59: 2.915169337 | Q59: 2.959325245 | R59: 2.959325245 | S59: 2.987847933 | T59: 2.971520895 | U59: 2.997399945 | V59: 2.979307491 | W59: 3.017014848 | X59: 2.997905611 | Y59: 3.044085312 | Z59: 3.044085312 | AA59: 3.074199069 | AB59: 3.057400167 | AC59: 3.104724554 | AD59: 3.087758846 | AE59: 3.135667509 | AF59: 3.118532714 | AG59: 3.167033759 | AH59: 3.167033759 | AI59: 3.19882921 | AJ59: 3.181349269 | AK59: 3.231059851 | AL59: 3.213403787 | AM59: 3.263731759 | AN59: 3.245897159 | AO59: 3.296851093 | AP59: 3.296851093 | AQ59: 3.330424103 | AR59: 3.312225064 | AS59: 3.364457124 | AT59: 3.346072112 | AU59: 3.398956583 | AV59: 3.38038305 | AW59: 3.433928999 | AX59: 3.433928999 | AY59: 3.46938098 | AZ59: 3.450422614 | BA59: 3.50531923 | BB59: 3.486164481 | BC59: 3.541750549 | BD59: 3.522396721 | BE59: 3.578681831 | BF59: 3.578681831 | BG59: 3.616120069 | BH59: 3.59635985 | BI59: 3.654072356 | BJ59: 3.634104747 | BK59: 1.957251096
D60: Hard Overhead | E60: RPI | F60: 4 | G60: 0 | H60: 0 | I60: 0 | J60: 0 | K60: 0 | L60: 0 | M60: 7.68473235 | N60: 17.23190001 | O60: 17.4844049 | P60: 17.3888617 | Q60: 17.64438331 | R60: 17.64438331 | S60: 17.806546 | T60: 17.70924247 | U60: 17.86085295 | V60: 17.75351234 | W60: 17.97237138 | X60: 17.85924996 | Y60: 18.12627762 | Z60: 18.12627762 | AA60: 18.29748617 | AB60: 18.19749991 | AC60: 18.47103556 | AD60: 18.37010094 | AE60: 18.64695843 | AF60: 18.54506248 | AG60: 18.82528789 | AH60: 18.82528789 | AI60: 19.00605753 | AJ60: 18.90219929 | AK60: 19.1893014 | AL60: 19.08444183 | AM60: 19.37505405 | AN60: 19.26917943 | AO60: 19.56335049 | AP60: 19.56335049 | AQ60: 19.75422625 | AR60: 19.64627966 | AS60: 19.94771736 | AT60: 19.83871344 | AU60: 20.14386035 | AV60: 20.03378461 | AW60: 20.34269229 | AX60: 20.34269229 | AY60: 20.54425074 | AZ60: 20.43198708 | BA60: 20.74857383 | BB60: 20.63519364 | BC60: 20.9557002 | BD60: 20.84118818 | BE60: 21.16566907 | BF60: 21.16566907 | BG60: 21.37852017 | BH60: 21.26169766 | BI60: 21.59429384 | BJ60: 21.47629224 | BK60: 11.56209838
D61: Hard Margin/Profit | E61: RPI | F61: 4 | G61: 0 | H61: 0 | I61: 0 | J61: 0 | K61: 0 | L61: 0 | M61: 6.403943625 | N61: 14.35991667 | O61: 14.57033742 | P61: 14.49071809 | Q61: 14.70365275 | R61: 14.70365275 | S61: 14.83878833 | T61: 14.75770206 | U61: 14.88404412 | V61: 14.79459361 | W61: 14.97697615 | X61: 14.8827083 | Y61: 15.10523135 | Z61: 15.10523135 | AA61: 15.24790514 | AB61: 15.16458326 | AC61: 15.39252963 | AD61: 15.30841745 | AE61: 15.53913202 | AF61: 15.45421873 | AG61: 15.68773991 | AH61: 15.68773991 | AI61: 15.83838128 | AJ61: 15.75183274 | AK61: 15.9910845 | AL61: 15.90370153 | AM61: 16.14587837 | AN61: 16.05764953 | AO61: 16.30279207 | AP61: 16.30279207 | AQ61: 16.46185521 | AR61: 16.37189971 | AS61: 16.6230978 | AT61: 16.5322612 | AU61: 16.78655029 | AV61: 16.69482051 | AW61: 16.95224357 | AX61: 16.95224357 | AY61: 17.12020895 | AZ61: 17.0266559 | BA61: 17.29047819 | BB61: 17.1959947 | BC61: 17.4630835 | BD61: 17.36765682 | BE61: 17.63805755 | BF61: 17.63805755 | BG61: 17.81543348 | BH61: 17.71808138 | BI61: 17.99524487 | BJ61: 17.8969102 | BK61: 9.635081987
D62: Total Hard O&M | E62: 16069.23865 | G62: 0 | H62: 0 | I62: 0 | J62: 0 | K62: 0 | L62: 0 | M62: 128.4054332 | N62: 287.9299832 | O62: 292.0866286 | P62: 290.4905268 | Q62: 294.6963869 | R62: 294.6963869 | S62: 297.3417804 | T62: 295.7169619 | U62: 298.1887978 | V62: 296.3970121 | W62: 299.988549 | X62: 298.1007382 | Y62: 302.4939614 | Z62: 302.4939614 | AA62: 305.2869324 | AB62: 303.6186978 | AC62: 308.1180927 | AD62: 306.4343873 | AE62: 310.987975 | AF62: 309.2885872 | AG62: 313.8971196 | AH62: 313.8971196 | AI62: 316.8460743 | AJ62: 315.114675 | AK62: 319.8353947 | AL62: 318.0876603 | AM62: 322.8656443 | AN62: 321.1013512 | AO62: 325.9373947 | AP62: 325.9373947 | AQ62: 329.0512254 | AR62: 327.2531313 | AS62: 332.2077241 | AT62: 330.3923814 | AU62: 335.4074871 | AV62: 333.5746593 | AW62: 338.6511188 | AX62: 338.6511188 | AY62: 341.9392325 | AZ62: 340.0707121 | BA62: 345.2724498 | BB62: 343.3857152 | BC62: 348.6514016 | BD62: 346.7462027 | BE62: 352.0767273 | BF62: 352.0767273 | BG62: 355.5490755 | BH62: 353.6061844 | BI62: 359.0691043 | BJ62: 357.106978 | BK62: 192.217681 | BL62: 0 | BM62: 0 | BN62: 0 | BO62: 0 | BP62: 0 | BQ62: 0 | BR62: 0 | BS62: 0 | BT62: 0 | BU62: 0 | BV62: 0 | BW62: 0 | BX62: 0 | BY62: 0 | BZ62: 0 | CA62: 0 | CB62: 0 | CC62: 0 | CD62: 0 | CE62: 0
D65: Soft O&M costs
D66: MOBILISATION | E66: RPI | F66: 4 | G66: 0 | H66: 0 | I66: 0 | J66: 0 | K66: 0 | L66: 0 | M66: 0 | N66: 0 | O66: 0 | P66: 0 | Q66: 0 | R66: 0 | S66: 0 | T66: 0 | U66: 0 | V66: 0 | W66: 0 | X66: 0 | Y66: 0 | Z66: 0 | AA66: 0 | AB66: 0 | AC66: 0 | AD66: 0 | AE66: 0 | AF66: 0 | AG66: 0 | AH66: 0 | AI66: 0 | AJ66: 0 | AK66: 0 | AL66: 0 | AM66: 0 | AN66: 0 | AO66: 0 | AP66: 0 | AQ66: 0 | AR66: 0 | AS66: 0 | AT66: 0 | AU66: 0 | AV66: 0 | AW66: 0 | AX66: 0 | AY66: 0 | AZ66: 0 | BA66: 0 | BB66: 0 | BC66: 0 | BD66: 0 | BE66: 0 | BF66: 0 | BG66: 0 | BH66: 0 | BI66: 0 | BJ66: 0 | BK66: 0 | BM66: 0 | BN66: 0 | BO66: 0 | BP66: 0 | BQ66: 0 | BR66: 0 | BS66: 0 | BT66: 0 | BU66: 0 | BV66: 0 | BW66: 0 | BX66: 0 | BY66: 0 | BZ66: 0 | CA66: 0 | CB66: 0 | CC66: 0 | CD66: 0 | CE66: 0
D67: Cleaning Waste and PC | E67: RPI | F67: 4 | G67: 0 | H67: 0 | I67: 0 | J67: 0 | K67: 0 | L67: 0 | M67: 36.93826122 | N67: 83.14660681 | O67: 83.98154778 | P67: 83.52263222 | Q67: 84.36148361 | R67: 84.36148361 | S67: 84.36148361 | T67: 83.68189934 | U67: 83.91201801 | V67: 83.45348239 | W67: 83.91201801 | X67: 83.45348239 | Y67: 83.91201801 | Z67: 83.64414468 | AA67: 83.36734223 | AB67: 82.91178299 | AC67: 83.36734223 | AD67: 82.91178299 | AE67: 83.36734223 | AF67: 82.91178299 | AG67: 83.36734223 | AH67: 83.12537856 | AI67: 82.87534944 | AJ67: 82.25424217 | AK67: 82.52942493 | AL67: 82.07844446 | AM67: 82.52942493 | AN67: 82.07844446 | AO67: 82.52942493 | AP67: 82.52942493 | AQ67: 82.52942493 | AR67: 82.07844446 | AS67: 82.52942493 | AT67: 82.07844446 | AU67: 82.52942493 | AV67: 82.07844446 | AW67: 82.52942493 | AX67: 82.52942493 | AY67: 82.52942493 | AZ67: 82.07844446 | BA67: 82.52942493 | BB67: 82.07844446 | BC67: 82.52942493 | BD67: 81.86942939 | BE67: 82.09965236 | BF67: 82.09965236 | BG67: 82.09965236 | BH67: 81.65102038 | BI67: 82.09965236 | BJ67: 81.65102038 | BK67: 43.51730207 | BM67: 0 | BN67: 0 | BO67: 0 | BP67: 0 | BQ67: 0 | BR67: 0 | BS67: 0 | BT67: 0 | BU67: 0 | BV67: 0 | BW67: 0 | BX67: 0 | BY67: 0 | BZ67: 0 | CA67: 0 | CB67: 0 | CC67: 0 | CD67: 0 | CE67: 0
D68: Security | E68: RPI | F68: 4 | G68: 0 | H68: 0 | I68: 0 | J68: 0 | K68: 0 | L68: 0 | M68: 0 | N68: 0 | O68: 0 | P68: 0 | Q68: 0 | R68: 0 | S68: 0 | T68: 0 | U68: 0 | V68: 0 | W68: 0 | X68: 0 | Y68: 0 | Z68: 0 | AA68: 0 | AB68: 0 | AC68: 0 | AD68: 0 | AE68: 0 | AF68: 0 | AG68: 0 | AH68: 0 | AI68: 0 | AJ68: 0 | AK68: 0 | AL68: 0 | AM68: 0 | AN68: 0 | AO68: 0 | AP68: 0 | AQ68: 0 | AR68: 0 | AS68: 0 | AT68: 0 | AU68: 0 | AV68: 0 | AW68: 0 | AX68: 0 | AY68: 0 | AZ68: 0 | BA68: 0 | BB68: 0 | BC68: 0 | BD68: 0 | BE68: 0 | BF68: 0 | BG68: 0 | BH68: 0 | BI68: 0 | BJ68: 0 | BK68: 0 | BM68: 0 | BN68: 0 | BO68: 0 | BP68: 0 | BQ68: 0 | BR68: 0 | BS68: 0 | BT68: 0 | BU68: 0 | BV68: 0 | BW68: 0 | BX68: 0 | BY68: 0 | BZ68: 0 | CA68: 0 | CB68: 0 | CC68: 0 | CD68: 0 | CE68: 0
D69: Interim Services | E69: RPI | F69: 4 | G69: 0 | H69: 0 | I69: 0 | J69: 0 | K69: 0 | L69: 0 | BM69: 0 | BN69: 0 | BO69: 0 | BP69: 0 | BQ69: 0 | BR69: 0 | BS69: 0 | BT69: 0 | BU69: 0 | BV69: 0 | BW69: 0 | BX69: 0 | BY69: 0 | BZ69: 0 | CA69: 0 | CB69: 0 | CC69: 0 | CD69: 0 | CE69: 0
D70: Catering Income | E70: RPI | F70: 4 | I70: 0 | J70: 0 | K70: 0 | L70: 0 | M70: 0 | N70: 0 | O70: 0 | P70: 0 | Q70: 0 | R70: 0 | S70: 0 | T70: 0 | U70: 0 | V70: 0 | W70: 0 | X70: 0 | Y70: 0 | Z70: 0 | AA70: 0 | AB70: 0 | AC70: 0 | AD70: 0 | AE70: 0 | AF70: 0 | AG70: 0 | AH70: 0 | AI70: 0 | AJ70: 0 | AK70: 0 | AL70: 0 | AM70: 0 | AN70: 0 | AO70: 0 | AP70: 0 | AQ70: 0 | AR70: 0 | AS70: 0 | AT70: 0 | AU70: 0 | AV70: 0 | AW70: 0 | AX70: 0 | AY70: 0 | AZ70: 0 | BA70: 0 | BB70: 0 | BC70: 0 | BD70: 0 | BE70: 0 | BF70: 0 | BG70: 0 | BH70: 0 | BI70: 0 | BJ70: 0 | BK70: 0 | BM70: 0 | BN70: 0 | BO70: 0 | BP70: 0 | BQ70: 0 | BR70: 0 | BS70: 0 | BT70: 0 | BU70: 0 | BV70: 0 | BW70: 0 | BX70: 0 | BY70: 0 | BZ70: 0 | CA70: 0 | CB70: 0 | CC70: 0 | CD70: 0 | CE70: 0
D71: SPC costs | E71: RPI | F71: 4 | G71: 0 | H71: 0 | I71: 0 | J71: 0 | K71: 0 | L71: 0 | M71: 0 | N71: 0 | O71: 0 | P71: 0 | Q71: 0 | R71: 0 | S71: 0 | T71: 0 | U71: 0 | V71: 0 | W71: 0 | X71: 0 | Y71: 0 | Z71: 0 | AA71: 0 | AB71: 0 | AC71: 0 | AD71: 0 | AE71: 0 | AF71: 0 | AG71: 0 | AH71: 0 | AI71: 0 | AJ71: 0 | AK71: 0 | AL71: 0 | AM71: 0 | AN71: 0 | AO71: 0 | AP71: 0 | AQ71: 0 | AR71: 0 | AS71: 0 | AT71: 0 | AU71: 0 | AV71: 0 | AW71: 0 | AX71: 0 | AY71: 0 | AZ71: 0 | BA71: 0 | BB71: 0 | BC71: 0 | BD71: 0 | BE71: 0 | BF71: 0 | BG71: 0 | BH71: 0 | BI71: 0 | BJ71: 0 | BK71: 0 | BM71: 0 | BN71: 0 | BO71: 0 | BP71: 0 | BQ71: 0 | BR71: 0 | BS71: 0 | BT71: 0 | BU71: 0 | BV71: 0 | BW71: 0 | BX71: 0 | BY71: 0 | BZ71: 0 | CA71: 0 | CB71: 0 | CC71: 0 | CD71: 0 | CE71: 0
D72: Pension risk | E72: RPI | F72: 4 | G72: 0 | H72: 0 | I72: 0 | J72: 0 | K72: 0 | L72: 0 | M72: 0 | N72: 0 | O72: 0 | P72: 0 | Q72: 0 | R72: 0 | S72: 0 | T72: 0 | U72: 0 | V72: 0 | W72: 0 | X72: 0 | Y72: 0 | Z72: 0 | AA72: 0 | AB72: 0 | AC72: 0 | AD72: 0 | AE72: 0 | AF72: 0 | AG72: 0 | AH72: 0 | AI72: 0 | AJ72: 0 | AK72: 0 | AL72: 0 | AM72: 0 | AN72: 0 | AO72: 0 | AP72: 0 | AQ72: 0 | AR72: 0 | AS72: 0 | AT72: 0 | AU72: 0 | AV72: 0 | AW72: 0 | AX72: 0 | AY72: 0 | AZ72: 0 | BA72: 0 | BB72: 0 | BC72: 0 | BD72: 0 | BE72: 0 | BF72: 0 | BG72: 0 | BH72: 0 | BI72: 0 | BJ72: 0 | BK72: 0 | BM72: 0 | BN72: 0 | BO72: 0 | BP72: 0 | BQ72: 0 | BR72: 0 | BS72: 0 | BT72: 0 | BU72: 0 | BV72: 0 | BW72: 0 | BX72: 0 | BY72: 0 | BZ72: 0 | CA72: 0 | CB72: 0 | CC72: 0 | CD72: 0 | CE72: 0
D73: Cost title | E73: RPI | F73: 4 | G73: 0 | H73: 0 | I73: 0 | J73: 0 | K73: 0 | L73: 0 | M73: 0 | N73: 0 | O73: 0 | P73: 0 | Q73: 0 | R73: 0 | S73: 0 | T73: 0 | U73: 0 | V73: 0 | W73: 0 | X73: 0 | Y73: 0 | Z73: 0 | AA73: 0 | AB73: 0 | AC73: 0 | AD73: 0 | AE73: 0 | AF73: 0 | AG73: 0 | AH73: 0 | AI73: 0 | AJ73: 0 | AK73: 0 | AL73: 0 | AM73: 0 | AN73: 0 | AO73: 0 | AP73: 0 | AQ73: 0 | AR73: 0 | AS73: 0 | AT73: 0 | AU73: 0 | AV73: 0 | AW73: 0 | AX73: 0 | AY73: 0 | AZ73: 0 | BA73: 0 | BB73: 0 | BC73: 0 | BD73: 0 | BE73: 0 | BF73: 0 | BG73: 0 | BH73: 0 | BI73: 0 | BJ73: 0 | BK73: 0 | BM73: 0 | BN73: 0 | BO73: 0 | BP73: 0 | BQ73: 0 | BR73: 0 | BS73: 0 | BT73: 0 | BU73: 0 | BV73: 0 | BW73: 0 | BX73: 0 | BY73: 0 | BZ73: 0 | CA73: 0 | CB73: 0 | CC73: 0 | CD73: 0 | CE73: 0
D74: Cost title | E74: RPI | F74: 4 | G74: 0 | H74: 0 | I74: 0 | J74: 0 | K74: 0 | L74: 0 | M74: 0 | N74: 0 | O74: 0 | P74: 0 | Q74: 0 | R74: 0 | S74: 0 | T74: 0 | U74: 0 | V74: 0 | W74: 0 | X74: 0 | Y74: 0 | Z74: 0 | AA74: 0 | AB74: 0 | AC74: 0 | AD74: 0 | AE74: 0 | AF74: 0 | AG74: 0 | AH74: 0 | AI74: 0 | AJ74: 0 | AK74: 0 | AL74: 0 | AM74: 0 | AN74: 0 | AO74: 0 | AP74: 0 | AQ74: 0 | AR74: 0 | AS74: 0 | AT74: 0 | AU74: 0 | AV74: 0 | AW74: 0 | AX74: 0 | AY74: 0 | AZ74: 0 | BA74: 0 | BB74: 0 | BC74: 0 | BD74: 0 | BE74: 0 | BF74: 0 | BG74: 0 | BH74: 0 | BI74: 0 | BJ74: 0 | BK74: 0 | BM74: 0 | BN74: 0 | BO74: 0 | BP74: 0 | BQ74: 0 | BR74: 0 | BS74: 0 | BT74: 0 | BU74: 0 | BV74: 0 | BW74: 0 | BX74: 0 | BY74: 0 | BZ74: 0 | CA74: 0 | CB74: 0 | CC74: 0 | CD74: 0 | CE74: 0
D75: Cost title | E75: RPI | F75: 4 | G75: 0 | H75: 0 | I75: 0 | J75: 0 | K75: 0 | L75: 0 | M75: 0 | N75: 0 | O75: 0 | P75: 0 | Q75: 0 | R75: 0 | S75: 0 | T75: 0 | U75: 0 | V75: 0 | W75: 0 | X75: 0 | Y75: 0 | Z75: 0 | AA75: 0 | AB75: 0 | AC75: 0 | AD75: 0 | AE75: 0 | AF75: 0 | AG75: 0 | AH75: 0 | AI75: 0 | AJ75: 0 | AK75: 0 | AL75: 0 | AM75: 0 | AN75: 0 | AO75: 0 | AP75: 0 | AQ75: 0 | AR75: 0 | AS75: 0 | AT75: 0 | AU75: 0 | AV75: 0 | AW75: 0 | AX75: 0 | AY75: 0 | AZ75: 0 | BA75: 0 | BB75: 0 | BC75: 0 | BD75: 0 | BE75: 0 | BF75: 0 | BG75: 0 | BH75: 0 | BI75: 0 | BJ75: 0 | BK75: 0 | BM75: 0 | BN75: 0 | BO75: 0 | BP75: 0 | BQ75: 0 | BR75: 0 | BS75: 0 | BT75: 0 | BU75: 0 | BV75: 0 | BW75: 0 | BX75: 0 | BY75: 0 | BZ75: 0 | CA75: 0 | CB75: 0 | CC75: 0 | CD75: 0 | CE75: 0
D76: Total Soft O&M | E76: 4139.091842 | G76: 0 | H76: 0 | I76: 0 | J76: 0 | K76: 0 | L76: 0 | M76: 36.93826122 | N76: 83.14660681 | O76: 83.98154778 | P76: 83.52263222 | Q76: 84.36148361 | R76: 84.36148361 | S76: 84.36148361 | T76: 83.68189934 | U76: 83.91201801 | V76: 83.45348239 | W76: 83.91201801 | X76: 83.45348239 | Y76: 83.91201801 | Z76: 83.64414468 | AA76: 83.36734223 | AB76: 82.91178299 | AC76: 83.36734223 | AD76: 82.91178299 | AE76: 83.36734223 | AF76: 82.91178299 | AG76: 83.36734223 | AH76: 83.12537856 | AI76: 82.87534944 | AJ76: 82.25424217 | AK76: 82.52942493 | AL76: 82.07844446 | AM76: 82.52942493 | AN76: 82.07844446 | AO76: 82.52942493 | AP76: 82.52942493 | AQ76: 82.52942493 | AR76: 82.07844446 | AS76: 82.52942493 | AT76: 82.07844446 | AU76: 82.52942493 | AV76: 82.07844446 | AW76: 82.52942493 | AX76: 82.52942493 | AY76: 82.52942493 | AZ76: 82.07844446 | BA76: 82.52942493 | BB76: 82.07844446 | BC76: 82.52942493 | BD76: 81.86942939 | BE76: 82.09965236 | BF76: 82.09965236 | BG76: 82.09965236 | BH76: 81.65102038 | BI76: 82.09965236 | BJ76: 81.65102038 | BK76: 43.51730207 | BL76: 0 | BM76: 0 | BN76: 0 | BO76: 0 | BP76: 0 | BQ76: 0 | BR76: 0 | BS76: 0 | BT76: 0 | BU76: 0 | BV76: 0 | BW76: 0 | BX76: 0 | BY76: 0 | BZ76: 0 | CA76: 0 | CB76: 0 | CC76: 0 | CD76: 0 | CE76: 0
D79: SPV Costs
D80: Bid Costs | E80: RPI | F80: 4 | G80: 0 | H80: 0 | I80: 0 | J80: 0 | K80: 0 | N80: 0
D81: SPC Staff | E81: RPI | F81: 4 | G81: 0 | H81: 0 | I81: 0 | J81: 0 | K81: 0 | L81: 0 | M81: 31.63625 | N81: 23.13857143 | O81: 23.13857143 | P81: 18.06409856 | Q81: 6.466229508 | R81: 6.466229508 | S81: 6.466229508 | T81: 6.466229508 | U81: 6.466229508 | V81: 6.466229508 | W81: 6.466229508 | X81: 6.466229508 | Y81: 6.466229508 | Z81: 6.466229508 | AA81: 6.466229508 | AB81: 6.466229508 | AC81: 6.466229508 | AD81: 6.466229508 | AE81: 6.466229508 | AF81: 6.466229508 | AG81: 6.466229508 | AH81: 6.466229508 | AI81: 6.466229508 | AJ81: 6.466229508 | AK81: 6.466229508 | AL81: 6.466229508 | AM81: 6.466229508 | AN81: 6.466229508 | AO81: 6.466229508 | AP81: 6.466229508 | AQ81: 6.466229508 | AR81: 6.466229508 | AS81: 6.466229508 | AT81: 6.466229508 | AU81: 6.466229508 | AV81: 6.466229508 | AW81: 6.466229508 | AX81: 6.466229508 | AY81: 6.466229508 | AZ81: 6.466229508 | BA81: 6.466229508 | BB81: 6.466229508 | BC81: 6.466229508 | BD81: 6.466229508 | BE81: 6.466229508 | BF81: 6.466229508 | BG81: 6.466229508 | BH81: 6.466229508 | BI81: 6.466229508 | BJ81: 4.53953703 | BK81: 0
D82: Concession & Company Running Costs | E82: RPI | F82: 4 | G82: 0 | H82: 0 | I82: 0 | J82: 0 | K82: 0 | L82: 0 | M82: 30.91593257 | N82: 28.3 | O82: 26.3 | P82: 26.3 | Q82: 26.3 | R82: 26.3 | S82: 26.3 | T82: 26.3 | U82: 26.3 | V82: 26.3 | W82: 26.3 | X82: 28.3 | Y82: 26.3 | Z82: 26.3 | AA82: 26.3 | AB82: 26.3 | AC82: 26.3 | AD82: 26.3 | AE82: 26.3 | AF82: 26.3 | AG82: 26.3 | AH82: 28.3 | AI82: 26.3 | AJ82: 26.3 | AK82: 26.3 | AL82: 26.3 | AM82: 26.3 | AN82: 26.3 | AO82: 26.3 | AP82: 26.3 | AQ82: 26.3 | AR82: 28.3 | AS82: 26.3 | AT82: 26.3 | AU82: 26.3 | AV82: 26.3 | AW82: 26.3 | AX82: 26.3 | AY82: 26.3 | AZ82: 26.3 | BA82: 26.3 | BB82: 28.3 | BC82: 26.3 | BD82: 26.3 | BE82: 26.3 | BF82: 26.3 | BG82: 26.3 | BH82: 26.3 | BI82: 26.3 | BJ82: 40.24774467 | BK82: 0
D83: Utilities | E83: RPI | F83: 4 | G83: 0 | H83: 0 | I83: 0 | J83: 0 | K83: 0 | L83: 0 | M83: 0 | N83: 0 | O83: 0 | P83: 0 | Q83: 0 | R83: 0 | S83: 0 | T83: 0 | U83: 0 | V83: 0 | W83: 0 | X83: 0 | Y83: 0 | Z83: 0 | AA83: 0 | AB83: 0 | AC83: 0 | AD83: 0 | AE83: 0 | AF83: 0 | AG83: 0 | AH83: 0 | AI83: 0 | AJ83: 0 | AK83: 0 | AL83: 0 | AM83: 0 | AN83: 0 | AO83: 0 | AP83: 0 | AQ83: 0 | AR83: 0 | AS83: 0 | AT83: 0 | AU83: 0 | AV83: 0 | AW83: 0 | AX83: 0 | AY83: 0 | AZ83: 0 | BA83: 0 | BB83: 0 | BC83: 0 | BD83: 0 | BE83: 0 | BF83: 0 | BG83: 0 | BH83: 0 | BI83: 0 | BJ83: 0 | BL83: 0 | BM83: 0 | BN83: 0 | BO83: 0 | BP83: 0 | BQ83: 0 | BR83: 0 | BS83: 0 | BT83: 0 | BU83: 0 | BV83: 0 | BW83: 0 | BX83: 0 | BY83: 0 | BZ83: 0 | CA83: 0 | CB83: 0 | CC83: 0 | CD83: 0 | CE83: 0
D84: Cost title | E84: RPI | F84: 4 | G84: 0 | H84: 0 | I84: 0 | J84: 0 | K84: 0 | L84: 0 | N84: 0 | BM84: 0 | BN84: 0 | BO84: 0 | BP84: 0 | BQ84: 0 | BR84: 0 | BS84: 0 | BT84: 0 | BU84: 0 | BV84: 0 | BW84: 0 | BX84: 0 | BY84: 0 | BZ84: 0 | CA84: 0 | CB84: 0 | CC84: 0 | CD84: 0 | CE84: 0
D85: Cost title | E85: RPI | F85: 4 | G85: 0 | H85: 0 | I85: 0 | J85: 0 | K85: 0 | L85: 0 | M85: 0 | N85: 0 | O85: 0 | P85: 0 | Q85: 0 | R85: 0 | S85: 0 | T85: 0 | U85: 0 | V85: 0 | W85: 0 | X85: 0 | Y85: 0 | Z85: 0 | AA85: 0 | AB85: 0 | AC85: 0 | AD85: 0 | AE85: 0 | AF85: 0 | AG85: 0 | AH85: 0 | AI85: 0 | AJ85: 0 | AK85: 0 | AL85: 0 | AM85: 0 | AN85: 0 | AO85: 0 | AP85: 0 | AQ85: 0 | AR85: 0 | AS85: 0 | AT85: 0 | AU85: 0 | AV85: 0 | AW85: 0 | AX85: 0 | AY85: 0 | AZ85: 0 | BA85: 0 | BB85: 0 | BC85: 0 | BD85: 0 | BE85: 0 | BF85: 0 | BG85: 0 | BH85: 0 | BI85: 0 | BJ85: 0 | BK85: 0 | BL85: 0 | BM85: 0 | BN85: 0 | BO85: 0 | BP85: 0 | BQ85: 0 | BR85: 0 | BS85: 0 | BT85: 0 | BU85: 0 | BV85: 0 | BW85: 0 | BX85: 0 | BY85: 0 | BZ85: 0 | CA85: 0 | CB85: 0 | CC85: 0 | CD85: 0 | CE85: 0
D86: Cost title | E86: RPI | F86: 4 | G86: 0 | H86: 0 | I86: 0 | J86: 0 | K86: 0 | L86: 0 | M86: 0 | N86: 0 | O86: 0 | P86: 0 | Q86: 0 | R86: 0 | S86: 0 | T86: 0 | U86: 0 | V86: 0 | W86: 0 | X86: 0 | Y86: 0 | Z86: 0 | AA86: 0 | AB86: 0 | AC86: 0 | AD86: 0 | AE86: 0 | AF86: 0 | AG86: 0 | AH86: 0 | AI86: 0 | AJ86: 0 | AK86: 0 | AL86: 0 | AM86: 0 | AN86: 0 | AO86: 0 | AP86: 0 | AQ86: 0 | AR86: 0 | AS86: 0 | AT86: 0 | AU86: 0 | AV86: 0 | AW86: 0 | AX86: 0 | AY86: 0 | AZ86: 0 | BA86: 0 | BB86: 0 | BC86: 0 | BD86: 0 | BE86: 0 | BF86: 0 | BG86: 0 | BH86: 0 | BI86: 0 | BJ86: 0 | BK86: 0 | BL86: 0 | BM86: 0 | BN86: 0 | BO86: 0 | BP86: 0 | BQ86: 0 | BR86: 0 | BS86: 0 | BT86: 0 | BU86: 0 | BV86: 0 | BW86: 0 | BX86: 0 | BY86: 0 | BZ86: 0 | CA86: 0 | CB86: 0 | CC86: 0 | CD86: 0 | CE86: 0
D87: Cost title | E87: RPI | F87: 4 | G87: 0 | H87: 0 | I87: 0 | J87: 0 | K87: 0 | L87: 0 | M87: 0 | N87: 0 | O87: 0 | P87: 0 | Q87: 0 | R87: 0 | S87: 0 | T87: 0 | U87: 0 | V87: 0 | W87: 0 | X87: 0 | Y87: 0 | Z87: 0 | AA87: 0 | AB87: 0 | AC87: 0 | AD87: 0 | AE87: 0 | AF87: 0 | AG87: 0 | AH87: 0 | AI87: 0 | AJ87: 0 | AK87: 0 | AL87: 0 | AM87: 0 | AN87: 0 | AO87: 0 | AP87: 0 | AQ87: 0 | AR87: 0 | AS87: 0 | AT87: 0 | AU87: 0 | AV87: 0 | AW87: 0 | AX87: 0 | AY87: 0 | AZ87: 0 | BA87: 0 | BB87: 0 | BC87: 0 | BD87: 0 | BE87: 0 | BF87: 0 | BG87: 0 | BH87: 0 | BI87: 0 | BJ87: 0 | BK87: 0 | BM87: 0 | BN87: 0 | BO87: 0 | BP87: 0 | BQ87: 0 | BR87: 0 | BS87: 0 | BT87: 0 | BU87: 0 | BV87: 0 | BW87: 0 | BX87: 0 | BY87: 0 | BZ87: 0 | CA87: 0 | CB87: 0 | CC87: 0 | CD87: 0 | CE87: 0
D88: Cost title | E88: RPI | F88: 4 | G88: 0 | H88: 0 | I88: 0 | J88: 0 | K88: 0 | L88: 0 | M88: 0 | N88: 0 | O88: 0 | P88: 0 | Q88: 0 | R88: 0 | S88: 0 | T88: 0 | U88: 0 | V88: 0 | W88: 0 | X88: 0 | Y88: 0 | Z88: 0 | AA88: 0 | AB88: 0 | AC88: 0 | AD88: 0 | AE88: 0 | AF88: 0 | AG88: 0 | AH88: 0 | AI88: 0 | AJ88: 0 | AK88: 0 | AL88: 0 | AM88: 0 | AN88: 0 | AO88: 0 | AP88: 0 | AQ88: 0 | AR88: 0 | AS88: 0 | AT88: 0 | AU88: 0 | AV88: 0 | AW88: 0 | AX88: 0 | AY88: 0 | AZ88: 0 | BA88: 0 | BB88: 0 | BC88: 0 | BD88: 0 | BE88: 0 | BF88: 0 | BG88: 0 | BH88: 0 | BI88: 0 | BJ88: 0 | BK88: 0 | BL88: 0 | BM88: 0 | BN88: 0 | BO88: 0 | BP88: 0 | BQ88: 0 | BR88: 0 | BS88: 0 | BT88: 0 | BU88: 0 | BV88: 0 | BW88: 0 | BX88: 0 | BY88: 0 | BZ88: 0 | CA88: 0 | CB88: 0 | CC88: 0 | CD88: 0 | CE88: 0
D89: Cost title | E89: RPI | F89: 4 | G89: 0 | H89: 0 | I89: 0 | J89: 0 | K89: 0 | L89: 0 | M89: 0 | N89: 0 | O89: 0 | P89: 0 | Q89: 0 | R89: 0 | S89: 0 | T89: 0 | U89: 0 | V89: 0 | W89: 0 | X89: 0 | Y89: 0 | Z89: 0 | AA89: 0 | AB89: 0 | AC89: 0 | AD89: 0 | AE89: 0 | AF89: 0 | AG89: 0 | AH89: 0 | AI89: 0 | AJ89: 0 | AK89: 0 | AL89: 0 | AM89: 0 | AN89: 0 | AO89: 0 | AP89: 0 | AQ89: 0 | AR89: 0 | AS89: 0 | AT89: 0 | AU89: 0 | AV89: 0 | AW89: 0 | AX89: 0 | AY89: 0 | AZ89: 0 | BA89: 0 | BB89: 0 | BC89: 0 | BD89: 0 | BE89: 0 | BF89: 0 | BG89: 0 | BH89: 0 | BI89: 0 | BJ89: 0 | BK89: 0 | BL89: 0 | BM89: 0 | BN89: 0 | BO89: 0 | BP89: 0 | BQ89: 0 | BR89: 0 | BS89: 0 | BT89: 0 | BU89: 0 | BV89: 0 | BW89: 0 | BX89: 0 | BY89: 0 | BZ89: 0 | CA89: 0 | CB89: 0 | CC89: 0 | CD89: 0 | CE89: 0
D90: Cost title | E90: RPI | F90: 4 | G90: 0 | H90: 0 | I90: 0 | J90: 0 | K90: 0 | L90: 0 | M90: 0 | N90: 0 | O90: 0 | P90: 0 | Q90: 0 | S90: 0 | T90: 0 | U90: 0 | V90: 0 | W90: 0 | X90: 0 | Y90: 0 | Z90: 0 | AA90: 0 | AB90: 0 | AC90: 0 | AD90: 0 | AE90: 0 | AF90: 0 | AG90: 0 | AH90: 0 | AI90: 0 | AJ90: 0 | AK90: 0 | AL90: 0 | AM90: 0 | AN90: 0 | AO90: 0 | AP90: 0 | AQ90: 0 | AR90: 0 | AS90: 0 | AT90: 0 | AU90: 0 | AV90: 0 | AW90: 0 | AX90: 0 | AY90: 0 | AZ90: 0 | BA90: 0 | BB90: 0 | BC90: 0 | BD90: 0 | BE90: 0 | BF90: 0 | BG90: 0 | BH90: 0 | BI90: 0 | BJ90: 0 | BK90: 0 | BL90: 0 | BM90: 0 | BN90: 0 | BO90: 0 | BP90: 0 | BQ90: 0 | BR90: 0 | BS90: 0 | BT90: 0 | BU90: 0 | BV90: 0 | BW90: 0 | BX90: 0 | BY90: 0 | BZ90: 0 | CA90: 0 | CB90: 0 | CC90: 0 | CD90: 0 | CE90: 0
D91: Cost title | E91: RPI | F91: 4 | G91: 0 | H91: 0 | I91: 0 | J91: 0 | K91: 0 | L91: 0 | M91: 0 | N91: 0 | O91: 0 | P91: 0 | Q91: 0 | R91: 0 | S91: 0 | T91: 0 | U91: 0 | V91: 0 | W91: 0 | X91: 0 | Y91: 0 | Z91: 0 | AA91: 0 | AB91: 0 | AC91: 0 | AD91: 0 | AE91: 0 | AF91: 0 | AG91: 0 | AH91: 0 | AI91: 0 | AJ91: 0 | AK91: 0 | AL91: 0 | AM91: 0 | AN91: 0 | AO91: 0 | AP91: 0 | AQ91: 0 | AR91: 0 | AS91: 0 | AT91: 0 | AU91: 0 | AV91: 0 | AW91: 0 | AX91: 0 | AY91: 0 | AZ91: 0 | BA91: 0 | BB91: 0 | BC91: 0 | BD91: 0 | BE91: 0 | BF91: 0 | BG91: 0 | BH91: 0 | BI91: 0 | BJ91: 0 | BK91: 0 | BL91: 0 | BM91: 0 | BN91: 0 | BO91: 0 | BP91: 0 | BQ91: 0 | BR91: 0 | BS91: 0 | BT91: 0 | BU91: 0 | BV91: 0 | BW91: 0 | BX91: 0 | BY91: 0 | BZ91: 0 | CA91: 0 | CB91: 0 | CC91: 0 | CD91: 0 | CE91: 0
D92: Cost title | E92: RPI | F92: 4 | G92: 0 | H92: 0 | I92: 0 | J92: 0 | K92: 0 | L92: 0 | M92: 0 | N92: 0 | O92: 0 | P92: 0 | Q92: 0 | R92: 0 | S92: 0 | T92: 0 | U92: 0 | V92: 0 | W92: 0 | X92: 0 | Y92: 0 | Z92: 0 | AA92: 0 | AB92: 0 | AC92: 0 | AD92: 0 | AE92: 0 | AF92: 0 | AG92: 0 | AH92: 0 | AI92: 0 | AJ92: 0 | AK92: 0 | AL92: 0 | AM92: 0 | AN92: 0 | AO92: 0 | AP92: 0 | AQ92: 0 | AR92: 0 | AS92: 0 | AT92: 0 | AU92: 0 | AV92: 0 | AW92: 0 | AX92: 0 | AY92: 0 | AZ92: 0 | BA92: 0 | BB92: 0 | BC92: 0 | BD92: 0 | BE92: 0 | BF92: 0 | BG92: 0 | BH92: 0 | BI92: 0 | BJ92: 0 | BK92: 0 | BL92: 0 | BM92: 0 | BN92: 0 | BO92: 0 | BP92: 0 | BQ92: 0 | BR92: 0 | BS92: 0 | BT92: 0 | BU92: 0 | BV92: 0 | BW92: 0 | BX92: 0 | BY92: 0 | BZ92: 0 | CA92: 0 | CB92: 0 | CC92: 0 | CD92: 0 | CE92: 0
D93: Cost title | E93: RPI | F93: 4 | G93: 0 | H93: 0 | I93: 0 | J93: 0 | K93: 0 | L93: 0 | M93: 0 | N93: 0 | O93: 0 | P93: 0 | Q93: 0 | R93: 0 | S93: 0 | T93: 0 | U93: 0 | V93: 0 | W93: 0 | X93: 0 | Y93: 0 | Z93: 0 | AA93: 0 | AB93: 0 | AC93: 0 | AD93: 0 | AE93: 0 | AF93: 0 | AG93: 0 | AH93: 0 | AI93: 0 | AJ93: 0 | AK93: 0 | AL93: 0 | AM93: 0 | AN93: 0 | AO93: 0 | AP93: 0 | AQ93: 0 | AR93: 0 | AS93: 0 | AT93: 0 | AU93: 0 | AV93: 0 | AW93: 0 | AX93: 0 | AY93: 0 | AZ93: 0 | BA93: 0 | BB93: 0 | BC93: 0 | BD93: 0 | BE93: 0 | BF93: 0 | BG93: 0 | BH93: 0 | BI93: 0 | BJ93: 0 | BK93: 0 | BL93: 0 | BM93: 0 | BN93: 0 | BO93: 0 | BP93: 0 | BQ93: 0 | BR93: 0 | BS93: 0 | BT93: 0 | BU93: 0 | BV93: 0 | BW93: 0 | BX93: 0 | BY93: 0 | BZ93: 0 | CA93: 0 | CB93: 0 | CC93: 0 | CD93: 0 | CE93: 0
D94: Cost title | E94: RPI | F94: 4 | G94: 0 | H94: 0 | I94: 0 | J94: 0 | K94: 0 | L94: 0 | M94: 0 | N94: 0 | O94: 0 | P94: 0 | Q94: 0 | R94: 0 | S94: 0 | T94: 0 | U94: 0 | V94: 0 | W94: 0 | X94: 0 | Y94: 0 | Z94: 0 | AA94: 0 | AB94: 0 | AC94: 0 | AD94: 0 | AE94: 0 | AF94: 0 | AG94: 0 | AH94: 0 | AI94: 0 | AJ94: 0 | AK94: 0 | AL94: 0 | AM94: 0 | AN94: 0 | AO94: 0 | AP94: 0 | AQ94: 0 | AR94: 0 | AS94: 0 | AT94: 0 | AU94: 0 | AV94: 0 | AW94: 0 | AX94: 0 | AY94: 0 | AZ94: 0 | BA94: 0 | BB94: 0 | BC94: 0 | BD94: 0 | BE94: 0 | BF94: 0 | BG94: 0 | BH94: 0 | BI94: 0 | BJ94: 0 | BK94: 0 | BL94: 0 | BM94: 0 | BN94: 0 | BO94: 0 | BP94: 0 | BQ94: 0 | BR94: 0 | BS94: 0 | BT94: 0 | BU94: 0 | BV94: 0 | BW94: 0 | BX94: 0 | BY94: 0 | BZ94: 0 | CA94: 0 | CB94: 0 | CC94: 0 | CD94: 0 | CE94: 0
D95: Cost title | E95: RPI | F95: 4 | G95: 0 | H95: 0 | I95: 0 | J95: 0 | K95: 0 | L95: 0 | M95: 0 | N95: 0 | O95: 0 | P95: 0 | Q95: 0 | R95: 0 | S95: 0 | T95: 0 | U95: 0 | V95: 0 | W95: 0 | X95: 0 | Y95: 0 | Z95: 0 | AA95: 0 | AB95: 0 | AC95: 0 | AD95: 0 | AE95: 0 | AF95: 0 | AG95: 0 | AH95: 0 | AI95: 0 | AJ95: 0 | AK95: 0 | AL95: 0 | AM95: 0 | AN95: 0 | AO95: 0 | AP95: 0 | AQ95: 0 | AR95: 0 | AS95: 0 | AT95: 0 | AU95: 0 | AV95: 0 | AW95: 0 | AX95: 0 | AY95: 0 | AZ95: 0 | BA95: 0 | BB95: 0 | BC95: 0 | BD95: 0 | BE95: 0 | BF95: 0 | BG95: 0 | BH95: 0 | BI95: 0 | BJ95: 0 | BK95: 0 | BL95: 0 | BM95: 0 | BN95: 0 | BO95: 0 | BP95: 0 | BQ95: 0 | BR95: 0 | BS95: 0 | BT95: 0 | BU95: 0 | BV95: 0 | BW95: 0 | BX95: 0 | BY95: 0 | BZ95: 0 | CA95: 0 | CB95: 0 | CC95: 0 | CD95: 0 | CE95: 0
D96: Cost title | E96: RPI | F96: 4 | G96: 0 | H96: 0 | I96: 0 | J96: 0 | K96: 0 | L96: 0 | M96: 0 | N96: 0 | O96: 0 | P96: 0 | Q96: 0 | R96: 0 | S96: 0 | T96: 0 | U96: 0 | V96: 0 | W96: 0 | X96: 0 | Y96: 0 | Z96: 0 | AA96: 0 | AB96: 0 | AC96: 0 | AD96: 0 | AE96: 0 | AF96: 0 | AG96: 0 | AH96: 0 | AI96: 0 | AJ96: 0 | AK96: 0 | AL96: 0 | AM96: 0 | AN96: 0 | AO96: 0 | AP96: 0 | AQ96: 0 | AR96: 0 | AS96: 0 | AT96: 0 | AU96: 0 | AV96: 0 | AW96: 0 | AX96: 0 | AY96: 0 | AZ96: 0 | BA96: 0 | BB96: 0 | BC96: 0 | BD96: 0 | BE96: 0 | BF96: 0 | BG96: 0 | BH96: 0 | BI96: 0 | BJ96: 0 | BK96: 0 | BL96: 0 | BM96: 0 | BN96: 0 | BO96: 0 | BP96: 0 | BQ96: 0 | BR96: 0 | BS96: 0 | BT96: 0 | BU96: 0 | BV96: 0 | BW96: 0 | BX96: 0 | BY96: 0 | BZ96: 0 | CA96: 0 | CB96: 0 | CC96: 0 | CD96: 0 | CE96: 0
D97: Cost title | E97: RPI | F97: 4 | G97: 0 | H97: 0 | I97: 0 | J97: 0 | K97: 0 | L97: 0 | M97: 0 | N97: 0 | O97: 0 | P97: 0 | Q97: 0 | R97: 0 | S97: 0 | T97: 0 | U97: 0 | V97: 0 | W97: 0 | X97: 0 | Y97: 0 | Z97: 0 | AA97: 0 | AB97: 0 | AC97: 0 | AD97: 0 | AE97: 0 | AF97: 0 | AG97: 0 | AH97: 0 | AI97: 0 | AJ97: 0 | AK97: 0 | AL97: 0 | AM97: 0 | AN97: 0 | AO97: 0 | AP97: 0 | AQ97: 0 | AR97: 0 | AS97: 0 | AT97: 0 | AU97: 0 | AV97: 0 | AW97: 0 | AX97: 0 | AY97: 0 | AZ97: 0 | BA97: 0 | BB97: 0 | BC97: 0 | BD97: 0 | BE97: 0 | BF97: 0 | BG97: 0 | BH97: 0 | BI97: 0 | BJ97: 0 | BK97: 0 | BL97: 0 | BM97: 0 | BN97: 0 | BO97: 0 | BP97: 0 | BQ97: 0 | BR97: 0 | BS97: 0 | BT97: 0 | BU97: 0 | BV97: 0 | BW97: 0 | BX97: 0 | BY97: 0 | BZ97: 0 | CA97: 0 | CB97: 0 | CC97: 0 | CD97: 0 | CE97: 0
D98: Cost title | E98: RPI | F98: 4 | G98: 0 | H98: 0 | I98: 0 | J98: 0 | K98: 0 | L98: 0 | M98: 0 | N98: 0 | O98: 0 | P98: 0 | Q98: 0 | R98: 0 | S98: 0 | T98: 0 | U98: 0 | V98: 0 | W98: 0 | X98: 0 | Y98: 0 | Z98: 0 | AA98: 0 | AB98: 0 | AC98: 0 | AD98: 0 | AE98: 0 | AF98: 0 | AG98: 0 | AH98: 0 | AI98: 0 | AJ98: 0 | AK98: 0 | AL98: 0 | AM98: 0 | AN98: 0 | AO98: 0 | AP98: 0 | AQ98: 0 | AR98: 0 | AS98: 0 | AT98: 0 | AU98: 0 | AV98: 0 | AW98: 0 | AX98: 0 | AY98: 0 | AZ98: 0 | BA98: 0 | BB98: 0 | BC98: 0 | BD98: 0 | BE98: 0 | BF98: 0 | BG98: 0 | BH98: 0 | BI98: 0 | BJ98: 0 | BK98: 0 | BL98: 0 | BM98: 0 | BN98: 0 | BO98: 0 | BP98: 0 | BQ98: 0 | BR98: 0 | BS98: 0 | BT98: 0 | BU98: 0 | BV98: 0 | BW98: 0 | BX98: 0 | BY98: 0 | BZ98: 0 | CA98: 0 | CB98: 0 | CC98: 0 | CD98: 0 | CE98: 0
D99: Total SPV costs | E99: 1735.061034 | G99: 0 | H99: 0 | I99: 0 | J99: 0 | K99: 0 | L99: 0 | M99: 62.55218257 | N99: 51.43857143 | O99: 49.43857143 | P99: 44.36409856 | Q99: 32.76622951 | R99: 32.76622951 | S99: 32.76622951 | T99: 32.76622951 | U99: 32.76622951 | V99: 32.76622951 | W99: 32.76622951 | X99: 34.76622951 | Y99: 32.76622951 | Z99: 32.76622951 | AA99: 32.76622951 | AB99: 32.76622951 | AC99: 32.76622951 | AD99: 32.76622951 | AE99: 32.76622951 | AF99: 32.76622951 | AG99: 32.76622951 | AH99: 34.76622951 | AI99: 32.76622951 | AJ99: 32.76622951 | AK99: 32.76622951 | AL99: 32.76622951 | AM99: 32.76622951 | AN99: 32.76622951 | AO99: 32.76622951 | AP99: 32.76622951 | AQ99: 32.76622951 | AR99: 34.76622951 | AS99: 32.76622951 | AT99: 32.76622951 | AU99: 32.76622951 | AV99: 32.76622951 | AW99: 32.76622951 | AX99: 32.76622951 | AY99: 32.76622951 | AZ99: 32.76622951 | BA99: 32.76622951 | BB99: 34.76622951 | BC99: 32.76622951 | BD99: 32.76622951 | BE99: 32.76622951 | BF99: 32.76622951 | BG99: 32.76622951 | BH99: 32.76622951 | BI99: 32.76622951 | BJ99: 44.7872817 | BK99: 0 | BL99: 0 | BM99: 0 | BN99: 0 | BO99: 0 | BP99: 0 | BQ99: 0 | BR99: 0 | BS99: 0 | BT99: 0 | BU99: 0 | BV99: 0 | BW99: 0 | BX99: 0 | BY99: 0 | BZ99: 0 | CA99: 0 | CB99: 0 | CC99: 0 | CD99: 0 | CE99: 0
D102: Insurance
D103: Operations Insurance | E103: RPI | F103: 4 | G103: 0 | H103: 0 | I103: 0 | J103: 0 | K103: 0 | L103: 0 | M103: 0 | N103: 0 | O103: 60.50637506 | P103: 0 | Q103: 60.50637506 | R103: 0 | S103: 60.50637506 | T103: 0 | U103: 60.50637506 | V103: 0 | W103: 60.50637506 | X103: 0 | Y103: 60.50637506 | Z103: 0 | AA103: 60.50637506 | AB103: 0 | AC103: 60.50637506 | AD103: 0 | AE103: 60.50637506 | AF103: 0 | AG103: 60.50637506 | AH103: 0 | AI103: 60.50637506 | AJ103: 0 | AK103: 60.50637506 | AL103: 0 | AM103: 60.50637506 | AN103: 0 | AO103: 60.50637506 | AP103: 0 | AQ103: 60.50637506 | AR103: 0 | AS103: 60.50637506 | AT103: 0 | AU103: 60.50637506 | AV103: 0 | AW103: 60.50637506 | AX103: 0 | AY103: 60.50637506 | AZ103: 0 | BA103: 60.50637506 | BB103: 0 | BC103: 60.50637506 | BD103: 0 | BE103: 60.50637506 | BF103: 0 | BG103: 60.50637506 | BH103: 0 | BI103: 60.50637506 | BJ103: 0 | BK103: 0 | BL103: 0
D104: smoothing | E104: RPI | F104: 4 | G104: 0 | H104: 0 | I104: 0 | J104: 0 | K104: 0 | L104: 0 | M104: 0 | BJ104: 0 | BK104: 0
B106: 2.4 | C106: Lifecycle Maintenance costs
D107: Lifecycle costs | E107: 9907.245415 | G107: 0 | H107: 0 | I107: 0 | J107: 0 | K107: 0 | L107: 0 | M107: 2.837189333 | N107: 16.17129994 | O107: 17.87245695 | P107: 28.2703174 | Q107: 28.25306391 | R107: 37.46334382 | S107: 40.84133078 | T107: 113.7126377 | U107: 121.6773189 | V107: 133.7807682 | W107: 124.9302288 | X107: 52.14187814 | Y107: 80.51291186 | Z107: 68.87677091 | AA107: 42.88700074 | AB107: 194.6410762 | AC107: 215.1006739 | AD107: 270.5132101 | AE107: 278.8028429 | AF107: 206.7170256 | AG107: 216.653189 | AH107: 207.5601681 | AI107: 171.9108018 | AJ107: 193.4137653 | AK107: 208.1686653 | AL107: 319.5353501 | AM107: 351.0441964 | AN107: 358.8458251 | AO107: 327.8427782 | AP107: 305.9301722 | AQ107: 303.0524075 | AR107: 292.0038944 | AS107: 292.4263321 | AT107: 252.9652921 | AU107: 248.1399458 | AV107: 316.8517004 | AW107: 333.3339806 | AX107: 348.4130894 | AY107: 406.4112389 | AZ107: 390.5966722 | BA107: 361.2556139 | BB107: 327.8088452 | BC107: 299.236632 | BD107: 117.473512 | BE107: 92.25232373 | BF107: 168.7784959 | BG107: 177.3128344 | BH107: 171.8336937 | BI107: 152.4480341 | BJ107: 117.7426189 | BK107: 0 | BL107: 0
D108: Smoothing | E108: 0 | G108: 0 | H108: 0 | I108: 0 | J108: 0 | K108: 0 | M108: 0 | N108: 0 | O108: 0 | P108: 0 | Q108: 0 | R108: 0 | S108: 0 | T108: 0 | U108: 0 | V108: 0 | W108: 9 | X108: 86 | Y108: 58 | Z108: 70 | AA108: 101 | AB108: -50 | AC108: -65 | AD108: -110 | AE108: -93 | AF108: 7 | AG108: 15 | AH108: 34 | AI108: 71 | AJ108: 54 | AK108: 55 | AL108: -51 | AM108: -71 | AN108: -67 | AO108: -24 | AP108: 2 | AQ108: -2 | AR108: 11 | AS108: 15 | AT108: 55 | AU108: 65 | AV108: 1 | AW108: -16 | AX108: -25 | AY108: -68 | AZ108: -49 | BA108: -10 | BB108: 14 | BC108: -21 | BD108: 25 | BE108: 49 | BF108: -15 | BG108: -15 | BH108: -15 | BI108: -15 | BJ108: -15
D109: Cost title | E109: 0 | G109: 0 | H109: 0 | I109: 0 | J109: 0 | K109: 0 | L109: 0 | M109: 0
D110: Cost title | E110: 0 | G110: 0 | H110: 0 | I110: 0 | J110: 0 | K110: 0 | L110: 0 | M110: 0
D111: Cost title | E111: 0 | G111: 0 | H111: 0 | I111: 0 | J111: 0 | K111: 0 | L111: 0 | M111: 0
D112: Cost title | E112: 0 | G112: 0 | H112: 0 | I112: 0 | J112: 0 | K112: 0 | L112: 0 | M112: 0
D113: Total Lifecycle Maintenance | E113: 9907.245415 | G113: 0 | H113: 0 | I113: 0 | J113: 0 | K113: 0 | L113: 0 | M113: 2.837189333 | N113: 16.17129994 | O113: 17.87245695 | P113: 28.2703174 | Q113: 28.25306391 | R113: 37.46334382 | S113: 40.84133078 | T113: 113.7126377 | U113: 121.6773189 | V113: 133.7807682 | W113: 133.9302288 | X113: 138.1418781 | Y113: 138.5129119 | Z113: 138.8767709 | AA113: 143.8870007 | AB113: 144.6410762 | AC113: 150.1006739 | AD113: 160.5132101 | AE113: 185.8028429 | AF113: 213.7170256 | AG113: 231.653189 | AH113: 241.5601681 | AI113: 242.9108018 | AJ113: 247.4137653 | AK113: 263.1686653 | AL113: 268.5353501 | AM113: 280.0441964 | AN113: 291.8458251 | AO113: 303.8427782 | AP113: 307.9301722 | AQ113: 301.0524075 | AR113: 303.0038944 | AS113: 307.4263321 | AT113: 307.9652921 | AU113: 313.1399458 | AV113: 317.8517004 | AW113: 317.3339806 | AX113: 323.4130894 | AY113: 338.4112389 | AZ113: 341.5966722 | BA113: 351.2556139 | BB113: 341.8088452 | BC113: 278.236632 | BD113: 142.473512 | BE113: 141.2523237 | BF113: 153.7784959 | BG113: 162.3128344 | BH113: 156.8336937 | BI113: 137.4480341 | BJ113: 102.7426189 | BK113: 0 | BL113: 0
D114: Allocation % | M114: 0 | N114: 0 | O114: 0 | P114: 0 | Q114: 0 | R114: 0 | S114: 0 | T114: 0 | U114: 0 | V114: 0 | W114: 9 | X114: 95 | Y114: 153 | Z114: 223 | AA114: 324 | AB114: 274 | AC114: 209 | AD114: 99 | AE114: 6 | AF114: 13 | AG114: 28 | AH114: 62 | AI114: 133 | AJ114: 187 | AK114: 242 | AL114: 191 | AM114: 120 | AN114: 53 | AO114: 29 | AP114: 31 | AQ114: 29 | AR114: 40 | AS114: 55 | AT114: 110 | AU114: 175 | AV114: 176 | AW114: 160 | AX114: 135 | AY114: 67 | AZ114: 18 | BA114: 8 | BB114: 22 | BC114: 1 | BD114: 26 | BE114: 75 | BF114: 60 | BG114: 45 | BH114: 30 | BI114: 15 | BJ114: 0
D115: Works | E115: RPI | F115: 4 | G115: 0 | H115: 0 | I115: 0 | J115: 0 | K115: 0 | L115: 1 | M115: 1 | N115: 1 | O115: 1 | P115: 1 | Q115: 1 | R115: 1 | S115: 1 | T115: 1 | U115: 1 | V115: 1 | W115: 1 | X115: 1 | Y115: 1 | Z115: 1 | AA115: 1 | AB115: 1 | AC115: 1 | AD115: 1 | AE115: 1 | AF115: 1 | AG115: 1 | AH115: 1 | AI115: 1 | AJ115: 1 | AK115: 1 | AL115: 1 | AM115: 1 | AN115: 1 | AO115: 1 | AP115: 1 | AQ115: 1 | AR115: 1 | AS115: 1 | AT115: 1 | AU115: 1 | AV115: 1 | AW115: 1 | AX115: 1 | AY115: 1 | AZ115: 1 | BA115: 1 | BB115: 1 | BC115: 1 | BD115: 1 | BE115: 1 | BF115: 1 | BG115: 1 | BH115: 1 | BI115: 1 | BJ115: 1 | BK115: 1 | BL115: 1
D116: M&E | E116: RPI | F116: 4 | G116: 0 | H116: 0 | I116: 0 | J116: 0 | K116: 0 | L116: 0 | M116: 0 | N116: 0 | O116: 0 | P116: 0 | Q116: 0 | R116: 0 | S116: 0 | T116: 0 | U116: 0 | V116: 0 | W116: 0 | X116: 0 | Y116: 0 | Z116: 0 | AA116: 0 | AB116: 0 | AC116: 0 | AD116: 0 | AE116: 0 | AF116: 0 | AG116: 0 | AH116: 0 | AI116: 0 | AJ116: 0 | AK116: 0 | AL116: 0 | AM116: 0 | AN116: 0 | AO116: 0 | AP116: 0 | AQ116: 0 | AR116: 0 | AS116: 0 | AT116: 0 | AU116: 0 | AV116: 0 | AW116: 0 | AX116: 0 | AY116: 0 | AZ116: 0 | BA116: 0 | BB116: 0 | BC116: 0 | BD116: 0 | BE116: 0 | BF116: 0 | BG116: 0 | BH116: 0 | BI116: 0 | BJ116: 0 | BK116: 0 | BL116: 0
D117: Retention | E117: RPI | F117: 4 | G117: 0 | H117: 0 | I117: 0 | J117: 0 | K117: 0 | L117: 0 | M117: 0 | N117: 0 | O117: 0 | P117: 0 | Q117: 0 | R117: 0 | S117: 0 | T117: 0 | U117: 0 | V117: 0 | W117: 0 | X117: 0 | Y117: 0 | Z117: 0 | AA117: 0 | AB117: 0 | AC117: 0 | AD117: 0 | AE117: 0 | AF117: 0 | AG117: 0 | AH117: 0 | AI117: 0 | AJ117: 0 | AK117: 0 | AL117: 0 | AM117: 0 | AN117: 0 | AO117: 0 | AP117: 0 | AQ117: 0 | AR117: 0 | AS117: 0 | AT117: 0 | AU117: 0 | AV117: 0 | AW117: 0 | AX117: 0 | AY117: 0 | AZ117: 0 | BA117: 0 | BB117: 0 | BC117: 0 | BD117: 0 | BE117: 0 | BF117: 0 | BG117: 0 | BH117: 0 | BI117: 0 | BJ117: 0 | BK117: 0 | BL117: 0
D118: Grounds | E118: RPI | F118: 4 | G118: 0 | H118: 0 | I118: 0 | J118: 0 | K118: 0 | L118: 0 | M118: 0 | N118: 0 | O118: 0 | P118: 0 | Q118: 0 | R118: 0 | S118: 0 | T118: 0 | U118: 0 | V118: 0 | W118: 0 | X118: 0 | Y118: 0 | Z118: 0 | AA118: 0 | AB118: 0 | AC118: 0 | AD118: 0 | AE118: 0 | AF118: 0 | AG118: 0 | AH118: 0 | AI118: 0 | AJ118: 0 | AK118: 0 | AL118: 0 | AM118: 0 | AN118: 0 | AO118: 0 | AP118: 0 | AQ118: 0 | AR118: 0 | AS118: 0 | AT118: 0 | AU118: 0 | AV118: 0 | AW118: 0 | AX118: 0 | AY118: 0 | AZ118: 0 | BA118: 0 | BB118: 0 | BC118: 0 | BD118: 0 | BE118: 0 | BF118: 0 | BG118: 0 | BH118: 0 | BI118: 0 | BJ118: 0 | BK118: 0 | BL118: 0
D120: Lifecycle maintenance treatment | E120: Capitalise?
D121: =D115 -> Works | E121: 1 | F121: 1 - Capitalise, 0 - Expense | M121: =SUM($M$113:M113) -> 2.837189333 | N121: =SUM($M$113:N113) -> 19.00848927 | O121: =SUM($M$113:O113) -> 36.88094623 | P121: =SUM($M$113:P113) -> 65.15126362 | Q121: =SUM($M$113:Q113) -> 93.40432754 | R121: =SUM($M$113:R113) -> 130.8676714 | S121: =SUM($M$113:S113) -> 171.7090021 | T121: =SUM($M$113:T113) -> 285.4216399 | U121: =SUM($M$113:U113) -> 407.0989587 | V121: =SUM($M$113:V113) -> 540.8797269 | W121: =SUM($M$113:W113) -> 674.8099558 | X121: =SUM($M$113:X113) -> 812.9518339 | Y121: =SUM($M$113:Y113) -> 951.4647458 | Z121: =SUM($M$113:Z113) -> 1090.341517 | AA121: =SUM($M$113:AA113) -> 1234.228517 | AB121: =SUM($M$113:AB113) -> 1378.869594 | AC121: =SUM($M$113:AC113) -> 1528.970268 | AD121: =SUM($M$113:AD113) -> 1689.483478 | AE121: =SUM($M$113:AE113) -> 1875.286321 | AF121: =SUM($M$113:AF113) -> 2089.003346 | AG121: =SUM($M$113:AG113) -> 2320.656535 | AH121: =SUM($M$113:AH113) -> 2562.216703 | AI121: =SUM($M$113:AI113) -> 2805.127505 | AJ121: =SUM($M$113:AJ113) -> 3052.54127 | AK121: =SUM($M$113:AK113) -> 3315.709936 | AL121: =SUM($M$113:AL113) -> 3584.245286 | AM121: =SUM($M$113:AM113) -> 3864.289482 | AN121: =SUM($M$113:AN113) -> 4156.135307 | AO121: =SUM($M$113:AO113) -> 4459.978085 | AP121: =SUM($M$113:AP113) -> 4767.908257 | AQ121: =SUM($M$113:AQ113) -> 5068.960665 | AR121: =SUM($M$113:AR113) -> 5371.964559 | AS121: =SUM($M$113:AS113) -> 5679.390891 | AT121: =SUM($M$113:AT113) -> 5987.356184 | AU121: =SUM($M$113:AU113) -> 6300.496129 | AV121: =SUM($M$113:AV113) -> 6618.34783 | AW121: =SUM($M$113:AW113) -> 6935.68181 | AX121: =SUM($M$113:AX113) -> 7259.0949 | AY121: =SUM($M$113:AY113) -> 7597.506139 | AZ121: =SUM($M$113:AZ113) -> 7939.102811 | BA121: =SUM($M$113:BA113) -> 8290.358425 | BB121: =SUM($M$113:BB113) -> 8632.16727 | BC121: =SUM($M$113:BC113) -> 8910.403902 | BD121: =SUM($M$113:BD113) -> 9052.877414 | BE121: =SUM($M$113:BE113) -> 9194.129738 | BF121: =SUM($M$113:BF113) -> 9347.908234 | BG121: =SUM($M$113:BG113) -> 9510.221068 | BH121: =SUM($M$113:BH113) -> 9667.054762 | BI121: =SUM($M$113:BI113) -> 9804.502796 | BJ121: =SUM($M$113:BJ113) -> 9907.245415 | BK121: =SUM($M$113:BK113) -> 9907.245415
D122: =D116 -> M&E | E122: 0 | F122: 1 - Capitalise, 0 - Expense | M122: =SUM($M$114:M114) -> 0 | N122: =SUM($M$114:N114) -> 0 | O122: =SUM($M$114:O114) -> 0 | P122: =SUM($M$114:P114) -> 0 | Q122: =SUM($M$114:Q114) -> 0 | R122: =SUM($M$114:R114) -> 0 | S122: =SUM($M$114:S114) -> 0 | T122: =SUM($M$114:T114) -> 0 | U122: =SUM($M$114:U114) -> 0 | V122: =SUM($M$114:V114) -> 0 | W122: =SUM($M$114:W114) -> 9 | X122: =SUM($M$114:X114) -> 104 | Y122: =SUM($M$114:Y114) -> 257 | Z122: =SUM($M$114:Z114) -> 480 | AA122: =SUM($M$114:AA114) -> 804 | AB122: =SUM($M$114:AB114) -> 1078 | AC122: =SUM($M$114:AC114) -> 1287 | AD122: =SUM($M$114:AD114) -> 1386 | AE122: =SUM($M$114:AE114) -> 1392 | AF122: =SUM($M$114:AF114) -> 1405 | AG122: =SUM($M$114:AG114) -> 1433 | AH122: =SUM($M$114:AH114) -> 1495 | AI122: =SUM($M$114:AI114) -> 1628 | AJ122: =SUM($M$114:AJ114) -> 1815 | AK122: =SUM($M$114:AK114) -> 2057 | AL122: =SUM($M$114:AL114) -> 2248 | AM122: =SUM($M$114:AM114) -> 2368 | AN122: =SUM($M$114:AN114) -> 2421 | AO122: =SUM($M$114:AO114) -> 2450 | AP122: =SUM($M$114:AP114) -> 2481 | AQ122: =SUM($M$114:AQ114) -> 2510 | AR122: =SUM($M$114:AR114) -> 2550 | AS122: =SUM($M$114:AS114) -> 2605 | AT122: =SUM($M$114:AT114) -> 2715 | AU122: =SUM($M$114:AU114) -> 2890 | AV122: =SUM($M$114:AV114) -> 3066 | AW122: =SUM($M$114:AW114) -> 3226 | AX122: =SUM($M$114:AX114) -> 3361 | AY122: =SUM($M$114:AY114) -> 3428 | AZ122: =SUM($M$114:AZ114) -> 3446 | BA122: =SUM($M$114:BA114) -> 3454 | BB122: =SUM($M$114:BB114) -> 3476 | BC122: =SUM($M$114:BC114) -> 3477 | BD122: =SUM($M$114:BD114) -> 3503 | BE122: =SUM($M$114:BE114) -> 3578 | BF122: =SUM($M$114:BF114) -> 3638 | BG122: =SUM($M$114:BG114) -> 3683 | BH122: =SUM($M$114:BH114) -> 3713 | BI122: =SUM($M$114:BI114) -> 3728 | BJ122: =SUM($M$114:BJ114) -> 3728 | BK122: =SUM($M$114:BK114) -> 3728
D123: =D117 -> Retention | E123: 1 | F123: 1 - Capitalise, 0 - Expense | M123: =SUM(M121-M122) -> 2.837189333 | N123: =SUM(N121-N122) -> 19.00848927 | O123: 36.88094623 | P123: 65.15126362 | Q123: 93.40432754 | R123: 130.8676714 | S123: 171.7090021 | T123: 285.4216399 | U123: 407.0989587 | V123: 540.8797269 | W123: 665.8099558 | X123: 708.9518339 | Y123: 694.4647458 | Z123: 610.3415167 | AA123: 430.2285174 | AB123: 300.8695936 | AC123: 241.9702676 | AD123: 303.4834776 | AE123: 483.2863205 | AF123: 684.0033461 | AG123: 887.6565351 | AH123: 1067.216703 | AI123: 1177.127505 | AJ123: 1237.54127 | AK123: 1258.709936 | AL123: 1336.245286 | AM123: 1496.289482 | AN123: 1735.135307 | AO123: 2009.978085 | AP123: 2286.908257 | AQ123: 2558.960665 | AR123: 2821.964559 | AS123: 3074.390891 | AT123: 3272.356184 | AU123: 3410.496129 | AV123: 3552.34783 | AW123: 3709.68181 | AX123: 3898.0949 | AY123: 4169.506139 | AZ123: 4493.102811 | BA123: 4836.358425 | BB123: 5156.16727 | BC123: 5433.403902 | BD123: 5549.877414 | BE123: 5616.129738 | BF123: 5709.908234 | BG123: 5827.221068 | BH123: 5954.054762 | BI123: 6076.502796 | BJ123: 6179.245415 | BK123: 6179.245415
D124: =D118 -> Grounds | E124: 0 | F124: 1 - Capitalise, 0 - Expense
B126: =Header2 -> 2.5 | C126: Pass through costs
D127: Rates | E127: =SUM(G127:CE127) -> 0
D128: Utilities | E128: =SUM(G128:CE128) -> 0
N129: =SUM(N127:N128) -> 0 | O129: =SUM(O127:O128) -> 0 | P129: 0 | Q129: 0 | R129: 0 | S129: 0 | T129: 0 | U129: 0 | V129: 0 | W129: 0 | X129: 0 | Y129: 0 | Z129: 0 | AA129: 0 | AB129: 0 | AC129: 0 | AD129: 0 | AE129: 0 | AF129: 0 | AG129: 0 | AH129: 0 | AI129: 0 | AJ129: 0 | AK129: 0 | AL129: 0 | AM129: 0 | AN129: 0 | AO129: 0 | AP129: 0 | AQ129: 0 | AR129: 0 | AS129: 0 | AT129: 0 | AU129: 0 | AV129: 0 | AW129: 0 | AX129: 0 | AY129: 0 | AZ129: 0 | BA129: 0 | BB129: 0 | BC129: 0 | BD129: 0 | BE129: 0 | BF129: 0 | BG129: 0 | BH129: 0 | BI129: 0 | BJ129: 0 | BK129: 0 | BL129: 0
A132: =Header1 -> 3 | B132: Funding Margins
D134: LIBOR Input (rates) - annual | G134: =Scenario_Control!$E$34 -> 0.042875 | H134: =G134 -> 0.042875 | I134: =H134 -> 0.042875 | J134: 0.042875 | K134: 0.042875 | L134: 0.042875 | M134: 0.042875 | N134: 0.042875 | O134: 0.042875 | P134: 0.042875 | Q134: 0.042875 | R134: 0.042875 | S134: 0.042875 | T134: 0.042875 | U134: 0.042875 | V134: 0.042875 | W134: 0.042875 | X134: 0.042875 | Y134: 0.042875 | Z134: 0.042875 | AA134: 0.042875 | AB134: 0.042875 | AC134: 0.042875 | AD134: 0.042875 | AE134: 0.042875 | AF134: 0.042875 | AG134: 0.042875 | AH134: 0.042875 | AI134: 0.042875 | AJ134: 0.042875 | AK134: 0.042875 | AL134: 0.042875 | AM134: 0.042875 | AN134: 0.042875 | AO134: 0.042875 | AP134: 0.042875 | AQ134: 0.042875 | AR134: 0.042875 | AS134: 0.042875 | AT134: 0.042875 | AU134: 0.042875 | AV134: 0.042875 | AW134: 0.042875 | AX134: 0.042875 | AY134: 0.042875 | AZ134: 0.042875 | BA134: 0.042875 | BB134: 0.042875 | BC134: 0.042875 | BD134: 0.042875 | BE134: 0.042875 | BF134: 0.042875 | BG134: 0.042875 | BH134: 0.042875 | BI134: 0.042875 | BJ134: 0.042875 | BK134: 0.042875 | BL134: =BK134 -> 0.042875
D136: Deposit interest margin (annual) | G136: =1.5%-G134 -> -0.027875 | H136: =1.5%-H134 -> -0.027875 | I136: -0.027875 | J136: -0.027875 | K136: -0.027875 | L136: -0.027875 | M136: -0.027875 | N136: -0.027875 | O136: -0.027875 | P136: -0.027875 | Q136: -0.027875 | R136: -0.027875 | S136: -0.027875 | T136: -0.027875 | U136: -0.027875 | V136: =2%-V134 -> -0.022875 | W136: =2%-W134 -> -0.022875 | X136: -0.022875 | Y136: -0.022875 | Z136: -0.022875 | AA136: -0.022875 | AB136: -0.022875 | AC136: -0.022875 | AD136: -0.022875 | AE136: -0.022875 | AF136: -0.022875 | AG136: -0.022875 | AH136: -0.022875 | AI136: -0.022875 | AJ136: -0.022875 | AK136: -0.022875 | AL136: -0.022875 | AM136: -0.022875 | AN136: =2.5%-AN134 -> -0.017875 | AO136: =2.5%-AO134 -> -0.017875 | AP136: -0.017875 | AQ136: -0.017875 | AR136: -0.017875 | AS136: -0.017875 | AT136: -0.017875 | AU136: -0.017875 | AV136: -0.017875 | AW136: -0.017875 | AX136: -0.017875 | AY136: -0.017875 | AZ136: -0.017875 | BA136: -0.017875 | BB136: -0.017875 | BC136: -0.017875 | BD136: -0.017875 | BE136: -0.017875 | BF136: -0.017875 | BG136: -0.017875 | BH136: -0.017875 | BI136: -0.017875 | BJ136: -0.017875 | BK136: -0.017875 | BL136: -0.017875
D137: Overdraft interest margin (annual) | G137: 0.025 | H137: 0.025 | I137: 0.025 | J137: 0.025 | K137: 0.025 | L137: 0.025 | M137: 0.025 | N137: 0.025 | O137: 0.025 | P137: 0.025 | Q137: 0.025 | R137: 0.025 | S137: 0.025 | T137: 0.025 | U137: 0.025 | V137: 0.025 | W137: 0.025 | X137: 0.025 | Y137: 0.025 | Z137: 0.025 | AA137: 0.025 | AB137: 0.025 | AC137: 0.025 | AD137: 0.025 | AE137: 0.025 | AF137: 0.025 | AG137: 0.025 | AH137: 0.025 | AI137: 0.025 | AJ137: 0.025 | AK137: 0.025 | AL137: 0.025 | AM137: 0.025 | AN137: 0.025 | AO137: 0.025 | AP137: 0.025 | AQ137: 0.025 | AR137: 0.025 | AS137: 0.025 | AT137: 0.025 | AU137: 0.025 | AV137: 0.025 | AW137: 0.025 | AX137: 0.025 | AY137: 0.025 | AZ137: 0.025 | BA137: 0.025 | BB137: 0.025 | BC137: 0.025 | BD137: 0.025 | BE137: 0.025 | BF137: 0.025 | BG137: 0.025 | BH137: 0.025 | BI137: 0.025 | BJ137: 0.025 | BK137: 0.025 | BL137: 0.025
A139: =Header1 -> 4 | B139: Funding - Manually Sculpted Repayments | F139: (£'000 - Nominal)
D141: Debt Service Cover Ratio | G141: =Ops!G2463 -> Const | H141: =Ops!H2463 -> Const | I141: =Ops!I2463 -> Const | J141: =Ops!J2463 -> Const | K141: =Ops!K2463 -> Const | L141: =Ops!L2463 -> Const | M141: =Ops!M2463 -> 1.168160189 | N141: =Ops!N2463 -> 1.158540623 | O141: =Ops!O2463 -> 1.154 | P141: =Ops!P2463 -> 1.154 | Q141: =Ops!Q2463 -> 1.154 | R141: =Ops!R2463 -> 1.154 | S141: =Ops!S2463 -> 1.154 | T141: =Ops!T2463 -> 1.154 | U141: =Ops!U2463 -> 1.154 | V141: =Ops!V2463 -> 1.154 | W141: =Ops!W2463 -> 1.154 | X141: =Ops!X2463 -> 1.154 | Y141: =Ops!Y2463 -> 1.154 | Z141: =Ops!Z2463 -> 1.154 | AA141: =Ops!AA2463 -> 1.154 | AB141: =Ops!AB2463 -> 1.154 | AC141: =Ops!AC2463 -> 1.154 | AD141: =Ops!AD2463 -> 1.154 | AE141: =Ops!AE2463 -> 1.154 | AF141: =Ops!AF2463 -> 1.154 | AG141: =Ops!AG2463 -> 1.154 | AH141: =Ops!AH2463 -> 1.154 | AI141: =Ops!AI2463 -> 1.154 | AJ141: =Ops!AJ2463 -> 1.154 | AK141: =Ops!AK2463 -> 1.154 | AL141: =Ops!AL2463 -> 1.154 | AM141: =Ops!AM2463 -> 1.154 | AN141: =Ops!AN2463 -> 1.154 | AO141: =Ops!AO2463 -> 1.154 | AP141: =Ops!AP2463 -> 1.154 | AQ141: =Ops!AQ2463 -> 1.154491439 | AR141: =Ops!AR2463 -> 1.155 | AS141: =Ops!AS2463 -> 1.155 | AT141: =Ops!AT2463 -> 1.155 | AU141: =Ops!AU2463 -> 1.155 | AV141: =Ops!AV2463 -> 1.155 | AW141: =Ops!AW2463 -> 1.155 | AX141: =Ops!AX2463 -> 1.155 | AY141: =Ops!AY2463 -> 1.155 | AZ141: =Ops!AZ2463 -> 1.155 | BA141: =Ops!BA2463 -> 1.155 | BB141: =Ops!BB2463 -> 1.155 | BC141: =Ops!BC2463 -> 1.155 | BD141: =Ops!BD2463 -> 1.172424318 | BE141: =Ops!BE2463 -> 1.19 | BF141: =Ops!BF2463 -> 1.19 | BG141: =Ops!BG2463 -> 1.19 | BH141: =Ops!BH2463 -> 1.19 | BI141: =Ops!BI2463 -> 1.19 | BJ141: =Ops!BJ2463 -> 1.222477804 | BK141: =Ops!BK2463 -> No debt
D142: Loan Life Cover Ratio | G142: =Ops!G2508 -> Const | H142: =Ops!H2508 -> Const | I142: =Ops!I2508 -> Const | J142: =Ops!J2508 -> Const | K142: =Ops!K2508 -> Const | L142: =Ops!L2508 -> Const | M142: =Ops!M2508 -> 1.19061938 | N142: =Ops!N2508 -> 1.191735768 | O142: =Ops!O2508 -> 1.191672736 | P142: =Ops!P2508 -> 1.192466036 | Q142: =Ops!Q2508 -> 1.193135703 | R142: =Ops!R2508 -> 1.193788344 | S142: =Ops!S2508 -> 1.194279506 | T142: =Ops!T2508 -> 1.194992328 | U142: =Ops!U2508 -> 1.195484383 | V142: =Ops!V2508 -> 1.196237008 | W142: =Ops!W2508 -> 1.196782376 | X142: =Ops!X2508 -> 1.19759879 | Y142: =Ops!Y2508 -> 1.198315016 | Z142: =Ops!Z2508 -> 1.199089057 | AA142: =Ops!AA2508 -> 1.199747813 | AB142: =Ops!AB2508 -> 1.20065112 | AC142: =Ops!AC2508 -> 1.201285815 | AD142: =Ops!AD2508 -> 1.202133213 | AE142: =Ops!AE2508 -> 1.202700239 | AF142: =Ops!AF2508 -> 1.203510304 | AG142: =Ops!AG2508 -> 1.204169668 | AH142: =Ops!AH2508 -> 1.204883562 | AI142: =Ops!AI2508 -> 1.205447389 | AJ142: =Ops!AJ2508 -> 1.20627064 | AK142: =Ops!AK2508 -> 1.206816195 | AL142: =Ops!AL2508 -> 1.207621939 | AM142: =Ops!AM2508 -> 1.208155373 | AN142: =Ops!AN2508 -> 1.208984286 | AO142: =Ops!AO2508 -> 1.209674377 | AP142: =Ops!AP2508 -> 1.210627647 | AQ142: =Ops!AQ2508 -> 1.211357076 | AR142: =Ops!AR2508 -> 1.212269753 | AS142: =Ops!AS2508 -> 1.212924792 | AT142: =Ops!AT2508 -> 1.213933645 | AU142: =Ops!AU2508 -> 1.214660881 | AV142: =Ops!AV2508 -> 1.215761694 | AW142: =Ops!AW2508 -> 1.216641334 | AX142: =Ops!AX2508 -> 1.217706667 | AY142: =Ops!AY2508 -> 1.218772501 | AZ142: =Ops!AZ2508 -> 1.221028129 | BA142: =Ops!BA2508 -> 1.223829789 | BB142: =Ops!BB2508 -> 1.228584099 | BC142: =Ops!BC2508 -> 1.234879258 | BD142: =Ops!BD2508 -> 1.236912993 | BE142: =Ops!BE2508 -> 1.239443716 | BF142: =Ops!BF2508 -> 1.243754738 | BG142: =Ops!BG2508 -> 1.2537608 | BH142: =Ops!BH2508 -> 1.276717308 | BI142: =Ops!BI2508 -> 1.397814284 | BJ142: =Ops!BJ2508 -> No debt | BK142: =Ops!BK2508 -> No debt
D143: Sub debt interest rolled up | H143: =Ops!H115 -> 0 | I143: =Ops!I115 -> 0 | J143: =Ops!J115 -> 0 | K143: =Ops!K115 -> 0 | L143: =Ops!L115 -> 0 | M143: =Ops!M115 -> 0 | N143: =Ops!N115 -> 0 | O143: =Ops!O115 -> 0 | P143: =Ops!P115 -> 0 | Q143: =Ops!Q115 -> 0 | R143: =Ops!R115 -> 0 | S143: =Ops!S115 -> 0 | T143: =Ops!T115 -> 0 | U143: =Ops!U115 -> 0 | V143: =Ops!V115 -> 0 | W143: =Ops!W115 -> 0 | X143: =Ops!X115 -> 0 | Y143: =Ops!Y115 -> 0 | Z143: =Ops!Z115 -> 0 | AA143: =Ops!AA115 -> 0 | AB143: =Ops!AB115 -> 0 | AC143: =Ops!AC115 -> 0 | AD143: =Ops!AD115 -> 0 | AE143: =Ops!AE115 -> 0 | AF143: =Ops!AF115 -> 0 | AG143: =Ops!AG115 -> 0 | AH143: =Ops!AH115 -> 0 | AI143: =Ops!AI115 -> 0 | AJ143: =Ops!AJ115 -> 0 | AK143: =Ops!AK115 -> 0 | AL143: =Ops!AL115 -> 0 | AM143: =Ops!AM115 -> 0 | AN143: =Ops!AN115 -> 0 | AO143: =Ops!AO115 -> 0 | AP143: =Ops!AP115 -> 0 | AQ143: =Ops!AQ115 -> 0 | AR143: =Ops!AR115 -> 0 | AS143: =Ops!AS115 -> 0 | AT143: =Ops!AT115 -> 0 | AU143: =Ops!AU115 -> 0 | AV143: =Ops!AV115 -> 0 | AW143: =Ops!AW115 -> 0 | AX143: =Ops!AX115 -> 0 | AY143: =Ops!AY115 -> 0 | AZ143: =Ops!AZ115 -> 0 | BA143: =Ops!BA115 -> 0 | BB143: =Ops!BB115 -> 0 | BC143: =Ops!BC115 -> 0 | BD143: =Ops!BD115 -> 0 | BE143: =Ops!BE115 -> 0 | BF143: =Ops!BF115 -> 0 | BG143: =Ops!BG115 -> 0 | BH143: =Ops!BH115 -> 0 | BI143: =Ops!BI115 -> 0 | BJ143: =Ops!BJ115 -> 0 | BK143: =Ops!BK115 -> 0
D144: Senior Debt - Bond
D145: Senior Debt - Commercial Banks
D146: Senior Debt - EIB
D147: Mezzanine Debt
D148: Subordinated Debt
A150: =Header1 -> 5 | B150: Dividends | F150: (£'000 - Nominal)
D152: Manually Sculpting on Dividend Payments | E152: -ve
D153: Note : No dividends are payable during the construction period.
A155: =Header1 -> 6 | B155: Change of law facility | F155: (£'000 - Nominal)
D157: Change of law expenditure | E157: -ve
D158: Total Facility Size (£000) | E158: =TD_Con!$E$94*TI!$E$164 -> 1436.57613
A161: =Header1 -> 7 | B161: Cover ratio Lock ups
E162: Lockup Level
B163: Backwards ADSCR below lockup flag | E163: =Lock_up -> 1.1 | H163: =(Ops!H$2463<=Lock_up)*1 -> 0 | I163: =(Ops!I$2463<=Lock_up)*1 -> 0 | J163: =(Ops!J$2463<=Lock_up)*1 -> 0 | K163: =(Ops!K$2463<=Lock_up)*1 -> 0 | L163: =(Ops!L$2463<=Lock_up)*1 -> 0 | M163: =(Ops!M$2463<=Lock_up)*1 -> 0 | N163: =(Ops!N$2463<=Lock_up)*1 -> 0 | O163: =(Ops!O$2463<=Lock_up)*1 -> 0 | P163: =(Ops!P$2463<=Lock_up)*1 -> 0 | Q163: =(Ops!Q$2463<=Lock_up)*1 -> 0 | R163: =(Ops!R$2463<=Lock_up)*1 -> 0 | S163: =(Ops!S$2463<=Lock_up)*1 -> 0 | T163: =(Ops!T$2463<=Lock_up)*1 -> 0 | U163: =(Ops!U$2463<=Lock_up)*1 -> 0 | V163: =(Ops!V$2463<=Lock_up)*1 -> 0 | W163: =(Ops!W$2463<=Lock_up)*1 -> 0 | X163: =(Ops!X$2463<=Lock_up)*1 -> 0 | Y163: =(Ops!Y$2463<=Lock_up)*1 -> 0 | Z163: =(Ops!Z$2463<=Lock_up)*1 -> 0 | AA163: =(Ops!AA$2463<=Lock_up)*1 -> 0 | AB163: =(Ops!AB$2463<=Lock_up)*1 -> 0 | AC163: =(Ops!AC$2463<=Lock_up)*1 -> 0 | AD163: =(Ops!AD$2463<=Lock_up)*1 -> 0 | AE163: =(Ops!AE$2463<=Lock_up)*1 -> 0 | AF163: =(Ops!AF$2463<=Lock_up)*1 -> 0 | AG163: =(Ops!AG$2463<=Lock_up)*1 -> 0 | AH163: =(Ops!AH$2463<=Lock_up)*1 -> 0 | AI163: =(Ops!AI$2463<=Lock_up)*1 -> 0 | AJ163: =(Ops!AJ$2463<=Lock_up)*1 -> 0 | AK163: =(Ops!AK$2463<=Lock_up)*1 -> 0 | AL163: =(Ops!AL$2463<=Lock_up)*1 -> 0 | AM163: =(Ops!AM$2463<=Lock_up)*1 -> 0 | AN163: =(Ops!AN$2463<=Lock_up)*1 -> 0 | AO163: =(Ops!AO$2463<=Lock_up)*1 -> 0 | AP163: =(Ops!AP$2463<=Lock_up)*1 -> 0 | AQ163: =(Ops!AQ$2463<=Lock_up)*1 -> 0 | AR163: =(Ops!AR$2463<=Lock_up)*1 -> 0 | AS163: =(Ops!AS$2463<=Lock_up)*1 -> 0 | AT163: =(Ops!AT$2463<=Lock_up)*1 -> 0 | AU163: =(Ops!AU$2463<=Lock_up)*1 -> 0 | AV163: =(Ops!AV$2463<=Lock_up)*1 -> 0 | AW163: =(Ops!AW$2463<=Lock_up)*1 -> 0 | AX163: =(Ops!AX$2463<=Lock_up)*1 -> 0 | AY163: =(Ops!AY$2463<=Lock_up)*1 -> 0 | AZ163: =(Ops!AZ$2463<=Lock_up)*1 -> 0 | BA163: =(Ops!BA$2463<=Lock_up)*1 -> 0 | BB163: =(Ops!BB$2463<=Lock_up)*1 -> 0 | BC163: =(Ops!BC$2463<=Lock_up)*1 -> 0 | BD163: =(Ops!BD$2463<=Lock_up)*1 -> 0 | BE163: =(Ops!BE$2463<=Lock_up)*1 -> 0 | BF163: =(Ops!BF$2463<=Lock_up)*1 -> 0 | BG163: =(Ops!BG$2463<=Lock_up)*1 -> 0 | BH163: =(Ops!BH$2463<=Lock_up)*1 -> 0 | BI163: =(Ops!BI$2463<=Lock_up)*1 -> 0 | BJ163: =(Ops!BJ$2463<=Lock_up)*1 -> 0 | BK163: =(Ops!BK$2463<=Lock_up)*1 -> 0 | BL163: =(Ops!BL$2463<=Lock_up)*1 -> 0
B164: Forward ADSCR below lockup flag | E164: =Lock_up -> 1.1 | H164: =(Ops!H$2474<=Lock_up)*1 -> 0 | I164: =(Ops!I$2474<=Lock_up)*1 -> 0 | J164: =(Ops!J$2474<=Lock_up)*1 -> 0 | K164: =(Ops!K$2474<=Lock_up)*1 -> 0 | L164: =(Ops!L$2474<=Lock_up)*1 -> 0 | M164: =(Ops!M$2474<=Lock_up)*1 -> 0 | N164: =(Ops!N$2474<=Lock_up)*1 -> 0 | O164: =(Ops!O$2474<=Lock_up)*1 -> 0 | P164: =(Ops!P$2474<=Lock_up)*1 -> 0 | Q164: =(Ops!Q$2474<=Lock_up)*1 -> 0 | R164: =(Ops!R$2474<=Lock_up)*1 -> 0 | S164: =(Ops!S$2474<=Lock_up)*1 -> 0 | T164: =(Ops!T$2474<=Lock_up)*1 -> 0 | U164: =(Ops!U$2474<=Lock_up)*1 -> 0 | V164: =(Ops!V$2474<=Lock_up)*1 -> 0 | W164: =(Ops!W$2474<=Lock_up)*1 -> 0 | X164: =(Ops!X$2474<=Lock_up)*1 -> 0 | Y164: =(Ops!Y$2474<=Lock_up)*1 -> 0 | Z164: =(Ops!Z$2474<=Lock_up)*1 -> 0 | AA164: =(Ops!AA$2474<=Lock_up)*1 -> 0 | AB164: =(Ops!AB$2474<=Lock_up)*1 -> 0 | AC164: =(Ops!AC$2474<=Lock_up)*1 -> 0 | AD164: =(Ops!AD$2474<=Lock_up)*1 -> 0 | AE164: =(Ops!AE$2474<=Lock_up)*1 -> 0 | AF164: =(Ops!AF$2474<=Lock_up)*1 -> 0 | AG164: =(Ops!AG$2474<=Lock_up)*1 -> 0 | AH164: =(Ops!AH$2474<=Lock_up)*1 -> 0 | AI164: =(Ops!AI$2474<=Lock_up)*1 -> 0 | AJ164: =(Ops!AJ$2474<=Lock_up)*1 -> 0 | AK164: =(Ops!AK$2474<=Lock_up)*1 -> 0 | AL164: =(Ops!AL$2474<=Lock_up)*1 -> 0 | AM164: =(Ops!AM$2474<=Lock_up)*1 -> 0 | AN164: =(Ops!AN$2474<=Lock_up)*1 -> 0 | AO164: =(Ops!AO$2474<=Lock_up)*1 -> 0 | AP164: =(Ops!AP$2474<=Lock_up)*1 -> 0 | AQ164: =(Ops!AQ$2474<=Lock_up)*1 -> 0 | AR164: =(Ops!AR$2474<=Lock_up)*1 -> 0 | AS164: =(Ops!AS$2474<=Lock_up)*1 -> 0 | AT164: =(Ops!AT$2474<=Lock_up)*1 -> 0 | AU164: =(Ops!AU$2474<=Lock_up)*1 -> 0 | AV164: =(Ops!AV$2474<=Lock_up)*1 -> 0 | AW164: =(Ops!AW$2474<=Lock_up)*1 -> 0 | AX164: =(Ops!AX$2474<=Lock_up)*1 -> 0 | AY164: =(Ops!AY$2474<=Lock_up)*1 -> 0 | AZ164: =(Ops!AZ$2474<=Lock_up)*1 -> 0 | BA164: =(Ops!BA$2474<=Lock_up)*1 -> 0 | BB164: =(Ops!BB$2474<=Lock_up)*1 -> 0 | BC164: =(Ops!BC$2474<=Lock_up)*1 -> 0 | BD164: =(Ops!BD$2474<=Lock_up)*1 -> 0 | BE164: =(Ops!BE$2474<=Lock_up)*1 -> 0 | BF164: =(Ops!BF$2474<=Lock_up)*1 -> 0 | BG164: =(Ops!BG$2474<=Lock_up)*1 -> 0 | BH164: =(Ops!BH$2474<=Lock_up)*1 -> 0 | BI164: =(Ops!BI$2474<=Lock_up)*1 -> 0 | BJ164: =(Ops!BJ$2474<=Lock_up)*1 -> 0 | BK164: =(Ops!BK$2474<=Lock_up)*1 -> 0 | BL164: =(Ops!BL$2474<=Lock_up)*1 -> 0
B165: LLCR below lockup flag | E165: =TI!$E$161 -> 1.15 | H165: =(Ops!H$2508<=$E$165)*1 -> 0 | I165: =(Ops!I$2508<=$E$165)*1 -> 0 | J165: =(Ops!J$2508<=$E$165)*1 -> 0 | K165: =(Ops!K$2508<=$E$165)*1 -> 0 | L165: =(Ops!L$2508<=$E$165)*1 -> 0 | M165: =(Ops!M$2508<=$E$165)*1 -> 0 | N165: =(Ops!N$2508<=$E$165)*1 -> 0 | O165: =(Ops!O$2508<=$E$165)*1 -> 0 | P165: =(Ops!P$2508<=$E$165)*1 -> 0 | Q165: =(Ops!Q$2508<=$E$165)*1 -> 0 | R165: =(Ops!R$2508<=$E$165)*1 -> 0 | S165: =(Ops!S$2508<=$E$165)*1 -> 0 | T165: =(Ops!T$2508<=$E$165)*1 -> 0 | U165: =(Ops!U$2508<=$E$165)*1 -> 0 | V165: =(Ops!V$2508<=$E$165)*1 -> 0 | W165: =(Ops!W$2508<=$E$165)*1 -> 0 | X165: =(Ops!X$2508<=$E$165)*1 -> 0 | Y165: =(Ops!Y$2508<=$E$165)*1 -> 0 | Z165: =(Ops!Z$2508<=$E$165)*1 -> 0 | AA165: =(Ops!AA$2508<=$E$165)*1 -> 0 | AB165: =(Ops!AB$2508<=$E$165)*1 -> 0 | AC165: =(Ops!AC$2508<=$E$165)*1 -> 0 | AD165: =(Ops!AD$2508<=$E$165)*1 -> 0 | AE165: =(Ops!AE$2508<=$E$165)*1 -> 0 | AF165: =(Ops!AF$2508<=$E$165)*1 -> 0 | AG165: =(Ops!AG$2508<=$E$165)*1 -> 0 | AH165: =(Ops!AH$2508<=$E$165)*1 -> 0 | AI165: =(Ops!AI$2508<=$E$165)*1 -> 0 | AJ165: =(Ops!AJ$2508<=$E$165)*1 -> 0 | AK165: =(Ops!AK$2508<=$E$165)*1 -> 0 | AL165: =(Ops!AL$2508<=$E$165)*1 -> 0 | AM165: =(Ops!AM$2508<=$E$165)*1 -> 0 | AN165: =(Ops!AN$2508<=$E$165)*1 -> 0 | AO165: =(Ops!AO$2508<=$E$165)*1 -> 0 | AP165: =(Ops!AP$2508<=$E$165)*1 -> 0 | AQ165: =(Ops!AQ$2508<=$E$165)*1 -> 0 | AR165: =(Ops!AR$2508<=$E$165)*1 -> 0 | AS165: =(Ops!AS$2508<=$E$165)*1 -> 0 | AT165: =(Ops!AT$2508<=$E$165)*1 -> 0 | AU165: =(Ops!AU$2508<=$E$165)*1 -> 0 | AV165: =(Ops!AV$2508<=$E$165)*1 -> 0 | AW165: =(Ops!AW$2508<=$E$165)*1 -> 0 | AX165: =(Ops!AX$2508<=$E$165)*1 -> 0 | AY165: =(Ops!AY$2508<=$E$165)*1 -> 0 | AZ165: =(Ops!AZ$2508<=$E$165)*1 -> 0 | BA165: =(Ops!BA$2508<=$E$165)*1 -> 0 | BB165: =(Ops!BB$2508<=$E$165)*1 -> 0 | BC165: =(Ops!BC$2508<=$E$165)*1 -> 0 | BD165: =(Ops!BD$2508<=$E$165)*1 -> 0 | BE165: =(Ops!BE$2508<=$E$165)*1 -> 0 | BF165: =(Ops!BF$2508<=$E$165)*1 -> 0 | BG165: =(Ops!BG$2508<=$E$165)*1 -> 0 | BH165: =(Ops!BH$2508<=$E$165)*1 -> 0 | BI165: =(Ops!BI$2508<=$E$165)*1 -> 0 | BJ165: =(Ops!BJ$2508<=$E$165)*1 -> 0 | BK165: =(Ops!BK$2508<=$E$165)*1 -> 0 | BL165: =(Ops!BL$2508<=$E$165)*1 -> 0
H166: =MAX(H164:H165) -> 0 | I166: 0 | J166: 0 | K166: 0 | L166: 0 | M166: 0 | N166: 0 | O166: 0 | P166: 0 | Q166: 0 | R166: 0 | S166: 0 | T166: 0 | U166: 0 | V166: 0 | W166: 0 | X166: 0 | Y166: 0 | Z166: 0 | AA166: 0 | AB166: 0 | AC166: 0 | AD166: 0 | AE166: 0 | AF166: 0 | AG166: 0 | AH166: 0 | AI166: 0 | AJ166: 0 | AK166: 0 | AL166: 0 | AM166: 0 | AN166: =MAX(AN164:AN165) -> 0 | AO166: 0 | AP166: 0 | AQ166: 0 | AR166: 0 | AS166: 0 | AT166: 0 | AU166: 0 | AV166: 0 | AW166: 0 | AX166: 0 | AY166: 0 | AZ166: 0 | BA166: 0 | BB166: 0 | BC166: 0 | BD166: 0 | BE166: 0 | BF166: 0 | BG166: 0 | BH166: 0 | BI166: 0 | BJ166: 0 | BK166: 0 | BL166: 0
C168: Lock up check
D169: =Ops!D2538 -> Cover ratios below lock up | H169: =Ops!H2538 -> 0 | I169: =Ops!I2538 -> 0 | J169: =Ops!J2538 -> 0 | K169: =Ops!K2538 -> 0 | L169: =Ops!L2538 -> 0 | M169: =Ops!M2538 -> 0 | N169: =Ops!N2538 -> 0 | O169: =Ops!O2538 -> 0 | P169: =Ops!P2538 -> 0 | Q169: =Ops!Q2538 -> 0 | R169: =Ops!R2538 -> 0 | S169: =Ops!S2538 -> 0 | T169: =Ops!T2538 -> 0 | U169: =Ops!U2538 -> 0 | V169: =Ops!V2538 -> 0 | W169: =Ops!W2538 -> 0 | X169: =Ops!X2538 -> 0 | Y169: =Ops!Y2538 -> 0 | Z169: =Ops!Z2538 -> 0 | AA169: =Ops!AA2538 -> 0 | AB169: =Ops!AB2538 -> 0 | AC169: =Ops!AC2538 -> 0 | AD169: =Ops!AD2538 -> 0 | AE169: =Ops!AE2538 -> 0 | AF169: =Ops!AF2538 -> 0 | AG169: =Ops!AG2538 -> 0 | AH169: =Ops!AH2538 -> 0 | AI169: =Ops!AI2538 -> 0 | AJ169: =Ops!AJ2538 -> 0 | AK169: =Ops!AK2538 -> 0 | AL169: =Ops!AL2538 -> 0 | AM169: =Ops!AM2538 -> 0 | AN169: =Ops!AN2538 -> 0 | AO169: =Ops!AO2538 -> 0 | AP169: =Ops!AP2538 -> 0 | AQ169: =Ops!AQ2538 -> 0 | AR169: =Ops!AR2538 -> 0 | AS169: =Ops!AS2538 -> 0 | AT169: =Ops!AT2538 -> 0 | AU169: =Ops!AU2538 -> 0 | AV169: =Ops!AV2538 -> 0 | AW169: =Ops!AW2538 -> 0 | AX169: =Ops!AX2538 -> 0 | AY169: =Ops!AY2538 -> 0 | AZ169: =Ops!AZ2538 -> 0 | BA169: =Ops!BA2538 -> 0 | BB169: =Ops!BB2538 -> 0 | BC169: =Ops!BC2538 -> 0 | BD169: =Ops!BD2538 -> 0 | BE169: =Ops!BE2538 -> 0 | BF169: =Ops!BF2538 -> 0 | BG169: =Ops!BG2538 -> 0 | BH169: =Ops!BH2538 -> 0 | BI169: =Ops!BI2538 -> 0 | BJ169: =Ops!BJ2538 -> 0 | BK169: =Ops!BK2538 -> 0 | BL169: =Ops!BL2538 -> 0
D170: =Ops!D2539 -> Distributions to shareholders (sub debt and equity) | H170: =Ops!H2539 -> 0 | I170: =Ops!I2539 -> 0 | J170: =Ops!J2539 -> 0 | K170: =Ops!K2539 -> 0 | L170: =Ops!L2539 -> 0 | M170: =Ops!M2539 -> -162.4529998 | N170: =Ops!N2539 -> -325.628772 | O170: =Ops!O2539 -> -368.5727436 | P170: =Ops!P2539 -> -337.9804462 | Q170: =Ops!Q2539 -> -332.5238956 | R170: =Ops!R2539 -> -333.8161984 | S170: =Ops!S2539 -> -327.1443453 | T170: =Ops!T2539 -> -335.2200723 | U170: =Ops!U2539 -> -327.4685572 | V170: =Ops!V2539 -> -335.0300207 | W170: =Ops!W2539 -> -327.8567968 | X170: =Ops!X2539 -> -335.4134461 | Y170: =Ops!Y2539 -> -327.9368076 | Z170: =Ops!Z2539 -> -334.9174543 | AA170: =Ops!AA2539 -> -325.6971994 | AB170: =Ops!AB2539 -> -330.3818946 | AC170: =Ops!AC2539 -> -319.4504277 | AD170: =Ops!AD2539 -> -324.8068846 | AE170: =Ops!AE2539 -> -315.9808923 | AF170: =Ops!AF2539 -> -323.5261317 | AG170: =Ops!AG2539 -> -313.7907583 | AH170: =Ops!AH2539 -> -321.0082841 | AI170: =Ops!AI2539 -> -310.5587201 | AJ170: =Ops!AJ2539 -> -318.1182035 | AK170: =Ops!AK2539 -> -307.7878087 | AL170: =Ops!AL2539 -> -315.1927938 | AM170: =Ops!AM2539 -> -306.1940816 | AN170: =Ops!AN2539 -> -315.481414 | AO170: =Ops!AO2539 -> -306.7643689 | AP170: =Ops!AP2539 -> -315.557679 | AQ170: =Ops!AQ2539 -> -306.9142255 | AR170: =Ops!AR2539 -> -316.6843491 | AS170: =Ops!AS2539 -> -306.9776449 | AT170: =Ops!AT2539 -> -316.1046855 | AU170: =Ops!AU2539 -> -304.7593575 | AV170: =Ops!AV2539 -> -314.2308245 | AW170: =Ops!AW2539 -> -301.0173885 | AX170: =Ops!AX2539 -> -312.5251158 | AY170: =Ops!AY2539 -> -309.1876632 | AZ170: =Ops!AZ2539 -> -337.0753074 | BA170: =Ops!BA2539 -> -334.5752714 | BB170: =Ops!BB2539 -> -359.0144968 | BC170: =Ops!BC2539 -> -345.68814 | BD170: =Ops!BD2539 -> -420.097395 | BE170: =Ops!BE2539 -> -415.8087479 | BF170: =Ops!BF2539 -> -436.5864187 | BG170: =Ops!BG2539 -> -433.7966926 | BH170: =Ops!BH2539 -> -464.7678091 | BI170: =Ops!BI2539 -> -459.644389 | BJ170: =Ops!BJ2539 -> -1804.99735 | BK170: =Ops!BK2539 -> -1263.339086 | BL170: =Ops!BL2539 -> 0
B172: Restraints
B173: Manual lock up
B174: Retrain sub debt payment
A176: End

Sheet Const
A1: =Cover!$F$4 -> North West Fire & Rescue PFI Project | E1: Sensitivity Run? | F1: =Sensitivity_Run? -> FALSE
A2: ="Filename: "&Cover!$F$6 -> Filename: BBFR_NWFRS_Financial Model_230211_DRY RUN_09.49. | E2: Critical checks | F2: =Outputs!F5 -> ü
E3: Case in use | F3: =Scenario_Control!$I$1 -> Base Bid
B4: =TD_Con!D4 -> Construction dates | F4: =TD_Con!F4 -> 2011-02-24 | G4: =TD_Con!G4 -> 2011-02-28 | H4: =TD_Con!H4 -> 2011-03-31 | I4: =TD_Con!I4 -> 2011-04-30 | J4: =TD_Con!J4 -> 2011-05-31 | K4: =TD_Con!K4 -> 2011-06-30 | L4: =TD_Con!L4 -> 2011-07-31 | M4: =TD_Con!M4 -> 2011-08-31 | N4: =TD_Con!N4 -> 2011-09-30 | O4: =TD_Con!O4 -> 2011-10-31 | P4: =TD_Con!P4 -> 2011-11-30 | Q4: =TD_Con!Q4 -> 2011-12-31 | R4: =TD_Con!R4 -> 2012-01-31 | S4: =TD_Con!S4 -> 2012-02-29 | T4: =TD_Con!T4 -> 2012-03-31 | U4: =TD_Con!U4 -> 2012-04-30 | V4: =TD_Con!V4 -> 2012-05-31 | W4: =TD_Con!W4 -> 2012-06-30 | X4: =TD_Con!X4 -> 2012-07-31 | Y4: =TD_Con!Y4 -> 2012-08-31 | Z4: =TD_Con!Z4 -> 2012-09-30 | AA4: =TD_Con!AA4 -> 2012-10-31 | AB4: =TD_Con!AB4 -> 2012-11-30 | AC4: =TD_Con!AC4 -> 2012-12-31 | AD4: =TD_Con!AD4 -> 2013-01-31 | AE4: =TD_Con!AE4 -> 2013-02-28 | AF4: =TD_Con!AF4 -> 2013-03-31 | AG4: =TD_Con!AG4 -> 2013-04-30 | AH4: =TD_Con!AH4 -> 2013-05-31 | AI4: =TD_Con!AI4 -> 2013-06-30 | AJ4: =TD_Con!AJ4 -> 2013-07-31 | AK4: =TD_Con!AK4 -> 2013-08-31 | AL4: =TD_Con!AL4 -> 2013-09-30 | AM4: =TD_Con!AM4 -> 2013-10-31 | AN4: =TD_Con!AN4 -> 2013-11-30 | AO4: =TD_Con!AO4 -> 2013-12-31 | AP4: =TD_Con!AP4 -> 2014-01-31 | AQ4: =TD_Con!AQ4 -> 2014-02-28 | AR4: =TD_Con!AR4 -> 2014-03-31 | AS4: =TD_Con!AS4 -> 2014-04-30 | AT4: =TD_Con!AT4 -> 2014-05-31 | AU4: =TD_Con!AU4 -> 2014-06-30 | AV4: =TD_Con!AV4 -> 2014-07-31 | AW4: =TD_Con!AW4 -> 2014-08-31 | AX4: =TD_Con!AX4 -> 2014-09-30 | AY4: =TD_Con!AY4 -> 2014-10-31 | AZ4: =TD_Con!AZ4 -> 2014-11-30 | BA4: =TD_Con!BA4 -> 2014-12-31 | BB4: =TD_Con!BB4 -> 2015-01-31 | BC4: =TD_Con!BC4 -> 2015-02-28 | BD4: =TD_Con!BD4 -> 2015-03-31 | BE4: =TD_Con!BE4 -> 2015-04-30 | BF4: =TD_Con!BF4 -> 2015-05-31 | BG4: =TD_Con!BG4 -> 2015-06-30 | BH4: =TD_Con!BH4 -> 2015-07-31 | BI4: =TD_Con!BI4 -> 2015-08-31 | BJ4: =TD_Con!BJ4 -> 2015-09-30 | BK4: =TD_Con!BK4 -> 2015-10-31 | BL4: =TD_Con!BL4 -> 2015-11-30 | BM4: =TD_Con!BM4 -> 2015-12-31 | BN4: =TD_Con!BN4 -> 2016-01-31 | BO4: =TD_Con!BO4 -> 2016-02-29 | BP4: =TD_Con!BP4 -> 2016-03-31 | BQ4: =TD_Con!BQ4 -> 2016-04-30 | BR4: =TD_Con!BR4 -> 2016-05-31 | BS4: =TD_Con!BS4 -> 2016-06-30 | BT4: =TD_Con!BT4 -> 2016-07-31 | BU4: =TD_Con!BU4 -> 2016-08-31 | BV4: =TD_Con!BV4 -> 2016-09-30 | BW4: =TD_Con!BW4 -> 2016-10-31 | BX4: =TD_Con!BX4 -> 2016-11-30
B5: Semi-annual period number | G5: =G12 -> 1 | H5: =H12 -> 1 | I5: 2 | J5: 2 | K5: 2 | L5: 2 | M5: 2 | N5: 2 | O5: 3 | P5: 3 | Q5: 3 | R5: 3 | S5: 3 | T5: 3 | U5: 4 | V5: 4 | W5: 4 | X5: 4 | Y5: 4 | Z5: 4 | AA5: 5 | AB5: 5 | AC5: 5 | AD5: 5 | AE5: 5 | AF5: 5 | AG5: 6 | AH5: 6 | AI5: 6 | AJ5: 6 | AK5: 6 | AL5: 6 | AM5: 7 | AN5: 7 | AO5: 7 | AP5: 7 | AQ5: 7 | AR5: 7 | AS5: 8 | AT5: 8 | AU5: 8 | AV5: 8 | AW5: 8 | AX5: 8 | AY5: 9 | AZ5: 9 | BA5: 9 | BB5: 9 | BC5: 9 | BD5: 9 | BE5: 10 | BF5: 10 | BG5: 10 | BH5: 10 | BI5: 10 | BJ5: 10 | BK5: 11 | BL5: 11 | BM5: 11 | BN5: 11 | BO5: 11 | BP5: =BP12 -> 11 | BQ5: 12 | BR5: 12 | BS5: 12 | BT5: 12 | BU5: 12 | BV5: 12 | BW5: 13 | BX5: 13
B6: Phase | G6: =G13 -> 1 | H6: =H13 -> 1 | I6: 1 | J6: 1 | K6: 1 | L6: 1 | M6: 1 | N6: 1 | O6: 1 | P6: 1 | Q6: 1 | R6: 1 | S6: 1 | T6: 1 | U6: 1 | V6: 1 | W6: 1 | X6: 1 | Y6: 1 | Z6: 1 | AA6: 1 | AB6: 1 | AC6: 1 | AD6: 1 | AE6: 1 | AF6: 1 | AG6: 1 | AH6: 1 | AI6: 1 | AJ6: 0 | AK6: 0 | AL6: 0 | AM6: 0 | AN6: =AN13 -> 0 | AO6: 0 | AP6: 0 | AQ6: 0 | AR6: 0 | AS6: 0 | AT6: 0 | AU6: 0 | AV6: 0 | AW6: 0 | AX6: 0 | AY6: 0 | AZ6: 0 | BA6: 0 | BB6: 0 | BC6: 0 | BD6: 0 | BE6: 0 | BF6: 0 | BG6: 0 | BH6: 0 | BI6: 0 | BJ6: 0 | BK6: 0 | BL6: 0 | BM6: 0 | BN6: 0 | BO6: 0 | BP6: =BP13 -> 0 | BQ6: 0 | BR6: 0 | BS6: 0 | BT6: 0 | BU6: 0 | BV6: 0 | BW6: 0 | BX6: 0
B8: Timing flags
D10: Assumed days in period | G10: =TI!$E$208 -> 30 | H10: =G10 -> 30 | I10: 30 | J10: 30 | K10: 30 | L10: 30 | M10: 30 | N10: 30 | O10: 30 | P10: 30 | Q10: 30 | R10: 30 | S10: 30 | T10: 30 | U10: 30 | V10: 30 | W10: 30 | X10: 30 | Y10: 30 | Z10: 30 | AA10: 30 | AB10: 30 | AC10: 30 | AD10: 30 | AE10: 30 | AF10: 30 | AG10: 30 | AH10: 30 | AI10: 30 | AJ10: 30 | AK10: 30 | AL10: 30 | AM10: 30 | AN10: =AM10 -> 30 | AO10: 30 | AP10: 30 | AQ10: 30 | AR10: 30 | AS10: 30 | AT10: 30 | AU10: 30 | AV10: 30 | AW10: 30 | AX10: 30 | AY10: 30 | AZ10: 30 | BA10: 30 | BB10: 30 | BC10: 30 | BD10: 30 | BE10: 30 | BF10: 30 | BG10: 30 | BH10: 30 | BI10: 30 | BJ10: 30 | BK10: 30 | BL10: 30 | BM10: 30 | BN10: 30 | BO10: 30 | BP10: =BO10 -> 30 | BQ10: 30 | BR10: 30 | BS10: 30 | BT10: 30 | BU10: 30 | BV10: 30 | BW10: 30 | BX10: 30
D11: Month count | G11: =F11+1 -> 1 | H11: 2 | I11: 3 | J11: 4 | K11: 5 | L11: 6 | M11: 7 | N11: 8 | O11: 9 | P11: 10 | Q11: 11 | R11: 12 | S11: 13 | T11: 14 | U11: 15 | V11: 16 | W11: 17 | X11: 18 | Y11: 19 | Z11: 20 | AA11: 21 | AB11: 22 | AC11: 23 | AD11: 24 | AE11: 25 | AF11: 26 | AG11: 27 | AH11: 28 | AI11: 29 | AJ11: 30 | AK11: 31 | AL11: 32 | AM11: =AL11+1 -> 33 | AN11: 34 | AO11: 35 | AP11: 36 | AQ11: 37 | AR11: 38 | AS11: 39 | AT11: 40 | AU11: 41 | AV11: 42 | AW11: 43 | AX11: 44 | AY11: 45 | AZ11: 46 | BA11: 47 | BB11: 48 | BC11: 49 | BD11: 50 | BE11: 51 | BF11: 52 | BG11: 53 | BH11: 54 | BI11: 55 | BJ11: 56 | BK11: 57 | BL11: 58 | BM11: 59 | BN11: 60 | BO11: 61 | BP11: =BO11+1 -> 62 | BQ11: 63 | BR11: 64 | BS11: 65 | BT11: 66 | BU11: 67 | BV11: 68 | BW11: 69 | BX11: 70
D12: Semi-annual period | F12: =(F11<=TI!$E$35)*1 + (F11>TI!$E$35)*( (MOD((E11-TI!$E$35),TI!$E$31)=0) * (E12+1) + (MOD((E11-TI!$E$35),TI!$E$31)<>0) * E12 ) -> 1 | G12: =(G11<=TI!$E$35)*1 + (G11>TI!$E$35)*( (MOD((F11-TI!$E$35),TI!$E$31)=0) * (F12+1) + (MOD((F11-TI!$E$35),TI!$E$31)<>0) * F12 ) -> 1 | H12: =(H11<=TI!$E$35)*1 + (H11>TI!$E$35)*( (MOD((G11-TI!$E$35),TI!$E$31)=0) * (G12+1) + (MOD((G11-TI!$E$35),TI!$E$31)<>0) * G12 ) -> 1 | I12: =(I11<=TI!$E$35)*1 + (I11>TI!$E$35)*( (MOD((H11-TI!$E$35),TI!$E$31)=0) * (H12+1) + (MOD((H11-TI!$E$35),TI!$E$31)<>0) * H12 ) -> 2 | J12: =(J11<=TI!$E$35)*1 + (J11>TI!$E$35)*( (MOD((I11-TI!$E$35),TI!$E$31)=0) * (I12+1) + (MOD((I11-TI!$E$35),TI!$E$31)<>0) * I12 ) -> 2 | K12: =(K11<=TI!$E$35)*1 + (K11>TI!$E$35)*( (MOD((J11-TI!$E$35),TI!$E$31)=0) * (J12+1) + (MOD((J11-TI!$E$35),TI!$E$31)<>0) * J12 ) -> 2 | L12: =(L11<=TI!$E$35)*1 + (L11>TI!$E$35)*( (MOD((K11-TI!$E$35),TI!$E$31)=0) * (K12+1) + (MOD((K11-TI!$E$35),TI!$E$31)<>0) * K12 ) -> 2 | M12: =(M11<=TI!$E$35)*1 + (M11>TI!$E$35)*( (MOD((L11-TI!$E$35),TI!$E$31)=0) * (L12+1) + (MOD((L11-TI!$E$35),TI!$E$31)<>0) * L12 ) -> 2 | N12: =(N11<=TI!$E$35)*1 + (N11>TI!$E$35)*( (MOD((M11-TI!$E$35),TI!$E$31)=0) * (M12+1) + (MOD((M11-TI!$E$35),TI!$E$31)<>0) * M12 ) -> 2 | O12: =(O11<=TI!$E$35)*1 + (O11>TI!$E$35)*( (MOD((N11-TI!$E$35),TI!$E$31)=0) * (N12+1) + (MOD((N11-TI!$E$35),TI!$E$31)<>0) * N12 ) -> 3 | P12: =(P11<=TI!$E$35)*1 + (P11>TI!$E$35)*( (MOD((O11-TI!$E$35),TI!$E$31)=0) * (O12+1) + (MOD((O11-TI!$E$35),TI!$E$31)<>0) * O12 ) -> 3 | Q12: =(Q11<=TI!$E$35)*1 + (Q11>TI!$E$35)*( (MOD((P11-TI!$E$35),TI!$E$31)=0) * (P12+1) + (MOD((P11-TI!$E$35),TI!$E$31)<>0) * P12 ) -> 3 | R12: =(R11<=TI!$E$35)*1 + (R11>TI!$E$35)*( (MOD((Q11-TI!$E$35),TI!$E$31)=0) * (Q12+1) + (MOD((Q11-TI!$E$35),TI!$E$31)<>0) * Q12 ) -> 3 | S12: =(S11<=TI!$E$35)*1 + (S11>TI!$E$35)*( (MOD((R11-TI!$E$35),TI!$E$31)=0) * (R12+1) + (MOD((R11-TI!$E$35),TI!$E$31)<>0) * R12 ) -> 3 | T12: =(T11<=TI!$E$35)*1 + (T11>TI!$E$35)*( (MOD((S11-TI!$E$35),TI!$E$31)=0) * (S12+1) + (MOD((S11-TI!$E$35),TI!$E$31)<>0) * S12 ) -> 3 | U12: =(U11<=TI!$E$35)*1 + (U11>TI!$E$35)*( (MOD((T11-TI!$E$35),TI!$E$31)=0) * (T12+1) + (MOD((T11-TI!$E$35),TI!$E$31)<>0) * T12 ) -> 4 | V12: =(V11<=TI!$E$35)*1 + (V11>TI!$E$35)*( (MOD((U11-TI!$E$35),TI!$E$31)=0) * (U12+1) + (MOD((U11-TI!$E$35),TI!$E$31)<>0) * U12 ) -> 4 | W12: =(W11<=TI!$E$35)*1 + (W11>TI!$E$35)*( (MOD((V11-TI!$E$35),TI!$E$31)=0) * (V12+1) + (MOD((V11-TI!$E$35),TI!$E$31)<>0) * V12 ) -> 4 | X12: =(X11<=TI!$E$35)*1 + (X11>TI!$E$35)*( (MOD((W11-TI!$E$35),TI!$E$31)=0) * (W12+1) + (MOD((W11-TI!$E$35),TI!$E$31)<>0) * W12 ) -> 4 | Y12: =(Y11<=TI!$E$35)*1 + (Y11>TI!$E$35)*( (MOD((X11-TI!$E$35),TI!$E$31)=0) * (X12+1) + (MOD((X11-TI!$E$35),TI!$E$31)<>0) * X12 ) -> 4 | Z12: =(Z11<=TI!$E$35)*1 + (Z11>TI!$E$35)*( (MOD((Y11-TI!$E$35),TI!$E$31)=0) * (Y12+1) + (MOD((Y11-TI!$E$35),TI!$E$31)<>0) * Y12 ) -> 4 | AA12: =(AA11<=TI!$E$35)*1 + (AA11>TI!$E$35)*( (MOD((Z11-TI!$E$35),TI!$E$31)=0) * (Z12+1) + (MOD((Z11-TI!$E$35),TI!$E$31)<>0) * Z12 ) -> 5 | AB12: =(AB11<=TI!$E$35)*1 + (AB11>TI!$E$35)*( (MOD((AA11-TI!$E$35),TI!$E$31)=0) * (AA12+1) + (MOD((AA11-TI!$E$35),TI!$E$31)<>0) * AA12 ) -> 5 | AC12: =(AC11<=TI!$E$35)*1 + (AC11>TI!$E$35)*( (MOD((AB11-TI!$E$35),TI!$E$31)=0) * (AB12+1) + (MOD((AB11-TI!$E$35),TI!$E$31)<>0) * AB12 ) -> 5 | AD12: =(AD11<=TI!$E$35)*1 + (AD11>TI!$E$35)*( (MOD((AC11-TI!$E$35),TI!$E$31)=0) * (AC12+1) + (MOD((AC11-TI!$E$35),TI!$E$31)<>0) * AC12 ) -> 5 | AE12: =(AE11<=TI!$E$35)*1 + (AE11>TI!$E$35)*( (MOD((AD11-TI!$E$35),TI!$E$31)=0) * (AD12+1) + (MOD((AD11-TI!$E$35),TI!$E$31)<>0) * AD12 ) -> 5 | AF12: =(AF11<=TI!$E$35)*1 + (AF11>TI!$E$35)*( (MOD((AE11-TI!$E$35),TI!$E$31)=0) * (AE12+1) + (MOD((AE11-TI!$E$35),TI!$E$31)<>0) * AE12 ) -> 5 | AG12: =(AG11<=TI!$E$35)*1 + (AG11>TI!$E$35)*( (MOD((AF11-TI!$E$35),TI!$E$31)=0) * (AF12+1) + (MOD((AF11-TI!$E$35),TI!$E$31)<>0) * AF12 ) -> 6 | AH12: =(AH11<=TI!$E$35)*1 + (AH11>TI!$E$35)*( (MOD((AG11-TI!$E$35),TI!$E$31)=0) * (AG12+1) + (MOD((AG11-TI!$E$35),TI!$E$31)<>0) * AG12 ) -> 6 | AI12: =(AI11<=TI!$E$35)*1 + (AI11>TI!$E$35)*( (MOD((AH11-TI!$E$35),TI!$E$31)=0) * (AH12+1) + (MOD((AH11-TI!$E$35),TI!$E$31)<>0) * AH12 ) -> 6 | AJ12: =(AJ11<=TI!$E$35)*1 + (AJ11>TI!$E$35)*( (MOD((AI11-TI!$E$35),TI!$E$31)=0) * (AI12+1) + (MOD((AI11-TI!$E$35),TI!$E$31)<>0) * AI12 ) -> 6 | AK12: =(AK11<=TI!$E$35)*1 + (AK11>TI!$E$35)*( (MOD((AJ11-TI!$E$35),TI!$E$31)=0) * (AJ12+1) + (MOD((AJ11-TI!$E$35),TI!$E$31)<>0) * AJ12 ) -> 6 | AL12: =(AL11<=TI!$E$35)*1 + (AL11>TI!$E$35)*( (MOD((AK11-TI!$E$35),TI!$E$31)=0) * (AK12+1) + (MOD((AK11-TI!$E$35),TI!$E$31)<>0) * AK12 ) -> 6 | AM12: =(AM11<=TI!$E$35)*1 + (AM11>TI!$E$35)*( (MOD((AL11-TI!$E$35),TI!$E$31)=0) * (AL12+1) + (MOD((AL11-TI!$E$35),TI!$E$31)<>0) * AL12 ) -> 7 | AN12: =(AN11<=TI!$E$35)*1 + (AN11>TI!$E$35)*( (MOD((AM11-TI!$E$35),TI!$E$31)=0) * (AM12+1) + (MOD((AM11-TI!$E$35),TI!$E$31)<>0) * AM12 ) -> 7 | AO12: =(AO11<=TI!$E$35)*1 + (AO11>TI!$E$35)*( (MOD((AN11-TI!$E$35),TI!$E$31)=0) * (AN12+1) + (MOD((AN11-TI!$E$35),TI!$E$31)<>0) * AN12 ) -> 7 | AP12: =(AP11<=TI!$E$35)*1 + (AP11>TI!$E$35)*( (MOD((AO11-TI!$E$35),TI!$E$31)=0) * (AO12+1) + (MOD((AO11-TI!$E$35),TI!$E$31)<>0) * AO12 ) -> 7 | AQ12: =(AQ11<=TI!$E$35)*1 + (AQ11>TI!$E$35)*( (MOD((AP11-TI!$E$35),TI!$E$31)=0) * (AP12+1) + (MOD((AP11-TI!$E$35),TI!$E$31)<>0) * AP12 ) -> 7 | AR12: =(AR11<=TI!$E$35)*1 + (AR11>TI!$E$35)*( (MOD((AQ11-TI!$E$35),TI!$E$31)=0) * (AQ12+1) + (MOD((AQ11-TI!$E$35),TI!$E$31)<>0) * AQ12 ) -> 7 | AS12: =(AS11<=TI!$E$35)*1 + (AS11>TI!$E$35)*( (MOD((AR11-TI!$E$35),TI!$E$31)=0) * (AR12+1) + (MOD((AR11-TI!$E$35),TI!$E$31)<>0) * AR12 ) -> 8 | AT12: =(AT11<=TI!$E$35)*1 + (AT11>TI!$E$35)*( (MOD((AS11-TI!$E$35),TI!$E$31)=0) * (AS12+1) + (MOD((AS11-TI!$E$35),TI!$E$31)<>0) * AS12 ) -> 8 | AU12: =(AU11<=TI!$E$35)*1 + (AU11>TI!$E$35)*( (MOD((AT11-TI!$E$35),TI!$E$31)=0) * (AT12+1) + (MOD((AT11-TI!$E$35),TI!$E$31)<>0) * AT12 ) -> 8 | AV12: =(AV11<=TI!$E$35)*1 + (AV11>TI!$E$35)*( (MOD((AU11-TI!$E$35),TI!$E$31)=0) * (AU12+1) + (MOD((AU11-TI!$E$35),TI!$E$31)<>0) * AU12 ) -> 8 | AW12: =(AW11<=TI!$E$35)*1 + (AW11>TI!$E$35)*( (MOD((AV11-TI!$E$35),TI!$E$31)=0) * (AV12+1) + (MOD((AV11-TI!$E$35),TI!$E$31)<>0) * AV12 ) -> 8 | AX12: =(AX11<=TI!$E$35)*1 + (AX11>TI!$E$35)*( (MOD((AW11-TI!$E$35),TI!$E$31)=0) * (AW12+1) + (MOD((AW11-TI!$E$35),TI!$E$31)<>0) * AW12 ) -> 8 | AY12: =(AY11<=TI!$E$35)*1 + (AY11>TI!$E$35)*( (MOD((AX11-TI!$E$35),TI!$E$31)=0) * (AX12+1) + (MOD((AX11-TI!$E$35),TI!$E$31)<>0) * AX12 ) -> 9 | AZ12: =(AZ11<=TI!$E$35)*1 + (AZ11>TI!$E$35)*( (MOD((AY11-TI!$E$35),TI!$E$31)=0) * (AY12+1) + (MOD((AY11-TI!$E$35),TI!$E$31)<>0) * AY12 ) -> 9 | BA12: =(BA11<=TI!$E$35)*1 + (BA11>TI!$E$35)*( (MOD((AZ11-TI!$E$35),TI!$E$31)=0) * (AZ12+1) + (MOD((AZ11-TI!$E$35),TI!$E$31)<>0) * AZ12 ) -> 9 | BB12: =(BB11<=TI!$E$35)*1 + (BB11>TI!$E$35)*( (MOD((BA11-TI!$E$35),TI!$E$31)=0) * (BA12+1) + (MOD((BA11-TI!$E$35),TI!$E$31)<>0) * BA12 ) -> 9 | BC12: =(BC11<=TI!$E$35)*1 + (BC11>TI!$E$35)*( (MOD((BB11-TI!$E$35),TI!$E$31)=0) * (BB12+1) + (MOD((BB11-TI!$E$35),TI!$E$31)<>0) * BB12 ) -> 9 | BD12: =(BD11<=TI!$E$35)*1 + (BD11>TI!$E$35)*( (MOD((BC11-TI!$E$35),TI!$E$31)=0) * (BC12+1) + (MOD((BC11-TI!$E$35),TI!$E$31)<>0) * BC12 ) -> 9 | BE12: =(BE11<=TI!$E$35)*1 + (BE11>TI!$E$35)*( (MOD((BD11-TI!$E$35),TI!$E$31)=0) * (BD12+1) + (MOD((BD11-TI!$E$35),TI!$E$31)<>0) * BD12 ) -> 10 | BF12: =(BF11<=TI!$E$35)*1 + (BF11>TI!$E$35)*( (MOD((BE11-TI!$E$35),TI!$E$31)=0) * (BE12+1) + (MOD((BE11-TI!$E$35),TI!$E$31)<>0) * BE12 ) -> 10 | BG12: =(BG11<=TI!$E$35)*1 + (BG11>TI!$E$35)*( (MOD((BF11-TI!$E$35),TI!$E$31)=0) * (BF12+1) + (MOD((BF11-TI!$E$35),TI!$E$31)<>0) * BF12 ) -> 10 | BH12: =(BH11<=TI!$E$35)*1 + (BH11>TI!$E$35)*( (MOD((BG11-TI!$E$35),TI!$E$31)=0) * (BG12+1) + (MOD((BG11-TI!$E$35),TI!$E$31)<>0) * BG12 ) -> 10 | BI12: =(BI11<=TI!$E$35)*1 + (BI11>TI!$E$35)*( (MOD((BH11-TI!$E$35),TI!$E$31)=0) * (BH12+1) + (MOD((BH11-TI!$E$35),TI!$E$31)<>0) * BH12 ) -> 10 | BJ12: =(BJ11<=TI!$E$35)*1 + (BJ11>TI!$E$35)*( (MOD((BI11-TI!$E$35),TI!$E$31)=0) * (BI12+1) + (MOD((BI11-TI!$E$35),TI!$E$31)<>0) * BI12 ) -> 10 | BK12: =(BK11<=TI!$E$35)*1 + (BK11>TI!$E$35)*( (MOD((BJ11-TI!$E$35),TI!$E$31)=0) * (BJ12+1) + (MOD((BJ11-TI!$E$35),TI!$E$31)<>0) * BJ12 ) -> 11 | BL12: =(BL11<=TI!$E$35)*1 + (BL11>TI!$E$35)*( (MOD((BK11-TI!$E$35),TI!$E$31)=0) * (BK12+1) + (MOD((BK11-TI!$E$35),TI!$E$31)<>0) * BK12 ) -> 11 | BM12: =(BM11<=TI!$E$35)*1 + (BM11>TI!$E$35)*( (MOD((BL11-TI!$E$35),TI!$E$31)=0) * (BL12+1) + (MOD((BL11-TI!$E$35),TI!$E$31)<>0) * BL12 ) -> 11 | BN12: =(BN11<=TI!$E$35)*1 + (BN11>TI!$E$35)*( (MOD((BM11-TI!$E$35),TI!$E$31)=0) * (BM12+1) + (MOD((BM11-TI!$E$35),TI!$E$31)<>0) * BM12 ) -> 11 | BO12: =(BO11<=TI!$E$35)*1 + (BO11>TI!$E$35)*( (MOD((BN11-TI!$E$35),TI!$E$31)=0) * (BN12+1) + (MOD((BN11-TI!$E$35),TI!$E$31)<>0) * BN12 ) -> 11 | BP12: =(BP11<=TI!$E$35)*1 + (BP11>TI!$E$35)*( (MOD((BO11-TI!$E$35),TI!$E$31)=0) * (BO12+1) + (MOD((BO11-TI!$E$35),TI!$E$31)<>0) * BO12 ) -> 11 | BQ12: =(BQ11<=TI!$E$35)*1 + (BQ11>TI!$E$35)*( (MOD((BP11-TI!$E$35),TI!$E$31)=0) * (BP12+1) + (MOD((BP11-TI!$E$35),TI!$E$31)<>0) * BP12 ) -> 12 | BR12: =(BR11<=TI!$E$35)*1 + (BR11>TI!$E$35)*( (MOD((BQ11-TI!$E$35),TI!$E$31)=0) * (BQ12+1) + (MOD((BQ11-TI!$E$35),TI!$E$31)<>0) * BQ12 ) -> 12 | BS12: =(BS11<=TI!$E$35)*1 + (BS11>TI!$E$35)*( (MOD((BR11-TI!$E$35),TI!$E$31)=0) * (BR12+1) + (MOD((BR11-TI!$E$35),TI!$E$31)<>0) * BR12 ) -> 12 | BT12: =(BT11<=TI!$E$35)*1 + (BT11>TI!$E$35)*( (MOD((BS11-TI!$E$35),TI!$E$31)=0) * (BS12+1) + (MOD((BS11-TI!$E$35),TI!$E$31)<>0) * BS12 ) -> 12 | BU12: =(BU11<=TI!$E$35)*1 + (BU11>TI!$E$35)*( (MOD((BT11-TI!$E$35),TI!$E$31)=0) * (BT12+1) + (MOD((BT11-TI!$E$35),TI!$E$31)<>0) * BT12 ) -> 12 | BV12: =(BV11<=TI!$E$35)*1 + (BV11>TI!$E$35)*( (MOD((BU11-TI!$E$35),TI!$E$31)=0) * (BU12+1) + (MOD((BU11-TI!$E$35),TI!$E$31)<>0) * BU12 ) -> 12 | BW12: =(BW11<=TI!$E$35)*1 + (BW11>TI!$E$35)*( (MOD((BV11-TI!$E$35),TI!$E$31)=0) * (BV12+1) + (MOD((BV11-TI!$E$35),TI!$E$31)<>0) * BV12 ) -> 13 | BX12: =(BX11<=TI!$E$35)*1 + (BX11>TI!$E$35)*( (MOD((BW11-TI!$E$35),TI!$E$31)=0) * (BW12+1) + (MOD((BW11-TI!$E$35),TI!$E$31)<>0) * BW12 ) -> 13
D13: Construction period | E13: =TI!E22 -> 2013-06-30 | G13: =(G4<=$E$13) * 1 -> 1 | H13: 1 | I13: 1 | J13: 1 | K13: 1 | L13: 1 | M13: 1 | N13: 1 | O13: 1 | P13: 1 | Q13: 1 | R13: 1 | S13: 1 | T13: 1 | U13: 1 | V13: 1 | W13: 1 | X13: 1 | Y13: 1 | Z13: 1 | AA13: 1 | AB13: 1 | AC13: 1 | AD13: 1 | AE13: 1 | AF13: 1 | AG13: 1 | AH13: 1 | AI13: 1 | AJ13: 0 | AK13: 0 | AL13: 0 | AM13: =(AM4<=$E$13) * 1 -> 0 | AN13: 0 | AO13: 0 | AP13: 0 | AQ13: 0 | AR13: 0 | AS13: 0 | AT13: 0 | AU13: 0 | AV13: 0 | AW13: 0 | AX13: 0 | AY13: 0 | AZ13: 0 | BA13: 0 | BB13: 0 | BC13: 0 | BD13: 0 | BE13: 0 | BF13: 0 | BG13: 0 | BH13: 0 | BI13: 0 | BJ13: 0 | BK13: 0 | BL13: 0 | BM13: 0 | BN13: 0 | BO13: 0 | BP13: =(BP4<=$E$13) * 1 -> 0 | BQ13: 0 | BR13: 0 | BS13: 0 | BT13: 0 | BU13: 0 | BV13: 0 | BW13: 0 | BX13: 0
D14: End of construction period | G14: =(F4<$E$13)*(G4>=$E$13) -> 0 | H14: 0 | I14: 0 | J14: 0 | K14: 0 | L14: 0 | M14: 0 | N14: 0 | O14: 0 | P14: 0 | Q14: 0 | R14: 0 | S14: 0 | T14: 0 | U14: 0 | V14: 0 | W14: 0 | X14: 0 | Y14: 0 | Z14: 0 | AA14: 0 | AB14: 0 | AC14: 0 | AD14: 0 | AE14: 0 | AF14: 0 | AG14: 0 | AH14: 0 | AI14: 1 | AJ14: 0 | AK14: 0 | AL14: 0 | AM14: =(AL4<$E$13)*(AM4>=$E$13) -> 0 | AN14: 0 | AO14: 0 | AP14: 0 | AQ14: 0 | AR14: 0 | AS14: 0 | AT14: 0 | AU14: 0 | AV14: 0 | AW14: 0 | AX14: 0 | AY14: 0 | AZ14: 0 | BA14: 0 | BB14: 0 | BC14: 0 | BD14: 0 | BE14: 0 | BF14: 0 | BG14: 0 | BH14: 0 | BI14: 0 | BJ14: 0 | BK14: 0 | BL14: 0 | BM14: 0 | BN14: 0 | BO14: 0 | BP14: =(BO4<$E$13)*(BP4>=$E$13) -> 0 | BQ14: 0 | BR14: 0 | BS14: 0 | BT14: 0 | BU14: 0 | BV14: 0 | BW14: 0 | BX14: 0
D15: First Month of Operations | E15: =TI!E23 -> 2013-07-01 | G15: =IF(G13<F13,1,0) -> 0 | H15: 0 | I15: 0 | J15: 0 | K15: 0 | L15: 0 | M15: 0 | N15: 0 | O15: 0 | P15: 0 | Q15: 0 | R15: 0 | S15: 0 | T15: 0 | U15: 0 | V15: 0 | W15: 0 | X15: 0 | Y15: 0 | Z15: 0 | AA15: 0 | AB15: 0 | AC15: 0 | AD15: 0 | AE15: 0 | AF15: 0 | AG15: 0 | AH15: 0 | AI15: 0 | AJ15: 1 | AK15: 0 | AL15: 0 | AM15: =IF(AM13<AL13,1,0) -> 0 | AN15: 0 | AO15: 0 | AP15: 0 | AQ15: 0 | AR15: 0 | AS15: 0 | AT15: 0 | AU15: 0 | AV15: 0 | AW15: 0 | AX15: 0 | AY15: 0 | AZ15: 0 | BA15: 0 | BB15: 0 | BC15: 0 | BD15: 0 | BE15: 0 | BF15: 0 | BG15: 0 | BH15: 0 | BI15: 0 | BJ15: 0 | BK15: 0 | BL15: 0 | BM15: 0 | BN15: 0 | BO15: 0 | BP15: =IF(BP13<BO13,1,0) -> 0 | BQ15: 0 | BR15: 0 | BS15: 0 | BT15: 0 | BU15: 0 | BV15: 0 | BW15: 0 | BX15: 0
D16: First period of operations | G16: =IF(AND(OR(F13=0,F13>G13),SUM($F16:F16)=0,F22=1),1,0) -> 0 | H16: =IF(AND(OR(G13=0,G13>H13),SUM($F16:G16)=0,G22=1),1,0) -> 0 | I16: =IF(AND(OR(H13=0,H13>I13),SUM($F16:H16)=0,H22=1),1,0) -> 0 | J16: =IF(AND(OR(I13=0,I13>J13),SUM($F16:I16)=0,I22=1),1,0) -> 0 | K16: =IF(AND(OR(J13=0,J13>K13),SUM($F16:J16)=0,J22=1),1,0) -> 0 | L16: =IF(AND(OR(K13=0,K13>L13),SUM($F16:K16)=0,K22=1),1,0) -> 0 | M16: =IF(AND(OR(L13=0,L13>M13),SUM($F16:L16)=0,L22=1),1,0) -> 0 | N16: =IF(AND(OR(M13=0,M13>N13),SUM($F16:M16)=0,M22=1),1,0) -> 0 | O16: =IF(AND(OR(N13=0,N13>O13),SUM($F16:N16)=0,N22=1),1,0) -> 0 | P16: =IF(AND(OR(O13=0,O13>P13),SUM($F16:O16)=0,O22=1),1,0) -> 0 | Q16: =IF(AND(OR(P13=0,P13>Q13),SUM($F16:P16)=0,P22=1),1,0) -> 0 | R16: =IF(AND(OR(Q13=0,Q13>R13),SUM($F16:Q16)=0,Q22=1),1,0) -> 0 | S16: =IF(AND(OR(R13=0,R13>S13),SUM($F16:R16)=0,R22=1),1,0) -> 0 | T16: =IF(AND(OR(S13=0,S13>T13),SUM($F16:S16)=0,S22=1),1,0) -> 0 | U16: =IF(AND(OR(T13=0,T13>U13),SUM($F16:T16)=0,T22=1),1,0) -> 0 | V16: =IF(AND(OR(U13=0,U13>V13),SUM($F16:U16)=0,U22=1),1,0) -> 0 | W16: =IF(AND(OR(V13=0,V13>W13),SUM($F16:V16)=0,V22=1),1,0) -> 0 | X16: =IF(AND(OR(W13=0,W13>X13),SUM($F16:W16)=0,W22=1),1,0) -> 0 | Y16: =IF(AND(OR(X13=0,X13>Y13),SUM($F16:X16)=0,X22=1),1,0) -> 0 | Z16: =IF(AND(OR(Y13=0,Y13>Z13),SUM($F16:Y16)=0,Y22=1),1,0) -> 0 | AA16: =IF(AND(OR(Z13=0,Z13>AA13),SUM($F16:Z16)=0,Z22=1),1,0) -> 0 | AB16: =IF(AND(OR(AA13=0,AA13>AB13),SUM($F16:AA16)=0,AA22=1),1,0) -> 0 | AC16: =IF(AND(OR(AB13=0,AB13>AC13),SUM($F16:AB16)=0,AB22=1),1,0) -> 0 | AD16: =IF(AND(OR(AC13=0,AC13>AD13),SUM($F16:AC16)=0,AC22=1),1,0) -> 0 | AE16: =IF(AND(OR(AD13=0,AD13>AE13),SUM($F16:AD16)=0,AD22=1),1,0) -> 0 | AF16: =IF(AND(OR(AE13=0,AE13>AF13),SUM($F16:AE16)=0,AE22=1),1,0) -> 0 | AG16: =IF(AND(OR(AF13=0,AF13>AG13),SUM($F16:AF16)=0,AF22=1),1,0) -> 0 | AH16: =IF(AND(OR(AG13=0,AG13>AH13),SUM($F16:AG16)=0,AG22=1),1,0) -> 0 | AI16: =IF(AND(OR(AH13=0,AH13>AI13),SUM($F16:AH16)=0,AH22=1),1,0) -> 0 | AJ16: =IF(AND(OR(AI13=0,AI13>AJ13),SUM($F16:AI16)=0,AI22=1),1,0) -> 0 | AK16: =IF(AND(OR(AJ13=0,AJ13>AK13),SUM($F16:AJ16)=0,AJ22=1),1,0) -> 0 | AL16: =IF(AND(OR(AK13=0,AK13>AL13),SUM($F16:AK16)=0,AK22=1),1,0) -> 0 | AM16: =IF(AND(OR(AL13=0,AL13>AM13),SUM($F16:AL16)=0,AL22=1),1,0) -> 1 | AN16: =IF(AND(OR(AM13=0,AM13>AN13),SUM($F16:AM16)=0,AM22=1),1,0) -> 0 | AO16: =IF(AND(OR(AN13=0,AN13>AO13),SUM($F16:AN16)=0,AN22=1),1,0) -> 0 | AP16: =IF(AND(OR(AO13=0,AO13>AP13),SUM($F16:AO16)=0,AO22=1),1,0) -> 0 | AQ16: =IF(AND(OR(AP13=0,AP13>AQ13),SUM($F16:AP16)=0,AP22=1),1,0) -> 0 | AR16: =IF(AND(OR(AQ13=0,AQ13>AR13),SUM($F16:AQ16)=0,AQ22=1),1,0) -> 0 | AS16: =IF(AND(OR(AR13=0,AR13>AS13),SUM($F16:AR16)=0,AR22=1),1,0) -> 0 | AT16: =IF(AND(OR(AS13=0,AS13>AT13),SUM($F16:AS16)=0,AS22=1),1,0) -> 0 | AU16: =IF(AND(OR(AT13=0,AT13>AU13),SUM($F16:AT16)=0,AT22=1),1,0) -> 0 | AV16: =IF(AND(OR(AU13=0,AU13>AV13),SUM($F16:AU16)=0,AU22=1),1,0) -> 0 | AW16: =IF(AND(OR(AV13=0,AV13>AW13),SUM($F16:AV16)=0,AV22=1),1,0) -> 0 | AX16: =IF(AND(OR(AW13=0,AW13>AX13),SUM($F16:AW16)=0,AW22=1),1,0) -> 0 | AY16: =IF(AND(OR(AX13=0,AX13>AY13),SUM($F16:AX16)=0,AX22=1),1,0) -> 0 | AZ16: =IF(AND(OR(AY13=0,AY13>AZ13),SUM($F16:AY16)=0,AY22=1),1,0) -> 0 | BA16: =IF(AND(OR(AZ13=0,AZ13>BA13),SUM($F16:AZ16)=0,AZ22=1),1,0) -> 0 | BB16: =IF(AND(OR(BA13=0,BA13>BB13),SUM($F16:BA16)=0,BA22=1),1,0) -> 0 | BC16: =IF(AND(OR(BB13=0,BB13>BC13),SUM($F16:BB16)=0,BB22=1),1,0) -> 0 | BD16: =IF(AND(OR(BC13=0,BC13>BD13),SUM($F16:BC16)=0,BC22=1),1,0) -> 0 | BE16: =IF(AND(OR(BD13=0,BD13>BE13),SUM($F16:BD16)=0,BD22=1),1,0) -> 0 | BF16: =IF(AND(OR(BE13=0,BE13>BF13),SUM($F16:BE16)=0,BE22=1),1,0) -> 0 | BG16: =IF(AND(OR(BF13=0,BF13>BG13),SUM($F16:BF16)=0,BF22=1),1,0) -> 0 | BH16: =IF(AND(OR(BG13=0,BG13>BH13),SUM($F16:BG16)=0,BG22=1),1,0) -> 0 | BI16: =IF(AND(OR(BH13=0,BH13>BI13),SUM($F16:BH16)=0,BH22=1),1,0) -> 0 | BJ16: =IF(AND(OR(BI13=0,BI13>BJ13),SUM($F16:BI16)=0,BI22=1),1,0) -> 0 | BK16: =IF(AND(OR(BJ13=0,BJ13>BK13),SUM($F16:BJ16)=0,BJ22=1),1,0) -> 0 | BL16: =IF(AND(OR(BK13=0,BK13>BL13),SUM($F16:BK16)=0,BK22=1),1,0) -> 0 | BM16: =IF(AND(OR(BL13=0,BL13>BM13),SUM($F16:BL16)=0,BL22=1),1,0) -> 0 | BN16: =IF(AND(OR(BM13=0,BM13>BN13),SUM($F16:BM16)=0,BM22=1),1,0) -> 0 | BO16: =IF(AND(OR(BN13=0,BN13>BO13),SUM($F16:BN16)=0,BN22=1),1,0) -> 0 | BP16: =IF(AND(OR(BO13=0,BO13>BP13),SUM($F16:BO16)=0,BO22=1),1,0) -> 0 | BQ16: =IF(AND(OR(BP13=0,BP13>BQ13),SUM($F16:BP16)=0,BP22=1),1,0) -> 0 | BR16: =IF(AND(OR(BQ13=0,BQ13>BR13),SUM($F16:BQ16)=0,BQ22=1),1,0) -> 0 | BS16: =IF(AND(OR(BR13=0,BR13>BS13),SUM($F16:BR16)=0,BR22=1),1,0) -> 0 | BT16: =IF(AND(OR(BS13=0,BS13>BT13),SUM($F16:BS16)=0,BS22=1),1,0) -> 0 | BU16: =IF(AND(OR(BT13=0,BT13>BU13),SUM($F16:BT16)=0,BT22=1),1,0) -> 0 | BV16: =IF(AND(OR(BU13=0,BU13>BV13),SUM($F16:BU16)=0,BU22=1),1,0) -> 0 | BW16: =IF(AND(OR(BV13=0,BV13>BW13),SUM($F16:BV16)=0,BV22=1),1,0) -> 0 | BX16: =IF(AND(OR(BW13=0,BW13>BX13),SUM($F16:BW16)=0,BW22=1),1,0) -> 0
D17: Stub period up to 1st Semi annual period | G17: =(F17+G15)*(G16=0) -> 0 | H17: 0 | I17: 0 | J17: 0 | K17: 0 | L17: 0 | M17: 0 | N17: 0 | O17: 0 | P17: 0 | Q17: 0 | R17: 0 | S17: 0 | T17: 0 | U17: 0 | V17: 0 | W17: 0 | X17: 0 | Y17: 0 | Z17: 0 | AA17: 0 | AB17: 0 | AC17: 0 | AD17: 0 | AE17: 0 | AF17: 0 | AG17: 0 | AH17: 0 | AI17: 0 | AJ17: 1 | AK17: 1 | AL17: 1 | AM17: =(AL17+AM15)*(AM16=0) -> 0 | AN17: 0 | AO17: 0 | AP17: 0 | AQ17: 0 | AR17: 0 | AS17: 0 | AT17: 0 | AU17: 0 | AV17: 0 | AW17: 0 | AX17: 0 | AY17: 0 | AZ17: 0 | BA17: 0 | BB17: 0 | BC17: 0 | BD17: 0 | BE17: 0 | BF17: 0 | BG17: 0 | BH17: 0 | BI17: 0 | BJ17: 0 | BK17: 0 | BL17: 0 | BM17: 0 | BN17: 0 | BO17: 0 | BP17: =(BO17+BP15)*(BP16=0) -> 0 | BQ17: 0 | BR17: 0 | BS17: 0 | BT17: 0 | BU17: 0 | BV17: 0 | BW17: 0 | BX17: 0
D18: Phase Flag | G18: =IF(G13=1,1,IF(SUM($F16:G16)=1,3,2)) -> 1 | H18: =IF(H13=1,1,IF(SUM($F16:H16)=1,3,2)) -> 1 | I18: =IF(I13=1,1,IF(SUM($F16:I16)=1,3,2)) -> 1 | J18: =IF(J13=1,1,IF(SUM($F16:J16)=1,3,2)) -> 1 | K18: =IF(K13=1,1,IF(SUM($F16:K16)=1,3,2)) -> 1 | L18: =IF(L13=1,1,IF(SUM($F16:L16)=1,3,2)) -> 1 | M18: =IF(M13=1,1,IF(SUM($F16:M16)=1,3,2)) -> 1 | N18: =IF(N13=1,1,IF(SUM($F16:N16)=1,3,2)) -> 1 | O18: =IF(O13=1,1,IF(SUM($F16:O16)=1,3,2)) -> 1 | P18: =IF(P13=1,1,IF(SUM($F16:P16)=1,3,2)) -> 1 | Q18: =IF(Q13=1,1,IF(SUM($F16:Q16)=1,3,2)) -> 1 | R18: =IF(R13=1,1,IF(SUM($F16:R16)=1,3,2)) -> 1 | S18: =IF(S13=1,1,IF(SUM($F16:S16)=1,3,2)) -> 1 | T18: =IF(T13=1,1,IF(SUM($F16:T16)=1,3,2)) -> 1 | U18: =IF(U13=1,1,IF(SUM($F16:U16)=1,3,2)) -> 1 | V18: =IF(V13=1,1,IF(SUM($F16:V16)=1,3,2)) -> 1 | W18: =IF(W13=1,1,IF(SUM($F16:W16)=1,3,2)) -> 1 | X18: =IF(X13=1,1,IF(SUM($F16:X16)=1,3,2)) -> 1 | Y18: =IF(Y13=1,1,IF(SUM($F16:Y16)=1,3,2)) -> 1 | Z18: =IF(Z13=1,1,IF(SUM($F16:Z16)=1,3,2)) -> 1 | AA18: =IF(AA13=1,1,IF(SUM($F16:AA16)=1,3,2)) -> 1 | AB18: =IF(AB13=1,1,IF(SUM($F16:AB16)=1,3,2)) -> 1 | AC18: =IF(AC13=1,1,IF(SUM($F16:AC16)=1,3,2)) -> 1 | AD18: =IF(AD13=1,1,IF(SUM($F16:AD16)=1,3,2)) -> 1 | AE18: =IF(AE13=1,1,IF(SUM($F16:AE16)=1,3,2)) -> 1 | AF18: =IF(AF13=1,1,IF(SUM($F16:AF16)=1,3,2)) -> 1 | AG18: =IF(AG13=1,1,IF(SUM($F16:AG16)=1,3,2)) -> 1 | AH18: =IF(AH13=1,1,IF(SUM($F16:AH16)=1,3,2)) -> 1 | AI18: =IF(AI13=1,1,IF(SUM($F16:AI16)=1,3,2)) -> 1 | AJ18: =IF(AJ13=1,1,IF(SUM($F16:AJ16)=1,3,2)) -> 2 | AK18: =IF(AK13=1,1,IF(SUM($F16:AK16)=1,3,2)) -> 2 | AL18: =IF(AL13=1,1,IF(SUM($F16:AL16)=1,3,2)) -> 2 | AM18: =IF(AM13=1,1,IF(SUM($F16:AM16)=1,3,2)) -> 3 | AN18: =IF(AN13=1,1,IF(SUM($F16:AN16)=1,3,2)) -> 3 | AO18: =IF(AO13=1,1,IF(SUM($F16:AO16)=1,3,2)) -> 3 | AP18: =IF(AP13=1,1,IF(SUM($F16:AP16)=1,3,2)) -> 3 | AQ18: =IF(AQ13=1,1,IF(SUM($F16:AQ16)=1,3,2)) -> 3 | AR18: =IF(AR13=1,1,IF(SUM($F16:AR16)=1,3,2)) -> 3 | AS18: =IF(AS13=1,1,IF(SUM($F16:AS16)=1,3,2)) -> 3 | AT18: =IF(AT13=1,1,IF(SUM($F16:AT16)=1,3,2)) -> 3 | AU18: =IF(AU13=1,1,IF(SUM($F16:AU16)=1,3,2)) -> 3 | AV18: =IF(AV13=1,1,IF(SUM($F16:AV16)=1,3,2)) -> 3 | AW18: =IF(AW13=1,1,IF(SUM($F16:AW16)=1,3,2)) -> 3 | AX18: =IF(AX13=1,1,IF(SUM($F16:AX16)=1,3,2)) -> 3 | AY18: =IF(AY13=1,1,IF(SUM($F16:AY16)=1,3,2)) -> 3 | AZ18: =IF(AZ13=1,1,IF(SUM($F16:AZ16)=1,3,2)) -> 3 | BA18: =IF(BA13=1,1,IF(SUM($F16:BA16)=1,3,2)) -> 3 | BB18: =IF(BB13=1,1,IF(SUM($F16:BB16)=1,3,2)) -> 3 | BC18: =IF(BC13=1,1,IF(SUM($F16:BC16)=1,3,2)) -> 3 | BD18: =IF(BD13=1,1,IF(SUM($F16:BD16)=1,3,2)) -> 3 | BE18: =IF(BE13=1,1,IF(SUM($F16:BE16)=1,3,2)) -> 3 | BF18: =IF(BF13=1,1,IF(SUM($F16:BF16)=1,3,2)) -> 3 | BG18: =IF(BG13=1,1,IF(SUM($F16:BG16)=1,3,2)) -> 3 | BH18: =IF(BH13=1,1,IF(SUM($F16:BH16)=1,3,2)) -> 3 | BI18: =IF(BI13=1,1,IF(SUM($F16:BI16)=1,3,2)) -> 3 | BJ18: =IF(BJ13=1,1,IF(SUM($F16:BJ16)=1,3,2)) -> 3 | BK18: =IF(BK13=1,1,IF(SUM($F16:BK16)=1,3,2)) -> 3 | BL18: =IF(BL13=1,1,IF(SUM($F16:BL16)=1,3,2)) -> 3 | BM18: =IF(BM13=1,1,IF(SUM($F16:BM16)=1,3,2)) -> 3 | BN18: =IF(BN13=1,1,IF(SUM($F16:BN16)=1,3,2)) -> 3 | BO18: =IF(BO13=1,1,IF(SUM($F16:BO16)=1,3,2)) -> 3 | BP18: =IF(BP13=1,1,IF(SUM($F16:BP16)=1,3,2)) -> 3 | BQ18: =IF(BQ13=1,1,IF(SUM($F16:BQ16)=1,3,2)) -> 3 | BR18: =IF(BR13=1,1,IF(SUM($F16:BR16)=1,3,2)) -> 3 | BS18: =IF(BS13=1,1,IF(SUM($F16:BS16)=1,3,2)) -> 3 | BT18: =IF(BT13=1,1,IF(SUM($F16:BT16)=1,3,2)) -> 3 | BU18: =IF(BU13=1,1,IF(SUM($F16:BU16)=1,3,2)) -> 3 | BV18: =IF(BV13=1,1,IF(SUM($F16:BV16)=1,3,2)) -> 3 | BW18: =IF(BW13=1,1,IF(SUM($F16:BW16)=1,3,2)) -> 3 | BX18: =IF(BX13=1,1,IF(SUM($F16:BX16)=1,3,2)) -> 3
D19: Days in period | G19: =G4-F4+1 -> 5 | H19: =H4-G4 -> 31 | I19: 30 | J19: 31 | K19: 30 | L19: 31 | M19: 31 | N19: 30 | O19: 31 | P19: 30 | Q19: 31 | R19: 31 | S19: 29 | T19: 31 | U19: 30 | V19: 31 | W19: 30 | X19: 31 | Y19: 31 | Z19: 30 | AA19: 31 | AB19: 30 | AC19: 31 | AD19: 31 | AE19: 28 | AF19: 31 | AG19: 30 | AH19: 31 | AI19: 30 | AJ19: 31 | AK19: 31 | AL19: 30 | AM19: 31 | AN19: =AN4-AM4 -> 30 | AO19: 31 | AP19: 31 | AQ19: 28 | AR19: 31 | AS19: 30 | AT19: 31 | AU19: 30 | AV19: 31 | AW19: 31 | AX19: 30 | AY19: 31 | AZ19: 30 | BA19: 31 | BB19: 31 | BC19: 28 | BD19: 31 | BE19: 30 | BF19: 31 | BG19: 30 | BH19: 31 | BI19: 31 | BJ19: 30 | BK19: 31 | BL19: 30 | BM19: 31 | BN19: 31 | BO19: 29 | BP19: =BP4-BO4 -> 31 | BQ19: 30 | BR19: 31 | BS19: 30 | BT19: 31 | BU19: 31 | BV19: 30 | BW19: 31 | BX19: 30
D20: Days in Semi-annual period | G20: =OFFSET(Ops!$G4,0,G$12)-OFFSET(Ops!$G4,0,G$12-1)+1*(G12=1) -> 36 | H20: =OFFSET(Ops!$G4,0,H$12)-OFFSET(Ops!$G4,0,H$12-1)+1*(H12=1) -> 36 | I20: =OFFSET(Ops!$G4,0,I$12)-OFFSET(Ops!$G4,0,I$12-1)+1*(I12=1) -> 183 | J20: =OFFSET(Ops!$G4,0,J$12)-OFFSET(Ops!$G4,0,J$12-1)+1*(J12=1) -> 183 | K20: =OFFSET(Ops!$G4,0,K$12)-OFFSET(Ops!$G4,0,K$12-1)+1*(K12=1) -> 183 | L20: =OFFSET(Ops!$G4,0,L$12)-OFFSET(Ops!$G4,0,L$12-1)+1*(L12=1) -> 183 | M20: =OFFSET(Ops!$G4,0,M$12)-OFFSET(Ops!$G4,0,M$12-1)+1*(M12=1) -> 183 | N20: =OFFSET(Ops!$G4,0,N$12)-OFFSET(Ops!$G4,0,N$12-1)+1*(N12=1) -> 183 | O20: =OFFSET(Ops!$G4,0,O$12)-OFFSET(Ops!$G4,0,O$12-1)+1*(O12=1) -> 183 | P20: =OFFSET(Ops!$G4,0,P$12)-OFFSET(Ops!$G4,0,P$12-1)+1*(P12=1) -> 183 | Q20: =OFFSET(Ops!$G4,0,Q$12)-OFFSET(Ops!$G4,0,Q$12-1)+1*(Q12=1) -> 183 | R20: =OFFSET(Ops!$G4,0,R$12)-OFFSET(Ops!$G4,0,R$12-1)+1*(R12=1) -> 183 | S20: =OFFSET(Ops!$G4,0,S$12)-OFFSET(Ops!$G4,0,S$12-1)+1*(S12=1) -> 183 | T20: =OFFSET(Ops!$G4,0,T$12)-OFFSET(Ops!$G4,0,T$12-1)+1*(T12=1) -> 183 | U20: =OFFSET(Ops!$G4,0,U$12)-OFFSET(Ops!$G4,0,U$12-1)+1*(U12=1) -> 183 | V20: =OFFSET(Ops!$G4,0,V$12)-OFFSET(Ops!$G4,0,V$12-1)+1*(V12=1) -> 183 | W20: =OFFSET(Ops!$G4,0,W$12)-OFFSET(Ops!$G4,0,W$12-1)+1*(W12=1) -> 183 | X20: =OFFSET(Ops!$G4,0,X$12)-OFFSET(Ops!$G4,0,X$12-1)+1*(X12=1) -> 183 | Y20: =OFFSET(Ops!$G4,0,Y$12)-OFFSET(Ops!$G4,0,Y$12-1)+1*(Y12=1) -> 183 | Z20: =OFFSET(Ops!$G4,0,Z$12)-OFFSET(Ops!$G4,0,Z$12-1)+1*(Z12=1) -> 183 | AA20: =OFFSET(Ops!$G4,0,AA$12)-OFFSET(Ops!$G4,0,AA$12-1)+1*(AA12=1) -> 182 | AB20: =OFFSET(Ops!$G4,0,AB$12)-OFFSET(Ops!$G4,0,AB$12-1)+1*(AB12=1) -> 182 | AC20: =OFFSET(Ops!$G4,0,AC$12)-OFFSET(Ops!$G4,0,AC$12-1)+1*(AC12=1) -> 182 | AD20: =OFFSET(Ops!$G4,0,AD$12)-OFFSET(Ops!$G4,0,AD$12-1)+1*(AD12=1) -> 182 | AE20: =OFFSET(Ops!$G4,0,AE$12)-OFFSET(Ops!$G4,0,AE$12-1)+1*(AE12=1) -> 182 | AF20: =OFFSET(Ops!$G4,0,AF$12)-OFFSET(Ops!$G4,0,AF$12-1)+1*(AF12=1) -> 182 | AG20: =OFFSET(Ops!$G4,0,AG$12)-OFFSET(Ops!$G4,0,AG$12-1)+1*(AG12=1) -> 183 | AH20: =OFFSET(Ops!$G4,0,AH$12)-OFFSET(Ops!$G4,0,AH$12-1)+1*(AH12=1) -> 183 | AI20: =OFFSET(Ops!$G4,0,AI$12)-OFFSET(Ops!$G4,0,AI$12-1)+1*(AI12=1) -> 183 | AJ20: =OFFSET(Ops!$G4,0,AJ$12)-OFFSET(Ops!$G4,0,AJ$12-1)+1*(AJ12=1) -> 183 | AK20: =OFFSET(Ops!$G4,0,AK$12)-OFFSET(Ops!$G4,0,AK$12-1)+1*(AK12=1) -> 183 | AL20: =OFFSET(Ops!$G4,0,AL$12)-OFFSET(Ops!$G4,0,AL$12-1)+1*(AL12=1) -> 183 | AM20: =OFFSET(Ops!$G4,0,AM$12)-OFFSET(Ops!$G4,0,AM$12-1)+1*(AM12=1) -> 182 | AN20: =OFFSET(Ops!$G4,0,AN$12)-OFFSET(Ops!$G4,0,AN$12-1)+1*(AN12=1) -> 182 | AO20: =OFFSET(Ops!$G4,0,AO$12)-OFFSET(Ops!$G4,0,AO$12-1)+1*(AO12=1) -> 182 | AP20: =OFFSET(Ops!$G4,0,AP$12)-OFFSET(Ops!$G4,0,AP$12-1)+1*(AP12=1) -> 182 | AQ20: =OFFSET(Ops!$G4,0,AQ$12)-OFFSET(Ops!$G4,0,AQ$12-1)+1*(AQ12=1) -> 182 | AR20: =OFFSET(Ops!$G4,0,AR$12)-OFFSET(Ops!$G4,0,AR$12-1)+1*(AR12=1) -> 182 | AS20: =OFFSET(Ops!$G4,0,AS$12)-OFFSET(Ops!$G4,0,AS$12-1)+1*(AS12=1) -> 183 | AT20: =OFFSET(Ops!$G4,0,AT$12)-OFFSET(Ops!$G4,0,AT$12-1)+1*(AT12=1) -> 183 | AU20: =OFFSET(Ops!$G4,0,AU$12)-OFFSET(Ops!$G4,0,AU$12-1)+1*(AU12=1) -> 183 | AV20: =OFFSET(Ops!$G4,0,AV$12)-OFFSET(Ops!$G4,0,AV$12-1)+1*(AV12=1) -> 183 | AW20: =OFFSET(Ops!$G4,0,AW$12)-OFFSET(Ops!$G4,0,AW$12-1)+1*(AW12=1) -> 183 | AX20: =OFFSET(Ops!$G4,0,AX$12)-OFFSET(Ops!$G4,0,AX$12-1)+1*(AX12=1) -> 183 | AY20: =OFFSET(Ops!$G4,0,AY$12)-OFFSET(Ops!$G4,0,AY$12-1)+1*(AY12=1) -> 182 | AZ20: =OFFSET(Ops!$G4,0,AZ$12)-OFFSET(Ops!$G4,0,AZ$12-1)+1*(AZ12=1) -> 182 | BA20: =OFFSET(Ops!$G4,0,BA$12)-OFFSET(Ops!$G4,0,BA$12-1)+1*(BA12=1) -> 182 | BB20: =OFFSET(Ops!$G4,0,BB$12)-OFFSET(Ops!$G4,0,BB$12-1)+1*(BB12=1) -> 182 | BC20: =OFFSET(Ops!$G4,0,BC$12)-OFFSET(Ops!$G4,0,BC$12-1)+1*(BC12=1) -> 182 | BD20: =OFFSET(Ops!$G4,0,BD$12)-OFFSET(Ops!$G4,0,BD$12-1)+1*(BD12=1) -> 182 | BE20: =OFFSET(Ops!$G4,0,BE$12)-OFFSET(Ops!$G4,0,BE$12-1)+1*(BE12=1) -> 183 | BF20: =OFFSET(Ops!$G4,0,BF$12)-OFFSET(Ops!$G4,0,BF$12-1)+1*(BF12=1) -> 183 | BG20: =OFFSET(Ops!$G4,0,BG$12)-OFFSET(Ops!$G4,0,BG$12-1)+1*(BG12=1) -> 183 | BH20: =OFFSET(Ops!$G4,0,BH$12)-OFFSET(Ops!$G4,0,BH$12-1)+1*(BH12=1) -> 183 | BI20: =OFFSET(Ops!$G4,0,BI$12)-OFFSET(Ops!$G4,0,BI$12-1)+1*(BI12=1) -> 183 | BJ20: =OFFSET(Ops!$G4,0,BJ$12)-OFFSET(Ops!$G4,0,BJ$12-1)+1*(BJ12=1) -> 183 | BK20: =OFFSET(Ops!$G4,0,BK$12)-OFFSET(Ops!$G4,0,BK$12-1)+1*(BK12=1) -> 183 | BL20: =OFFSET(Ops!$G4,0,BL$12)-OFFSET(Ops!$G4,0,BL$12-1)+1*(BL12=1) -> 183 | BM20: =OFFSET(Ops!$G4,0,BM$12)-OFFSET(Ops!$G4,0,BM$12-1)+1*(BM12=1) -> 183 | BN20: =OFFSET(Ops!$G4,0,BN$12)-OFFSET(Ops!$G4,0,BN$12-1)+1*(BN12=1) -> 183 | BO20: =OFFSET(Ops!$G4,0,BO$12)-OFFSET(Ops!$G4,0,BO$12-1)+1*(BO12=1) -> 183 | BP20: =OFFSET(Ops!$G4,0,BP$12)-OFFSET(Ops!$G4,0,BP$12-1)+1*(BP12=1) -> 183 | BQ20: =OFFSET(Ops!$G4,0,BQ$12)-OFFSET(Ops!$G4,0,BQ$12-1)+1*(BQ12=1) -> 183 | BR20: =OFFSET(Ops!$G4,0,BR$12)-OFFSET(Ops!$G4,0,BR$12-1)+1*(BR12=1) -> 183 | BS20: =OFFSET(Ops!$G4,0,BS$12)-OFFSET(Ops!$G4,0,BS$12-1)+1*(BS12=1) -> 183 | BT20: =OFFSET(Ops!$G4,0,BT$12)-OFFSET(Ops!$G4,0,BT$12-1)+1*(BT12=1) -> 183 | BU20: =OFFSET(Ops!$G4,0,BU$12)-OFFSET(Ops!$G4,0,BU$12-1)+1*(BU12=1) -> 183 | BV20: =OFFSET(Ops!$G4,0,BV$12)-OFFSET(Ops!$G4,0,BV$12-1)+1*(BV12=1) -> 183 | BW20: =OFFSET(Ops!$G4,0,BW$12)-OFFSET(Ops!$G4,0,BW$12-1)+1*(BW12=1) -> 182 | BX20: =OFFSET(Ops!$G4,0,BX$12)-OFFSET(Ops!$G4,0,BX$12-1)+1*(BX12=1) -> 182
D21: Days in full 6m semi-annual period | G21: =SUMIF(Ops!$H$5:$CE$5,Const!G5,Ops!$H$19:$CE$19) -> 182 | H21: =SUMIF(Ops!$H$5:$CE$5,Const!H5,Ops!$H$19:$CE$19) -> 182 | I21: =SUMIF(Ops!$H$5:$CE$5,Const!I5,Ops!$H$19:$CE$19) -> 183 | J21: =SUMIF(Ops!$H$5:$CE$5,Const!J5,Ops!$H$19:$CE$19) -> 183 | K21: =SUMIF(Ops!$H$5:$CE$5,Const!K5,Ops!$H$19:$CE$19) -> 183 | L21: =SUMIF(Ops!$H$5:$CE$5,Const!L5,Ops!$H$19:$CE$19) -> 183 | M21: =SUMIF(Ops!$H$5:$CE$5,Const!M5,Ops!$H$19:$CE$19) -> 183 | N21: =SUMIF(Ops!$H$5:$CE$5,Const!N5,Ops!$H$19:$CE$19) -> 183 | O21: =SUMIF(Ops!$H$5:$CE$5,Const!O5,Ops!$H$19:$CE$19) -> 183 | P21: =SUMIF(Ops!$H$5:$CE$5,Const!P5,Ops!$H$19:$CE$19) -> 183 | Q21: =SUMIF(Ops!$H$5:$CE$5,Const!Q5,Ops!$H$19:$CE$19) -> 183 | R21: =SUMIF(Ops!$H$5:$CE$5,Const!R5,Ops!$H$19:$CE$19) -> 183 | S21: =SUMIF(Ops!$H$5:$CE$5,Const!S5,Ops!$H$19:$CE$19) -> 183 | T21: =SUMIF(Ops!$H$5:$CE$5,Const!T5,Ops!$H$19:$CE$19) -> 183 | U21: =SUMIF(Ops!$H$5:$CE$5,Const!U5,Ops!$H$19:$CE$19) -> 183 | V21: =SUMIF(Ops!$H$5:$CE$5,Const!V5,Ops!$H$19:$CE$19) -> 183 | W21: =SUMIF(Ops!$H$5:$CE$5,Const!W5,Ops!$H$19:$CE$19) -> 183 | X21: =SUMIF(Ops!$H$5:$CE$5,Const!X5,Ops!$H$19:$CE$19) -> 183 | Y21: =SUMIF(Ops!$H$5:$CE$5,Const!Y5,Ops!$H$19:$CE$19) -> 183 | Z21: =SUMIF(Ops!$H$5:$CE$5,Const!Z5,Ops!$H$19:$CE$19) -> 183 | AA21: =SUMIF(Ops!$H$5:$CE$5,Const!AA5,Ops!$H$19:$CE$19) -> 182 | AB21: =SUMIF(Ops!$H$5:$CE$5,Const!AB5,Ops!$H$19:$CE$19) -> 182 | AC21: =SUMIF(Ops!$H$5:$CE$5,Const!AC5,Ops!$H$19:$CE$19) -> 182 | AD21: =SUMIF(Ops!$H$5:$CE$5,Const!AD5,Ops!$H$19:$CE$19) -> 182 | AE21: =SUMIF(Ops!$H$5:$CE$5,Const!AE5,Ops!$H$19:$CE$19) -> 182 | AF21: =SUMIF(Ops!$H$5:$CE$5,Const!AF5,Ops!$H$19:$CE$19) -> 182 | AG21: =SUMIF(Ops!$H$5:$CE$5,Const!AG5,Ops!$H$19:$CE$19) -> 183 | AH21: =SUMIF(Ops!$H$5:$CE$5,Const!AH5,Ops!$H$19:$CE$19) -> 183 | AI21: =SUMIF(Ops!$H$5:$CE$5,Const!AI5,Ops!$H$19:$CE$19) -> 183 | AJ21: =SUMIF(Ops!$H$5:$CE$5,Const!AJ5,Ops!$H$19:$CE$19) -> 183 | AK21: =SUMIF(Ops!$H$5:$CE$5,Const!AK5,Ops!$H$19:$CE$19) -> 183 | AL21: =SUMIF(Ops!$H$5:$CE$5,Const!AL5,Ops!$H$19:$CE$19) -> 183 | AM21: =SUMIF(Ops!$H$5:$CE$5,Const!AM5,Ops!$H$19:$CE$19) -> 182 | AN21: =SUMIF(Ops!$H$5:$CE$5,Const!AN5,Ops!$H$19:$CE$19) -> 182 | AO21: =SUMIF(Ops!$H$5:$CE$5,Const!AO5,Ops!$H$19:$CE$19) -> 182 | AP21: =SUMIF(Ops!$H$5:$CE$5,Const!AP5,Ops!$H$19:$CE$19) -> 182 | AQ21: =SUMIF(Ops!$H$5:$CE$5,Const!AQ5,Ops!$H$19:$CE$19) -> 182 | AR21: =SUMIF(Ops!$H$5:$CE$5,Const!AR5,Ops!$H$19:$CE$19) -> 182 | AS21: =SUMIF(Ops!$H$5:$CE$5,Const!AS5,Ops!$H$19:$CE$19) -> 183 | AT21: =SUMIF(Ops!$H$5:$CE$5,Const!AT5,Ops!$H$19:$CE$19) -> 183 | AU21: =SUMIF(Ops!$H$5:$CE$5,Const!AU5,Ops!$H$19:$CE$19) -> 183 | AV21: =SUMIF(Ops!$H$5:$CE$5,Const!AV5,Ops!$H$19:$CE$19) -> 183 | AW21: =SUMIF(Ops!$H$5:$CE$5,Const!AW5,Ops!$H$19:$CE$19) -> 183 | AX21: =SUMIF(Ops!$H$5:$CE$5,Const!AX5,Ops!$H$19:$CE$19) -> 183 | AY21: =SUMIF(Ops!$H$5:$CE$5,Const!AY5,Ops!$H$19:$CE$19) -> 182 | AZ21: =SUMIF(Ops!$H$5:$CE$5,Const!AZ5,Ops!$H$19:$CE$19) -> 182 | BA21: =SUMIF(Ops!$H$5:$CE$5,Const!BA5,Ops!$H$19:$CE$19) -> 182 | BB21: =SUMIF(Ops!$H$5:$CE$5,Const!BB5,Ops!$H$19:$CE$19) -> 182 | BC21: =SUMIF(Ops!$H$5:$CE$5,Const!BC5,Ops!$H$19:$CE$19) -> 182 | BD21: =SUMIF(Ops!$H$5:$CE$5,Const!BD5,Ops!$H$19:$CE$19) -> 182 | BE21: =SUMIF(Ops!$H$5:$CE$5,Const!BE5,Ops!$H$19:$CE$19) -> 183 | BF21: =SUMIF(Ops!$H$5:$CE$5,Const!BF5,Ops!$H$19:$CE$19) -> 183 | BG21: =SUMIF(Ops!$H$5:$CE$5,Const!BG5,Ops!$H$19:$CE$19) -> 183 | BH21: =SUMIF(Ops!$H$5:$CE$5,Const!BH5,Ops!$H$19:$CE$19) -> 183 | BI21: =SUMIF(Ops!$H$5:$CE$5,Const!BI5,Ops!$H$19:$CE$19) -> 183 | BJ21: =SUMIF(Ops!$H$5:$CE$5,Const!BJ5,Ops!$H$19:$CE$19) -> 183 | BK21: =SUMIF(Ops!$H$5:$CE$5,Const!BK5,Ops!$H$19:$CE$19) -> 183 | BL21: =SUMIF(Ops!$H$5:$CE$5,Const!BL5,Ops!$H$19:$CE$19) -> 183 | BM21: =SUMIF(Ops!$H$5:$CE$5,Const!BM5,Ops!$H$19:$CE$19) -> 183 | BN21: =SUMIF(Ops!$H$5:$CE$5,Const!BN5,Ops!$H$19:$CE$19) -> 183 | BO21: =SUMIF(Ops!$H$5:$CE$5,Const!BO5,Ops!$H$19:$CE$19) -> 183 | BP21: =SUMIF(Ops!$H$5:$CE$5,Const!BP5,Ops!$H$19:$CE$19) -> 183 | BQ21: =SUMIF(Ops!$H$5:$CE$5,Const!BQ5,Ops!$H$19:$CE$19) -> 183 | BR21: =SUMIF(Ops!$H$5:$CE$5,Const!BR5,Ops!$H$19:$CE$19) -> 183 | BS21: =SUMIF(Ops!$H$5:$CE$5,Const!BS5,Ops!$H$19:$CE$19) -> 183 | BT21: =SUMIF(Ops!$H$5:$CE$5,Const!BT5,Ops!$H$19:$CE$19) -> 183 | BU21: =SUMIF(Ops!$H$5:$CE$5,Const!BU5,Ops!$H$19:$CE$19) -> 183 | BV21: =SUMIF(Ops!$H$5:$CE$5,Const!BV5,Ops!$H$19:$CE$19) -> 183 | BW21: =SUMIF(Ops!$H$5:$CE$5,Const!BW5,Ops!$H$19:$CE$19) -> 182 | BX21: =SUMIF(Ops!$H$5:$CE$5,Const!BX5,Ops!$H$19:$CE$19) -> 182
D22: Semi-Annual Period End Flag | G22: =IF(G12<H12,1,0) -> 0 | H22: 1 | I22: 0 | J22: 0 | K22: 0 | L22: 0 | M22: 0 | N22: 1 | O22: 0 | P22: 0 | Q22: 0 | R22: 0 | S22: 0 | T22: 1 | U22: 0 | V22: 0 | W22: 0 | X22: 0 | Y22: 0 | Z22: 1 | AA22: 0 | AB22: 0 | AC22: 0 | AD22: 0 | AE22: 0 | AF22: 1 | AG22: 0 | AH22: 0 | AI22: 0 | AJ22: 0 | AK22: 0 | AL22: 1 | AM22: =IF(AM12<AN12,1,0) -> 0 | AN22: 0 | AO22: 0 | AP22: 0 | AQ22: 0 | AR22: 1 | AS22: 0 | AT22: 0 | AU22: 0 | AV22: 0 | AW22: 0 | AX22: 1 | AY22: 0 | AZ22: 0 | BA22: 0 | BB22: 0 | BC22: 0 | BD22: 1 | BE22: 0 | BF22: 0 | BG22: 0 | BH22: 0 | BI22: 0 | BJ22: 1 | BK22: 0 | BL22: 0 | BM22: 0 | BN22: 0 | BO22: 0 | BP22: =IF(BP12<BQ12,1,0) -> 1 | BQ22: 0 | BR22: 0 | BS22: 0 | BT22: 0 | BU22: 0 | BV22: 1 | BW22: 0 | BX22: 0
D23: Months in Semi-annual period | G23: =COUNTIF($G$5:$BX$5,G5) -> 2 | H23: =COUNTIF($G$5:$BX$5,H5) -> 2 | I23: 6 | J23: 6 | K23: 6 | L23: 6 | M23: 6 | N23: 6 | O23: 6 | P23: 6 | Q23: 6 | R23: 6 | S23: 6 | T23: 6 | U23: 6 | V23: 6 | W23: 6 | X23: 6 | Y23: 6 | Z23: 6 | AA23: 6 | AB23: 6 | AC23: 6 | AD23: 6 | AE23: 6 | AF23: 6 | AG23: 6 | AH23: 6 | AI23: 6 | AJ23: 6 | AK23: 6 | AL23: 6 | AM23: 6 | AN23: 6 | AO23: 6 | AP23: 6 | AQ23: 6 | AR23: 6 | AS23: 6 | AT23: 6 | AU23: 6 | AV23: 6 | AW23: 6 | AX23: 6 | AY23: 6 | AZ23: 6 | BA23: 6 | BB23: 6 | BC23: 6 | BD23: 6 | BE23: 6 | BF23: 6 | BG23: 6 | BH23: 6 | BI23: 6 | BJ23: 6 | BK23: 6 | BL23: 6 | BM23: 6 | BN23: 6 | BO23: 6 | BP23: 6 | BQ23: 6 | BR23: 6 | BS23: 6 | BT23: =COUNTIF($G$5:$BX$5,BT5) -> 6 | BU23: =COUNTIF($G$5:$BX$5,BU5) -> 6 | BV23: =COUNTIF($G$5:$BX$5,BV5) -> 6 | BW23: =COUNTIF($G$5:$BX$5,BW5) -> 2 | BX23: =COUNTIF($G$5:$BX$5,BX5) -> 2
D24: Post VAT registration | G24: =IF(G11>TI!$E$338,1,0) -> 0 | H24: =IF(H11>TI!$E$338,1,0) -> 0 | I24: =IF(I11>TI!$E$338,1,0) -> 0 | J24: =IF(J11>TI!$E$338,1,0) -> 1 | K24: =IF(K11>TI!$E$338,1,0) -> 1 | L24: =IF(L11>TI!$E$338,1,0) -> 1 | M24: =IF(M11>TI!$E$338,1,0) -> 1 | N24: =IF(N11>TI!$E$338,1,0) -> 1 | O24: =IF(O11>TI!$E$338,1,0) -> 1 | P24: =IF(P11>TI!$E$338,1,0) -> 1 | Q24: =IF(Q11>TI!$E$338,1,0) -> 1 | R24: =IF(R11>TI!$E$338,1,0) -> 1 | S24: =IF(S11>TI!$E$338,1,0) -> 1 | T24: =IF(T11>TI!$E$338,1,0) -> 1 | U24: =IF(U11>TI!$E$338,1,0) -> 1 | V24: =IF(V11>TI!$E$338,1,0) -> 1 | W24: =IF(W11>TI!$E$338,1,0) -> 1 | X24: =IF(X11>TI!$E$338,1,0) -> 1 | Y24: =IF(Y11>TI!$E$338,1,0) -> 1 | Z24: =IF(Z11>TI!$E$338,1,0) -> 1 | AA24: =IF(AA11>TI!$E$338,1,0) -> 1 | AB24: =IF(AB11>TI!$E$338,1,0) -> 1 | AC24: =IF(AC11>TI!$E$338,1,0) -> 1 | AD24: =IF(AD11>TI!$E$338,1,0) -> 1 | AE24: =IF(AE11>TI!$E$338,1,0) -> 1 | AF24: =IF(AF11>TI!$E$338,1,0) -> 1 | AG24: =IF(AG11>TI!$E$338,1,0) -> 1 | AH24: =IF(AH11>TI!$E$338,1,0) -> 1 | AI24: =IF(AI11>TI!$E$338,1,0) -> 1 | AJ24: =IF(AJ11>TI!$E$338,1,0) -> 1 | AK24: =IF(AK11>TI!$E$338,1,0) -> 1 | AL24: =IF(AL11>TI!$E$338,1,0) -> 1 | AM24: =IF(AM11>TI!$E$338,1,0) -> 1 | AN24: =IF(AN11>TI!$E$338,1,0) -> 1 | AO24: =IF(AO11>TI!$E$338,1,0) -> 1 | AP24: =IF(AP11>TI!$E$338,1,0) -> 1 | AQ24: =IF(AQ11>TI!$E$338,1,0) -> 1 | AR24: =IF(AR11>TI!$E$338,1,0) -> 1 | AS24: =IF(AS11>TI!$E$338,1,0) -> 1 | AT24: =IF(AT11>TI!$E$338,1,0) -> 1 | AU24: =IF(AU11>TI!$E$338,1,0) -> 1 | AV24: =IF(AV11>TI!$E$338,1,0) -> 1 | AW24: =IF(AW11>TI!$E$338,1,0) -> 1 | AX24: =IF(AX11>TI!$E$338,1,0) -> 1 | AY24: =IF(AY11>TI!$E$338,1,0) -> 1 | AZ24: =IF(AZ11>TI!$E$338,1,0) -> 1 | BA24: =IF(BA11>TI!$E$338,1,0) -> 1 | BB24: =IF(BB11>TI!$E$338,1,0) -> 1 | BC24: =IF(BC11>TI!$E$338,1,0) -> 1 | BD24: =IF(BD11>TI!$E$338,1,0) -> 1 | BE24: =IF(BE11>TI!$E$338,1,0) -> 1 | BF24: =IF(BF11>TI!$E$338,1,0) -> 1 | BG24: =IF(BG11>TI!$E$338,1,0) -> 1 | BH24: =IF(BH11>TI!$E$338,1,0) -> 1 | BI24: =IF(BI11>TI!$E$338,1,0) -> 1 | BJ24: =IF(BJ11>TI!$E$338,1,0) -> 1 | BK24: =IF(BK11>TI!$E$338,1,0) -> 1 | BL24: =IF(BL11>TI!$E$338,1,0) -> 1 | BM24: =IF(BM11>TI!$E$338,1,0) -> 1 | BN24: =IF(BN11>TI!$E$338,1,0) -> 1 | BO24: =IF(BO11>TI!$E$338,1,0) -> 1 | BP24: =IF(BP11>TI!$E$338,1,0) -> 1 | BQ24: =IF(BQ11>TI!$E$338,1,0) -> 1 | BR24: =IF(BR11>TI!$E$338,1,0) -> 1 | BS24: =IF(BS11>TI!$E$338,1,0) -> 1 | BT24: =IF(BT11>TI!$E$338,1,0) -> 1 | BU24: =IF(BU11>TI!$E$338,1,0) -> 1 | BV24: =IF(BV11>TI!$E$338,1,0) -> 1 | BW24: =IF(BW11>TI!$E$338,1,0) -> 1 | BX24: =IF(BX11>TI!$E$338,1,0) -> 1
D25: First VAT period | G25: =(G24=1)*(F24=0) -> 0 | H25: 0 | I25: 0 | J25: 1 | K25: 0 | L25: 0 | M25: 0 | N25: 0 | O25: 0 | P25: 0 | Q25: 0 | R25: 0 | S25: 0 | T25: 0 | U25: 0 | V25: 0 | W25: 0 | X25: 0 | Y25: 0 | Z25: 0 | AA25: 0 | AB25: 0 | AC25: 0 | AD25: 0 | AE25: 0 | AF25: 0 | AG25: 0 | AH25: 0 | AI25: 0 | AJ25: 0 | AK25: 0 | AL25: 0 | AM25: =(AM24=1)*(AL24=0) -> 0 | AN25: 0 | AO25: 0 | AP25: 0 | AQ25: 0 | AR25: 0 | AS25: 0 | AT25: 0 | AU25: 0 | AV25: 0 | AW25: 0 | AX25: 0 | AY25: 0 | AZ25: 0 | BA25: 0 | BB25: 0 | BC25: 0 | BD25: 0 | BE25: 0 | BF25: 0 | BG25: 0 | BH25: 0 | BI25: 0 | BJ25: 0 | BK25: 0 | BL25: 0 | BM25: 0 | BN25: 0 | BO25: 0 | BP25: =(BP24=1)*(BO24=0) -> 0 | BQ25: 0 | BR25: 0 | BS25: 0 | BT25: 0 | BU25: 0 | BV25: 0 | BW25: 0 | BX25: 0
D26: Revenue phase-in starts | G26: =(G212>0)*1 -> 0 | H26: =(H212>0)*1 -> 0 | I26: 0 | J26: 0 | K26: 0 | L26: 0 | M26: 0 | N26: 0 | O26: 0 | P26: 1 | Q26: 1 | R26: 1 | S26: 1 | T26: 1 | U26: 1 | V26: 1 | W26: 1 | X26: 1 | Y26: 1 | Z26: 1 | AA26: 1 | AB26: 1 | AC26: 1 | AD26: 1 | AE26: 1 | AF26: 1 | AG26: 1 | AH26: 1 | AI26: 1 | AJ26: 1 | AK26: 1 | AL26: 1 | AM26: 1 | AN26: 1 | AO26: 1 | AP26: 1 | AQ26: 1 | AR26: 1 | AS26: 1 | AT26: 1 | AU26: 1 | AV26: 1 | AW26: 1 | AX26: 1 | AY26: 1 | AZ26: 1 | BA26: 1 | BB26: 1 | BC26: 1 | BD26: 1 | BE26: 1 | BF26: 1 | BG26: 1 | BH26: 1 | BI26: 1 | BJ26: 1 | BK26: 1 | BL26: 1 | BM26: 1 | BN26: 1 | BO26: 1 | BP26: =(BP212>0)*1 -> 1 | BQ26: 1 | BR26: 1 | BS26: 1 | BT26: 1 | BU26: 1 | BV26: 1 | BW26: 1 | BX26: 1
D27: Draw down period | G27: =(G4<=TI!$E$90)*1 -> 1 | H27: =(H4<=TI!$E$90)*1 -> 1 | I27: =(I4<=TI!$E$90)*1 -> 1 | J27: =(J4<=TI!$E$90)*1 -> 1 | K27: =(K4<=TI!$E$90)*1 -> 1 | L27: =(L4<=TI!$E$90)*1 -> 1 | M27: =(M4<=TI!$E$90)*1 -> 1 | N27: =(N4<=TI!$E$90)*1 -> 1 | O27: =(O4<=TI!$E$90)*1 -> 1 | P27: =(P4<=TI!$E$90)*1 -> 1 | Q27: =(Q4<=TI!$E$90)*1 -> 1 | R27: =(R4<=TI!$E$90)*1 -> 1 | S27: =(S4<=TI!$E$90)*1 -> 1 | T27: =(T4<=TI!$E$90)*1 -> 1 | U27: =(U4<=TI!$E$90)*1 -> 1 | V27: =(V4<=TI!$E$90)*1 -> 1 | W27: =(W4<=TI!$E$90)*1 -> 1 | X27: =(X4<=TI!$E$90)*1 -> 1 | Y27: =(Y4<=TI!$E$90)*1 -> 1 | Z27: =(Z4<=TI!$E$90)*1 -> 1 | AA27: =(AA4<=TI!$E$90)*1 -> 1 | AB27: =(AB4<=TI!$E$90)*1 -> 1 | AC27: =(AC4<=TI!$E$90)*1 -> 1 | AD27: =(AD4<=TI!$E$90)*1 -> 1 | AE27: =(AE4<=TI!$E$90)*1 -> 1 | AF27: =(AF4<=TI!$E$90)*1 -> 1 | AG27: =(AG4<=TI!$E$90)*1 -> 1 | AH27: =(AH4<=TI!$E$90)*1 -> 1 | AI27: =(AI4<=TI!$E$90)*1 -> 1 | AJ27: =(AJ4<=TI!$E$90)*1 -> 0 | AK27: =(AK4<=TI!$E$90)*1 -> 0 | AL27: =(AL4<=TI!$E$90)*1 -> 0 | AM27: =(AM4<=TI!$E$90)*1 -> 0 | AN27: =(AN4<=TI!$E$90)*1 -> 0 | AO27: =(AO4<=TI!$E$90)*1 -> 0 | AP27: =(AP4<=TI!$E$90)*1 -> 0 | AQ27: =(AQ4<=TI!$E$90)*1 -> 0 | AR27: =(AR4<=TI!$E$90)*1 -> 0 | AS27: =(AS4<=TI!$E$90)*1 -> 0 | AT27: =(AT4<=TI!$E$90)*1 -> 0 | AU27: =(AU4<=TI!$E$90)*1 -> 0 | AV27: =(AV4<=TI!$E$90)*1 -> 0 | AW27: =(AW4<=TI!$E$90)*1 -> 0 | AX27: =(AX4<=TI!$E$90)*1 -> 0 | AY27: =(AY4<=TI!$E$90)*1 -> 0 | AZ27: =(AZ4<=TI!$E$90)*1 -> 0 | BA27: =(BA4<=TI!$E$90)*1 -> 0 | BB27: =(BB4<=TI!$E$90)*1 -> 0 | BC27: =(BC4<=TI!$E$90)*1 -> 0 | BD27: =(BD4<=TI!$E$90)*1 -> 0 | BE27: =(BE4<=TI!$E$90)*1 -> 0 | BF27: =(BF4<=TI!$E$90)*1 -> 0 | BG27: =(BG4<=TI!$E$90)*1 -> 0 | BH27: =(BH4<=TI!$E$90)*1 -> 0 | BI27: =(BI4<=TI!$E$90)*1 -> 0 | BJ27: =(BJ4<=TI!$E$90)*1 -> 0 | BK27: =(BK4<=TI!$E$90)*1 -> 0 | BL27: =(BL4<=TI!$E$90)*1 -> 0 | BM27: =(BM4<=TI!$E$90)*1 -> 0 | BN27: =(BN4<=TI!$E$90)*1 -> 0 | BO27: =(BO4<=TI!$E$90)*1 -> 0 | BP27: =(BP4<=TI!$E$90)*1 -> 0 | BQ27: =(BQ4<=TI!$E$90)*1 -> 0 | BR27: =(BR4<=TI!$E$90)*1 -> 0 | BS27: =(BS4<=TI!$E$90)*1 -> 0 | BT27: =(BT4<=TI!$E$90)*1 -> 0 | BU27: =(BU4<=TI!$E$90)*1 -> 0 | BV27: =(BV4<=TI!$E$90)*1 -> 0 | BW27: =(BW4<=TI!$E$90)*1 -> 0 | BX27: =(BX4<=TI!$E$90)*1 -> 0
D28: Interest only Senior Debt repayments | E28: =TI!E92 -> 2012-10-31 | G28: =(G4<=$E$28)*1 -> 1 | H28: =(H4<=$E$28)*1 -> 1 | I28: 1 | J28: 1 | K28: 1 | L28: 1 | M28: 1 | N28: 1 | O28: 1 | P28: 1 | Q28: 1 | R28: 1 | S28: 1 | T28: 1 | U28: 1 | V28: 1 | W28: 1 | X28: 1 | Y28: 1 | Z28: 1 | AA28: 1 | AB28: 0 | AC28: 0 | AD28: 0 | AE28: 0 | AF28: 0 | AG28: 0 | AH28: 0 | AI28: 0 | AJ28: 0 | AK28: 0 | AL28: 0 | AM28: 0 | AN28: 0 | AO28: 0 | AP28: 0 | AQ28: 0 | AR28: 0 | AS28: 0 | AT28: 0 | AU28: 0 | AV28: 0 | AW28: 0 | AX28: 0 | AY28: 0 | AZ28: 0 | BA28: 0 | BB28: 0 | BC28: 0 | BD28: 0 | BE28: 0 | BF28: 0 | BG28: 0 | BH28: 0 | BI28: 0 | BJ28: 0 | BK28: 0 | BL28: 0 | BM28: 0 | BN28: 0 | BO28: 0 | BP28: =(BP4<=$E$28)*1 -> 0 | BQ28: 0 | BR28: 0 | BS28: 0 | BT28: 0 | BU28: 0 | BV28: 0 | BW28: 0 | BX28: 0
A30: =Header1 -> 1 | B30: Monthly statement of cash flows
E32: Const Total
D33: Net Availability Payment | E33: =SUMPRODUCT(G33:BO33,$G$13:$BO$13) -> 4827.138813 | G33: =-G249*G$13 -> 0 | H33: 0 | I33: 0 | J33: 0 | K33: 0 | L33: 0 | M33: 0 | N33: 0 | O33: 0 | P33: 5.838217006 | Q33: 7.925181456 | R33: 17.50045362 | S33: 53.85695937 | T33: 93.58283752 | U33: 118.9850259 | V33: 229.4906935 | W33: 285.6043924 | X33: 310.4393152 | Y33: 310.4393152 | Z33: 310.4393152 | AA33: 310.4393152 | AB33: 310.4393152 | AC33: 310.4393152 | AD33: 310.4393152 | AE33: 310.4393152 | AF33: 325.8363734 | AG33: 351.0891698 | AH33: 384.5888758 | AI33: 469.3261114 | AJ33: 0 | AK33: 0 | AL33: 0 | AM33: =-AM249*AM$13 -> 0 | AN33: 0 | AO33: 0 | AP33: 0 | AQ33: 0 | AR33: 0 | AS33: 0 | AT33: 0 | AU33: 0 | AV33: 0 | AW33: 0 | AX33: 0 | AY33: 0 | AZ33: 0 | BA33: 0 | BB33: 0 | BC33: 0 | BD33: 0 | BE33: 0 | BF33: 0 | BG33: 0 | BH33: 0 | BI33: 0 | BJ33: 0 | BK33: 0 | BL33: 0 | BM33: 0 | BN33: 0 | BO33: 0 | BP33: =-BP249*BP$13 -> 0 | BQ33: 0 | BR33: 0 | BS33: 0 | BT33: 0 | BU33: 0 | BV33: 0 | BW33: 0 | BX33: 0
D34: Net Usage Payment | E34: 0 | G34: =-G257*G$13 -> 0 | H34: 0 | I34: 0 | J34: 0 | K34: 0 | L34: 0 | M34: 0 | N34: 0 | O34: 0 | P34: 0 | Q34: 0 | R34: 0 | S34: 0 | T34: 0 | U34: 0 | V34: 0 | W34: 0 | X34: 0 | Y34: 0 | Z34: 0 | AA34: 0 | AB34: 0 | AC34: 0 | AD34: 0 | AE34: 0 | AF34: 0 | AG34: 0 | AH34: 0 | AI34: 0 | AJ34: 0 | AK34: 0 | AL34: 0 | AM34: =-AM257*AM$13 -> 0 | AN34: 0 | AO34: 0 | AP34: 0 | AQ34: 0 | AR34: 0 | AS34: 0 | AT34: 0 | AU34: 0 | AV34: 0 | AW34: 0 | AX34: 0 | AY34: 0 | AZ34: 0 | BA34: 0 | BB34: 0 | BC34: 0 | BD34: 0 | BE34: 0 | BF34: 0 | BG34: 0 | BH34: 0 | BI34: 0 | BJ34: 0 | BK34: 0 | BL34: 0 | BM34: 0 | BN34: 0 | BO34: 0 | BP34: =-BP257*BP$13 -> 0 | BQ34: 0 | BR34: 0 | BS34: 0 | BT34: 0 | BU34: 0 | BV34: 0 | BW34: 0 | BX34: 0
D35: Capital contribution | E35: 0 | G35: =G271*G$13 -> 0 | H35: 0 | I35: 0 | J35: 0 | K35: 0 | L35: 0 | M35: 0 | N35: 0 | O35: 0 | P35: 0 | Q35: 0 | R35: 0 | S35: 0 | T35: 0 | U35: 0 | V35: 0 | W35: 0 | X35: 0 | Y35: 0 | Z35: 0 | AA35: 0 | AB35: 0 | AC35: 0 | AD35: 0 | AE35: 0 | AF35: 0 | AG35: 0 | AH35: 0 | AI35: 0 | AJ35: 0 | AK35: 0 | AL35: 0 | AM35: =AM271*AM$13 -> 0 | AN35: 0 | AO35: 0 | AP35: 0 | AQ35: 0 | AR35: 0 | AS35: 0 | AT35: 0 | AU35: 0 | AV35: 0 | AW35: 0 | AX35: 0 | AY35: 0 | AZ35: 0 | BA35: 0 | BB35: 0 | BC35: 0 | BD35: 0 | BE35: 0 | BF35: 0 | BG35: 0 | BH35: 0 | BI35: 0 | BJ35: 0 | BK35: 0 | BL35: 0 | BM35: 0 | BN35: 0 | BO35: 0 | BP35: =BP271*BP$13 -> 0 | BQ35: 0 | BR35: 0 | BS35: 0 | BT35: 0 | BU35: 0 | BV35: 0 | BW35: 0 | BX35: 0
D36: Third party revenues | E36: 0 | G36: =-G292*G$13 -> 0 | H36: 0 | I36: 0 | J36: 0 | K36: 0 | L36: 0 | M36: 0 | N36: 0 | O36: 0 | P36: 0 | Q36: 0 | R36: 0 | S36: 0 | T36: 0 | U36: 0 | V36: 0 | W36: 0 | X36: 0 | Y36: 0 | Z36: 0 | AA36: 0 | AB36: 0 | AC36: 0 | AD36: 0 | AE36: 0 | AF36: 0 | AG36: 0 | AH36: 0 | AI36: 0 | AJ36: 0 | AK36: 0 | AL36: 0 | AM36: =-AM292*AM$13 -> 0 | AN36: 0 | AO36: 0 | AP36: 0 | AQ36: 0 | AR36: 0 | AS36: 0 | AT36: 0 | AU36: 0 | AV36: 0 | AW36: 0 | AX36: 0 | AY36: 0 | AZ36: 0 | BA36: 0 | BB36: 0 | BC36: 0 | BD36: 0 | BE36: 0 | BF36: 0 | BG36: 0 | BH36: 0 | BI36: 0 | BJ36: 0 | BK36: 0 | BL36: 0 | BM36: 0 | BN36: 0 | BO36: 0 | BP36: =-BP292*BP$13 -> 0 | BQ36: 0 | BR36: 0 | BS36: 0 | BT36: 0 | BU36: 0 | BV36: 0 | BW36: 0 | BX36: 0
D37: Hard O&M | E37: -475.8628851 | G37: =G340*G$13 -> 0 | H37: 0 | I37: 0 | J37: 0 | K37: 0 | L37: 0 | M37: 0 | N37: 0 | O37: 0 | P37: -7.122403369 | Q37: -7.122403369 | R37: -7.122403369 | S37: -7.122403369 | T37: -7.122403369 | U37: -7.122403369 | V37: -27.36812445 | W37: -27.36812445 | X37: -27.36812445 | Y37: -27.36812445 | Z37: -27.36812445 | AA37: -27.36812445 | AB37: -29.64418938 | AC37: -29.64418938 | AD37: -29.64418938 | AE37: -29.64418938 | AF37: -29.64418938 | AG37: -29.64418938 | AH37: -45.52729097 | AI37: -45.52729097 | AJ37: 0 | AK37: 0 | AL37: 0 | AM37: =AM340*AM$13 -> 0 | AN37: 0 | AO37: 0 | AP37: 0 | AQ37: 0 | AR37: 0 | AS37: 0 | AT37: 0 | AU37: 0 | AV37: 0 | AW37: 0 | AX37: 0 | AY37: 0 | AZ37: 0 | BA37: 0 | BB37: 0 | BC37: 0 | BD37: 0 | BE37: 0 | BF37: 0 | BG37: 0 | BH37: 0 | BI37: 0 | BJ37: 0 | BK37: 0 | BL37: 0 | BM37: 0 | BN37: 0 | BO37: 0 | BP37: =BP340*BP$13 -> 0 | BQ37: 0 | BR37: 0 | BS37: 0 | BT37: 0 | BU37: 0 | BV37: 0 | BW37: 0 | BX37: 0
D38: Soft O&M | E38: -603.9276038 | G38: =G388*G$13 -> -244.4383349 | H38: 0 | I38: -9.733701978 | J38: -22.57930306 | K38: -22.57930306 | L38: -22.57930306 | M38: -22.57930306 | N38: -22.57930306 | O38: -22.57930306 | P38: -15.13088137 | Q38: -15.13088137 | R38: -15.13088137 | S38: -15.13088137 | T38: -15.13088137 | U38: -15.13088137 | V38: -7.761800044 | W38: -7.761800044 | X38: -7.761800044 | Y38: -7.761800044 | Z38: -7.761800044 | AA38: -7.761800044 | AB38: -8.455013419 | AC38: -8.455013419 | AD38: -8.455013419 | AE38: -8.455013419 | AF38: -8.455013419 | AG38: -8.455013419 | AH38: -13.09678979 | AI38: -13.09678979 | AJ38: 0 | AK38: 0 | AL38: 0 | AM38: =AM388*AM$13 -> 0 | AN38: 0 | AO38: 0 | AP38: 0 | AQ38: 0 | AR38: 0 | AS38: 0 | AT38: 0 | AU38: 0 | AV38: 0 | AW38: 0 | AX38: 0 | AY38: 0 | AZ38: 0 | BA38: 0 | BB38: 0 | BC38: 0 | BD38: 0 | BE38: 0 | BF38: 0 | BG38: 0 | BH38: 0 | BI38: 0 | BJ38: 0 | BK38: 0 | BL38: 0 | BM38: 0 | BN38: 0 | BO38: 0 | BP38: =BP388*BP$13 -> 0 | BQ38: 0 | BR38: 0 | BS38: 0 | BT38: 0 | BU38: 0 | BV38: 0 | BW38: 0 | BX38: 0
D39: Construction costs paid | E39: -47772.16134 | G39: =G584*G$13 -> -2725.573295 | H39: 0 | I39: -827.4892976 | J39: -751.5717831 | K39: -2140.915421 | L39: -901.8222987 | M39: -1678.063772 | N39: -1981.792096 | O39: -2202.476215 | P39: -2721.730622 | Q39: -3316.477364 | R39: -3471.796669 | S39: -3158.678368 | T39: -1648.998219 | U39: -1387.714637 | V39: -1117.905724 | W39: -1204.080608 | X39: -907.7246126 | Y39: -536.9229782 | Z39: -890.1579626 | AA39: -1190.682712 | AB39: -1605.124066 | AC39: -1488.748592 | AD39: -2174.766557 | AE39: -2625.95149 | AF39: -2184.711942 | AG39: -1717.863116 | AH39: -987.8373151 | AI39: -224.583607 | AJ39: 0 | AK39: 0 | AL39: 0 | AM39: =AM584*AM$13 -> 0 | AN39: 0 | AO39: 0 | AP39: 0 | AQ39: 0 | AR39: 0 | AS39: 0 | AT39: 0 | AU39: 0 | AV39: 0 | AW39: 0 | AX39: 0 | AY39: 0 | AZ39: 0 | BA39: 0 | BB39: 0 | BC39: 0 | BD39: 0 | BE39: 0 | BF39: 0 | BG39: 0 | BH39: 0 | BI39: 0 | BJ39: 0 | BK39: 0 | BL39: 0 | BM39: 0 | BN39: 0 | BO39: 0 | BP39: 0 | BQ39: 0 | BR39: 0 | BS39: =BS584*BS$13 -> 0 | BT39: 0 | BU39: 0 | BV39: 0 | BW39: 0 | BX39: 0
D40: Development costs | E40: -2793.303036 | G40: =G646*G$13 -> -2763.303036 | H40: 0 | I40: 0 | J40: 0 | K40: 0 | L40: 0 | M40: -30 | N40: 0 | O40: 0 | P40: 0 | Q40: 0 | R40: 0 | S40: 0 | T40: 0 | U40: 0 | V40: 0 | W40: 0 | X40: 0 | Y40: 0 | Z40: 0 | AA40: 0 | AB40: 0 | AC40: 0 | AD40: 0 | AE40: 0 | AF40: 0 | AG40: 0 | AH40: 0 | AI40: 0 | AJ40: 0 | AK40: 0 | AL40: 0 | AM40: =AM646*AM$13 -> 0 | AN40: 0 | AO40: 0 | AP40: 0 | AQ40: 0 | AR40: 0 | AS40: 0 | AT40: 0 | AU40: 0 | AV40: 0 | AW40: 0 | AX40: 0 | AY40: 0 | AZ40: 0 | BA40: 0 | BB40: 0 | BC40: 0 | BD40: 0 | BE40: 0 | BF40: 0 | BG40: 0 | BH40: 0 | BI40: 0 | BJ40: 0 | BK40: 0 | BL40: 0 | BM40: 0 | BN40: 0 | BO40: 0 | BP40: 0 | BQ40: 0 | BR40: 0 | BS40: =BS646*BS$13 -> 0 | BT40: 0 | BU40: 0 | BV40: 0 | BW40: 0 | BX40: 0
D41: Life-cycle costs | E41: 0
D42: SPV costs | E42: -1587.937958 | G42: =G450*G$13 -> -142.8295947 | H42: -36.57268219 | I42: -36.57268219 | J42: -40.33648487 | K42: -40.33648487 | L42: -40.33648487 | M42: -40.33648487 | N42: -40.33648487 | O42: -40.33648487 | P42: -43.54157137 | Q42: -177.5631343 | R42: -43.54157137 | S42: -43.54157137 | T42: -188.1455148 | U42: -43.54157137 | V42: -49.94254347 | W42: -49.94254347 | X42: -49.94254347 | Y42: -49.94254347 | Z42: -49.94254347 | AA42: -49.94254347 | AB42: -40.67418747 | AC42: -40.67418747 | AD42: -40.67418747 | AE42: -40.67418747 | AF42: -40.67418747 | AG42: -40.67418747 | AH42: -23.18438471 | AI42: -23.18438471 | AJ42: 0 | AK42: 0 | AL42: 0 | AM42: =AM450*AM$13 -> 0 | AN42: 0 | AO42: 0 | AP42: 0 | AQ42: 0 | AR42: 0 | AS42: 0 | AT42: 0 | AU42: 0 | AV42: 0 | AW42: 0 | AX42: 0 | AY42: 0 | AZ42: 0 | BA42: 0 | BB42: 0 | BC42: 0 | BD42: 0 | BE42: 0 | BF42: 0 | BG42: 0 | BH42: 0 | BI42: 0 | BJ42: 0 | BK42: 0 | BL42: 0 | BM42: 0 | BN42: 0 | BO42: 0 | BP42: 0 | BQ42: 0 | BR42: 0 | BS42: =BS450*BS$13 -> 0 | BT42: 0 | BU42: 0 | BV42: 0 | BW42: 0 | BX42: 0
D43: Operating cash flow | E43: =SUM(E33:E42) -> -48406.05401 | G43: =SUM(G33:G42) -> -5876.144261 | H43: -36.57268219 | I43: -873.7956818 | J43: -814.4875711 | K43: -2203.831209 | L43: -964.7380867 | M43: -1770.979559 | N43: -2044.707884 | O43: -2265.392003 | P43: -2781.687261 | Q43: -3508.368602 | R43: -3520.091072 | S43: -3170.616265 | T43: -1765.814181 | U43: -1334.524467 | V43: -973.4874987 | W43: -1003.548684 | X43: -682.3577653 | Y43: -311.556131 | Z43: -664.7911154 | AA43: -965.3158648 | AB43: -1373.458141 | AC43: -1257.082667 | AD43: -1943.100632 | AE43: -2394.285565 | AF43: -1937.648959 | AG43: -1445.547337 | AH43: -685.0569047 | AI43: 162.9340389 | AJ43: 0 | AK43: 0 | AL43: 0 | AM43: =SUM(AM33:AM42) -> 0 | AN43: 0 | AO43: 0 | AP43: 0 | AQ43: 0 | AR43: 0 | AS43: 0 | AT43: 0 | AU43: 0 | AV43: 0 | AW43: 0 | AX43: 0 | AY43: 0 | AZ43: 0 | BA43: 0 | BB43: 0 | BC43: 0 | BD43: 0 | BE43: 0 | BF43: 0 | BG43: 0 | BH43: 0 | BI43: 0 | BJ43: 0 | BK43: 0 | BL43: 0 | BM43: 0 | BN43: 0 | BO43: 0 | BP43: =SUM(BP33:BP42) -> 0 | BQ43: 0 | BR43: 0 | BS43: 0 | BT43: 0 | BU43: 0 | BV43: 0 | BW43: 0 | BX43: 0
D45: Deposit interest received / Overdraft interest paid | E45: =SUMPRODUCT(G45:BO45,$G$13:$BO$13) -> 0.6287301289 | G45: =G713*G$13 -> 0 | H45: 0 | I45: 0 | J45: 0 | K45: 0.6287301289 | L45: 0 | M45: 0 | N45: 2.849957713e-16 | O45: 0 | P45: 0 | Q45: 0 | R45: 0 | S45: 0 | T45: 5.699915425e-16 | U45: 0 | V45: 0 | W45: 0 | X45: 0 | Y45: 0 | Z45: 0 | AA45: 0 | AB45: 0 | AC45: 0 | AD45: 0 | AE45: 0 | AF45: 0 | AG45: 0 | AH45: 0 | AI45: =AI713*AI$13 -> 0 | AJ45: 0 | AK45: 0 | AL45: 0 | AM45: =AM713*AM$13 -> 0 | AN45: 0 | AO45: 0 | AP45: 0 | AQ45: 0 | AR45: 0 | AS45: 0 | AT45: 0 | AU45: 0 | AV45: 0 | AW45: 0 | AX45: 0 | AY45: 0 | AZ45: 0 | BA45: 0 | BB45: 0 | BC45: 0 | BD45: 0 | BE45: 0 | BF45: 0 | BG45: 0 | BH45: 0 | BI45: 0 | BJ45: 0 | BK45: 0 | BL45: 0 | BM45: 0 | BN45: 0 | BO45: 0 | BP45: 0 | BQ45: 0 | BR45: 0 | BS45: =BS713*BS$13 -> 0 | BT45: 0 | BU45: 0 | BV45: 0 | BW45: 0 | BX45: 0
D46: VAT Paid to creditors/Received from debtors | E46: =SUMPRODUCT(G46:BO46,$G$13:$BO$13) -> -9593.019782 | G46: =G697*G$13 -> -1142.762933 | H46: -7.314536439 | I46: -174.7591364 | J46: -162.8975142 | K46: -440.7662418 | L46: -192.9476173 | M46: -354.1959119 | N46: -408.9415768 | O46: -453.0784006 | P46: -556.3374523 | Q46: -674.8694078 | R46: -704.0182143 | S46: -634.1232529 | T46: -324.2420475 | U46: -266.9048934 | V46: -194.6974997 | W46: -200.7097368 | X46: -136.4715531 | Y46: -62.31122619 | Z46: -132.9582231 | AA46: -193.063173 | AB46: -274.6916282 | AC46: -251.4165335 | AD46: -388.6201263 | AE46: -478.8571129 | AF46: -387.5297917 | AG46: -289.1094673 | AH46: -137.0113809 | AI46: 32.58680777 | AJ46: 0 | AK46: 0 | AL46: 0 | AM46: =AM697*AM$13 -> 0 | AN46: 0 | AO46: 0 | AP46: 0 | AQ46: 0 | AR46: 0 | AS46: 0 | AT46: 0 | AU46: 0 | AV46: 0 | AW46: 0 | AX46: 0 | AY46: 0 | AZ46: 0 | BA46: 0 | BB46: 0 | BC46: 0 | BD46: 0 | BE46: 0 | BF46: 0 | BG46: 0 | BH46: 0 | BI46: 0 | BJ46: 0 | BK46: 0 | BL46: 0 | BM46: 0 | BN46: 0 | BO46: 0 | BP46: 0 | BQ46: 0 | BR46: 0 | BS46: =BS697*BS$13 -> 0 | BT46: 0 | BU46: 0 | BV46: 0 | BW46: 0 | BX46: 0
D47: VAT (paid)/received | E47: =SUMPRODUCT(G47:BO47,$G$13:$BO$13) -> 9686.885004 | G47: =-G683*G$13 -> 0 | H47: 0 | I47: 0 | J47: 1487.73412 | K47: 440.7662418 | L47: 192.9476173 | M47: 348.1959119 | N47: 414.9415768 | O47: 453.0784006 | P47: 557.5050957 | Q47: 675.2868007 | R47: 705.9332687 | S47: 641.3945541 | T47: 332.1872231 | U47: 271.9853311 | V47: 216.7986333 | W47: 211.9324766 | X47: 141.4385376 | Y47: 62.31122619 | Z47: 132.9582231 | AA47: 193.063173 | AB47: 274.6916282 | AC47: 251.4165335 | AD47: 388.6201263 | AE47: 478.8571129 | AF47: 390.6092034 | AG47: 294.1600266 | AH47: 143.7113222 | AI47: -15.63936067 | AJ47: 0 | AK47: 0 | AL47: 0 | AM47: =-AM683*AM$13 -> 0 | AN47: 0 | AO47: 0 | AP47: 0 | AQ47: 0 | AR47: 0 | AS47: 0 | AT47: 0 | AU47: 0 | AV47: 0 | AW47: 0 | AX47: 0 | AY47: 0 | AZ47: 0 | BA47: 0 | BB47: 0 | BC47: 0 | BD47: 0 | BE47: 0 | BF47: 0 | BG47: 0 | BH47: 0 | BI47: 0 | BJ47: 0 | BK47: 0 | BL47: 0 | BM47: 0 | BN47: 0 | BO47: 0 | BP47: 0 | BQ47: 0 | BR47: 0 | BS47: =-BS683*BS$13 -> 0 | BT47: 0 | BU47: 0 | BV47: 0 | BW47: 0 | BX47: 0
D48: Current tax paid | E48: =SUMPRODUCT(G48:BO48,$G$13:$BO$13) -> -211.9839837 | G48: =G859 -> -17.24778252 | H48: =H859 -> -17.24778252 | I48: -5.74926084 | J48: -5.74926084 | K48: -5.74926084 | L48: -5.74926084 | M48: -5.74926084 | N48: -5.74926084 | O48: -3.747262089 | P48: -3.747262089 | Q48: -3.747262089 | R48: -3.747262089 | S48: -3.747262089 | T48: -3.747262089 | U48: -3.747262089 | V48: -3.747262089 | W48: -3.747262089 | X48: -3.747262089 | Y48: -3.747262089 | Z48: -3.747262089 | AA48: -10.89174539 | AB48: -10.89174539 | AC48: -10.89174539 | AD48: -10.89174539 | AE48: -10.89174539 | AF48: -10.89174539 | AG48: -10.89174539 | AH48: -10.89174539 | AI48: -10.89174539 | AJ48: -10.89174539 | AK48: -10.89174539 | AL48: -10.89174539 | AM48: 0 | AN48: 0 | AO48: 0 | AP48: 0 | AQ48: 0 | AR48: 0 | AS48: 0 | AT48: 0 | AU48: 0 | AV48: 0 | AW48: 0 | AX48: 0 | AY48: 0 | AZ48: 0 | BA48: 0 | BB48: 0 | BC48: 0 | BD48: 0 | BE48: 0 | BF48: 0 | BG48: 0 | BH48: 0 | BI48: 0 | BJ48: 0 | BK48: 0 | BL48: 0 | BM48: 0 | BN48: 0 | BO48: 0 | BP48: =BP859 -> 0 | BQ48: 0 | BR48: 0 | BS48: 0 | BT48: 0 | BU48: 0 | BV48: 0 | BW48: 0 | BX48: 0
D49: Net cash flow | E49: =SUM(E43:E48) -> -48523.54404 | G49: =SUM(G43:G48) -> -7036.154976 | H49: -61.13500115 | I49: -1054.304079 | J49: 504.5997741 | K49: -2208.95174 | L49: -970.4873475 | M49: -1782.72882 | N49: -2044.457145 | O49: -2269.139265 | P49: -2784.26688 | Q49: -3511.698471 | R49: -3521.923279 | S49: -3167.092226 | T49: -1761.616267 | U49: -1333.191292 | V49: -955.1336273 | W49: -996.0732063 | X49: -681.1380429 | Y49: -315.3033931 | Z49: -668.5383775 | AA49: -976.2076102 | AB49: -1384.349886 | AC49: -1267.974413 | AD49: -1953.992377 | AE49: -2405.17731 | AF49: -1945.461292 | AG49: -1451.388523 | AH49: -689.2487089 | AI49: 168.9897406 | AJ49: -10.89174539 | AK49: -10.89174539 | AL49: -10.89174539 | AM49: =SUM(AM43:AM48) -> 0 | AN49: 0 | AO49: 0 | AP49: 0 | AQ49: 0 | AR49: 0 | AS49: 0 | AT49: 0 | AU49: 0 | AV49: 0 | AW49: 0 | AX49: 0 | AY49: 0 | AZ49: 0 | BA49: 0 | BB49: 0 | BC49: 0 | BD49: 0 | BE49: 0 | BF49: 0 | BG49: 0 | BH49: 0 | BI49: 0 | BJ49: 0 | BK49: 0 | BL49: 0 | BM49: 0 | BN49: 0 | BO49: 0 | BP49: =SUM(BP43:BP48) -> 0 | BQ49: 0 | BR49: 0 | BS49: 0 | BT49: 0 | BU49: 0 | BV49: 0 | BW49: 0 | BX49: 0
D51: Opening cash balance | E51: =G51 -> 0 | G51: =F77*G$13 -> 0 | H51: 0 | I51: 0 | J51: 0 | K51: 501.6098296 | L51: 0 | M51: 0 | N51: 2.273736754e-13 | O51: 0 | P51: 0 | Q51: 0 | R51: 0 | S51: 0 | T51: 4.547473509e-13 | U51: 0 | V51: 0 | W51: 0 | X51: 0 | Y51: 0 | Z51: 0 | AA51: 0 | AB51: 0 | AC51: 0 | AD51: 0 | AE51: 0 | AF51: 0 | AG51: 0 | AH51: 0 | AI51: 0 | AJ51: 0 | AK51: 0 | AL51: 0 | AM51: =AL77*AM$13 -> 0 | AN51: 0 | AO51: 0 | AP51: 0 | AQ51: 0 | AR51: 0 | AS51: 0 | AT51: 0 | AU51: 0 | AV51: 0 | AW51: 0 | AX51: 0 | AY51: 0 | AZ51: 0 | BA51: 0 | BB51: 0 | BC51: 0 | BD51: 0 | BE51: 0 | BF51: 0 | BG51: 0 | BH51: 0 | BI51: 0 | BJ51: 0 | BK51: 0 | BL51: 0 | BM51: 0 | BN51: 0 | BO51: 0 | BP51: =BO77*BP$13 -> 0 | BQ51: 0 | BR51: 0 | BS51: 0 | BT51: 0 | BU51: 0 | BV51: 0 | BW51: 0 | BX51: 0
D53: Change in Law Reserve Account Transfers | E53: =SUMPRODUCT(G53:BO53,$G$13:$BO$13) -> 0 | G53: =G819 -> 0 | H53: =H819 -> 0 | I53: 0 | J53: 0 | K53: 0 | L53: 0 | M53: 0 | N53: 0 | O53: 0 | P53: 0 | Q53: 0 | R53: 0 | S53: 0 | T53: 0 | U53: 0 | V53: 0 | W53: 0 | X53: 0 | Y53: 0 | Z53: 0 | AA53: 0 | AB53: 0 | AC53: 0 | AD53: 0 | AE53: 0 | AF53: 0 | AG53: 0 | AH53: 0 | AI53: 0 | AJ53: 0 | AK53: 0 | AL53: 0 | AM53: 0 | AN53: 0 | AO53: 0 | AP53: 0 | AQ53: 0 | AR53: 0 | AS53: 0 | AT53: 0 | AU53: 0 | AV53: 0 | AW53: 0 | AX53: 0 | AY53: 0 | AZ53: 0 | BA53: 0 | BB53: 0 | BC53: 0 | BD53: 0 | BE53: 0 | BF53: 0 | BG53: 0 | BH53: 0 | BI53: 0 | BJ53: 0 | BK53: 0 | BL53: 0 | BM53: 0 | BN53: 0 | BO53: 0 | BP53: =BP819 -> 0 | BQ53: 0 | BR53: 0 | BS53: 0 | BT53: 0 | BU53: 0 | BV53: 0 | BW53: 0 | BX53: 0
D54: Life-Cycle/Maintenance reserve transfers (pre-funding) | E54: =SUMPRODUCT(G54:BO54,$G$13:$BO$13) -> -67.88469387 | G54: =-G722 -> 0 | H54: =-H722 -> 0 | I54: 0 | J54: 0 | K54: 0 | L54: 0 | M54: 0 | N54: 0 | O54: 0 | P54: 0 | Q54: 0 | R54: 0 | S54: 0 | T54: 0 | U54: 0 | V54: 0 | W54: 0 | X54: 0 | Y54: 0 | Z54: 0 | AA54: 0 | AB54: 0 | AC54: 0 | AD54: 0 | AE54: 0 | AF54: 0 | AG54: 0 | AH54: 0 | AI54: -67.88469387 | AJ54: 0 | AK54: 0 | AL54: 0 | AM54: 0 | AN54: 0 | AO54: 0 | AP54: 0 | AQ54: 0 | AR54: 0 | AS54: 0 | AT54: 0 | AU54: 0 | AV54: 0 | AW54: 0 | AX54: 0 | AY54: 0 | AZ54: 0 | BA54: 0 | BB54: 0 | BC54: 0 | BD54: 0 | BE54: 0 | BF54: 0 | BG54: 0 | BH54: 0 | BI54: 0 | BJ54: 0 | BK54: 0 | BL54: 0 | BM54: 0 | BN54: 0 | BO54: 0 | BP54: =-BP722 -> 0 | BQ54: 0 | BR54: 0 | BS54: 0 | BT54: 0 | BU54: 0 | BV54: 0 | BW54: 0 | BX54: 0
D55: Debt service reserve transfers | E55: =SUMPRODUCT(G55:BO55,$G$13:$BO$13) -> 0 | G55: =-SUM(G786:G787)*G$13 -> 0 | H55: 0 | I55: 0 | J55: 0 | K55: 0 | L55: 0 | M55: 0 | N55: 0 | O55: 0 | P55: 0 | Q55: 0 | R55: 0 | S55: 0 | T55: 0 | U55: 0 | V55: 0 | W55: 0 | X55: 0 | Y55: 0 | Z55: 0 | AA55: 0 | AB55: 0 | AC55: 0 | AD55: 0 | AE55: 0 | AF55: 0 | AG55: 0 | AH55: 0 | AI55: 0 | AJ55: 0 | AK55: 0 | AL55: 0 | AM55: =-SUM(AM786:AM787)*AM$13 -> 0 | AN55: 0 | AO55: 0 | AP55: 0 | AQ55: 0 | AR55: 0 | AS55: 0 | AT55: 0 | AU55: 0 | AV55: 0 | AW55: 0 | AX55: 0 | AY55: 0 | AZ55: 0 | BA55: 0 | BB55: 0 | BC55: 0 | BD55: 0 | BE55: 0 | BF55: 0 | BG55: 0 | BH55: 0 | BI55: 0 | BJ55: 0 | BK55: 0 | BL55: 0 | BM55: 0 | BN55: 0 | BO55: 0 | BP55: 0 | BQ55: 0 | BR55: 0 | BS55: =-SUM(BS786:BS787)*BS$13 -> 0 | BT55: 0 | BU55: 0 | BV55: 0 | BW55: 0 | BX55: 0
D57: Cash flow available for senior debt service | E57: =SUM(E49:E56) -> -48591.42874 | G57: =SUM(G49:G55) -> -7036.154976 | H57: =SUM(H49:H55) -> -61.13500115 | I57: -1054.304079 | J57: 504.5997741 | K57: -1707.34191 | L57: -970.4873475 | M57: -1782.72882 | N57: -2044.457145 | O57: -2269.139265 | P57: -2784.26688 | Q57: -3511.698471 | R57: -3521.923279 | S57: -3167.092226 | T57: -1761.616267 | U57: -1333.191292 | V57: -955.1336273 | W57: -996.0732063 | X57: -681.1380429 | Y57: -315.3033931 | Z57: -668.5383775 | AA57: -976.2076102 | AB57: -1384.349886 | AC57: -1267.974413 | AD57: -1953.992377 | AE57: -2405.17731 | AF57: -1945.461292 | AG57: -1451.388523 | AH57: -689.2487089 | AI57: 101.1050467 | AJ57: -10.89174539 | AK57: -10.89174539 | AL57: -10.89174539 | AM57: =SUM(AM49:AM55) -> 0 | AN57: 0 | AO57: 0 | AP57: 0 | AQ57: 0 | AR57: 0 | AS57: 0 | AT57: 0 | AU57: 0 | AV57: 0 | AW57: 0 | AX57: 0 | AY57: 0 | AZ57: 0 | BA57: 0 | BB57: 0 | BC57: 0 | BD57: 0 | BE57: 0 | BF57: 0 | BG57: 0 | BH57: 0 | BI57: 0 | BJ57: 0 | BK57: 0 | BL57: 0 | BM57: 0 | BN57: 0 | BO57: 0 | BP57: =SUM(BP49:BP55) -> 0 | BQ57: 0 | BR57: 0 | BS57: 0 | BT57: 0 | BU57: 0 | BV57: 0 | BW57: 0 | BX57: 0
D59: Arrangement fees and agency fees | E59: =SUMPRODUCT(G59:BO59,$G$13:$BO$13) -> -1239.891938 | G59: =(G980+G1035+G1059+G1109+G1132+G1159+G791+G807+G1197+G1228)*G$13 -> -1194.139595 | H59: =(H980+H1035+H1059+H1109+H1132+H1159+H791+H807+H1197)*H$13 -> -15 | I59: 0 | J59: 0 | K59: 0 | L59: 0 | M59: 0 | N59: 0 | O59: 0 | P59: 0 | Q59: 0 | R59: 0 | S59: 0 | T59: -15.18634255 | U59: 0 | V59: 0 | W59: 0 | X59: 0 | Y59: 0 | Z59: 0 | AA59: 0 | AB59: 0 | AC59: 0 | AD59: 0 | AE59: 0 | AF59: -15.56600111 | AG59: 0 | AH59: 0 | AI59: 0 | AJ59: 0 | AK59: 0 | AL59: 0 | AM59: 0 | AN59: =(AN980+AN1035+AN1059+AN1109+AN1132+AN1159+AN791+AN807+AN1197)*AN$13 -> 0 | AO59: 0 | AP59: 0 | AQ59: 0 | AR59: 0 | AS59: 0 | AT59: 0 | AU59: 0 | AV59: 0 | AW59: 0 | AX59: 0 | AY59: 0 | AZ59: 0 | BA59: 0 | BB59: 0 | BC59: 0 | BD59: 0 | BE59: 0 | BF59: 0 | BG59: 0 | BH59: 0 | BI59: 0 | BJ59: 0 | BK59: 0 | BL59: 0 | BM59: 0 | BN59: 0 | BO59: 0 | BP59: 0 | BQ59: 0 | BR59: 0 | BS59: 0 | BT59: 0 | BU59: 0 | BV59: 0 | BW59: 0 | BX59: 0
D60: Rating agency fees | E60: =SUMPRODUCT(G60:BO60,$G$13:$BO$13) -> 0 | G60: =G1216 -> 0 | H60: =H1216 -> 0 | I60: 0 | J60: 0 | K60: 0 | L60: 0 | M60: 0 | N60: 0 | O60: 0 | P60: 0 | Q60: 0 | R60: 0 | S60: 0 | T60: 0 | U60: 0 | V60: 0 | W60: 0 | X60: 0 | Y60: 0 | Z60: 0 | AA60: 0 | AB60: 0 | AC60: 0 | AD60: 0 | AE60: 0 | AF60: 0 | AG60: 0 | AH60: 0 | AI60: 0 | AJ60: 0 | AK60: 0 | AL60: 0 | AM60: 0 | AN60: 0 | AO60: 0 | AP60: 0 | AQ60: 0 | AR60: 0 | AS60: 0 | AT60: 0 | AU60: 0 | AV60: 0 | AW60: 0 | AX60: 0 | AY60: 0 | AZ60: 0 | BA60: 0 | BB60: 0 | BC60: 0 | BD60: 0 | BE60: 0 | BF60: 0 | BG60: 0 | BH60: 0 | BI60: 0 | BJ60: 0 | BK60: 0 | BL60: 0 | BM60: 0 | BN60: 0 | BO60: 0 | BP60: =BP1216 -> 0 | BQ60: 0 | BR60: 0 | BS60: 0 | BT60: 0 | BU60: 0 | BV60: 0 | BW60: 0 | BX60: 0
D61: Commitment fees | E61: =SUMPRODUCT(G61:BO61,$G$13:$BO$13) -> -603.5592858 | G61: =(G1037+G1061+G1111+G1134+G1161+G793+G811)*G$13 -> -6.239657497 | H61: =(H1037+H1061+H1111+H1134+H1161+H793+H811)*H$13 -> -39.28174326 | I61: -37.89536066 | J61: -38.28913283 | K61: -36.98844031 | L61: -36.84822158 | M61: -36.02907633 | N61: -33.46927968 | O61: -32.93626402 | P61: -30.10128086 | Q61: -28.87345879 | R61: -26.07150287 | S61: -21.74771175 | T61: -20.68997166 | U61: -18.55425953 | V61: -17.99228952 | W61: -16.53819992 | X61: -16.1565146 | Y61: -15.45384741 | Z61: -14.54251245 | AA61: -14.33456869 | AB61: -12.96497081 | AC61: -12.14930573 | AD61: -10.97779482 | AE61: -8.378300398 | AF61: -7.241650466 | AG61: -5.337628638 | AH61: -4.177882811 | AI61: -3.298457948 | AJ61: 0 | AK61: 0 | AL61: 0 | AM61: =(AM1037+AM1061+AM1111+AM1134+AM1161+AM793+AM811)*AM$13 -> 0 | AN61: 0 | AO61: 0 | AP61: 0 | AQ61: 0 | AR61: 0 | AS61: 0 | AT61: 0 | AU61: 0 | AV61: 0 | AW61: 0 | AX61: 0 | AY61: 0 | AZ61: 0 | BA61: 0 | BB61: 0 | BC61: 0 | BD61: 0 | BE61: 0 | BF61: 0 | BG61: 0 | BH61: 0 | BI61: 0 | BJ61: 0 | BK61: 0 | BL61: 0 | BM61: 0 | BN61: 0 | BO61: 0 | BP61: 0 | BQ61: 0 | BR61: 0 | BS61: =(BS1037+BS1061+BS1111+BS1134+BS1161+BS793+BS811)*BS$13 -> 0 | BT61: 0 | BU61: 0 | BV61: 0 | BW61: 0 | BX61: 0
D62: Wrapped bond premium paid (if applicable) | E62: =SUMPRODUCT(G62:BO62,$G$13:$BO$13) -> 0 | G62: =-(G1031+G1023) -> 0 | H62: =-(H1031+H1023) -> 0 | I62: 0 | J62: 0 | K62: 0 | L62: 0 | M62: 0 | N62: 0 | O62: 0 | P62: 0 | Q62: 0 | R62: 0 | S62: 0 | T62: 0 | U62: 0 | V62: 0 | W62: 0 | X62: 0 | Y62: 0 | Z62: 0 | AA62: 0 | AB62: 0 | AC62: 0 | AD62: 0 | AE62: 0 | AF62: 0 | AG62: 0 | AH62: 0 | AI62: 0 | AJ62: 0 | AK62: 0 | AL62: 0 | AM62: 0 | AN62: 0 | AO62: 0 | AP62: 0 | AQ62: 0 | AR62: 0 | AS62: 0 | AT62: 0 | AU62: 0 | AV62: 0 | AW62: 0 | AX62: 0 | AY62: 0 | AZ62: 0 | BA62: 0 | BB62: 0 | BC62: 0 | BD62: 0 | BE62: 0 | BF62: 0 | BG62: 0 | BH62: 0 | BI62: 0 | BJ62: 0 | BK62: 0 | BL62: 0 | BM62: 0 | BN62: 0 | BO62: 0 | BP62: =-(BP1031+BP1023) -> 0 | BQ62: 0 | BR62: 0 | BS62: 0 | BT62: 0 | BU62: 0 | BV62: 0 | BW62: 0 | BX62: 0
D63: Letter of credit fee | E63: =SUMPRODUCT(G63:BO63,$G$13:$BO$13) -> 0 | G63: =G1162+G1135 -> 0 | H63: 0 | I63: 0 | J63: 0 | K63: 0 | L63: 0 | M63: 0 | N63: 0 | O63: 0 | P63: 0 | Q63: 0 | R63: 0 | S63: 0 | T63: 0 | U63: 0 | V63: 0 | W63: 0 | X63: 0 | Y63: 0 | Z63: 0 | AA63: 0 | AB63: 0 | AC63: 0 | AD63: 0 | AE63: 0 | AF63: 0 | AG63: 0 | AH63: 0 | AI63: 0 | AJ63: 0 | AK63: 0 | AL63: 0 | AM63: =AM1162+AM1135 -> 0 | AN63: 0 | AO63: 0 | AP63: 0 | AQ63: 0 | AR63: 0 | AS63: 0 | AT63: 0 | AU63: 0 | AV63: 0 | AW63: 0 | AX63: 0 | AY63: 0 | AZ63: 0 | BA63: 0 | BB63: 0 | BC63: 0 | BD63: 0 | BE63: 0 | BF63: 0 | BG63: 0 | BH63: 0 | BI63: 0 | BJ63: 0 | BK63: 0 | BL63: 0 | BM63: 0 | BN63: 0 | BO63: 0 | BP63: 0 | BQ63: 0 | BR63: 0 | BS63: =BS1162+BS1135 -> 0 | BT63: 0 | BU63: 0 | BV63: 0 | BW63: 0 | BX63: 0
D65: Interest During Construction Paid - Not Rolled Up | E65: =SUMPRODUCT(G65:BO65,$G$13:$BO$13) -> -789.7762004 | G65: =-(G995+G1051+G1076+G1123+G1148+G1176)*G$13 -> -4.60242541 | H65: -28.53503754 | I65: -27.61455246 | J65: -28.53503754 | K65: -27.61455246 | L65: -28.53503754 | M65: -28.53503754 | N65: -27.61455246 | O65: -28.53503754 | P65: -27.61455246 | Q65: -28.53503754 | R65: -28.53503754 | S65: -26.69406738 | T65: -28.53503754 | U65: -27.61455246 | V65: -28.53503754 | W65: -27.61455246 | X65: -28.53503754 | Y65: -28.53503754 | Z65: -27.61455246 | AA65: -28.53503754 | AB65: -27.61455246 | AC65: -28.53503754 | AD65: -28.53503754 | AE65: -25.7735823 | AF65: -28.53503754 | AG65: -27.61455246 | AH65: -28.53503754 | AI65: -27.61455246 | AJ65: 0 | AK65: 0 | AL65: 0 | AM65: =-(AM995+AM1051+AM1076+AM1123+AM1148+AM1176)*AM$13 -> 0 | AN65: 0 | AO65: 0 | AP65: 0 | AQ65: 0 | AR65: 0 | AS65: 0 | AT65: 0 | AU65: 0 | AV65: 0 | AW65: 0 | AX65: 0 | AY65: 0 | AZ65: 0 | BA65: 0 | BB65: 0 | BC65: 0 | BD65: 0 | BE65: 0 | BF65: 0 | BG65: 0 | BH65: 0 | BI65: 0 | BJ65: 0 | BK65: 0 | BL65: 0 | BM65: 0 | BN65: 0 | BO65: 0 | BP65: 0 | BQ65: 0 | BR65: 0 | BS65: =-(BS995+BS1051+BS1076+BS1123+BS1148+BS1176)*BS$13 -> 0 | BT65: 0 | BU65: 0 | BV65: 0 | BW65: 0 | BX65: 0
D67: Transfer from GIC | E67: =SUMPRODUCT(G67:BO67,$G$13:$BO$13) -> 0 | G67: =-G850 -> 0 | H67: =-H850 -> 0 | I67: 0 | J67: 0 | K67: 0 | L67: 0 | M67: 0 | N67: 0 | O67: 0 | P67: 0 | Q67: 0 | R67: 0 | S67: 0 | T67: 0 | U67: 0 | V67: 0 | W67: 0 | X67: 0 | Y67: 0 | Z67: 0 | AA67: 0 | AB67: 0 | AC67: 0 | AD67: 0 | AE67: 0 | AF67: 0 | AG67: 0 | AH67: 0 | AI67: 0 | AJ67: 0 | AK67: 0 | AL67: 0 | AM67: 0 | AN67: 0 | AO67: 0 | AP67: 0 | AQ67: 0 | AR67: 0 | AS67: 0 | AT67: 0 | AU67: 0 | AV67: 0 | AW67: 0 | AX67: 0 | AY67: 0 | AZ67: 0 | BA67: 0 | BB67: 0 | BC67: 0 | BD67: 0 | BE67: 0 | BF67: 0 | BG67: 0 | BH67: 0 | BI67: 0 | BJ67: 0 | BK67: 0 | BL67: 0 | BM67: 0 | BN67: 0 | BO67: 0 | BP67: =-BP850 -> 0 | BQ67: 0 | BR67: 0 | BS67: 0 | BT67: 0 | BU67: 0 | BV67: 0 | BW67: 0 | BX67: 0
D69: Amounts drawn down (see below for analysis) | E69: =SUMPRODUCT(G69:BO69,$G$13:$BO$13) -> 51361.10775 | G69: =-G874-G1041-G1166 -> 8241.136654 | H69: 143.951782 | I69: 1119.813992 | J69: 63.83422588 | K69: 1771.944903 | L69: 1035.870607 | M69: 1847.292934 | N69: 2105.540977 | O69: 2330.610567 | P69: 2841.982713 | Q69: 3569.106967 | R69: 3576.52982 | S69: 3215.534005 | T69: 1826.027619 | U69: 1379.360104 | V69: 1001.660954 | W69: 1040.225959 | X69: 725.829595 | Y69: 359.292278 | Z69: 710.6954424 | AA69: 1019.077216 | AB69: 1424.929409 | AC69: 1308.658756 | AD69: 1993.505209 | AE69: 2439.329193 | AF69: 1996.803982 | AG69: 1484.340704 | AH69: 721.9616292 | AI69: 66.25955548 | AJ69: 0 | AK69: 0 | AL69: 0 | AM69: =-AM874-AM1041-AM1166 -> 0 | AN69: 0 | AO69: 0 | AP69: 0 | AQ69: 0 | AR69: 0 | AS69: 0 | AT69: 0 | AU69: 0 | AV69: 0 | AW69: 0 | AX69: 0 | AY69: 0 | AZ69: 0 | BA69: 0 | BB69: 0 | BC69: 0 | BD69: 0 | BE69: 0 | BF69: 0 | BG69: 0 | BH69: 0 | BI69: 0 | BJ69: 0 | BK69: 0 | BL69: 0 | BM69: 0 | BN69: 0 | BO69: 0 | BP69: 0 | BQ69: 0 | BR69: 0 | BS69: =-BS874-BS1041-BS1166 -> 0 | BT69: 0 | BU69: 0 | BV69: 0 | BW69: 0 | BX69: 0
